Workbook

Sheet Forside
A1: Sjekkliste årsregnskap små foretak - Ideelle organisasjoner | O1: Kommentarer - skal ikke være med i endelig versjon:
A2: Klient:
A3: År: | B3: 2020 | O3: Felt for utført/review skal være med i GR-versjonen, ikke i PwC-versjonen til Aura
A4: Utfylt: | O4: Skal være med i GR-versjonen, ikke i PwC-versjonen til Aura
A5: Review:
B8: Ubesvart | C8: Ja | D8: Nei | E8: Ikke av betydning | F8: IA | G8: Sum
A9: Noter | B9: =G9-SUM(C9:F9) -> 0 | C9: =_xlfn.AGGREGATE(3,5,'Sjekkliste noter'!J8:J293) -> 0 | D9: =_xlfn.AGGREGATE(3,5,'Sjekkliste noter'!K8:K293) -> 0 | E9: =_xlfn.AGGREGATE(3,5,'Sjekkliste noter'!L8:L293) -> 0 | F9: =_xlfn.AGGREGATE(3,5,'Sjekkliste noter'!M8:M293)+(G9-_xlfn.AGGREGATE(2,5,'Sjekkliste noter'!A8:A293)) -> 157 | G9: =_xlfn.AGGREGATE(2,4,'Sjekkliste noter'!A16:A293) -> 157
A10: Formelle forhold | B10: =G10-SUM(C10:F10) -> 0 | C10: =_xlfn.AGGREGATE(3,5,'Sjekkliste formelle forhold'!J10:J68) -> 0 | D10: =_xlfn.AGGREGATE(3,5,'Sjekkliste formelle forhold'!K10:K68) -> 0 | E10: =_xlfn.AGGREGATE(3,5,'Sjekkliste formelle forhold'!L10:L68) -> 0 | F10: =_xlfn.AGGREGATE(3,5,'Sjekkliste formelle forhold'!M9:M68)+(G10-_xlfn.AGGREGATE(2,5,'Sjekkliste formelle forhold'!A9:A68)) -> 33 | G10: =_xlfn.AGGREGATE(2,4,'Sjekkliste formelle forhold'!A9:A68) -> 33
A14: Ønsker du å bruke full sjekkliste, eller kun å kontrollere endringer i regelverk fra tidligere år og utvalgte risikoområder i virksomheten? | N14: F0/E0
A16: Veiledning for bruk av full sjekkliste: Sjekklisten kan spisses sånn at den kun omfatter forhold som er relevante for den aktuelle virksomheten. | O16: Den del som gjelder policy skal flyttes opp i rad før valg om full eller endring
A18: Full sjekkliste
A19: Har selskapet ansatte? | N19: F1
A20: Har selskapet ytelsespensjon? | N20: F2
A21: Driver selskapet med forskning og utvikling? | N21: F3
A22: Har selskapet langsiktige tilvirkningskontrakter? | N22: F4
A23: Er selskapet et datterselskap? | N23: F5
A24: Avlegger selskapet konsernregnskap? | N24: F6
A25: Har foretaket vært gjennom en restrukturering gjennom året? | N25: F7-F8 | O25: Her skal "oppkjøp" fjernes som valg
A26: Har selskapet bokført goodwill?
A28: Har foretaket aksjer i: | N28: F16-F19 | O28: Det skal inn et spørsmål til (det skal være mulig å trykke for et eller flere alternativer): Har foretaket aksjer i: - Datterselskap - Tilknyttet selskap - Felleskontrollert virksomhet - Andre aksjer og andeler
A35: Veiledning for bruk av endringssjekkliste: Ved avkryssing i listen nedenfor velger du de deler av sjekklisten som er relevante for det temaet du krysser av for. Du får da opp alle sjekkpunkter i regelverket som er aktuelle for det temaet du har valgt.
A37: Endringssjekkliste
A38: Er policy for bruk av endringssjekkliste fulgt?
A40: Angi siste år for gjennomgang av full sjekkliste | B40: 2018
A42: Har det vært endringer i foretaket, eller er det spesifikke områder som kan ha økt risiko for feil, som man ønsker å kontrollere?
A43: Krav etter NRS (F) God regnskapsskikk for ideelle organisasjoner
A44: Driftsmidler | N44: E1
A45: Investeringer i datterselskaper | N45: E2
A46: Investeringer i tilknyttede selskaper | N46: E3
A47: Fordringer, gjeld, garantiforpliktelser | N47: E5
A48: Pensjonsordninger | N48: E6
A49: Ytelser til ledende personer | N49: E7
A50: Har selskapet endret noen regnskapsprinsipper? | N50: E8
A52: Huk av dersom selskapet er:
A54: Annet (må spesifiseres nedenfor, og du må selv velge manuelt de deler av sjekklisten du ønsker å ta inn) | O54: Her skal det ikke være noen spesiell koding, her må man hente fram aktuelle tema manuelt selv
A55: Skriv inn evt tekst her

Sheet Sjekkliste noter
A1: Noteopplysninger - små foretak - Ideelle organisasjoner | D1: Utfylt:
A2: Klient: | B2: =+Forside!B2 -> 0 | D2: Review: | P2: Ikke besvart: | Q2: =Forside!B9 -> 0
A3: År: | B3: =+Forside!B3 -> 2020 | P3: Ja-svar: | Q3: =Forside!C9 -> 0
A4: Sjekklisten gjelder for ideelle organisasjoner som følger NRS (F) God regnskapsskikk for ideelle organisasjoner. | P4: Nei-svar: | Q4: =Forside!D9 -> 0
P5: Ikke av betydning: | Q5: =Forside!E9 -> 0
L6: Ikke av | P6: IA-svar: | Q6: =Forside!F9 -> 157
B7: Spørsmål | C7: Ref. | D7: Ekskludering: | J7: Ja | K7: Nei | L7: betydning | M7: I/A | N7: Kommentar | P7: Sum: | Q7: =SUM(Q2:Q6) -> 157
A8: Plikt til utarbeidelse
B9: For ideelle organisasjoner som følger NRS (F) God regnskapsskikk for ideelle organisasjoner skal det gis tilleggsopplysninger i noter til årsregnskapet i samsvar med standardens kapittel 10. Hvilke noteopplysninger som skal gis, må tilpasses den enkelte organisasjon. Ideelle organisasjoner kan også være pålagt å gi særskilte noteopplysninger i henhold til særlige forskrifter/regelverk. Noen av tilleggsopplysningene iht standardens kapittel 10 er frivillige. Disse er merket med "anbefalt" i sjekklisten under. | C9: NRS (F) God regnskapsskikk for ideelle organisasjoner kapittel 10
B10: Notekravene nedenfor skal som utgangspunkt alltid tas med, men kan utelates dersom de ikke er av betydning for å bedømme selskapets stilling og resultat. Disse kan tas bort fra sjekklisten ved å bruke ”hide/show” funksjonen, eller krysse av for "Ikke av betydning". | C10: rskl § 7-1, 1. ledd
B11: Enkelte notekrav er imidlertid pliktige, og kan aldri utelates. | C11: rskl § 7-1, 3. ledd
B12: Det kan også være aktuelt å gi andre/ytterligere opplysninger enn de som dekkes av kravene ovenfor. Ytterligere opplysninger må gis dersom de er nødvendige for å bedømme selskapets stilling og resultat. Små foretak som ikke utarbeider konsernregnskap kan unnlate å gi slike tilleggsopplysninger om forhold knyttet til konsernets stilling og resultat. | C12: rskl § 7-1, 2. ledd
B13: Det skal gis tilleggsopplysninger hvis anvendelsen av bestemmelsene i regnskapsloven ikke er tiltrekkelig for å gi et rettvisende bilde av den regnskapspliktiges eiendeler, gjeld, finansielle stilling og resultat. | C13: rskl § 7-1, 4. ledd
B14: Iflg rskl § 3-2a, 2. ledd skal bestemmelsene i rskl kap. 4 til 7 i særlige unntakstilfeller fravikes, dersom dette er nødvendig for å gi et rettvisende bilde av den regnskapspliktiges eiendeler og gjeld, finansielle stilling og resultat. Ethvert slikt fravik skal angis og begrunnes konkret og fullstendig med opplysningen om betydningen fraviket har for den regnskapspliktiges og konsernets eiendeler og gjeld, finansielle stilling og resultat. | C14: rskl § 7-1, 6. ledd
A15: Regnskapsprinsipper
A16: 1 | B16: Er det gitt opplysninger om anvendte regnskapsprinsipper, herunder prinsipper for inntektsføring? | C16: rskl § 7-35 | E16: =IF(SUM(F16:I16)>1,"Oppgi kun et alternativ!","") ->  | F16: =IF(J16="","",1) ->  | G16: =IF(K16="","",1) ->  | P16: =IF(K16<>"","Du har satt X for at forholdet ikke er avklart. Gi en nærmere foklaring i kommentarfeltet.","") -> 
A17: =+A16+1 -> 2 | B17: Er det ved vesentlige medlemsinntekter opplyst om hvilke kriterier som er lagt til grunn i regnskapet for inntektsføringen og periodiseringen av disse inntektene? | C17: NRS 8 pkt 8.2 | E17: =IF(SUM(F17:I17)>1,"Oppgi kun et alternativ!","") ->  | F17: =IF(J17="","",1) ->  | G17: =IF(K17="","",1) ->  | H17: =IF(L17="","",1) ->  | I17: =IF(M17="","",1) -> 
A18: =+A17+1 -> 3 | B18: Er det ved vesentlige tilskudd opplyst om hvilke prinsipper som er lagt til grunn i regnskapet for inntektsføringen og periodiseringen av disse inntektene? | C18: NRS (F) GRS for ideelle organisasjoner punkt 5.2.1 og 5.3.3
B19: Det anbefales å gi tilleggsopplysning om at årsregnskapet er satt opp i samsvar med god regnskapsskikk for små foretak.
A20: =+A18+1 -> 4 | B20: Er det gitt opplysninger om virkning av og begrunnelse for endringer i prinsipper? | C20: rskl § 7-35 | F20: =IF(J20="","",1) ->  | G20: =IF(K20="","",1) ->  | H20: =IF(L20="","",1) ->  | I20: =IF(M20="","",1) -> 
A21: =+A20+1 -> 5 | B21: Er det gitt opplysninger om virkning av feil i tidligere årsregnskap og korrigering av slike feil, samt omklassifiseringer? | C21: rskl § 7-35 | F21: =IF(J21="","",1) ->  | G21: =IF(K21="","",1) ->  | H21: =IF(L21="","",1) ->  | I21: =IF(M21="","",1) -> 
A22: 6 | B22: Er det gitt opplysninger om og begrunnelse for eventuell sikringsvurdering og porteføljevurdering? | C22: NRS 8 pkt 8.2
A23: 7 | B23: Er det gitt opplysninger om de prinsipper som er anvendt ved vurderingen av varer, herunder metode for tilvirkning av anskaffelseskost? | C23: NRS 8 pkt 4.4.1.3.
A24: 8 | B24: Er det opplyst om de prinsipper som er anvendt ved vurderingen av langsiktige tilvirkningskontrakter? | C24: NRS 8 pkt 4.4.2.3.
A25: 9 | B25: Er det gitt opplysninger om de regnskapsprinsipper som er benyttet ved vurdering av kortsiktige investeringer / finansielle derivater, herunder prinsipp for tilordning av anskaffelseskost for ombyttbare finansielle aksjer mv? | C25: NRS 8 pkt 4.4.4.3
A26: 10 | B26: Er det opplyst om valg av prinsipp når det gjelder balanseføring av utsatt skattefordel? | C26: NRS 8 pkt 6.1.1.2.3
A27: 11 | B27: For egne utgifter til FoU og utvikling av rettigheter, er det gitt opplysninger om valg av regnskapsprinsipp med hensyn til balanseføring eller kostnadsføring? | C27: rskl § 7-35 | F27: =IF(J27="","",1) ->  | G27: =IF(K27="","",1) ->  | H27: =IF(L27="","",1) ->  | I27: =IF(M27="","",1) -> 
C28: NRS 8 pkt 4.3.1.1.4
A29: =+A27+1 -> 12 | B29: Er det gitt opplysninger om anvendte regnskapsprinsipper for omregning av utenlandsk valuta? | C29: rskl § 7-35
C30: NRS 8 pkt 9.2.5
A31: =+A29+1 -> 13 | B31: Dersom virkning av prinsippendringer eller korrigeringer av feil er ført direkte mot egenkapitalen, fremgår det av notene om regnskapstallene er omarbeidet eller ikke? | C31: NRS 8 pkt 7.3.3
C32: rskl § 7-35
C33: NRS 8 pkt 3.3.2.
A34: =+A31+1 -> 14 | B34: Dersom årsregnskapet presenteres i en annen valuta enn regnskapsvalutaen, er regnskapsvalutaen og omregningskurser opplyst? | C34: NRS 8 pkt 9.2.6
A35: =+A34+1 -> 15 | B35: Dersom sammenligningstallene i regnskapet er omarbeidet, er omarbeidingen forklart? | C35: rskl § 7-35
C36: NRS 8 pkt 3.3.2.
A37: =+A35+1 -> 16 | B37: Dersom det ikke er mulig å utarbeide sammenligningstall ved overgang til god regnskapsskikk for ideelle organisasjoner, er det opplyst om i note? | C37: NRS (F) GRS for ideelle organisasjoner punkt 10.4.1 og 14.1.1
A38: =+A37+1 -> 17 | B38: Dersom det utarbeides konsernregnskap og det anvendes forskjellige prinsipper i selskapsregnskap og konsernregnskap, er dette opplyst og begrunnet? | C38: rskl § 7-35 | F38: =IF(J38="","",1) -> 
A39: =+A38+1 -> 18 | B39: Anbefalt: Dersom mor-organisasjonen utarbeider sitt årsregnskap som aktivitetsregnskap, men konsernregnskapet utarbeides etter en artsinndelt oppstillingsplan, bør dette begrunnes i note til konsernregnskapet. | C39: NRS (F) GRS for ideelle organisasjoner punkt 12.4 | F39: =IF(J39="","",1) -> 
A40: =+A39+1 -> 19 | B40: Er alle de regnskapsprinsipper som er omtalt i notene aktuelle for selskapet? | C40: NRS 8 pkt 8.2
A41: Goodwill
A42: =+A40+1 -> 20 | B42: Er det gitt følgende opplysninger vedr. goodwill: • Anskaffelseskost | C42: rskl § 7-39 | E42: =IF(SUM(F42:I42)>1,"Oppgi kun et alternativ!","") ->  | F42: =IF(J42="","",1) ->  | G42: =IF(K42="","",1) ->  | H42: =IF(L42="","",1) ->  | I42: =IF(M42="","",1) -> 
C43: NRS 8 pkt 4.3.1.3.4 | E43: =IF(SUM(F43:I43)>1,"Oppgi kun et alternativ!","") ->  | F43: =IF(J43="","",1) ->  | G43: =IF(K43="","",1) ->  | H43: =IF(L43="","",1) ->  | I43: =IF(M43="","",1) -> 
A44: =+A42+1 -> 21 | B44: • Tilgang og avgang i løpet av regnskapsåret
A45: =+A44+1 -> 22 | B45: • Samlede avskrivninger og nedskrivninger, og
A46: =+A45+1 -> 23 | B46: • Avskrivninger og nedskrivninger i regnskapsåret
A47: =+A46+1 -> 24 | B47: Er det opplyst om økonomisk levetid, avskrivningsplan og eventuell endring i avskrivningsplan? | C47: rskl § 7-39
A48: =+A47+1 -> 25 | B48: Er balanseført goodwill spesifisert for hvert enkelt virksomhetskjøp? | C48: rskl § 7-39
A49: =+A48+1 -> 26 | B49: Er avskrivningsplan for goodwill som er lengre enn fem år begrunnet? | C49: rskl § 7-39
A50: FoU og utvikling av rettigheter
B51: For mange immaterielle eiendeler er det ikke mulig å konstatere når de ikke lenger eksisterer. Slike immaterielle eiendeler bør føres ut av noten når de er fullt avskrevet og det ikke er klart at den immaterielle eiendelen fortsatt eksisterer | C51: NRS 8 pkt 4.3.1.1.4
A52: =+A49+1 -> 27 | B52: Er det gitt følgende opplysninger vedr. FoU og rettigheter: • anskaffelseskost med spesifikasjon av balanseførte lånekostnader knyttet til egentilvirkede anleggsmidler, | C52: rskl § 7-39 | E52: =IF(SUM(F52:I52)>1,"Oppgi kun et alternativ!","") ->  | F52: =IF(J52="","",1) ->  | G52: =IF(K52="","",1) ->  | H52: =IF(L52="","",1) ->  | I52: =IF(M52="","",1) ->  | P52: =IF(K52<>"","Du har satt X for at forholdet ikke er avklart. Gi en nærmere foklaring i kommentarfeltet.","") -> 
A53: =+A52+1 -> 28 | B53: • tilgang og avgang i løpet av regnskapsåret, | F53: =IF(J53="","",1) ->  | G53: =IF(K53="","",1) ->  | H53: =IF(L53="","",1) ->  | I53: =IF(M53="","",1) -> 
A54: 29 | B54: • samlede avskrivninger, nedskrivninger og reverseringer av nedskrivninger, og
A55: 30 | B55: • avskrivninger, nedskrivninger og reverseringer av nedskrivninger i regnskapsåret
A56: 31 | B56: Er det opplyst om økonomisk levetid, avskrivningsplan og eventuell endring i avskrivningsplan?
A57: 32 | B57: Er det opplyst om utgifter som har gått med til FoU i regnskapsåret?
A58: 33 | B58: Er arten av FoU angitt, uavhengig av om utgiftene er balanse- eller kostnadsført? | E58: =IF(SUM(F58:I58)>1,"Oppgi kun et alternativ!","") -> 
B59: Det skal opplyes om forventet samlet inntjening av pågående FoU motsvarer medgåtte samlede utgifter. Med ”medgåtte samlede utgifter” menes akkumulerte utgifter knyttet til prosjekter som er igangværende ved regnskapsårets utgang. Notekravet gjelder utgifter til FoU som kunne vært balanseført.
A60: =+A58+1 -> 34 | B60: Er det opplyst om forventet samlet inntjening av pågående FoU motsvarer medgåtte samlede utgifter? | E60: =IF(SUM(F60:I60)>1,"Oppgi kun et alternativ!","") ->  | F60: =IF(J60="","",1) ->  | G60: =IF(K60="","",1) ->  | H60: =IF(L60="","",1) ->  | I60: =IF(M60="","",1) -> 
A61: Varige driftsmidler
A62: =+A60+1 -> 35 | B62: Er det gitt følgende opplysninger for varige driftsmidler: • anskaffelseskost med spesifikasjon av balanseførte lånekostnader knyttet til egentilvirkede anleggsmidler, | C62: rskl § 7-39 | E62: =IF(SUM(F62:I62)>1,"Oppgi kun et alternativ!","") ->  | F62: =IF(J62="","",1) ->  | G62: =IF(K62="","",1) ->  | H62: =IF(L62="","",1) ->  | I62: =IF(M62="","",1) -> 
C63: NRS 8 4.3.2.5 | E63: =IF(SUM(F63:I63)>1,"Oppgi kun et alternativ!","") ->  | F63: =IF(J63="","",1) ->  | G63: =IF(K63="","",1) ->  | H63: =IF(L63="","",1) ->  | I63: =IF(M63="","",1) -> 
A64: =+A62+1 -> 36 | B64: • tilgang og avgang i løpet av regnskapsåret,
A65: =+A64+1 -> 37 | B65: • samlede avskrivninger, nedskrivninger og reversering av nedskrivninger, og
A66: =+A65+1 -> 38 | B66: • avskrivninger, nedskrivninger og reversering av nedskrivninger i regnskapsåret.
A67: =+A66+1 -> 39 | B67: Er det opplyst om endring i avskrivningsplan?
A68: Anleggsmidler
A69: =+A67+1 -> 40 | B69: Dersom organisasjonen har kostnadsført betydelige midler som etter sin art normalt balanseføres, er det opplyst om og begrunnet? | C69: NRS (F) GRS for ideelle organisasjoner punkt 7.2.6 | E69: =IF(SUM(F69:I69)>1,"Oppgi kun et alternativ!","") ->  | F69: =IF(J69="","",1) ->  | G69: =IF(K69="","",1) ->  | H69: =IF(L69="","",1) ->  | I69: =IF(M69="","",1) ->  | P69: =IF(K69<>"","Du har satt X for at forholdet ikke er avklart. Gi en nærmere foklaring i kommentarfeltet.","") -> 
A70: =+A69+1 -> 41 | B70: Er det gitt tilleggsopplysninger om bevaringsverdige eiendeler av betydning, uavhengig av regnskapsmessig behandling? Evt avskrivninger eller nedskrivninger skal spesifiseres. | C70: NRS (F) GRS for ideelle organisasjoner punkt 7.2.6 | E70: =IF(SUM(F70:I70)>1,"Oppgi kun et alternativ!","") ->  | F70: =IF(J70="","",1) ->  | G70: =IF(K70="","",1) ->  | H70: =IF(L70="","",1) ->  | I70: =IF(M70="","",1) -> 
A71: =+A70+1 -> 42 | B71: Er det gitt tilstrekkelig informasjon om finansielle anleggsmidler og omløpsmidler til å kunne vurdere hvorvidt organisasjonen har oppfylt evt instrukser og begrensninger i forhold til plassering og forvaltning av midler? | C71: NRS (F) GRS for ideelle organisasjoner punkt 7.2.6 og 7.3.3
A72: Investering i datterselskap
A73: =+A71+1 -> 43 | B73: Er det for hvert datterselskap opplyst om: • foretaksnavn (firma) • forretningskontor • eierandel • stemmeandel | C73: rskl § 7-36 | E73: =IF(SUM(F73:I73)>1,"Oppgi kun et alternativ!","") ->  | F73: =IF(J73="","",1) ->  | G73: =IF(K73="","",1) ->  | H73: =IF(L73="","",1) ->  | I73: =IF(M73="","",1) -> 
C74: NRS 8 4.3.3.1.3 | E74: =IF(SUM(F74:I74)>1,"Oppgi kun et alternativ!","") ->  | F74: =IF(J74="","",1) ->  | G74: =IF(K74="","",1) ->  | H74: =IF(L74="","",1) ->  | I74: =IF(M74="","",1) -> 
A75: =+A73+1 -> 44 | B75: For hvert datterselskap som er regnskapsført etter kostmetoden eller som ikke er konsolidert, er det opplyst om egenkapital og resultat i siste regnskapsår?
A76: =+A75+1 -> 45 | B76: Dersom det ikke utarbeides konsernregnskap, er det opplyst om transaksjoner med og mellom datterselskaper og urealisert interngevinst på disse?
A77: =+A76+1 -> 46 | B77: Er det for hver vesentlig enhet opplyst om; - forbindelsen mellom datterorganisasjonens aktiviteter og mor-organisasjonens aktiviteter, - totale eiendeler, gjeld og formålskapital, og - aktivitetsinntekter, -kostnader og aktivitetsresultat i året, oppsummert. | C77: NRS (F) GRS for ideelle organisasjoner punkt 12.5
A78: Investering i datterselskap bokført etter EK-metoden
B79: Hvis investeringer i datterselskap regnskapsføres etter egenkapitalmetoden gjelder NRS 17 Virksomhetskjøp og konsernregnskap. Det er også utvidede notekrav i regnskapsloven. | C79: NRS 8 4.3.3.1.4
C80: rskl § 7-36
A81: =+A77+1 -> 47 | B81: For datterselskap som regnskapsføres etter egenkapitalmetoden, er det opplyst om anskaffelseskost og balanseført egenkapital på anskaffelsestidspunktet? | E81: =IF(SUM(F81:I81)>1,"Oppgi kun et alternativ!","") ->  | F81: =IF(J81="","",1) ->  | G81: =IF(K81="","",1) ->  | H81: =IF(L81="","",1) ->  | I81: =IF(M81="","",1) ->  | P81: =IF(K81<>"","Du har satt X for at forholdet ikke er avklart. Gi en nærmere foklaring i kommentarfeltet.","") -> 
A82: =+A81+1 -> 48 | B82: For datterselskap som regnskapsføres etter egenkapitalmetoden, er det for hver investering opplyst om inngående balanse, inntektsført resultat, andre endringer i løpet av året og utgående balanse? | E82: =IF(SUM(F82:I82)>1,"Oppgi kun et alternativ!","") ->  | F82: =IF(J82="","",1) ->  | G82: =IF(K82="","",1) ->  | H82: =IF(L82="","",1) ->  | I82: =IF(M82="","",1) -> 
A83: =+A82+1 -> 49 | B83: For datterselskap som regnskapsføres etter egenkapitalmetoden, er det opplyst om merverdier og goodwill samt avskrivninger av merverdier og goodwill?
B84: For små foretak som utarbeider konsernregnskap gjelder også følgende punker: | C84: rskl § 7-36
A85: =+A83+1 -> 50 | B85: Dersom datterselskap er utelatt fra konsolideringen ihht rskl § 3-8, er dette opplyst og begrunnet? | E85: =IF(SUM(F85:I85)>1,"Oppgi kun et alternativ!","") ->  | F85: =IF(J85="","",1) ->  | G85: =IF(K85="","",1) ->  | H85: =IF(L85="","",1) ->  | I85: =IF(M85="","",1) -> 
A86: =1+A85 -> 51 | B86: Er det i konsernregnskapet opplyst om navnet på foretak der den regnskapspliktige selv eller gjennom datterselskaper eier så mange aksjer eller andeler at de representerer flertallet av stemmene i foretaket, men som ikke er datterselskap fordi det klart kan påvises at slikt eierskap likevel ikke gir bestemmernde innflytelse jr rskl § 1-3, 2. ledd nr. 1? | E86: =IF(SUM(F86:I86)>1,"Oppgi kun et alternativ!","") ->  | F86: =IF(J86="","",1) ->  | G86: =IF(K86="","",1) ->  | H86: =IF(L86="","",1) ->  | I86: =IF(M86="","",1) -> 
A87: Investering i tilknyttet selskap
A88: =+A86+1 -> 52 | B88: Er det for hvert tilknyttet selskap opplyst om: • foretaksnavn (firma) • forretningskontor • eierandel • stemmeandel • det skal også opplyses om egenkapitalen og resultatet i siste regnskapsår (Gjelder ikke TS som er regnskapsført etter egenkapitalmetoden – se nedenfor) | C88: rskl § 7-36 | E88: =IF(SUM(F88:I88)>1,"Oppgi kun et alternativ!","") ->  | F88: =IF(J88="","",1) ->  | G88: =IF(K88="","",1) ->  | H88: =IF(L88="","",1) ->  | I88: =IF(M88="","",1) -> 
C89: NRS 8 4.3.3.2.3 | E89: =IF(SUM(F89:I89)>1,"Oppgi kun et alternativ!","") ->  | F89: =IF(J89="","",1) ->  | G89: =IF(K89="","",1) ->  | H89: =IF(L89="","",1) ->  | I89: =IF(M89="","",1) ->  | P89: =IF(K89<>"","Du har satt X for at forholdet ikke er avklart. Gi en nærmere foklaring i kommentarfeltet.","") -> 
A90: =1+A88 -> 53 | B90: Er det for hvert tilknyttet selskap som er regnskapsført etter kostmetoden også opplyst om egenkapitalen og resultatet i siste regnskapsår?
B91: Hvis investeringer i tilknyttet selskap regnskapsføres etter egenkapitalmetoden gjelder NRS (F) om investering i tilknyttet selskap og deltakelse i felles kontrollert virksomhet. Det er også utvidede notekrav i regnskapsloven. | C91: NRS 8 4.3.3.2.4
C92: rskl § 7-36
A93: =+A90+1 -> 54 | B93: For tilknyttet selskap som regnskapsføres etter egenkapitalmetoden, er det opplyst om anskaffelseskost og balanseført egenkapital på anskaffelsestidspunktet? | E93: =IF(SUM(F93:I93)>1,"Oppgi kun et alternativ!","") ->  | F93: =IF(J93="","",1) ->  | G93: =IF(K93="","",1) ->  | H93: =IF(L93="","",1) ->  | I93: =IF(M93="","",1) ->  | P93: =IF(K93<>"","Du har satt X for at forholdet ikke er avklart. Gi en nærmere foklaring i kommentarfeltet.","") -> 
A94: =+A93+1 -> 55 | B94: For tilknyttet selskap som regnskapsføres etter egenkapitalmetoden, er det for hver investering opplyst om inngående balanse, inntektsført resultat, andre endringer i løpet av året og utgående balanse?
A95: =+A94+1 -> 56 | B95: For tilknyttet selskap som regnskapsføres etter egenkapitalmetoden, er det opplyst om merverdier og goodwill samt avskrivninger av merverdier og goodwill?
A96: Deltakelse i felleskontrollert virksomhet
A97: =+A95+1 -> 57 | B97: Er det for hver felleskontrollert virksomhet opplyst om: • selskapsnavn (firma) • forretningskontor • eierandel • stemmeandel | C97: NRS 8 4.3.3.3.3 | E97: =IF(SUM(F97:I97)>1,"Oppgi kun et alternativ!","") ->  | F97: =IF(J97="","",1) ->  | G97: =IF(K97="","",1) ->  | H97: =IF(L97="","",1) ->  | I97: =IF(M97="","",1) ->  | P97: =IF(K97<>"","Du har satt X for at forholdet ikke er avklart. Gi en nærmere foklaring i kommentarfeltet.","") -> 
C98: rskl § 7-36 | E98: =IF(SUM(F98:I98)>1,"Oppgi kun et alternativ!","") ->  | F98: =IF(J98="","",1) ->  | G98: =IF(K98="","",1) ->  | H98: =IF(L98="","",1) ->  | I98: =IF(M98="","",1) ->  | P98: =IF(K98<>"","Du har satt X for at forholdet ikke er avklart. Gi en nærmere foklaring i kommentarfeltet.","") -> 
A99: =+A97+1 -> 58 | B99: Er det for hver felleskontrollert virksomhet som er regnskapsført etter kostmetoden også opplyst om egenkapitalen og resultatet i siste regnskapsår? | P99: =IF(K99<>"","Du har satt X for at forholdet ikke er avklart. Gi en nærmere foklaring i kommentarfeltet.","") -> 
B100: Hvis deltakelse i felles kontrollert virksomhet regnskapsføres etter egenkapitalmetoden eller bruttometoden, gjelder NRS (F) om investering i tilknyttet selskap og deltakelse i felles kontrollert virksomhet. Det er også utvidede notekrav i regnskapsloven. | C100: NRS 8 4.3.3.3.4
C101: rskl § 7-36
A102: =+A99+1 -> 59 | B102: For felleskontrollert virksomhet som regnskapsføres etter egenkapital- eller bruttometoden, er det opplyst om anskaffelseskost og balanseført egenkapital på anskaffelsestidspunktet? | E102: =IF(SUM(F102:I102)>1,"Oppgi kun et alternativ!","") ->  | F102: =IF(J102="","",1) ->  | G102: =IF(K102="","",1) ->  | H102: =IF(L102="","",1) ->  | I102: =IF(M102="","",1) ->  | P102: =IF(K102<>"","Du har satt X for at forholdet ikke er avklart. Gi en nærmere foklaring i kommentarfeltet.","") -> 
A103: =+A102+1 -> 60 | B103: For felleskontrollert virksomhet som regnskapsføres etter egenkapital- eller bruttometoden, er det for hver investering opplyst om inngående balanse, inntektsført resultat, andre endringer i løpet av året og utgående balanse? | E103: =IF(SUM(F103:I103)>1,"Oppgi kun et alternativ!","") ->  | F103: =IF(J103="","",1) ->  | G103: =IF(K103="","",1) ->  | H103: =IF(L103="","",1) ->  | I103: =IF(M103="","",1) ->  | P103: =IF(K103<>"","Du har satt X for at forholdet ikke er avklart. Gi en nærmere foklaring i kommentarfeltet.","") -> 
A104: =+A103+1 -> 61 | B104: For felleskontrollert virksomhet som regnskapsføres etter egenkapital- eller bruttometoden, er det opplyst om merverdier og goodwill samt avskrivninger av merverdier og goodwill? | P104: =IF(K104<>"","Du har satt X for at forholdet ikke er avklart. Gi en nærmere foklaring i kommentarfeltet.","") -> 
A105: Andre aksjer og andeler
B106: Ihht rskl § 5-8 kan balanseført verdi av aksjer og andeler som er anleggsmidler være høyere enn virkelig verdi dersom verdifallet forventes å være forbigående. | C106: rskl § 5-3
A107: =+A104+1 -> 62 | B107: Der balanseført verdi av aksjer og andeler som er anleggsmidler er høyere enn virkelig verdi, er det opplyst om balanseført verdi og virkelig verdi av den enkelte eiendelen eller en hensiktsmessig gruppering av eiendelene? | C107: rskl § 7-37 | E107: =IF(SUM(F107:I107)>1,"Oppgi kun et alternativ!","") ->  | F107: =IF(J107="","",1) ->  | G107: =IF(K107="","",1) ->  | H107: =IF(L107="","",1) ->  | I107: =IF(M107="","",1) ->  | P107: =IF(K107<>"","Du har satt X for at forholdet ikke er avklart. Gi en nærmere foklaring i kommentarfeltet.","") -> 
A108: =+A107+1 -> 63 | B108: Inkluderer begrunnelsen holdepunkter for at verdifallet er forbigående? | C108: rskl § 7-37 | E108: =IF(SUM(F108:I108)>1,"Oppgi kun et alternativ!","") ->  | F108: =IF(J108="","",1) ->  | G108: =IF(K108="","",1) ->  | H108: =IF(L108="","",1) ->  | I108: =IF(M108="","",1) ->  | P108: =IF(K108<>"","Du har satt X for at forholdet ikke er avklart. Gi en nærmere foklaring i kommentarfeltet.","") -> 
B109: I utgangspunktet trenger ikke små foretak å gi ytterligere tilleggsinformasjon i note om aksjer og andeler i selskap som ikke faller inn under regler om datterselskap, tilknyttet selskap og felles kontrollert virksomhet. Det skal likevel gis opplysninger som er nødvendige for å vurdere foretakets stilling og resultat og som ikke fremgår av årsregnskapet for øvrig. | C109: rskl § 7-1
C110: NRS 8 4.3.3.5.3
A111: =+A108+1 -> 64 | B111: Dersom det anses som nødvendig for å vurdere foretakets stilling og resultat, er det gitt ytterligere opplysninger om investeringer i aksjer og andeler, herunder balanseført verdi og eierandel i hvert selskap? | C111: NRS 8 4.3.3.5.3 | E111: =IF(SUM(F111:I111)>1,"Oppgi kun et alternativ!","") ->  | F111: =IF(J111="","",1) ->  | G111: =IF(K111="","",1) ->  | H111: =IF(L111="","",1) ->  | I111: =IF(M111="","",1) ->  | P111: =IF(K111<>"","Du har satt X for at forholdet ikke er avklart. Gi en nærmere foklaring i kommentarfeltet.","") -> 
A112: Antall aksjer, aksjeeiere mv. (pliktig)
A113: =+A111+1 -> 65 | B113: For regnskapspliktige som er aksjeselskap, er det opplyst om aksjekapitalen og aksjens pålydende fordelt på hver aksjeklasse? | C113: rskl § 7-42 | E113: =IF(SUM(F113:I113)>1,"Oppgi kun et alternativ!","") ->  | F113: =IF(J113="","",1) ->  | G113: =IF(K113="","",1) ->  | H113: =IF(L113="","",1) ->  | I113: =IF(M113="","",1) ->  | P113: =IF(K113<>"","Du har satt X for at forholdet ikke er avklart. Gi en nærmere foklaring i kommentarfeltet.","") -> 
C114: NRS 8 pkt 8.5 | E114: =IF(SUM(F114:I114)>1,"Oppgi kun et alternativ!","") ->  | F114: =IF(J114="","",1) ->  | G114: =IF(K114="","",1) ->  | H114: =IF(L114="","",1) ->  | I114: =IF(M114="","",1) -> 
A115: =+A113+1 -> 66 | B115: Er det opplyst om eventuelle vedtektsbestemmelser om stemmerett?
A116: =+A115+1 -> 67 | B116: Er det opplyst om eventuelle rettigheter som kan medføre at det blir utstedt nye aksjer, dersom rettighettene er vesentlige for å bedømme foretakets stilling og resultat?
A117: =+A116+1 -> 68 | B117: For regnskapspliktige som er aksjeselskap, er det opplyst om selskapets 10 største aksjeeiere og deres eierandeler (kan utelate aksjeeiere som eier under 5 %)?
A118: =+A117+1 -> 69 | B118: Er det opplyst om aksjer eller andeler i selskapet som eies av henholdsvis daglig leder og medlemmer av styret og bedriftsforsamlingen?
A119: Egne aksjer (pliktig)
A120: =+A118+1 -> 70 | B120: Dersom selskapet har en beholdning av egne aksjer etter aksjeloven kapittel 9, er det opplyst om antallet, aksjenes pålydende verdi og den andel aksjene utgjør av aksjekapitalen? | C120: rskl § 7-42 | E120: =IF(SUM(F120:I120)>1,"Oppgi kun et alternativ!","") ->  | F120: =IF(J120="","",1) ->  | G120: =IF(K120="","",1) ->  | H120: =IF(L120="","",1) ->  | I120: =IF(M120="","",1) ->  | P120: =IF(K120<>"","Du har satt X for at forholdet ikke er avklart. Gi en nærmere foklaring i kommentarfeltet.","") -> 
C121: NRS 8 pkt 8.7 | E121: =IF(SUM(F121:I121)>1,"Oppgi kun et alternativ!","") ->  | F121: =IF(J121="","",1) ->  | G121: =IF(K121="","",1) ->  | H121: =IF(L121="","",1) ->  | I121: =IF(M121="","",1) ->  | P121: =IF(K121<>"","Du har satt X for at forholdet ikke er avklart. Gi en nærmere foklaring i kommentarfeltet.","") -> 
A122: =+A120+1 -> 71 | B122: Dersom det har vært endringer i beholdning av egne aksjer og datterselskapenes beholdning av aksjer i morselskapet i løpet av regnskapsåret, er det minst opplyst om følgende: • bakgrunn for erverv som har funnet sted • antall aksjer som er ervervet, vederlag for disse og den andel de utgjør av aksjekapitalen • antall aksjer som er avhendet, vederlaget for disse og den andel de utgjør av aksjekapitalen? | C122: rskl § 7-42 | P122: =IF(K122<>"","Du har satt X for at forholdet ikke er avklart. Gi en nærmere foklaring i kommentarfeltet.","") -> 
C123: NRS 8 pkt 8.7 | P123: =IF(K123<>"","Du har satt X for at forholdet ikke er avklart. Gi en nærmere foklaring i kommentarfeltet.","") -> 
A124: =+A122+1 -> 72 | B124: Dersom egne aksjer ikke vises på egen linje under selskapskapitalen i balansen eller i oppstilling av endringer i egenkapitalen, er spesifikasjon gitt i note? | C124: rskl § 7-42 | P124: =IF(K124<>"","Du har satt X for at forholdet ikke er avklart. Gi en nærmere foklaring i kommentarfeltet.","") -> 
A125: Varer
B126: Det er ikke noe krav til små foretak å spesifisere varer utover spesifikasjonen i balansen. Små foretak som velger å benytte full tilvirkningskost for egenproduserte varer skal imidlertid følge NRS 1 Varer, noe som medfører utvidede notekrav. | C126: NRS 8 pkt 4.4.1.3
C127: pkt 4.4.1.4
A128: Langsiktige tilvirkningskontrakter
A129: =+A124+1 -> 73 | B129: Er det gitt opplysninger om den gjenstående produksjonen av tapskontrakter når omfanget av tapskontrakter er vesentlig i forhold til samlet produksjon? | C129: NRS 8 4.4.2.3 | E129: =IF(SUM(F129:I129)>1,"Oppgi kun et alternativ!","") ->  | F129: =IF(J129="","",1) ->  | G129: =IF(K129="","",1) ->  | H129: =IF(L129="","",1) ->  | I129: =IF(M129="","",1) ->  | P129: =IF(K129<>"","Du har satt X for at forholdet ikke er avklart. Gi en nærmere foklaring i kommentarfeltet.","") -> 
B130: Foretak som er involvert i et fåtall anleggskontrakter kan unnlate å gi informasjon om gjenstående produksjon av tapskontrakter, dersom dette er åpenbart berettiget ut fra konkurransemessige hensyn. | C130: NRS 8 4.4.2.3
B131: Det er ikke noe krav til små foretak som benytter fullført kontrakt ihht rskl § 5-12 om å gi ytterligere noteopplysninger. Små foretak som velger å benytte løpende avregnings metode skal imidlertid følge NRS 2 om anleggskontrakter, noe som medfører utvidede notekrav. | C131: NRS 8 4.4.2.4
A132: Kortsiktige investeringer, ombyttbare finansielle aksjer mv.
A133: =+A129+1 -> 74 | B133: Er det for hver kategori av markedsbaserte finansielle instrumenter og varederivater som er vurdert etter hovedregelen om virkelig verdi i rskl § 5-8 (markedsverdiprinsippet), gitt følgende informasjon: • Anskaffelseskost • Virkelig verdi • Periodens resultatførte verdiendring • Vesentlige forutsetninger i verdivurderingen | C133: rskl § 7-37 | E133: =IF(SUM(F133:I133)>1,"Oppgi kun et alternativ!","") ->  | F133: =IF(J133="","",1) ->  | G133: =IF(K133="","",1) ->  | H133: =IF(L133="","",1) ->  | I133: =IF(M133="","",1) ->  | P133: =IF(K133<>"","Du har satt X for at forholdet ikke er avklart. Gi en nærmere foklaring i kommentarfeltet.","") -> 
A134: =+A133+1 -> 75 | B134: Er det gitt opplysninger om egenskaper ved og omfang av finansielle derivater som er vurdert til virkelig verdi etter rskl § 5-8 (markedsverdiprinsippet), fordelt på klasser av derivater? | C134: rskl § 7-37a | E134: =IF(SUM(F134:I134)>1,"Oppgi kun et alternativ!","") ->  | F134: =IF(J134="","",1) ->  | G134: =IF(K134="","",1) ->  | H134: =IF(L134="","",1) ->  | I134: =IF(M134="","",1) ->  | P134: =IF(K134<>"","Du har satt X for at forholdet ikke er avklart. Gi en nærmere foklaring i kommentarfeltet.","") -> 
A135: =+A134+1 -> 76 | B135: Omfatter opplysningene over vesentlige betingelser og forhold som kan påvirke beløpsstørrelse, tidfesting og usikkerhet ved framtidige kontantstrømmer? | C135: rskl § 7-37a | P135: =IF(K135<>"","Du har satt X for at forholdet ikke er avklart. Gi en nærmere foklaring i kommentarfeltet.","") -> 
A136: Bankinnskudd
A137: =+A135+1 -> 77 | B137: Er det opplyst om bundne midler? | C137: NRS 8 pkt 4.4.5.3 | E137: =IF(SUM(F137:I137)>1,"Oppgi kun et alternativ!","") ->  | F137: =IF(J137="","",1) ->  | G137: =IF(K137="","",1) ->  | H137: =IF(L137="","",1) ->  | I137: =IF(M137="","",1) ->  | P137: =IF(K137<>"","Du har satt X for at forholdet ikke er avklart. Gi en nærmere foklaring i kommentarfeltet.","") -> 
A138: Fordringer, gjeld, garantiforpliktelser
B139: De ordinære notekravene til gjeld og fordringer gjelder også for mellomværende med foretak i samme konsern, tilknyttet selskap og felleskontrollert virksomhet. I konsernforhold har man ofte ikke avtalt noen avdragsplan, det kan derfor være vanskelig å opplyse om fordringer som forfaller senere enn et år og gjeld som forfaller senere enn 5 år. I slike tilfeller bør det opplyses at avdragsplan ikke er avtalt.
B140: Fordringer
A141: =+A137+1 -> 78 | B141: Er det opplyst om hvor mye av den regnskapspliktiges fordringer som forfaller senere enn ett år etter regnskapsårets slutt, spesifisert på type fordring? | C141: rskl § 7-40 NRS 8 pkt 6.1.2.2 | E141: =IF(SUM(F141:I141)>1,"Oppgi kun et alternativ!","") ->  | F141: =IF(J141="","",1) ->  | G141: =IF(K141="","",1) ->  | H141: =IF(L141="","",1) ->  | I141: =IF(M141="","",1) ->  | P141: =IF(K141<>"","Du har satt X for at forholdet ikke er avklart. Gi en nærmere foklaring i kommentarfeltet.","") -> 
C142: NRS 8 pkt 8.4 | E142: =IF(SUM(F142:I142)>1,"Oppgi kun et alternativ!","") ->  | F142: =IF(J142="","",1) ->  | G142: =IF(K142="","",1) ->  | H142: =IF(L142="","",1) ->  | I142: =IF(M142="","",1) ->  | P142: =IF(K142<>"","Du har satt X for at forholdet ikke er avklart. Gi en nærmere foklaring i kommentarfeltet.","") -> 
B143: Gjeld
A144: =+A141+1 -> 79 | B144: Er det opplyst om hvor stor del av den regnskapspliktig gjeld som forfaller til betaling mer enn fem år etter regnskapsårets slutt? | C144: rskl § 7-40 | E144: =IF(SUM(F144:I144)>1,"Oppgi kun et alternativ!","") ->  | F144: =IF(J144="","",1) ->  | G144: =IF(K144="","",1) ->  | H144: =IF(L144="","",1) ->  | I144: =IF(M144="","",1) ->  | P144: =IF(K144<>"","Du har satt X for at forholdet ikke er avklart. Gi en nærmere foklaring i kommentarfeltet.","") -> 
C145: NRS 8 pkt 8.4
C146: NRS 8 pkt 6.1.2.2 | E146: =IF(SUM(F146:I146)>1,"Oppgi kun et alternativ!","") ->  | F146: =IF(J146="","",1) ->  | G146: =IF(K146="","",1) ->  | H146: =IF(L146="","",1) ->  | I146: =IF(M146="","",1) -> 
A147: =+A144+1 -> 80 | B147: Er det opplyst om hvor stor del av den regnskapspliktiges gjeld som er sikret ved pant eller lignende sikkerhet i den regnskapspliktiges eiendeler?
A148: =+A147+1 -> 81 | B148: Dersom det er stillet sikkerhet for gjeld som ikke er balanseført, er det gitt opplysninger om følgende: • hvor stor gjeld det er stillet sikkerhet for • hvor stor del av gjelden som er sikret ved pant | C148: NRS 8 pkt 6.1.2.2
A149: =+A148+1 -> 82 | B149: Er det opplyst om balanseført verdi av de pantsatte eiendeler?
B150: Garantiforpliktelser | C150: rskl § 7-40
A151: =+A149+1 -> 83 | B151: Er det opplyst om summen av garantiforpliktelser som ikke er regnskapsført? | C151: NRS 8 pkt 8.4 | E151: =IF(SUM(F151:I151)>1,"Oppgi kun et alternativ!","") ->  | F151: =IF(J151="","",1) ->  | G151: =IF(K151="","",1) ->  | H151: =IF(L151="","",1) ->  | I151: =IF(M151="","",1) -> 
A152: =+A151+1 -> 84 | B152: Er det opplyst om garantiforpliktelse som er sikret ved pant? | E152: =IF(SUM(F152:I152)>1,"Oppgi kun et alternativ!","") ->  | F152: =IF(J152="","",1) ->  | G152: =IF(K152="","",1) ->  | H152: =IF(L152="","",1) ->  | I152: =IF(M152="","",1) -> 
A153: =+A152+1 -> 85 | B153: Er det opplyst om hvilke forpliktelser som er dekket av andre avsetninger som nevnt i rskl § 6-2D I nr. 3, andre avsetninger for forpliktelser? | C153: rskl § 7-40
C154: NRS 8 pkt 6.1.1.3.7
B155: Ikke-balanseførte forpliktelser
A156: =+A153+1 -> 86 | B156: Er det opplyst om ikke-balanseførte forpliktelser av betydning knyttet til medlemsfordeler som strekker seg ut over perioden for betalt medlemskap? | C156: NRS (F) GRS for ideelle organisasjoner punkt 9.2.1 | E156: =IF(SUM(F156:I156)>1,"Oppgi kun et alternativ!","") ->  | F156: =IF(J156="","",1) ->  | G156: =IF(K156="","",1) ->  | H156: =IF(L156="","",1) ->  | I156: =IF(M156="","",1) -> 
A157: Mellomværende med foretak i samme konsern, tilknyttet selskap og felles kontrollert virksomhet
B158: De ordinære opplysningskravene til gjeld og fordringer gjelder også for mellomværende med foretak i samme konsern, tilknyttet selskap og felleskontrollert virksomhet. I konsernforhold har man ofte ikke avtalt noen avdragsplan, det kan derfor være vanskelig å opplyse om fordringer som forfaller senere enn et år og gjeld som forfaller senere enn 5 år. I slike tilfeller bør det opplyses at avdragsplan ikke er avtalt
B159: I tillegg til de ordinære kravene vedrørende fordringer og gjeld, er det ytterligere opplysningskrav vedrørende mellomværende med foretak i samme konsern, tilknyttede selskap og felleskontrollert virksomhet.
A160: =+A156+1 -> 87 | B160: I små foretak som er morselskap, men som ikke avgir konsernregnskap, er det opplyst om mellomværende med datterselskap? | C160: rskl § 7-36, 7. ledd | E160: =IF(SUM(F160:I160)>1,"Oppgi kun et alternativ!","") ->  | F160: =IF(J160="","",1) ->  | G160: =IF(K160="","",1) ->  | H160: =IF(L160="","",1) ->  | I160: =IF(M160="","",1) ->  | P160: =IF(K160<>"","Du har satt X for at forholdet ikke er avklart. Gi en nærmere foklaring i kommentarfeltet.","") -> 
A161: =+A160+1 -> 88 | B161: Er det opplyst om det samlede beløp for henholdsvis fordringer, annen langsiktig gjeld og kortsiktig gjeld som gjelder foretak i samme konsern, tilknyttet selskap og felleskontrollert virksomhet? | C161: rskl § 7-36, 8. ledd | E161: =IF(SUM(F161:I161)>1,"Oppgi kun et alternativ!","") ->  | F161: =IF(J161="","",1) ->  | G161: =IF(K161="","",1) ->  | H161: =IF(L161="","",1) ->  | I161: =IF(M161="","",1) ->  | P161: =IF(K161<>"","Du har satt X for at forholdet ikke er avklart. Gi en nærmere foklaring i kommentarfeltet.","") -> 
A162: =+A161+1 -> 89 | B162: Er det vist tilsvarende tall fra foregående årsregnskap? | C162: rskl § 7-36, 8. ledd | P162: =IF(K162<>"","Du har satt X for at forholdet ikke er avklart. Gi en nærmere foklaring i kommentarfeltet.","") -> 
A163: =+A162+1 -> 90 | B163: Er det opplyst om samlet forpliktelse i form av pantstillelse, annen sikkerhetsstillelse og garantier til fordel for foretak i samme konsern? | C163: rskl § 7-36, 9. ledd | P163: =IF(K163<>"","Du har satt X for at forholdet ikke er avklart. Gi en nærmere foklaring i kommentarfeltet.","") -> 
C164: NRS 8 pkt 8.4 | P164: =IF(K164<>"","Du har satt X for at forholdet ikke er avklart. Gi en nærmere foklaring i kommentarfeltet.","") -> 
A165: Pensjonsforpliktelser
B166: Er det gitt følgende tilleggsopplysninger for ordninger finansiert over drift (inkl AFP), i de tilfeller opplysninger om foretakets pensjonsforpliktelse må anses som nødvendige for å bedømme den regnskapspliktiges stilling og resultat: | C166: NRS 8 6.1.1.1.1
A167: =+A163+1 -> 91 | B167: - foretakets pensjonsordninger inklusive opplysning om antallet personer forpliktelsen omfatter, | E167: =IF(SUM(F167:I167)>1,"Oppgi kun et alternativ!","") ->  | F167: =IF(J167="","",1) ->  | G167: =IF(K167="","",1) ->  | H167: =IF(L167="","",1) ->  | I167: =IF(M167="","",1) ->  | P167: =IF(K167<>"","Du har satt X for at forholdet ikke er avklart. Gi en nærmere foklaring i kommentarfeltet.","") -> 
A168: =+A167+1 -> 92 | B168: - anvendt regnskapsprinsipp for direkte pensjonsforpliktelser, | E168: =IF(SUM(F168:I168)>1,"Oppgi kun et alternativ!","") ->  | F168: =IF(J168="","",1) ->  | G168: =IF(K168="","",1) ->  | H168: =IF(L168="","",1) ->  | I168: =IF(M168="","",1) ->  | P168: =IF(K168<>"","Du har satt X for at forholdet ikke er avklart. Gi en nærmere foklaring i kommentarfeltet.","") -> 
A169: =+A168+1 -> 93 | B169: - viktige økonomiske og aktuarmessige forutsetninger, | P169: =IF(K169<>"","Du har satt X for at forholdet ikke er avklart. Gi en nærmere foklaring i kommentarfeltet.","") -> 
A170: =+A169+1 -> 94 | B170: - sammensetning av netto pensjonskostnad, | P170: =IF(K170<>"","Du har satt X for at forholdet ikke er avklart. Gi en nærmere foklaring i kommentarfeltet.","") -> 
A171: =+A170+1 -> 95 | B171: - avstemming mellom faktisk netto pensjonsforpliktelse og balanseført netto pensjonsforpliktelse som viser størrelsen av utsatt resultatføring av virkning av estimatendringer, samt virkning av endringer i pensjonsplaner | P171: =IF(K171<>"","Du har satt X for at forholdet ikke er avklart. Gi en nærmere foklaring i kommentarfeltet.","") -> 
B172: Er det gitt følgende informasjon om pensjonsforpliktelse knyttet til AFP:
A173: =+A171+1 -> 96 | B173: - antall personer som er omfattet av ordningen, | E173: =IF(SUM(F173:I173)>1,"Oppgi kun et alternativ!","") ->  | F173: =IF(J173="","",1) ->  | G173: =IF(K173="","",1) ->  | H173: =IF(L173="","",1) ->  | I173: =IF(M173="","",1) ->  | P173: =IF(K173<>"","Du har satt X for at forholdet ikke er avklart. Gi en nærmere foklaring i kommentarfeltet.","") -> 
A174: =+A173+1 -> 97 | B174: - aldersfordeling for de personer som er omfattet av ordningen, | E174: =IF(SUM(F174:I174)>1,"Oppgi kun et alternativ!","") ->  | F174: =IF(J174="","",1) ->  | G174: =IF(K174="","",1) ->  | H174: =IF(L174="","",1) ->  | I174: =IF(M174="","",1) ->  | P174: =IF(K174<>"","Du har satt X for at forholdet ikke er avklart. Gi en nærmere foklaring i kommentarfeltet.","") -> 
A175: =+A174+1 -> 98 | B175: - informasjon om gjeldende bestemmelser vedrørende foretakets forpliktelser til delfinansiering av pensjonsrettigheter opptjent i AFP-ordningen, herunder varighet og hvilken andel som faller på foretaket. | P175: =IF(K175<>"","Du har satt X for at forholdet ikke er avklart. Gi en nærmere foklaring i kommentarfeltet.","") -> 
B176: For pensjonsordninger finansiert ved fondsopplegg (forsikrede ordninger) hvor balanseføring ikke foretas, er det gitt følgende noteopplysninger: | C176: NRS 8 6.1.1.1.2
A177: =+A175+1 -> 99 | B177: - foretakets pensjonsordninger inklusive opplysning om antallet personer forpliktelsen omfatter | E177: =IF(SUM(F177:I177)>1,"Oppgi kun et alternativ!","") ->  | F177: =IF(J177="","",1) ->  | G177: =IF(K177="","",1) ->  | H177: =IF(L177="","",1) ->  | I177: =IF(M177="","",1) ->  | P177: =IF(K177<>"","Du har satt X for at forholdet ikke er avklart. Gi en nærmere foklaring i kommentarfeltet.","") -> 
A178: =+A177+1 -> 100 | B178: - anvendte regnskapsprinsipper inklusiv metode for vurdering av pensjonsmidlene | P178: =IF(K178<>"","Du har satt X for at forholdet ikke er avklart. Gi en nærmere foklaring i kommentarfeltet.","") -> 
A179: =+A178+1 -> 101 | B179: - årets pensjonspremie | P179: =IF(K179<>"","Du har satt X for at forholdet ikke er avklart. Gi en nærmere foklaring i kommentarfeltet.","") -> 
A180: =+A179+1 -> 102 | B180: - pensjonspremiefondets størrelse og årets eventuelle innbetaling til pensjonspremiefond | F180: =IF(J180="","",1) ->  | G180: =IF(K180="","",1) ->  | H180: =IF(L180="","",1) ->  | I180: =IF(M180="","",1) ->  | P180: =IF(K180<>"","Du har satt X for at forholdet ikke er avklart. Gi en nærmere foklaring i kommentarfeltet.","") -> 
A181: =+A180+1 -> 103 | B181: - avkastning på pensjonspremiefond | P181: =IF(K181<>"","Du har satt X for at forholdet ikke er avklart. Gi en nærmere foklaring i kommentarfeltet.","") -> 
B182: Hvis små foretak balansefører forsikrede pensjonsforpliktelser gjelder NRS 6 Pensjonskostnader, noe som medfører utvidede notekrav. | C182: NRS 8 pkt 6.1.1.1.5
A183: Obligatorisk tjenestepensjon (pliktig)
A184: =+A181+1 -> 104 | B184: Er det opplyst om foretaket er pliktig til å ha tjenestepensjonsordning etter lov om obligatorisk tjenestepensjon og om foretaket har pensjonsordning som oppfyller kravene etter denne loven? | C184: rskl § 7-43a | E184: =IF(SUM(F184:I184)>1,"Oppgi kun et alternativ!","") ->  | F184: =IF(J184="","",1) ->  | G184: =IF(K184="","",1) ->  | H184: =IF(L184="","",1) ->  | I184: =IF(M184="","",1) ->  | P184: =IF(K184<>"","Du har satt X for at forholdet ikke er avklart. Gi en nærmere foklaring i kommentarfeltet.","") -> 
C185: NRS 8 pkt 8.12 | E185: =IF(SUM(F185:I185)>1,"Oppgi kun et alternativ!","") ->  | F185: =IF(J185="","",1) ->  | G185: =IF(K185="","",1) ->  | H185: =IF(L185="","",1) ->  | I185: =IF(M185="","",1) ->  | P185: =IF(K185<>"","Du har satt X for at forholdet ikke er avklart. Gi en nærmere foklaring i kommentarfeltet.","") -> 
A186: Egenkapital/formålskapital
A187: =+A184+1 -> 105 | B187: Er det opplyst om hvilke hovedtyper restriksjoner som foreligger for formålskapitalen, og hvordan organisasjonen overholder restriksjonene? Evt spesielle betingelser el.l. som følge av restriksjoner skal opplyses om. | C187: NRS (F) GRS for ideelle organisasjoner punkt 8.3 | E187: =IF(SUM(F187:I187)>1,"Oppgi kun et alternativ!","") ->  | F187: =IF(J187="","",1) ->  | G187: =IF(K187="","",1) ->  | H187: =IF(L187="","",1) ->  | I187: =IF(M187="","",1) ->  | P187: =IF(K187<>"","Du har satt X for at forholdet ikke er avklart. Gi en nærmere foklaring i kommentarfeltet.","") -> 
A188: =+A187+1 -> 106 | B188: Dersom organisasjonen har negativ annen formålskapital, er det gitt tallmessige tilleggsopplysninger, hvor sum grunnkapital og formålskapital med restriksjoner vises, og hvor det fremkommer at negativ annen formålskapital utgjør differansen i forhold til netto formålskapital? | C188: NRS (F) GRS for ideelle organisasjoner punkt 8.3 | P188: =IF(K188<>"","Du har satt X for at forholdet ikke er avklart. Gi en nærmere foklaring i kommentarfeltet.","") -> 
A189: =+A188+1 -> 107 | B189: Er det gitt opplysninger om innholdet i hver enkelt egenkapitaltransaksjon? | C189: NRS 8 5.1.1.8 | E189: =IF(SUM(F189:I189)>1,"Oppgi kun et alternativ!","") ->  | F189: =IF(J189="","",1) ->  | G189: =IF(K189="","",1) ->  | H189: =IF(L189="","",1) ->  | I189: =IF(M189="","",1) ->  | P189: =IF(K189<>"","Du har satt X for at forholdet ikke er avklart. Gi en nærmere foklaring i kommentarfeltet.","") -> 
A190: =+A189+1 -> 108 | B190: Dersom det er besluttet ekstaordinært utbytte basert på en mellombalanse med balansedag i perioden fra balansedagen for siste regnskapsår til tidspunktet for ordinær generalforsamling der årsregnskapet for siste regnskapsår skal behandles, er dette opplyst om i note? | C190: NRS 8 5.3.3 | P190: =IF(K190<>"","Du har satt X for at forholdet ikke er avklart. Gi en nærmere foklaring i kommentarfeltet.","") -> 
A191: =+A190+1 -> 109 | B191: Når organisasjonen tar i bruk standarden for første gang, er det vist en oppstilling som forklarer endringene i formålskapitalen fra sist avlagte regnskap til inngående balanse i overgangsåret, spesifisert for alle poster som er endret i balansen? Små foretak som velger å innarbeide endringene i aktivitetsregnskapet/resultatregnskapet i overgangsåret, må beskrive i note hvilke engangsvirkninger som er innarbeidet i årets aktivitets-regnskap/resultatregnskap. | C191: NRS (F) GRS for ideelle organisasjoner punkt 14.2.1 | P191: =IF(K191<>"","Du har satt X for at forholdet ikke er avklart. Gi en nærmere foklaring i kommentarfeltet.","") -> 
B192: Ekstraordinært utbytte regnskapsført i uttaksåret anbefales spesifisert på egen linje i egenkapitalnote, dersom det utarbeides slik note. | C192: NRS 8 5.3.3
A193: Resultatregnskap/aktivitetsregnskap
A194: =+A191+1 -> 110 | B194: Anbefalt: Er det ved større samarbeidsprosjekt orientert om hvordan fordelingen av inntekter og kostnader mellom samarbeidspartnerne er gjennomført? | C194: NRS (F) GRS for ideelle organisasjoner punkt 3.9.1 | E194: =IF(SUM(F194:I194)>1,"Oppgi kun et alternativ!","") ->  | F194: =IF(J194="","",1) ->  | G194: =IF(K194="","",1) ->  | H194: =IF(L194="","",1) ->  | I194: =IF(M194="","",1) ->  | P194: =IF(K194<>"","Du har satt X for at forholdet ikke er avklart. Gi en nærmere foklaring i kommentarfeltet.","") -> 
A195: =+A194+1 -> 111 | B195: Anbefalt: Ved bruk av artsinndelt resultatregnskap, er det opplyst om hvilke aktiviteter som har vært gjennomført siste regnskapsår? | C195: NRS (F) GRS for ideelle organisasjoner punkt 4.9 jf 4.2 og 4.3 | E195: =IF(SUM(F195:I195)>1,"Oppgi kun et alternativ!","") ->  | F195: =IF(J195="","",1) ->  | G195: =IF(K195="","",1) ->  | H195: =IF(L195="","",1) ->  | I195: =IF(M195="","",1) -> 
A196: =+A195+1 -> 112 | B196: Ved bruk av aktivitetsregnskap, er det i note gitt spesifikasjon av organisasjonens driftskostnader etter art? Dette innebærer følgende spesifikasjon: 1. Endring i beholdning av varer under tilvirkning og ferdig tilvirkede varer 2. Endring i beholdning av egentilvirkede anleggsmidler 3. Varekostnad 4. Lønnskostnad 5. Avskrivning på varige driftsmidler og immaterielle eiendeler 6. Nedskrivning på varige driftsmidler og immaterielle eiendeler 7. Annen driftskostnad 8. Finanskostnader | C196: NRS (F) GRS for ideelle organisasjoner punkt 4.9 jf 4.2
A197: =+A196+1 -> 113 | B197: Ved bruk av aktivitetsregnskap, er det i note spesifisert ytterligere inndeling av anskaffede og/eller forbrukte midler, der dette er nødvendig for å gi et rettvisende bilde av organisasjonens aktiviteter? | C197: NRS (F) GRS for ideelle organisasjoner punkt 4.9
A198: 114 | B198: Anbefalt: Er det opplyst om hvor stor andel av de innsamlede midlene som stammer fra de forskjellige innsamlingsaktivitetene som har foregått i regnskapsperioden, når dette er vurdert nyttig for brukerne av regnskapet? | C198: NRS (F) GRS for ideelle organisasjoner punkt 5.4.1.1
A199: 115 | B199: Anbefalt: Er det opplyst om vesentlige sponsoravtaler, herunder beløp, kontraktstid og evt motytelser og prisinpper for periodisering? | C199: NRS (F) GRS for ideelle organisasjoner punkt 5.5.1.1
A200: 116 | B200: Er det opplyst om hvilke prinsipper og metoder som er brukt ved fordelingen av kostnader på de ulike aktivitetene i organisasjonen, og hvilke beregninger som ligger til grunn for fordelingen? | C200: NRS (F) GRS for ideelle organisasjoner punkt 6.2.1
... 93 more rows

Sheet N_Ubesv. (hidden)
A1: Ikke besvart | B1: Spørsmål | C1: 2018 | D1: Kommentar | G1: =+Forside!B2 -> 0 | H1: =+Forside!B3 -> 2020 | I1: Kommentarer
A2: 1 | B2: Er det gitt opplysninger om anvendte regnskapsprinsipper, herunder prinsipper for inntektsføring?
A3: 2 | B3: Er det ved vesentlige medlemsinntekter opplyst om hvilke kriterier som er lagt til grunn i regnskapet for inntektsføringen og periodiseringen av disse inntektene?
A4: 3 | B4: Er det ved vesentlige tilskudd opplyst om hvilke prinsipper som er lagt til grunn i regnskapet for inntektsføringen og periodiseringen av disse inntektene?
A5: 4 | B5: Er det gitt opplysninger om virkning av og begrunnelse for endringer i prinsipper?
A6: 5 | B6: Er det gitt opplysninger om virkning av feil i tidligere årsregnskap og korrigering av slike feil, samt omklassifiseringer?
A7: 6 | B7: Er det gitt opplysninger om og begrunnelse for eventuell sikringsvurdering og porteføljevurdering?
A8: 7 | B8: Er det gitt opplysninger om de prinsipper som er anvendt ved vurderingen av varer, herunder metode for tilvirkning av anskaffelseskost?
A9: 8 | B9: Er det opplyst om de prinsipper som er anvendt ved vurderingen av langsiktige tilvirkningskontrakter?
A10: 9 | B10: Er det gitt opplysninger om de regnskapsprinsipper som er benyttet ved vurdering av kortsiktige investeringer / finansielle derivater, herunder prinsipp for tilordning av anskaffelseskost for ombyttbare finansielle aksjer mv?
A11: 10 | B11: Er det opplyst om valg av prinsipp når det gjelder balanseføring av utsatt skattefordel?
A12: 11 | B12: For egne utgifter til FoU og utvikling av rettigheter, er det gitt opplysninger om valg av regnskapsprinsipp med hensyn til balanseføring eller kostnadsføring?
A13: 12 | B13: Er det gitt opplysninger om anvendte regnskapsprinsipper for omregning av utenlandsk valuta?
A14: 13 | B14: Dersom virkning av prinsippendringer eller korrigeringer av feil er ført direkte mot egenkapitalen, fremgår det av notene om regnskapstallene er omarbeidet eller ikke?
A15: 14 | B15: Dersom årsregnskapet presenteres i en annen valuta enn regnskapsvalutaen, er regnskapsvalutaen og omregningskurser opplyst?
A16: 15 | B16: Dersom sammenligningstallene i regnskapet er omarbeidet, er omarbeidingen forklart?
A17: 16 | B17: Dersom det ikke er mulig å utarbeide sammenligningstall ved overgang til god regnskapsskikk for ideelle organisasjoner, er det opplyst om i note?
A18: 17 | B18: Dersom det utarbeides konsernregnskap og det anvendes forskjellige prinsipper i selskapsregnskap og konsernregnskap, er dette opplyst og begrunnet?
A19: 18 | B19: Er alle de regnskapsprinsipper som er omtalt i notene aktuelle for selskapet?
A20: 19 | B20: Er det gitt følgende opplysninger vedr. goodwill: • Anskaffelseskost
A21: 20 | B21: • Tilgang og avgang i løpet av regnskapsåret
A22: 21 | B22: • Samlede avskrivninger og nedskrivninger, og
A23: 22 | B23: • Avskrivninger og nedskrivninger i regnskapsåret
A24: 23 | B24: Er det opplyst om økonomisk levetid, avskrivningsplan og eventuell endring i avskrivningsplan?
A25: 24 | B25: Er balanseført goodwill spesifisert for hvert enkelt virksomhetskjøp?
A26: 25 | B26: Er avskrivningsplan for goodwill som er lengre enn fem år begrunnet?
A27: 26 | B27: Er det gitt følgende opplysninger vedr. FoU og rettigheter: • anskaffelseskost med spesifikasjon av balanseførte lånekostnader knyttet til egentilvirkede anleggsmidler,
A28: 27 | B28: • tilgang og avgang i løpet av regnskapsåret,
A29: 28 | B29: • samlede avskrivninger, nedskrivninger og reverseringer av nedskrivninger, og
A30: 29 | B30: • avskrivninger, nedskrivninger og reverseringer av nedskrivninger i regnskapsåret
A31: 30 | B31: Er det opplyst om økonomisk levetid, avskrivningsplan og eventuell endring i avskrivningsplan?
A32: 31 | B32: Er det opplyst om utgifter som har gått med til FoU i regnskapsåret?
A33: 32 | B33: Er arten av FoU angitt, uavhengig av om utgiftene er balanse- eller kostnadsført?
A34: 33 | B34: Er det opplyst om forventet samlet inntjening av pågående FoU motsvarer medgåtte samlede utgifter?
A35: 34 | B35: Er det gitt følgende opplysninger for varige driftsmidler: • anskaffelseskost med spesifikasjon av balanseførte lånekostnader knyttet til egentilvirkede anleggsmidler,
A36: 35 | B36: • tilgang og avgang i løpet av regnskapsåret,
A37: 36 | B37: • samlede avskrivninger, nedskrivninger og reversering av nedskrivninger, og
A38: 37 | B38: • avskrivninger, nedskrivninger og reversering av nedskrivninger i regnskapsåret.
A39: 38 | B39: Er det opplyst om endring i avskrivningsplan?
A40: 39 | B40: Dersom organisasjonen har kostnadsført betydelige midler som etter sin art normal balanseføres, er det opplyst om og begrunnet?
A41: 40 | B41: Er det gitt tilleggsopplysninger om bevaringsverdige eiendeler av betydning, uavhengig av regnskapsmessig behandling? Evt avskrivninger eller nedskrivninger skal spesifiseres.
A42: 41 | B42: Er det gitt tilstrekkelig informasjon om finansielle anleggsmidler og omløpsmidler til å kunne vurdere hvorvidt organisasjonen har oppfylt evt instrukser og begrensninger i forhold til plassering og forvaltning av midler?
A43: 42 | B43: Er det for hvert datterselskap opplyst om: • foretaksnavn (firma) • forretningskontor • eierandel • stemmeandel
A44: 43 | B44: For hvert datterselskap som er regnskapsført etter kostmetoden eller som ikke er konsolidert, er det opplyst om egenkapital og resultat i siste regnskapsår?
A45: 44 | B45: Dersom det ikke utarbeides konsernregnskap, er det opplyst om transaksjoner med og mellom datterselskaper og urealisert interngevinst på disse?
A46: 45 | B46: Er det for hver vesentlig enhet opplyst om; - forbindelsen mellom datterorganisasjonens aktiviteter og mor-organisasjonens aktiviteter, - totale eiendeler, gjeld og formålskapital, og - aktivitetsinntekter, -kostnader og aktivitetsresultat i året, oppsummert.
A47: 46 | B47: For datterselskap som regnskapsføres etter egenkapitalmetoden, er det opplyst om anskaffelseskost og balanseført egenkapital på anskaffelsestidspunktet?
A48: 47 | B48: For datterselskap som regnskapsføres etter egenkapitalmetoden, er det for hver investering opplyst om inngående balanse, inntektsført resultat, andre endringer i løpet av året og utgående balanse?
A49: 48 | B49: For datterselskap som regnskapsføres etter egenkapitalmetoden, er det opplyst om merverdier og goodwill samt avskrivninger av merverdier og goodwill?
A50: 49 | B50: Dersom datterselskap er utelatt fra konsolideringen ihht rskl § 3-8, er dette opplyst og begrunnet?
A51: 50 | B51: Er det i konsernregnskapet opplyst om navnet på foretak der den regnskapspliktige selv eller gjennom datterselskaper eier så mange aksjer eller andeler at de representerer flertallet av stemmene i foretaket, men som ikke er datterselskap fordi det klart kan påvises at slikt eierskap likevel ikke gir bestemmernde innflytelse jr rskl § 1-3, 2. ledd nr. 1?
A52: 51 | B52: Er det for hvert tilknyttet selskap opplyst om: • foretaksnavn (firma) • forretningskontor • eierandel • stemmeandel • det skal også opplyses om egenkapitalen og resultatet i siste regnskapsår (Gjelder ikke TS som er regnskapsført etter egenkapitalmetoden – se nedenfor)
A53: 52 | B53: Er det for hvert tilknyttet selskap som er regnskapsført etter kostmetoden også opplyst om egenkapitalen og resultatet i siste regnskapsår?
A54: 53 | B54: For tilknyttet selskap som regnskapsføres etter egenkapitalmetoden, er det opplyst om anskaffelseskost og balanseført egenkapital på anskaffelsestidspunktet?
A55: 54 | B55: For tilknyttet selskap som regnskapsføres etter egenkapitalmetoden, er det for hver investering opplyst om inngående balanse, inntektsført resultat, andre endringer i løpet av året og utgående balanse?
A56: 55 | B56: For tilknyttet selskap som regnskapsføres etter egenkapitalmetoden, er det opplyst om merverdier og goodwill samt avskrivninger av merverdier og goodwill?
A57: 56 | B57: Er det for hver felleskontrollert virksomhet opplyst om: • selskapsnavn (firma) • forretningskontor • eierandel • stemmeandel
A58: 57 | B58: Er det for hver felleskontrollert virksomhet som er regnskapsført etter kostmetoden også opplyst om egenkapitalen og resultatet i siste regnskapsår?
A59: 58 | B59: For felleskontrollert virksomhet som regnskapsføres etter egenkapital- eller bruttometoden, er det opplyst om anskaffelseskost og balanseført egenkapital på anskaffelsestidspunktet?
A60: 59 | B60: For felleskontrollert virksomhet som regnskapsføres etter egenkapital- eller bruttometoden, er det for hver investering opplyst om inngående balanse, inntektsført resultat, andre endringer i løpet av året og utgående balanse?
A61: 60 | B61: For felleskontrollert virksomhet som regnskapsføres etter egenkapital- eller bruttometoden, er det opplyst om merverdier og goodwill samt avskrivninger av merverdier og goodwill?
A62: 61 | B62: Der balanseført verdi av aksjer og andeler som er anleggsmidler er høyere enn virkelig verdi, er det opplyst om balanseført verdi og virkelig verdi av den enkelte eiendelen eller en hensiktsmessig gruppering av eiendelene?
A63: 62 | B63: Inkluderer begrunnelsen holdepunkter for at verdifallet er forbigående?
A64: 63 | B64: Dersom det anses som nødvendig for å vurdere foretakets stilling og resultat, er det gitt ytterligere opplysninger om investeringer i aksjer og andeler, herunder balanseført verdi og eierandel i hvert selskap?
A65: 64 | B65: For regnskapspliktige som er aksjeselskap, er det opplyst om aksjekapitalen og aksjens pålydende fordelt på hver aksjeklasse?
A66: 65 | B66: Er det opplyst om eventuelle vedtektsbestemmelser om stemmerett?
A67: 66 | B67: Er det opplyst om eventuelle rettigheter som kan medføre at det blir utstedt nye aksjer, dersom rettighettene er vesentlige for å bedømme foretakets stilling og resultat?
A68: 67 | B68: For regnskapspliktige som er aksjeselskap, er det opplyst om selskapets 10 største aksjeeiere og deres eierandeler (kan utelate aksjeeiere som eier under 5 %)?
A69: 68 | B69: Er det opplyst om aksjer eller andeler i selskapet som eies av henholdsvis daglig leder og medlemmer av styret og bedriftsforsamlingen?
A70: 69 | B70: Dersom selskapet har en beholdning av egne aksjer etter aksjeloven kapittel 9, er det opplyst om antallet, aksjenes pålydende verdi og den andel aksjene utgjør av aksjekapitalen?
A71: 70 | B71: Dersom det har vært endringer i beholdning av egne aksjer og datterselskapenes beholdning av aksjer i morselskapet i løpet av regnskapsåret, er det minst opplyst om følgende: • bakgrunn for erverv som har funnet sted • antall aksjer som er ervervet, vederlag for disse og den andel de utgjør av aksjekapitalen • antall aksjer som er avhendet, vederlaget for disse og den andel de utgjør av aksjekapitalen?
A72: 71 | B72: Dersom egne aksjer ikke vises på egen linje under selskapskapitalen i balansen eller i oppstilling av endringer i egenkapitalen, er spesifikasjon gitt i note?
A73: 72 | B73: Er det gitt opplysninger om den gjenstående produksjonen av tapskontrakter når omfanget av tapskontrakter er vesentlig i forhold til samlet produksjon?
A74: 73 | B74: Er det for hver kategori av markedsbaserte finansielle instrumenter og varederivater som er vurdert etter hovedregelen om virkelig verdi i rskl § 5-8 (markedsverdiprinsippet), gitt følgende informasjon: • Anskaffelseskost • Virkelig verdi • Periodens resultatførte verdiendring • Vesentlige forutsetninger i verdivurderingen
A75: 74 | B75: Er det gitt opplysninger om egenskaper ved og omfang av finansielle derivater som er vurdert til virkelig verdi etter rskl § 5-8 (markedsverdiprinsippet), fordelt på klasser av derivater?
A76: 75 | B76: Omfatter opplysningene over vesentlige betingelser og forhold som kan påvirke beløpsstørrelse, tidfesting og usikkerhet ved framtidige kontantstrømmer?
A77: 76 | B77: Er det opplyst om bundne midler?
A78: 77 | B78: Er det opplyst om hvor mye av den regnskapspliktiges fordringer som forfaller senere enn ett år etter regnskapsårets slutt, spesifisert på type fordring?
A79: 78 | B79: Er det opplyst om hvor stor del av den regnskapspliktig gjeld som forfaller til betaling mer enn fem år etter regnskapsårets slutt?
A80: 79 | B80: Er det opplyst om hvor stor del av den regnskapspliktiges gjeld som er sikret ved pant eller lignende sikkerhet i den regnskapspliktiges eiendeler?
A81: 80 | B81: Dersom det er stillet sikkerhet for gjeld som ikke er balanseført, er det gitt opplysninger om følgende: • hvor stor gjeld det er stillet sikkerhet for • hvor stor del av gjelden som er sikret ved pant
A82: 81 | B82: Er det opplyst om balanseført verdi av de pantsatte eiendeler?
A83: 82 | B83: Er det opplyst om summen av garantiforpliktelser som ikke er regnskapsført?
A84: 83 | B84: Er det opplyst om garantiforpliktelse som er sikret ved pant?
A85: 84 | B85: Er det opplyst om hvilke forpliktelser som er dekket av andre avsetninger som nevnt i rskl § 6-2D I nr. 3, andre avsetninger for forpliktelser?
A86: 85 | B86: Er det opplyst om ikke-balanseførte forpliktelser av betydning knyttet til medlemsfordeler som strekker seg ut over perioden for betalt medlemskap?
A87: 86 | B87: I små foretak som er morselskap, men som ikke avgir konsernregnskap, er det opplyst om mellomværende med datterselskap?
A88: 87 | B88: Er det opplyst om det samlede beløp for henholdsvis fordringer, annen langsiktig gjeld og kortsiktig gjeld som gjelder foretak i samme konsern, tilknyttet selskap og felleskontrollert virksomhet?
A89: 88 | B89: Er det vist tilsvarende tall fra foregående årsregnskap?
A90: 89 | B90: Er det opplyst om samlet forpliktelse i form av pantstillelse, annen sikkerhetsstillelse og garantier til fordel for foretak i samme konsern?
A91: 90 | B91: - foretakets pensjonsordninger inklusive opplysning om antallet personer forpliktelsen omfatter,
A92: 91 | B92: - anvendt regnskapsprinsipp for direkte pensjonsforpliktelser,
A93: 92 | B93: - viktige økonomiske og aktuarmessige forutsetninger,
A94: 93 | B94: - sammensetning av netto pensjonskostnad,
A95: 94 | B95: - avstemming mellom faktisk netto pensjonsforpliktelse og balanseført netto pensjonsforpliktelse som viser størrelsen av utsatt resultatføring av virkning av estimatendringer, samt virkning av endringer i pensjonsplaner
A96: 95 | B96: - antall personer som er omfattet av ordningen,
A97: 96 | B97: - aldersfordeling for de personer som er omfattet av ordningen,
A98: 97 | B98: - informasjon om gjeldende bestemmelser vedrørende foretakets forpliktelser til delfinansiering av pensjonsrettigheter opptjent i AFP-ordningen, herunder varighet og hvilken andel som faller på foretaket.
A99: 98 | B99: - foretakets pensjonsordninger inklusive opplysning om antallet personer forpliktelsen omfatter
A100: 99 | B100: - anvendte regnskapsprinsipper inklusiv metode for vurdering av pensjonsmidlene
A101: 100 | B101: - årets pensjonspremie
A102: 101 | B102: - pensjonspremiefondets størrelse og årets eventuelle innbetaling til pensjonspremiefond
A103: 102 | B103: - avkastning på pensjonspremiefond
A104: 103 | B104: Er det opplyst om foretaket er pliktig til å ha tjenestepensjonsordning etter lov om obligatorisk tjenestepensjon og om foretaket har pensjonsordning som oppfyller kravene etter denne loven?
A105: 104 | B105: Er det opplyst om hvilke hovedtyper restriksjoner som foreligger for formålskapitalen, og hvordan organisasjonen overholder restriksjonene? Evt spesielle betingelser el.l. som følge av restriksjoner skal opplyses om.
A106: 105 | B106: Dersom organisasjonen har negativ annen formålskapital, er det gitt tallmessige tilleggsopplysninger, hvor sum grunnkapital og formålskapital med restriksjoner vises, og hvor det fremkommer at negativ annen formålskapital utgjør differansen i forhold til netto formålskapital?
A107: 106 | B107: Er det gitt opplysninger om innholdet i hver enkelt egenkapitaltransaksjon?
A108: 107 | B108: Dersom det er besluttet ekstaordinært utbytte basert på en mellombalanse med balansedag i perioden fra balansedagen for siste regnskapsår til tidspunktet for ordinær generalforsamling der årsregnskapet for siste regnskapsår skal behandles, er dette opplyst om i note?
A109: 108 | B109: Når organisasjonen tar i bruk standarden for første gang, er det vist en oppstilling som forklarer endringene i formålskapitalen fra sist avlagte regnskap til inngående balanse i overgangsåret, spesifisert for alle poster som er endret i balansen? Små foretak som velger å innarbeide endringene i aktivitetsregnskapet/resultatregnskapet i overgangsåret, må beskrive i note hvilke engangsvirkninger som er innarbeidet i årets aktivitets-regnskap/resultatregnskap.
A110: 109 | B110: Anbefalt: Er det ved større samarbeidsprosjekt orientert om hvordan fordelingen av inntekter og kostnader mellom samarbeidspartnerne er gjennomført?
A111: 110 | B111: Anbefalt: Ved bruk av artsinndelt resultatregnskap, er det opplyst om hvilke aktiviteter som har vært gjennomført siste regnskapsår?
A112: 111 | B112: Ved bruk av aktivitetsregnskap, er det i note gitt spesifikasjon av organisasjonens driftskostnader etter art? Dette innebærer følgende spesifikasjon: 1. Endring i beholdning av varer under tilvirkning og ferdig tilvirkede varer 2. Endring i beholdning av egentilvirkede anleggsmidler 3. Varekostnad 4. Lønnskostnad 5. Avskrivning på varige driftsmidler og immaterielle eiendeler 6. Nedskrivning på varige driftsmidler og immaterielle eiendeler 7. Annen driftskostnad 8. Finanskostnader
A113: 112 | B113: Ved bruk av aktivitetsregnskap, er det i note spesifisert ytterligere inndeling av anskaffede og/eller forbrukte midler, der dette er nødvendig for å gi et rettvisende bilde av organisasjonens aktiviteter?
A114: 113 | B114: Anbefalt: Er det opplyst om hvor stor andel av de innsamlede midlene som stammer fra de forskjellige innsamlingsaktivitetene som har foregått i regnskapsperioden, når dette er vurdert nyttig for brukerne av regnskapet?
A115: 114 | B115: Anbefalt: Er det opplyst om vesentlige sponsoravtaler, herunder beløp, kontraktstid og evt motytelser og prisinpper for periodisering?
A116: 115 | B116: Er det opplyst om hvilke prinsipper og metoder som er brukt ved fordelingen av kostnader på de ulike aktivitetene i organisasjonen, og hvilke beregninger som ligger til grunn for fordelingen?
A117: 116 | B117: Dersom det er vedtatt vesentlige bevilgninger som ikke er kostnadsført i regnskapet, er det opplyst om bevilgningens art og sannsynligheten for at betingelsene for bevilgningen vil inntreffe? Når det å gi bevilgninger til andre er en vesentlig del av organisasjonens aktivitet, bør det også opplyses i note om hvem/hva det er bevilget midler til.
A118: 117 | B118: Er det opplyst om formålsprosenten for hvert av de 5 siste årene, beregnet med grunnlag i sum forbrukte midler, og er endringene i nøkkeltallet kommentert?
A119: 118 | B119: Er eventuelle poster i oppstillingsplanen som er slått sammen spesifisert?
A120: 119 | B120: Er tilsvarende sammenligningstall utarbeidet?
A121: 120 | B121: Er lønnskostnader spesifisert på lønninger, folketrygdavgift, regnskapsførte pensjonskostnader og andre ytelser?
A122: 121 | B122: Er tilsvarende sammenligningstall utarbeidet?
A123: 122 | B123: * En beskrivelse av hver type aksjeverdibasert betaling som foreligger * Vilkår og betingelser for hver enkelt ordning * Hvor stort beløp som eventuelt er kostnadsført minst spesifisert på de aktuelle postene i resultatregnskapet * Hvor stort beløp som eventuelt er kostnadsført i forbindelse med kompensasjon til morselskapet. * Dersom ordningen regnskapsføres i henhold til hovedreglene i NRS 15A Aksjebasert betaling: En beskrivelse av hvordan eventuelle kostnadsførte beløp er beregnet, herunder de forutsetninger som er lagt til grunn for beregningen. * Dersom aksjeverdibasert avlønning gjøres opp ved at den ansatte får aksjer i morselskap: opplysning om dette.
A124: 123 | B124: Anbefalt: Er det opplyst om omfanget av den økonomiske aktiviteten, beregningen av skattemessig overskudd eller underskudd og skattekostnaden?
A125: 124 | B125: Er det i noter til regnskapet opplyses om den regnskapsmessige behandlingen av tilskudd, herunder brutto- eller nettoføring og tilskuddsbeløpets størrelse?
A126: 125 | B126: Er det for vesentlige tilskudd opplyst om hvem som har gitt tilskuddet og tilskuddets størrelse, samt evt. betingelser knyttet til tilskuddet? Når det ikke er mulig å estimere markedsverdi av tilskuddet skal tilskuddet beskrives.
A127: 126 | B127: Er det opplyst om vesentlige gaver? Dette gjelder også gaver som ikke kan måles pålitelig, og som derfor ikke er inntektsført i regnskapet.
A128: 127 | B128: Er det opplyst om prinsipper for verdsettelse av vesentlige gaver i naturalia som er verdsatt for inntektsføring i regnskapet?
A129: 128 | B129: Dersom organisasjonen har fått melding om en vesentlig arv hvor det ennå ikke er kartlagt hva arvens størrelse vil bli, er det opplyst om denne, herunder et estimat for beløpet der det er mulig?
A130: 129 | B130: Er det opplyst om resultatførte valutagevinster og –tap?
A131: 130 | B131: Er det gitt opplysninger om hendelser som har sammenheng med forhold oppstått etter balansedagen dersom dette er nødvendig for å bedømme den regnskapspliktiges stilling og resultat og som ikke fremgår av årsregnskapet for øvrig, jf regnskapsloven § 7-1?
A132: 131 | B132: Er ”andre avsetninger for forpliktelser” spesifisert? Små foretak behøver normalt ikke spesifisere endring i balanseført avsetning. Det er tilstrekkelig å opplyse om inngående og utgående balanse for hver klasse av avsetninger. Små foretak kan unnlate å gi opplysninger om ikke balanseførte usikre forpliktelser.
A133: 132 | B133: Er det opplyst om antall sysselsatte årsverk i regnskapsåret?
A134: 133 | B134: Dersom det ikke har vært ansatte, er dette opplyst?
A135: 134 | B135: Er det opplyst om samlede utgifter til henholdsvis lønn, pensjonsforpliktelser og annen godtgjørelse til daglig leder og medlemmer av styret og bedriftsforsamlingen?
A136: 135 | B136: Dersom selskapet leier inn daglig leder, er det opplyst om honoraret for dette?
A137: 136 | B137: Er det opplyst om arten og omfanget av forpliktelser til å gi daglig leder eller leder av styret særskilt vederlag ved opphør eller endring av ansettelsesforholdet eller vervet?
A138: 137 | B138: Er det opplyst om avtaler om bonus, overskuddsdelinger, opsjoner og lignende til fordel for daglig leder eller styreleder?
A139: 138 | B139: Er det opplyst om eventuelle forpliktelser knyttet til tegningsretter, opsjoner og tilsvarende rettigheter som gir ansatte eller tillitsvalgte rett til tegning, kjøp eller salg av aksjer eller grunnfondsbevis?
A140: 139 | B140: Er det opplyst om regnskapsårets bokførte godtgjørelse til revisor og hvordan godtgjørelsen er fordelt på revisjon og andre tjenester?
A141: 140 | B141: Er lån/sikkerhetsstillelse til fordel for daglig leder og leder av styret spesifiser?
A142: 141 | B142: Er det for hvert lån opplyst om hvilke vilkår som gjelder, herunder rentesatsen og avdragsplan?
A143: 142 | B143: Er det opplyst om samlet lån til og samlet sikkerhetsstillelse til fordel for ansatte, aksjeeiere og medlemmer av styret og bedriftsforsamlingen?
A144: 143 | B144: I aksjeselskap, omfatter opplysningene også lån eller sikkerhetsstillelse til fordel for nærstående til aksjeeier, og medlemmer av styret og bedriftsforsamlingen?
A145: 144 | B145: Er det opplyst om hvilke vilkår som gjelder for slike lån eller sikkerhetsstillelser?
A146: 145 | B146: Er lån/sikkerhetsstillelser som utgjør mer enn 5 % av egenkapitalen etter balansen spesifisert?
A147: 146 | B147: Er det opplyst om navnet på alle fusjonerte selskaper i regnskapsperioden?
A148: 147 | B148: Dersom det formelt sett overtakende selskaps regnskap vises som sammenligningstall, er dette opplyst?
A149: 148 | B149: Er det opplyst om oppkjøpsmetoden eller kontinuitetsmetoden, herunder konsernkontinuitet eller selskapskontinuitet, er benyttet?
A150: 149 | B150: Er det opplyst om navnet på alle fisjonerte selskaper i regnskapsperioden?
A151: 150 | B151: Har regnskapspliktig som er datterselskap opplyst om firma og forretningskontor for morselskap som utarbeider konsernregnskap der den regnskapspliktige inngår i konsolideringen?
A152: 151 | B152: Er det opplyst om hvor en kan få utlevert konsernregnskapene?
A153: 152 | B153: Dersom det er usikkerhet om fortsatt drift, er det opplyst om usikkerheten?
A154: 153 | B154: Dersom foretaksdel under avvikling eller avhendelse utgjør en betydelig og separat del av foretakets samlede virksomhet, omfatter tilleggsopplysningene minst: En beskrivelse av den virksomheten som avvikles eller avhendes?
A155: 154 | B155: En beskrivelse av de forhold som gjør at virksomhetsdelen er å betrakte som under avvikling eller avhendelse?
A156: 155 | B156: Netto balanseført verdi av de eiendeler og forpliktelser som inngår i virksomheten som er under avvikling eller avhendelse?
A157: 156 | B157: Netto resultat, herunder eventuell gevinst og tap knyttet til avhendelsen eller avviklingen?

Sheet N_Ja (hidden)
C1: =COUNTIF(C2:C461,"=1") -> 0 | D1: Ja-svar | E1: =+Forside!B2 -> 0 | F1: =+Forside!B3 -> 2020 | G1: Kommentarer
A2: ='Sjekkliste noter'!A16 -> 1 | B2: =IF('Sjekkliste noter'!J16<>"",1,0) -> 0 | C2: =SUM(B2:B2) -> 0 | D2: =IF($C2=1,'Sjekkliste noter'!A16,"") ->  | E2: =IF($C2=1,'Sjekkliste noter'!B16,"") ->  | G2: =IF($C2=1,'Sjekkliste noter'!N16,"") -> 
A3: ='Sjekkliste noter'!A20 -> 4 | B3: =IF('Sjekkliste noter'!J20<>"",1,0) -> 0 | C3: 0 | D3: =IF($C3=1,'Sjekkliste noter'!A20,"") ->  | E3: =IF($C3=1,'Sjekkliste noter'!B20,"") ->  | G3: =IF($C3=1,'Sjekkliste noter'!N20,"") -> 
A4: ='Sjekkliste noter'!A21 -> 5 | B4: =IF('Sjekkliste noter'!J21<>"",1,0) -> 0 | C4: 0 | D4: =IF($C4=1,'Sjekkliste noter'!A21,"") ->  | E4: =IF($C4=1,'Sjekkliste noter'!B21,"") ->  | G4: =IF($C4=1,'Sjekkliste noter'!N21,"") -> 
A5: ='Sjekkliste noter'!A22 -> 6 | B5: =IF('Sjekkliste noter'!J22<>"",1,0) -> 0 | C5: 0 | D5: =IF($C5=1,'Sjekkliste noter'!A22,"") ->  | E5: =IF($C5=1,'Sjekkliste noter'!B22,"") ->  | G5: =IF($C5=1,'Sjekkliste noter'!N22,"") -> 
A6: ='Sjekkliste noter'!A23 -> 7 | B6: =IF('Sjekkliste noter'!J23<>"",1,0) -> 0 | C6: 0 | D6: =IF($C6=1,'Sjekkliste noter'!A23,"") ->  | E6: =IF($C6=1,'Sjekkliste noter'!B23,"") ->  | G6: =IF($C6=1,'Sjekkliste noter'!N23,"") -> 
A7: ='Sjekkliste noter'!A24 -> 8 | B7: =IF('Sjekkliste noter'!J24<>"",1,0) -> 0 | C7: 0 | D7: =IF($C7=1,'Sjekkliste noter'!A24,"") ->  | E7: =IF($C7=1,'Sjekkliste noter'!B24,"") ->  | G7: =IF($C7=1,'Sjekkliste noter'!N24,"") -> 
A8: ='Sjekkliste noter'!A25 -> 9 | B8: =IF('Sjekkliste noter'!J25<>"",1,0) -> 0 | C8: 0 | D8: =IF($C8=1,'Sjekkliste noter'!A25,"") ->  | E8: =IF($C8=1,'Sjekkliste noter'!B25,"") ->  | G8: =IF($C8=1,'Sjekkliste noter'!N25,"") -> 
A9: ='Sjekkliste noter'!A26 -> 10 | B9: =IF('Sjekkliste noter'!J26<>"",1,0) -> 0 | C9: 0 | D9: =IF($C9=1,'Sjekkliste noter'!A26,"") ->  | E9: =IF($C9=1,'Sjekkliste noter'!B26,"") ->  | G9: =IF($C9=1,'Sjekkliste noter'!N26,"") -> 
A10: ='Sjekkliste noter'!A27 -> 11 | B10: =IF('Sjekkliste noter'!J27<>"",1,0) -> 0 | C10: 0 | D10: =IF($C10=1,'Sjekkliste noter'!A27,"") ->  | E10: =IF($C10=1,'Sjekkliste noter'!B27,"") ->  | G10: =IF($C10=1,'Sjekkliste noter'!N27,"") -> 
A11: ='Sjekkliste noter'!A29 -> 12 | B11: =IF('Sjekkliste noter'!J29<>"",1,0) -> 0 | C11: 0 | D11: =IF($C11=1,'Sjekkliste noter'!A29,"") ->  | E11: =IF($C11=1,'Sjekkliste noter'!B29,"") ->  | G11: =IF($C11=1,'Sjekkliste noter'!N29,"") -> 
A12: ='Sjekkliste noter'!A31 -> 13 | B12: =IF('Sjekkliste noter'!J31<>"",1,0) -> 0 | C12: 0 | D12: =IF($C12=1,'Sjekkliste noter'!A31,"") ->  | E12: =IF($C12=1,'Sjekkliste noter'!B31,"") ->  | G12: =IF($C12=1,'Sjekkliste noter'!N31,"") -> 
A13: ='Sjekkliste noter'!A34 -> 14 | B13: =IF('Sjekkliste noter'!J34<>"",1,0) -> 0 | C13: 0 | D13: =IF($C13=1,'Sjekkliste noter'!A34,"") ->  | E13: =IF($C13=1,'Sjekkliste noter'!B34,"") ->  | G13: =IF($C13=1,'Sjekkliste noter'!N34,"") -> 
A14: ='Sjekkliste noter'!A35 -> 15 | B14: =IF('Sjekkliste noter'!J35<>"",1,0) -> 0 | C14: 0 | D14: =IF($C14=1,'Sjekkliste noter'!A35,"") ->  | E14: =IF($C14=1,'Sjekkliste noter'!B35,"") ->  | G14: =IF($C14=1,'Sjekkliste noter'!N35,"") -> 
A15: ='Sjekkliste noter'!A38 -> 17 | B15: =IF('Sjekkliste noter'!J38<>"",1,0) -> 0 | C15: 0 | D15: =IF($C15=1,'Sjekkliste noter'!A38,"") ->  | E15: =IF($C15=1,'Sjekkliste noter'!B38,"") ->  | G15: =IF($C15=1,'Sjekkliste noter'!N38,"") -> 
A16: ='Sjekkliste noter'!A39 -> 18 | B16: =IF('Sjekkliste noter'!J39<>"",1,0) -> 0 | C16: 0 | D16: =IF($C16=1,'Sjekkliste noter'!A39,"") ->  | E16: =IF($C16=1,'Sjekkliste noter'!B39,"") ->  | G16: =IF($C16=1,'Sjekkliste noter'!N39,"") -> 
A17: ='Sjekkliste noter'!A40 -> 19 | B17: =IF('Sjekkliste noter'!J40<>"",1,0) -> 0 | C17: 0 | D17: =IF($C17=1,'Sjekkliste noter'!A40,"") ->  | E17: =IF($C17=1,'Sjekkliste noter'!B40,"") ->  | G17: =IF($C17=1,'Sjekkliste noter'!N40,"") -> 
A18: ='Sjekkliste noter'!A42 -> 20 | B18: =IF('Sjekkliste noter'!J42<>"",1,0) -> 0 | C18: 0 | D18: =IF($C18=1,'Sjekkliste noter'!A42,"") ->  | E18: =IF($C18=1,'Sjekkliste noter'!B42,"") ->  | G18: =IF($C18=1,'Sjekkliste noter'!N42,"") -> 
A19: ='Sjekkliste noter'!A44 -> 21 | B19: =IF('Sjekkliste noter'!J44<>"",1,0) -> 0 | C19: 0 | D19: =IF($C19=1,'Sjekkliste noter'!A44,"") ->  | E19: =IF($C19=1,'Sjekkliste noter'!B44,"") ->  | G19: =IF($C19=1,'Sjekkliste noter'!N44,"") -> 
A20: ='Sjekkliste noter'!A45 -> 22 | B20: =IF('Sjekkliste noter'!J45<>"",1,0) -> 0 | C20: 0 | D20: =IF($C20=1,'Sjekkliste noter'!A45,"") ->  | E20: =IF($C20=1,'Sjekkliste noter'!B45,"") ->  | G20: =IF($C20=1,'Sjekkliste noter'!N45,"") -> 
A21: ='Sjekkliste noter'!A46 -> 23 | B21: =IF('Sjekkliste noter'!J46<>"",1,0) -> 0 | C21: 0 | D21: =IF($C21=1,'Sjekkliste noter'!A46,"") ->  | E21: =IF($C21=1,'Sjekkliste noter'!B46,"") ->  | G21: =IF($C21=1,'Sjekkliste noter'!N46,"") -> 
A22: ='Sjekkliste noter'!A47 -> 24 | B22: =IF('Sjekkliste noter'!J47<>"",1,0) -> 0 | C22: 0 | D22: =IF($C22=1,'Sjekkliste noter'!A47,"") ->  | E22: =IF($C22=1,'Sjekkliste noter'!B47,"") ->  | G22: =IF($C22=1,'Sjekkliste noter'!N47,"") -> 
A23: ='Sjekkliste noter'!A48 -> 25 | B23: =IF('Sjekkliste noter'!J48<>"",1,0) -> 0 | C23: 0 | D23: =IF($C23=1,'Sjekkliste noter'!A48,"") ->  | E23: =IF($C23=1,'Sjekkliste noter'!B48,"") ->  | G23: =IF($C23=1,'Sjekkliste noter'!N48,"") -> 
A24: ='Sjekkliste noter'!A49 -> 26 | B24: =IF('Sjekkliste noter'!J49<>"",1,0) -> 0 | C24: 0 | D24: =IF($C24=1,'Sjekkliste noter'!A49,"") ->  | E24: =IF($C24=1,'Sjekkliste noter'!B49,"") ->  | G24: =IF($C24=1,'Sjekkliste noter'!N49,"") -> 
A25: ='Sjekkliste noter'!A52 -> 27 | B25: =IF('Sjekkliste noter'!J52<>"",1,0) -> 0 | C25: 0 | D25: =IF($C25=1,'Sjekkliste noter'!A52,"") ->  | E25: =IF($C25=1,'Sjekkliste noter'!B52,"") ->  | G25: =IF($C25=1,'Sjekkliste noter'!N52,"") -> 
A26: ='Sjekkliste noter'!A53 -> 28 | B26: =IF('Sjekkliste noter'!J53<>"",1,0) -> 0 | C26: 0 | D26: =IF($C26=1,'Sjekkliste noter'!A53,"") ->  | E26: =IF($C26=1,'Sjekkliste noter'!B53,"") ->  | G26: =IF($C26=1,'Sjekkliste noter'!N53,"") -> 
A27: ='Sjekkliste noter'!A54 -> 29 | B27: =IF('Sjekkliste noter'!J54<>"",1,0) -> 0 | C27: 0 | D27: =IF($C27=1,'Sjekkliste noter'!A54,"") ->  | E27: =IF($C27=1,'Sjekkliste noter'!B54,"") ->  | G27: =IF($C27=1,'Sjekkliste noter'!N54,"") -> 
A28: ='Sjekkliste noter'!A55 -> 30 | B28: =IF('Sjekkliste noter'!J55<>"",1,0) -> 0 | C28: 0 | D28: =IF($C28=1,'Sjekkliste noter'!A55,"") ->  | E28: =IF($C28=1,'Sjekkliste noter'!B55,"") ->  | G28: =IF($C28=1,'Sjekkliste noter'!N55,"") -> 
A29: ='Sjekkliste noter'!A56 -> 31 | B29: =IF('Sjekkliste noter'!J56<>"",1,0) -> 0 | C29: 0 | D29: =IF($C29=1,'Sjekkliste noter'!A56,"") ->  | E29: =IF($C29=1,'Sjekkliste noter'!B56,"") ->  | G29: =IF($C29=1,'Sjekkliste noter'!N56,"") -> 
A30: ='Sjekkliste noter'!A57 -> 32 | B30: =IF('Sjekkliste noter'!J57<>"",1,0) -> 0 | C30: 0 | D30: =IF($C30=1,'Sjekkliste noter'!A57,"") ->  | E30: =IF($C30=1,'Sjekkliste noter'!B57,"") ->  | G30: =IF($C30=1,'Sjekkliste noter'!N57,"") -> 
A31: ='Sjekkliste noter'!A58 -> 33 | B31: =IF('Sjekkliste noter'!J58<>"",1,0) -> 0 | C31: 0 | D31: =IF($C31=1,'Sjekkliste noter'!A58,"") ->  | E31: =IF($C31=1,'Sjekkliste noter'!B58,"") ->  | G31: =IF($C31=1,'Sjekkliste noter'!N58,"") -> 
A32: ='Sjekkliste noter'!A60 -> 34 | B32: =IF('Sjekkliste noter'!J60<>"",1,0) -> 0 | C32: 0 | D32: =IF($C32=1,'Sjekkliste noter'!A60,"") ->  | E32: =IF($C32=1,'Sjekkliste noter'!B60,"") ->  | G32: =IF($C32=1,'Sjekkliste noter'!N60,"") -> 
A33: ='Sjekkliste noter'!A62 -> 35 | B33: =IF('Sjekkliste noter'!J62<>"",1,0) -> 0 | C33: 0 | D33: =IF($C33=1,'Sjekkliste noter'!A62,"") ->  | E33: =IF($C33=1,'Sjekkliste noter'!B62,"") ->  | G33: =IF($C33=1,'Sjekkliste noter'!N62,"") -> 
A34: ='Sjekkliste noter'!A64 -> 36 | B34: =IF('Sjekkliste noter'!J64<>"",1,0) -> 0 | C34: =SUM(B34:B34) -> 0 | D34: =IF($C34=1,'Sjekkliste noter'!A64,"") ->  | E34: =IF($C34=1,'Sjekkliste noter'!B64,"") ->  | G34: =IF($C34=1,'Sjekkliste noter'!N64,"") -> 
A35: ='Sjekkliste noter'!A65 -> 37 | B35: =IF('Sjekkliste noter'!J65<>"",1,0) -> 0 | C35: 0 | D35: =IF($C35=1,'Sjekkliste noter'!A65,"") ->  | E35: =IF($C35=1,'Sjekkliste noter'!B65,"") ->  | G35: =IF($C35=1,'Sjekkliste noter'!N65,"") -> 
A36: ='Sjekkliste noter'!A66 -> 38 | B36: =IF('Sjekkliste noter'!J66<>"",1,0) -> 0 | C36: 0 | D36: =IF($C36=1,'Sjekkliste noter'!A66,"") ->  | E36: =IF($C36=1,'Sjekkliste noter'!B66,"") ->  | G36: =IF($C36=1,'Sjekkliste noter'!N66,"") -> 
A37: ='Sjekkliste noter'!A67 -> 39 | B37: =IF('Sjekkliste noter'!J67<>"",1,0) -> 0 | C37: 0 | D37: =IF($C37=1,'Sjekkliste noter'!A67,"") ->  | E37: =IF($C37=1,'Sjekkliste noter'!B67,"") ->  | G37: =IF($C37=1,'Sjekkliste noter'!N67,"") -> 
A38: ='Sjekkliste noter'!A73 -> 43 | B38: =IF('Sjekkliste noter'!J73<>"",1,0) -> 0 | C38: 0 | D38: =IF($C38=1,'Sjekkliste noter'!A73,"") ->  | E38: =IF($C38=1,'Sjekkliste noter'!B73,"") ->  | G38: =IF($C38=1,'Sjekkliste noter'!N73,"") -> 
A39: ='Sjekkliste noter'!A75 -> 44 | B39: =IF('Sjekkliste noter'!J75<>"",1,0) -> 0 | C39: 0 | D39: =IF($C39=1,'Sjekkliste noter'!A75,"") ->  | E39: =IF($C39=1,'Sjekkliste noter'!B75,"") ->  | G39: =IF($C39=1,'Sjekkliste noter'!N75,"") -> 
A40: ='Sjekkliste noter'!A76 -> 45 | B40: =IF('Sjekkliste noter'!J76<>"",1,0) -> 0 | C40: 0 | D40: =IF($C40=1,'Sjekkliste noter'!A76,"") ->  | E40: =IF($C40=1,'Sjekkliste noter'!B76,"") ->  | G40: =IF($C40=1,'Sjekkliste noter'!N76,"") -> 
A41: ='Sjekkliste noter'!A81 -> 47 | B41: =IF('Sjekkliste noter'!J81<>"",1,0) -> 0 | C41: 0 | D41: =IF($C41=1,'Sjekkliste noter'!A81,"") ->  | E41: =IF($C41=1,'Sjekkliste noter'!B81,"") ->  | G41: =IF($C41=1,'Sjekkliste noter'!N81,"") -> 
A42: ='Sjekkliste noter'!A82 -> 48 | B42: =IF('Sjekkliste noter'!J82<>"",1,0) -> 0 | C42: 0 | D42: =IF($C42=1,'Sjekkliste noter'!A82,"") ->  | E42: =IF($C42=1,'Sjekkliste noter'!B82,"") ->  | G42: =IF($C42=1,'Sjekkliste noter'!N82,"") -> 
A43: ='Sjekkliste noter'!A83 -> 49 | B43: =IF('Sjekkliste noter'!J83<>"",1,0) -> 0 | C43: 0 | D43: =IF($C43=1,'Sjekkliste noter'!A83,"") ->  | E43: =IF($C43=1,'Sjekkliste noter'!B83,"") ->  | G43: =IF($C43=1,'Sjekkliste noter'!N83,"") -> 
A44: ='Sjekkliste noter'!A85 -> 50 | B44: =IF('Sjekkliste noter'!J85<>"",1,0) -> 0 | C44: 0 | D44: =IF($C44=1,'Sjekkliste noter'!A85,"") ->  | E44: =IF($C44=1,'Sjekkliste noter'!B85,"") ->  | G44: =IF($C44=1,'Sjekkliste noter'!N85,"") -> 
A45: ='Sjekkliste noter'!A86 -> 51 | B45: =IF('Sjekkliste noter'!J86<>"",1,0) -> 0 | C45: 0 | D45: =IF($C45=1,'Sjekkliste noter'!A86,"") ->  | E45: =IF($C45=1,'Sjekkliste noter'!B86,"") ->  | G45: =IF($C45=1,'Sjekkliste noter'!N86,"") -> 
A46: ='Sjekkliste noter'!A88 -> 52 | B46: =IF('Sjekkliste noter'!J88<>"",1,0) -> 0 | C46: 0 | D46: =IF($C46=1,'Sjekkliste noter'!A88,"") ->  | E46: =IF($C46=1,'Sjekkliste noter'!B88,"") ->  | G46: =IF($C46=1,'Sjekkliste noter'!N88,"") -> 
A47: ='Sjekkliste noter'!A90 -> 53 | B47: =IF('Sjekkliste noter'!J90<>"",1,0) -> 0 | C47: 0 | D47: =IF($C47=1,'Sjekkliste noter'!A90,"") ->  | E47: =IF($C47=1,'Sjekkliste noter'!B90,"") ->  | G47: =IF($C47=1,'Sjekkliste noter'!N90,"") -> 
A48: ='Sjekkliste noter'!A93 -> 54 | B48: =IF('Sjekkliste noter'!J93<>"",1,0) -> 0 | C48: 0 | D48: =IF($C48=1,'Sjekkliste noter'!A93,"") ->  | E48: =IF($C48=1,'Sjekkliste noter'!B93,"") ->  | G48: =IF($C48=1,'Sjekkliste noter'!N93,"") -> 
A49: ='Sjekkliste noter'!A94 -> 55 | B49: =IF('Sjekkliste noter'!J94<>"",1,0) -> 0 | C49: 0 | D49: =IF($C49=1,'Sjekkliste noter'!A94,"") ->  | E49: =IF($C49=1,'Sjekkliste noter'!B94,"") ->  | G49: =IF($C49=1,'Sjekkliste noter'!N94,"") -> 
A50: ='Sjekkliste noter'!A95 -> 56 | B50: =IF('Sjekkliste noter'!J95<>"",1,0) -> 0 | C50: 0 | D50: =IF($C50=1,'Sjekkliste noter'!A95,"") ->  | E50: =IF($C50=1,'Sjekkliste noter'!B95,"") ->  | G50: =IF($C50=1,'Sjekkliste noter'!N95,"") -> 
A51: ='Sjekkliste noter'!A97 -> 57 | B51: =IF('Sjekkliste noter'!J97<>"",1,0) -> 0 | C51: 0 | D51: =IF($C51=1,'Sjekkliste noter'!A97,"") ->  | E51: =IF($C51=1,'Sjekkliste noter'!B97,"") ->  | G51: =IF($C51=1,'Sjekkliste noter'!N97,"") -> 
A52: ='Sjekkliste noter'!A99 -> 58 | B52: =IF('Sjekkliste noter'!J99<>"",1,0) -> 0 | C52: 0 | D52: =IF($C52=1,'Sjekkliste noter'!A99,"") ->  | E52: =IF($C52=1,'Sjekkliste noter'!B99,"") ->  | G52: =IF($C52=1,'Sjekkliste noter'!N99,"") -> 
A53: ='Sjekkliste noter'!A102 -> 59 | B53: =IF('Sjekkliste noter'!J102<>"",1,0) -> 0 | C53: 0 | D53: =IF($C53=1,'Sjekkliste noter'!A102,"") ->  | E53: =IF($C53=1,'Sjekkliste noter'!B102,"") ->  | G53: =IF($C53=1,'Sjekkliste noter'!N102,"") -> 
A54: ='Sjekkliste noter'!A103 -> 60 | B54: =IF('Sjekkliste noter'!J103<>"",1,0) -> 0 | C54: 0 | D54: =IF($C54=1,'Sjekkliste noter'!A103,"") ->  | E54: =IF($C54=1,'Sjekkliste noter'!B103,"") ->  | G54: =IF($C54=1,'Sjekkliste noter'!N103,"") -> 
A55: ='Sjekkliste noter'!A104 -> 61 | B55: =IF('Sjekkliste noter'!J104<>"",1,0) -> 0 | C55: 0 | D55: =IF($C55=1,'Sjekkliste noter'!A104,"") ->  | E55: =IF($C55=1,'Sjekkliste noter'!B104,"") ->  | G55: =IF($C55=1,'Sjekkliste noter'!N104,"") -> 
A56: ='Sjekkliste noter'!A107 -> 62 | B56: =IF('Sjekkliste noter'!J107<>"",1,0) -> 0 | C56: 0 | D56: =IF($C56=1,'Sjekkliste noter'!A107,"") ->  | E56: =IF($C56=1,'Sjekkliste noter'!B107,"") ->  | G56: =IF($C56=1,'Sjekkliste noter'!N107,"") -> 
A57: ='Sjekkliste noter'!A108 -> 63 | B57: =IF('Sjekkliste noter'!J108<>"",1,0) -> 0 | C57: 0 | D57: =IF($C57=1,'Sjekkliste noter'!A108,"") ->  | E57: =IF($C57=1,'Sjekkliste noter'!B108,"") ->  | G57: =IF($C57=1,'Sjekkliste noter'!N108,"") -> 
A58: ='Sjekkliste noter'!A111 -> 64 | B58: =IF('Sjekkliste noter'!J111<>"",1,0) -> 0 | C58: 0 | D58: =IF($C58=1,'Sjekkliste noter'!A111,"") ->  | E58: =IF($C58=1,'Sjekkliste noter'!B111,"") ->  | G58: =IF($C58=1,'Sjekkliste noter'!N111,"") -> 
A59: ='Sjekkliste noter'!A113 -> 65 | B59: =IF('Sjekkliste noter'!J113<>"",1,0) -> 0 | C59: 0 | D59: =IF($C59=1,'Sjekkliste noter'!A113,"") ->  | E59: =IF($C59=1,'Sjekkliste noter'!B113,"") ->  | G59: =IF($C59=1,'Sjekkliste noter'!N113,"") -> 
A60: ='Sjekkliste noter'!A115 -> 66 | B60: =IF('Sjekkliste noter'!J115<>"",1,0) -> 0 | C60: 0 | D60: =IF($C60=1,'Sjekkliste noter'!A115,"") ->  | E60: =IF($C60=1,'Sjekkliste noter'!B115,"") ->  | G60: =IF($C60=1,'Sjekkliste noter'!N115,"") -> 
A61: ='Sjekkliste noter'!A116 -> 67 | B61: =IF('Sjekkliste noter'!J116<>"",1,0) -> 0 | C61: 0 | D61: =IF($C61=1,'Sjekkliste noter'!A116,"") ->  | E61: =IF($C61=1,'Sjekkliste noter'!B116,"") ->  | G61: =IF($C61=1,'Sjekkliste noter'!N116,"") -> 
A62: ='Sjekkliste noter'!A117 -> 68 | B62: =IF('Sjekkliste noter'!J117<>"",1,0) -> 0 | C62: 0 | D62: =IF($C62=1,'Sjekkliste noter'!A117,"") ->  | E62: =IF($C62=1,'Sjekkliste noter'!B117,"") ->  | G62: =IF($C62=1,'Sjekkliste noter'!N117,"") -> 
A63: ='Sjekkliste noter'!A118 -> 69 | B63: =IF('Sjekkliste noter'!J118<>"",1,0) -> 0 | C63: 0 | D63: =IF($C63=1,'Sjekkliste noter'!A118,"") ->  | E63: =IF($C63=1,'Sjekkliste noter'!B118,"") ->  | G63: =IF($C63=1,'Sjekkliste noter'!N118,"") -> 
A64: ='Sjekkliste noter'!A120 -> 70 | B64: =IF('Sjekkliste noter'!J120<>"",1,0) -> 0 | C64: 0 | D64: =IF($C64=1,'Sjekkliste noter'!A120,"") ->  | E64: =IF($C64=1,'Sjekkliste noter'!B120,"") ->  | G64: =IF($C64=1,'Sjekkliste noter'!N120,"") -> 
A65: ='Sjekkliste noter'!A122 -> 71 | B65: =IF('Sjekkliste noter'!J122<>"",1,0) -> 0 | C65: 0 | D65: =IF($C65=1,'Sjekkliste noter'!A122,"") ->  | E65: =IF($C65=1,'Sjekkliste noter'!B122,"") ->  | G65: =IF($C65=1,'Sjekkliste noter'!N122,"") -> 
A66: ='Sjekkliste noter'!A124 -> 72 | B66: =IF('Sjekkliste noter'!J124<>"",1,0) -> 0 | C66: =SUM(B66:B66) -> 0 | D66: =IF($C66=1,'Sjekkliste noter'!A124,"") ->  | E66: =IF($C66=1,'Sjekkliste noter'!B124,"") ->  | G66: =IF($C66=1,'Sjekkliste noter'!N124,"") -> 
A67: ='Sjekkliste noter'!A129 -> 73 | B67: =IF('Sjekkliste noter'!J129<>"",1,0) -> 0 | C67: 0 | D67: =IF($C67=1,'Sjekkliste noter'!A129,"") ->  | E67: =IF($C67=1,'Sjekkliste noter'!B129,"") ->  | G67: =IF($C67=1,'Sjekkliste noter'!N129,"") -> 
A68: ='Sjekkliste noter'!A133 -> 74 | B68: =IF('Sjekkliste noter'!J133<>"",1,0) -> 0 | C68: 0 | D68: =IF($C68=1,'Sjekkliste noter'!A133,"") ->  | E68: =IF($C68=1,'Sjekkliste noter'!B133,"") ->  | G68: =IF($C68=1,'Sjekkliste noter'!N133,"") -> 
A69: ='Sjekkliste noter'!A134 -> 75 | B69: =IF('Sjekkliste noter'!J134<>"",1,0) -> 0 | C69: 0 | D69: =IF($C69=1,'Sjekkliste noter'!A134,"") ->  | E69: =IF($C69=1,'Sjekkliste noter'!B134,"") ->  | G69: =IF($C69=1,'Sjekkliste noter'!N134,"") -> 
A70: ='Sjekkliste noter'!A135 -> 76 | B70: =IF('Sjekkliste noter'!J135<>"",1,0) -> 0 | C70: 0 | D70: =IF($C70=1,'Sjekkliste noter'!A135,"") ->  | E70: =IF($C70=1,'Sjekkliste noter'!B135,"") ->  | G70: =IF($C70=1,'Sjekkliste noter'!N135,"") -> 
A71: ='Sjekkliste noter'!A137 -> 77 | B71: =IF('Sjekkliste noter'!J137<>"",1,0) -> 0 | C71: 0 | D71: =IF($C71=1,'Sjekkliste noter'!A137,"") ->  | E71: =IF($C71=1,'Sjekkliste noter'!B137,"") ->  | G71: =IF($C71=1,'Sjekkliste noter'!N137,"") -> 
A72: ='Sjekkliste noter'!A141 -> 78 | B72: =IF('Sjekkliste noter'!J141<>"",1,0) -> 0 | C72: 0 | D72: =IF($C72=1,'Sjekkliste noter'!A141,"") ->  | E72: =IF($C72=1,'Sjekkliste noter'!B141,"") ->  | G72: =IF($C72=1,'Sjekkliste noter'!N141,"") -> 
A73: ='Sjekkliste noter'!A144 -> 79 | B73: =IF('Sjekkliste noter'!J144<>"",1,0) -> 0 | C73: 0 | D73: =IF($C73=1,'Sjekkliste noter'!A144,"") ->  | E73: =IF($C73=1,'Sjekkliste noter'!B144,"") ->  | G73: =IF($C73=1,'Sjekkliste noter'!N144,"") -> 
A74: ='Sjekkliste noter'!A147 -> 80 | B74: =IF('Sjekkliste noter'!J147<>"",1,0) -> 0 | C74: 0 | D74: =IF($C74=1,'Sjekkliste noter'!A147,"") ->  | E74: =IF($C74=1,'Sjekkliste noter'!B147,"") ->  | G74: =IF($C74=1,'Sjekkliste noter'!N147,"") -> 
A75: ='Sjekkliste noter'!A148 -> 81 | B75: =IF('Sjekkliste noter'!J148<>"",1,0) -> 0 | C75: 0 | D75: =IF($C75=1,'Sjekkliste noter'!A148,"") ->  | E75: =IF($C75=1,'Sjekkliste noter'!B148,"") ->  | G75: =IF($C75=1,'Sjekkliste noter'!N148,"") -> 
A76: ='Sjekkliste noter'!A149 -> 82 | B76: =IF('Sjekkliste noter'!J149<>"",1,0) -> 0 | C76: 0 | D76: =IF($C76=1,'Sjekkliste noter'!A149,"") ->  | E76: =IF($C76=1,'Sjekkliste noter'!B149,"") ->  | G76: =IF($C76=1,'Sjekkliste noter'!N149,"") -> 
A77: ='Sjekkliste noter'!A151 -> 83 | B77: =IF('Sjekkliste noter'!J151<>"",1,0) -> 0 | C77: 0 | D77: =IF($C77=1,'Sjekkliste noter'!A151,"") ->  | E77: =IF($C77=1,'Sjekkliste noter'!B151,"") ->  | G77: =IF($C77=1,'Sjekkliste noter'!N151,"") -> 
A78: ='Sjekkliste noter'!A152 -> 84 | B78: =IF('Sjekkliste noter'!J152<>"",1,0) -> 0 | C78: 0 | D78: =IF($C78=1,'Sjekkliste noter'!A152,"") ->  | E78: =IF($C78=1,'Sjekkliste noter'!B152,"") ->  | G78: =IF($C78=1,'Sjekkliste noter'!N152,"") -> 
A79: ='Sjekkliste noter'!A153 -> 85 | B79: =IF('Sjekkliste noter'!J153<>"",1,0) -> 0 | C79: 0 | D79: =IF($C79=1,'Sjekkliste noter'!A153,"") ->  | E79: =IF($C79=1,'Sjekkliste noter'!B153,"") ->  | G79: =IF($C79=1,'Sjekkliste noter'!N153,"") -> 
A80: ='Sjekkliste noter'!A160 -> 87 | B80: =IF('Sjekkliste noter'!J160<>"",1,0) -> 0 | C80: 0 | D80: =IF($C80=1,'Sjekkliste noter'!A160,"") ->  | E80: =IF($C80=1,'Sjekkliste noter'!B160,"") ->  | G80: =IF($C80=1,'Sjekkliste noter'!N160,"") -> 
A81: ='Sjekkliste noter'!A161 -> 88 | B81: =IF('Sjekkliste noter'!J161<>"",1,0) -> 0 | C81: 0 | D81: =IF($C81=1,'Sjekkliste noter'!A161,"") ->  | E81: =IF($C81=1,'Sjekkliste noter'!B161,"") ->  | G81: =IF($C81=1,'Sjekkliste noter'!N161,"") -> 
A82: ='Sjekkliste noter'!A162 -> 89 | B82: =IF('Sjekkliste noter'!J162<>"",1,0) -> 0 | C82: 0 | D82: =IF($C82=1,'Sjekkliste noter'!A162,"") ->  | E82: =IF($C82=1,'Sjekkliste noter'!B162,"") ->  | G82: =IF($C82=1,'Sjekkliste noter'!N162,"") -> 
A83: ='Sjekkliste noter'!A163 -> 90 | B83: =IF('Sjekkliste noter'!J163<>"",1,0) -> 0 | C83: 0 | D83: =IF($C83=1,'Sjekkliste noter'!A163,"") ->  | E83: =IF($C83=1,'Sjekkliste noter'!B163,"") ->  | G83: =IF($C83=1,'Sjekkliste noter'!N163,"") -> 
A84: ='Sjekkliste noter'!A167 -> 91 | B84: =IF('Sjekkliste noter'!J167<>"",1,0) -> 0 | C84: 0 | D84: =IF($C84=1,'Sjekkliste noter'!A167,"") ->  | E84: =IF($C84=1,'Sjekkliste noter'!B167,"") ->  | G84: =IF($C84=1,'Sjekkliste noter'!N167,"") -> 
A85: ='Sjekkliste noter'!A168 -> 92 | B85: =IF('Sjekkliste noter'!J168<>"",1,0) -> 0 | C85: 0 | D85: =IF($C85=1,'Sjekkliste noter'!A168,"") ->  | E85: =IF($C85=1,'Sjekkliste noter'!B168,"") ->  | G85: =IF($C85=1,'Sjekkliste noter'!N168,"") -> 
A86: ='Sjekkliste noter'!A169 -> 93 | B86: =IF('Sjekkliste noter'!J169<>"",1,0) -> 0 | C86: 0 | D86: =IF($C86=1,'Sjekkliste noter'!A169,"") ->  | E86: =IF($C86=1,'Sjekkliste noter'!B169,"") ->  | G86: =IF($C86=1,'Sjekkliste noter'!N169,"") -> 
A87: ='Sjekkliste noter'!A170 -> 94 | B87: =IF('Sjekkliste noter'!J170<>"",1,0) -> 0 | C87: 0 | D87: =IF($C87=1,'Sjekkliste noter'!A170,"") ->  | E87: =IF($C87=1,'Sjekkliste noter'!B170,"") ->  | G87: =IF($C87=1,'Sjekkliste noter'!N170,"") -> 
A88: ='Sjekkliste noter'!A171 -> 95 | B88: =IF('Sjekkliste noter'!J171<>"",1,0) -> 0 | C88: 0 | D88: =IF($C88=1,'Sjekkliste noter'!A171,"") ->  | E88: =IF($C88=1,'Sjekkliste noter'!B171,"") ->  | G88: =IF($C88=1,'Sjekkliste noter'!N171,"") -> 
A89: ='Sjekkliste noter'!A173 -> 96 | B89: =IF('Sjekkliste noter'!J173<>"",1,0) -> 0 | C89: 0 | D89: =IF($C89=1,'Sjekkliste noter'!A173,"") ->  | E89: =IF($C89=1,'Sjekkliste noter'!B173,"") ->  | G89: =IF($C89=1,'Sjekkliste noter'!N173,"") -> 
A90: ='Sjekkliste noter'!A174 -> 97 | B90: =IF('Sjekkliste noter'!J174<>"",1,0) -> 0 | C90: 0 | D90: =IF($C90=1,'Sjekkliste noter'!A174,"") ->  | E90: =IF($C90=1,'Sjekkliste noter'!B174,"") ->  | G90: =IF($C90=1,'Sjekkliste noter'!N174,"") -> 
A91: ='Sjekkliste noter'!A175 -> 98 | B91: =IF('Sjekkliste noter'!J175<>"",1,0) -> 0 | C91: 0 | D91: =IF($C91=1,'Sjekkliste noter'!A175,"") ->  | E91: =IF($C91=1,'Sjekkliste noter'!B175,"") ->  | G91: =IF($C91=1,'Sjekkliste noter'!N175,"") -> 
A92: ='Sjekkliste noter'!A177 -> 99 | B92: =IF('Sjekkliste noter'!J177<>"",1,0) -> 0 | C92: 0 | D92: =IF($C92=1,'Sjekkliste noter'!A177,"") ->  | E92: =IF($C92=1,'Sjekkliste noter'!B177,"") ->  | G92: =IF($C92=1,'Sjekkliste noter'!N177,"") -> 
A93: ='Sjekkliste noter'!A178 -> 100 | B93: =IF('Sjekkliste noter'!J178<>"",1,0) -> 0 | C93: 0 | D93: =IF($C93=1,'Sjekkliste noter'!A178,"") ->  | E93: =IF($C93=1,'Sjekkliste noter'!B178,"") ->  | G93: =IF($C93=1,'Sjekkliste noter'!N178,"") -> 
A94: ='Sjekkliste noter'!A179 -> 101 | B94: =IF('Sjekkliste noter'!J179<>"",1,0) -> 0 | C94: 0 | D94: =IF($C94=1,'Sjekkliste noter'!A179,"") ->  | E94: =IF($C94=1,'Sjekkliste noter'!B179,"") ->  | G94: =IF($C94=1,'Sjekkliste noter'!N179,"") -> 
A95: ='Sjekkliste noter'!A180 -> 102 | B95: =IF('Sjekkliste noter'!J180<>"",1,0) -> 0 | C95: 0 | D95: =IF($C95=1,'Sjekkliste noter'!A180,"") ->  | E95: =IF($C95=1,'Sjekkliste noter'!B180,"") ->  | G95: =IF($C95=1,'Sjekkliste noter'!N180,"") -> 
A96: ='Sjekkliste noter'!A181 -> 103 | B96: =IF('Sjekkliste noter'!J181<>"",1,0) -> 0 | C96: 0 | D96: =IF($C96=1,'Sjekkliste noter'!A181,"") ->  | E96: =IF($C96=1,'Sjekkliste noter'!B181,"") ->  | G96: =IF($C96=1,'Sjekkliste noter'!N181,"") -> 
A97: ='Sjekkliste noter'!A184 -> 104 | B97: =IF('Sjekkliste noter'!J184<>"",1,0) -> 0 | C97: 0 | D97: =IF($C97=1,'Sjekkliste noter'!A184,"") ->  | E97: =IF($C97=1,'Sjekkliste noter'!B184,"") ->  | G97: =IF($C97=1,'Sjekkliste noter'!N184,"") -> 
A98: ='Sjekkliste noter'!A189 -> 107 | B98: =IF('Sjekkliste noter'!J189<>"",1,0) -> 0 | C98: =SUM(B98:B98) -> 0 | D98: =IF($C98=1,'Sjekkliste noter'!A189,"") ->  | E98: =IF($C98=1,'Sjekkliste noter'!B189,"") ->  | G98: =IF($C98=1,'Sjekkliste noter'!N189,"") -> 
A99: ='Sjekkliste noter'!A190 -> 108 | B99: =IF('Sjekkliste noter'!J190<>"",1,0) -> 0 | C99: 0 | D99: =IF($C99=1,'Sjekkliste noter'!A190,"") ->  | E99: =IF($C99=1,'Sjekkliste noter'!B190,"") ->  | G99: =IF($C99=1,'Sjekkliste noter'!N190,"") -> 
A100: ='Sjekkliste noter'!A204 -> 119 | B100: =IF('Sjekkliste noter'!J204<>"",1,0) -> 0 | C100: 0 | D100: =IF($C100=1,'Sjekkliste noter'!A204,"") ->  | E100: =IF($C100=1,'Sjekkliste noter'!B204,"") ->  | G100: =IF($C100=1,'Sjekkliste noter'!N204,"") -> 
A101: ='Sjekkliste noter'!A206 -> 120 | B101: =IF('Sjekkliste noter'!J206<>"",1,0) -> 0 | C101: 0 | D101: =IF($C101=1,'Sjekkliste noter'!A206,"") ->  | E101: =IF($C101=1,'Sjekkliste noter'!B206,"") ->  | G101: =IF($C101=1,'Sjekkliste noter'!N206,"") -> 
A102: ='Sjekkliste noter'!A209 -> 121 | B102: =IF('Sjekkliste noter'!J209<>"",1,0) -> 0 | C102: 0 | D102: =IF($C102=1,'Sjekkliste noter'!A209,"") ->  | E102: =IF($C102=1,'Sjekkliste noter'!B209,"") ->  | G102: =IF($C102=1,'Sjekkliste noter'!N209,"") -> 
A103: ='Sjekkliste noter'!A211 -> 122 | B103: =IF('Sjekkliste noter'!J211<>"",1,0) -> 0 | C103: 0 | D103: =IF($C103=1,'Sjekkliste noter'!A211,"") ->  | E103: =IF($C103=1,'Sjekkliste noter'!B211,"") ->  | G103: =IF($C103=1,'Sjekkliste noter'!N211,"") -> 
A104: ='Sjekkliste noter'!A222 -> 125 | B104: =IF('Sjekkliste noter'!J222<>"",1,0) -> 0 | C104: 0 | D104: =IF($C104=1,'Sjekkliste noter'!A222,"") ->  | E104: =IF($C104=1,'Sjekkliste noter'!B222,"") ->  | G104: =IF($C104=1,'Sjekkliste noter'!N222,"") -> 
A105: ='Sjekkliste noter'!A233 -> 130 | B105: =IF('Sjekkliste noter'!J233<>"",1,0) -> 0 | C105: 0 | D105: =IF($C105=1,'Sjekkliste noter'!A233,"") ->  | E105: =IF($C105=1,'Sjekkliste noter'!B233,"") ->  | G105: =IF($C105=1,'Sjekkliste noter'!N233,"") -> 
A106: ='Sjekkliste noter'!A236 -> 131 | B106: =IF('Sjekkliste noter'!J236<>"",1,0) -> 0 | C106: 0 | D106: =IF($C106=1,'Sjekkliste noter'!A236,"") ->  | E106: =IF($C106=1,'Sjekkliste noter'!B236,"") ->  | G106: =IF($C106=1,'Sjekkliste noter'!N236,"") -> 
A107: ='Sjekkliste noter'!A239 -> 132 | B107: =IF('Sjekkliste noter'!J239<>"",1,0) -> 0 | C107: 0 | D107: =IF($C107=1,'Sjekkliste noter'!A239,"") ->  | E107: =IF($C107=1,'Sjekkliste noter'!B239,"") ->  | G107: =IF($C107=1,'Sjekkliste noter'!N239,"") -> 
A108: ='Sjekkliste noter'!A242 -> 133 | B108: =IF('Sjekkliste noter'!J242<>"",1,0) -> 0 | C108: 0 | D108: =IF($C108=1,'Sjekkliste noter'!A242,"") ->  | E108: =IF($C108=1,'Sjekkliste noter'!B242,"") ->  | G108: =IF($C108=1,'Sjekkliste noter'!N242,"") -> 
A109: ='Sjekkliste noter'!A244 -> 134 | B109: =IF('Sjekkliste noter'!J244<>"",1,0) -> 0 | C109: 0 | D109: =IF($C109=1,'Sjekkliste noter'!A244,"") ->  | E109: =IF($C109=1,'Sjekkliste noter'!B244,"") ->  | G109: =IF($C109=1,'Sjekkliste noter'!N244,"") -> 
A110: ='Sjekkliste noter'!A246 -> 135 | B110: =IF('Sjekkliste noter'!J246<>"",1,0) -> 0 | C110: 0 | D110: =IF($C110=1,'Sjekkliste noter'!A246,"") ->  | E110: =IF($C110=1,'Sjekkliste noter'!B246,"") ->  | G110: =IF($C110=1,'Sjekkliste noter'!N246,"") -> 
A111: ='Sjekkliste noter'!A248 -> 136 | B111: =IF('Sjekkliste noter'!J248<>"",1,0) -> 0 | C111: 0 | D111: =IF($C111=1,'Sjekkliste noter'!A248,"") ->  | E111: =IF($C111=1,'Sjekkliste noter'!B248,"") ->  | G111: =IF($C111=1,'Sjekkliste noter'!N248,"") -> 
A112: ='Sjekkliste noter'!A252 -> 137 | B112: =IF('Sjekkliste noter'!J252<>"",1,0) -> 0 | C112: 0 | D112: =IF($C112=1,'Sjekkliste noter'!A252,"") ->  | E112: =IF($C112=1,'Sjekkliste noter'!B252,"") ->  | G112: =IF($C112=1,'Sjekkliste noter'!N252,"") -> 
A113: ='Sjekkliste noter'!A254 -> 138 | B113: =IF('Sjekkliste noter'!J254<>"",1,0) -> 0 | C113: 0 | D113: =IF($C113=1,'Sjekkliste noter'!A254,"") ->  | E113: =IF($C113=1,'Sjekkliste noter'!B254,"") ->  | G113: =IF($C113=1,'Sjekkliste noter'!N254,"") -> 
A114: ='Sjekkliste noter'!A256 -> 139 | B114: =IF('Sjekkliste noter'!J256<>"",1,0) -> 0 | C114: 0 | D114: =IF($C114=1,'Sjekkliste noter'!A256,"") ->  | E114: =IF($C114=1,'Sjekkliste noter'!B256,"") ->  | G114: =IF($C114=1,'Sjekkliste noter'!N256,"") -> 
A115: ='Sjekkliste noter'!A259 -> 140 | B115: =IF('Sjekkliste noter'!J259<>"",1,0) -> 0 | C115: 0 | D115: =IF($C115=1,'Sjekkliste noter'!A259,"") ->  | E115: =IF($C115=1,'Sjekkliste noter'!B259,"") ->  | G115: =IF($C115=1,'Sjekkliste noter'!N259,"") -> 
A116: ='Sjekkliste noter'!A262 -> 141 | B116: =IF('Sjekkliste noter'!J262<>"",1,0) -> 0 | C116: 0 | D116: =IF($C116=1,'Sjekkliste noter'!A262,"") ->  | E116: =IF($C116=1,'Sjekkliste noter'!B262,"") ->  | G116: =IF($C116=1,'Sjekkliste noter'!N262,"") -> 
A117: ='Sjekkliste noter'!A266 -> 142 | B117: =IF('Sjekkliste noter'!J266<>"",1,0) -> 0 | C117: 0 | D117: =IF($C117=1,'Sjekkliste noter'!A266,"") ->  | E117: =IF($C117=1,'Sjekkliste noter'!B266,"") ->  | G117: =IF($C117=1,'Sjekkliste noter'!N266,"") -> 
A118: ='Sjekkliste noter'!A267 -> 143 | B118: =IF('Sjekkliste noter'!J267<>"",1,0) -> 0 | C118: 0 | D118: =IF($C118=1,'Sjekkliste noter'!A267,"") ->  | E118: =IF($C118=1,'Sjekkliste noter'!B267,"") ->  | G118: =IF($C118=1,'Sjekkliste noter'!N267,"") -> 
A119: ='Sjekkliste noter'!A268 -> 144 | B119: =IF('Sjekkliste noter'!J268<>"",1,0) -> 0 | C119: 0 | D119: =IF($C119=1,'Sjekkliste noter'!A268,"") ->  | E119: =IF($C119=1,'Sjekkliste noter'!B268,"") ->  | G119: =IF($C119=1,'Sjekkliste noter'!N268,"") -> 
A120: ='Sjekkliste noter'!A270 -> 145 | B120: =IF('Sjekkliste noter'!J270<>"",1,0) -> 0 | C120: 0 | D120: =IF($C120=1,'Sjekkliste noter'!A270,"") ->  | E120: =IF($C120=1,'Sjekkliste noter'!B270,"") ->  | G120: =IF($C120=1,'Sjekkliste noter'!N270,"") -> 
A121: ='Sjekkliste noter'!A271 -> 146 | B121: =IF('Sjekkliste noter'!J271<>"",1,0) -> 0 | C121: 0 | D121: =IF($C121=1,'Sjekkliste noter'!A271,"") ->  | E121: =IF($C121=1,'Sjekkliste noter'!B271,"") ->  | G121: =IF($C121=1,'Sjekkliste noter'!N271,"") -> 
A122: ='Sjekkliste noter'!A273 -> 147 | B122: =IF('Sjekkliste noter'!J273<>"",1,0) -> 0 | C122: 0 | D122: =IF($C122=1,'Sjekkliste noter'!A273,"") ->  | E122: =IF($C122=1,'Sjekkliste noter'!B273,"") ->  | G122: =IF($C122=1,'Sjekkliste noter'!N273,"") -> 
A123: ='Sjekkliste noter'!A274 -> 148 | B123: =IF('Sjekkliste noter'!J274<>"",1,0) -> 0 | C123: 0 | D123: =IF($C123=1,'Sjekkliste noter'!A274,"") ->  | E123: =IF($C123=1,'Sjekkliste noter'!B274,"") ->  | G123: =IF($C123=1,'Sjekkliste noter'!N274,"") -> 
A124: ='Sjekkliste noter'!A275 -> 149 | B124: =IF('Sjekkliste noter'!J275<>"",1,0) -> 0 | C124: 0 | D124: =IF($C124=1,'Sjekkliste noter'!A275,"") ->  | E124: =IF($C124=1,'Sjekkliste noter'!B275,"") ->  | G124: =IF($C124=1,'Sjekkliste noter'!N275,"") -> 
A125: ='Sjekkliste noter'!A279 -> 150 | B125: =IF('Sjekkliste noter'!J279<>"",1,0) -> 0 | C125: 0 | D125: =IF($C125=1,'Sjekkliste noter'!A279,"") ->  | E125: =IF($C125=1,'Sjekkliste noter'!B279,"") ->  | G125: =IF($C125=1,'Sjekkliste noter'!N279,"") -> 
A126: ='Sjekkliste noter'!A283 -> 151 | B126: =IF('Sjekkliste noter'!J283<>"",1,0) -> 0 | C126: 0 | D126: =IF($C126=1,'Sjekkliste noter'!A283,"") ->  | E126: =IF($C126=1,'Sjekkliste noter'!B283,"") ->  | G126: =IF($C126=1,'Sjekkliste noter'!N283,"") -> 
A127: ='Sjekkliste noter'!A285 -> 152 | B127: =IF('Sjekkliste noter'!J285<>"",1,0) -> 0 | C127: 0 | D127: =IF($C127=1,'Sjekkliste noter'!A285,"") ->  | E127: =IF($C127=1,'Sjekkliste noter'!B285,"") ->  | G127: =IF($C127=1,'Sjekkliste noter'!N285,"") -> 
A128: ='Sjekkliste noter'!A287 -> 153 | B128: =IF('Sjekkliste noter'!J287<>"",1,0) -> 0 | C128: 0 | D128: =IF($C128=1,'Sjekkliste noter'!A287,"") ->  | E128: =IF($C128=1,'Sjekkliste noter'!B287,"") ->  | G128: =IF($C128=1,'Sjekkliste noter'!N287,"") -> 
A129: ='Sjekkliste noter'!A290 -> 154 | B129: =IF('Sjekkliste noter'!J290<>"",1,0) -> 0 | C129: 0 | D129: =IF($C129=1,'Sjekkliste noter'!A290,"") ->  | E129: =IF($C129=1,'Sjekkliste noter'!B290,"") ->  | G129: =IF($C129=1,'Sjekkliste noter'!N290,"") -> 
A130: ='Sjekkliste noter'!A291 -> 155 | B130: =IF('Sjekkliste noter'!J291<>"",1,0) -> 0 | C130: =SUM(B130:B130) -> 0 | D130: =IF($C130=1,'Sjekkliste noter'!A291,"") ->  | E130: =IF($C130=1,'Sjekkliste noter'!B291,"") ->  | G130: =IF($C130=1,'Sjekkliste noter'!N291,"") -> 
A131: ='Sjekkliste noter'!A292 -> 156 | B131: =IF('Sjekkliste noter'!J292<>"",1,0) -> 0 | C131: 0 | D131: =IF($C131=1,'Sjekkliste noter'!A292,"") ->  | E131: =IF($C131=1,'Sjekkliste noter'!B292,"") ->  | G131: =IF($C131=1,'Sjekkliste noter'!N292,"") -> 
A132: ='Sjekkliste noter'!A293 -> 157 | B132: =IF('Sjekkliste noter'!J293<>"",1,0) -> 0 | C132: 0 | D132: =IF($C132=1,'Sjekkliste noter'!A293,"") ->  | E132: =IF($C132=1,'Sjekkliste noter'!B293,"") ->  | G132: =IF($C132=1,'Sjekkliste noter'!N293,"") -> 
A133: ='Sjekkliste noter'!#REF! ->  | B133: =IF('Sjekkliste noter'!#REF!<>"",1,0) ->  | D133: =IF($C133=1,'Sjekkliste noter'!#REF!,"") ->  | E133: =IF($C133=1,'Sjekkliste noter'!#REF!,"") ->  | G133: =IF($C133=1,'Sjekkliste noter'!#REF!,"") -> 
A134: ='Sjekkliste noter'!#REF! ->  | B134: =IF('Sjekkliste noter'!#REF!<>"",1,0) ->  | D134: =IF($C134=1,'Sjekkliste noter'!#REF!,"") ->  | E134: =IF($C134=1,'Sjekkliste noter'!#REF!,"") ->  | G134: =IF($C134=1,'Sjekkliste noter'!#REF!,"") -> 
A135: ='Sjekkliste noter'!#REF! ->  | B135: =IF('Sjekkliste noter'!#REF!<>"",1,0) ->  | D135: =IF($C135=1,'Sjekkliste noter'!#REF!,"") ->  | E135: =IF($C135=1,'Sjekkliste noter'!#REF!,"") ->  | G135: =IF($C135=1,'Sjekkliste noter'!#REF!,"") -> 
A136: ='Sjekkliste noter'!#REF! ->  | B136: =IF('Sjekkliste noter'!#REF!<>"",1,0) ->  | D136: =IF($C136=1,'Sjekkliste noter'!#REF!,"") ->  | E136: =IF($C136=1,'Sjekkliste noter'!#REF!,"") ->  | G136: =IF($C136=1,'Sjekkliste noter'!#REF!,"") -> 
A137: ='Sjekkliste noter'!#REF! ->  | B137: =IF('Sjekkliste noter'!#REF!<>"",1,0) ->  | D137: =IF($C137=1,'Sjekkliste noter'!#REF!,"") ->  | E137: =IF($C137=1,'Sjekkliste noter'!#REF!,"") ->  | G137: =IF($C137=1,'Sjekkliste noter'!#REF!,"") -> 
A138: ='Sjekkliste noter'!#REF! ->  | B138: =IF('Sjekkliste noter'!#REF!<>"",1,0) ->  | D138: =IF($C138=1,'Sjekkliste noter'!#REF!,"") ->  | E138: =IF($C138=1,'Sjekkliste noter'!#REF!,"") ->  | G138: =IF($C138=1,'Sjekkliste noter'!#REF!,"") -> 
A139: ='Sjekkliste noter'!#REF! ->  | B139: =IF('Sjekkliste noter'!#REF!<>"",1,0) ->  | D139: =IF($C139=1,'Sjekkliste noter'!#REF!,"") ->  | E139: =IF($C139=1,'Sjekkliste noter'!#REF!,"") ->  | G139: =IF($C139=1,'Sjekkliste noter'!#REF!,"") -> 
A140: ='Sjekkliste noter'!#REF! ->  | B140: =IF('Sjekkliste noter'!#REF!<>"",1,0) ->  | D140: =IF($C140=1,'Sjekkliste noter'!#REF!,"") ->  | E140: =IF($C140=1,'Sjekkliste noter'!#REF!,"") ->  | G140: =IF($C140=1,'Sjekkliste noter'!#REF!,"") -> 
A141: ='Sjekkliste noter'!#REF! ->  | B141: =IF('Sjekkliste noter'!#REF!<>"",1,0) ->  | D141: =IF($C141=1,'Sjekkliste noter'!#REF!,"") ->  | E141: =IF($C141=1,'Sjekkliste noter'!#REF!,"") ->  | G141: =IF($C141=1,'Sjekkliste noter'!#REF!,"") -> 
A142: ='Sjekkliste noter'!#REF! ->  | B142: =IF('Sjekkliste noter'!#REF!<>"",1,0) ->  | D142: =IF($C142=1,'Sjekkliste noter'!#REF!,"") ->  | E142: =IF($C142=1,'Sjekkliste noter'!#REF!,"") ->  | G142: =IF($C142=1,'Sjekkliste noter'!#REF!,"") -> 
A143: ='Sjekkliste noter'!#REF! ->  | B143: =IF('Sjekkliste noter'!#REF!<>"",1,0) ->  | D143: =IF($C143=1,'Sjekkliste noter'!#REF!,"") ->  | E143: =IF($C143=1,'Sjekkliste noter'!#REF!,"") ->  | G143: =IF($C143=1,'Sjekkliste noter'!#REF!,"") -> 
A144: ='Sjekkliste noter'!#REF! ->  | B144: =IF('Sjekkliste noter'!#REF!<>"",1,0) ->  | D144: =IF($C144=1,'Sjekkliste noter'!#REF!,"") ->  | E144: =IF($C144=1,'Sjekkliste noter'!#REF!,"") ->  | G144: =IF($C144=1,'Sjekkliste noter'!#REF!,"") -> 
A145: ='Sjekkliste noter'!#REF! ->  | B145: =IF('Sjekkliste noter'!#REF!<>"",1,0) ->  | D145: =IF($C145=1,'Sjekkliste noter'!#REF!,"") ->  | E145: =IF($C145=1,'Sjekkliste noter'!#REF!,"") ->  | G145: =IF($C145=1,'Sjekkliste noter'!#REF!,"") -> 
A146: ='Sjekkliste noter'!#REF! ->  | B146: =IF('Sjekkliste noter'!#REF!<>"",1,0) ->  | D146: =IF($C146=1,'Sjekkliste noter'!#REF!,"") ->  | E146: =IF($C146=1,'Sjekkliste noter'!#REF!,"") ->  | G146: =IF($C146=1,'Sjekkliste noter'!#REF!,"") -> 
A147: ='Sjekkliste noter'!#REF! ->  | B147: =IF('Sjekkliste noter'!#REF!<>"",1,0) ->  | D147: =IF($C147=1,'Sjekkliste noter'!#REF!,"") ->  | E147: =IF($C147=1,'Sjekkliste noter'!#REF!,"") ->  | G147: =IF($C147=1,'Sjekkliste noter'!#REF!,"") -> 
A148: ='Sjekkliste noter'!#REF! ->  | B148: =IF('Sjekkliste noter'!#REF!<>"",1,0) ->  | D148: =IF($C148=1,'Sjekkliste noter'!#REF!,"") ->  | E148: =IF($C148=1,'Sjekkliste noter'!#REF!,"") ->  | G148: =IF($C148=1,'Sjekkliste noter'!#REF!,"") -> 
A149: ='Sjekkliste noter'!#REF! ->  | B149: =IF('Sjekkliste noter'!#REF!<>"",1,0) ->  | D149: =IF($C149=1,'Sjekkliste noter'!#REF!,"") ->  | E149: =IF($C149=1,'Sjekkliste noter'!#REF!,"") ->  | G149: =IF($C149=1,'Sjekkliste noter'!#REF!,"") -> 
A150: ='Sjekkliste noter'!#REF! ->  | B150: =IF('Sjekkliste noter'!#REF!<>"",1,0) ->  | D150: =IF($C150=1,'Sjekkliste noter'!#REF!,"") ->  | E150: =IF($C150=1,'Sjekkliste noter'!#REF!,"") ->  | G150: =IF($C150=1,'Sjekkliste noter'!#REF!,"") -> 
A151: ='Sjekkliste noter'!#REF! ->  | B151: =IF('Sjekkliste noter'!#REF!<>"",1,0) ->  | D151: =IF($C151=1,'Sjekkliste noter'!#REF!,"") ->  | E151: =IF($C151=1,'Sjekkliste noter'!#REF!,"") ->  | G151: =IF($C151=1,'Sjekkliste noter'!#REF!,"") -> 
A152: ='Sjekkliste noter'!#REF! ->  | B152: =IF('Sjekkliste noter'!#REF!<>"",1,0) ->  | D152: =IF($C152=1,'Sjekkliste noter'!#REF!,"") ->  | E152: =IF($C152=1,'Sjekkliste noter'!#REF!,"") ->  | G152: =IF($C152=1,'Sjekkliste noter'!#REF!,"") -> 

Sheet N_Nei (hidden)
C1: =COUNTIF(C2:C152,"=1") -> 0 | D1: Nei-svar | E1: =+Forside!B2 -> 0 | F1: =+Forside!B3 -> 2020 | G1: Kommentarer
A2: =+'Sjekkliste noter'!A16 -> 1 | B2: =IF('Sjekkliste noter'!K16<>"",1,0) -> 0 | C2: =SUM(B2:B2) -> 0 | D2: =IF($C2=1,'Sjekkliste noter'!A16,"") ->  | E2: =IF($C2=1,'Sjekkliste noter'!B16,"") ->  | G2: =IF($C2=1,'Sjekkliste noter'!N16,"") -> 
A3: =+'Sjekkliste noter'!A20 -> 4 | B3: =IF('Sjekkliste noter'!K20<>"",1,0) -> 0 | C3: 0 | D3: =IF($C3=1,'Sjekkliste noter'!A20,"") ->  | E3: =IF($C3=1,'Sjekkliste noter'!B20,"") ->  | G3: =IF($C3=1,'Sjekkliste noter'!N20,"") -> 
A4: =+'Sjekkliste noter'!A21 -> 5 | B4: =IF('Sjekkliste noter'!K21<>"",1,0) -> 0 | C4: 0 | D4: =IF($C4=1,'Sjekkliste noter'!A21,"") ->  | E4: =IF($C4=1,'Sjekkliste noter'!B21,"") ->  | G4: =IF($C4=1,'Sjekkliste noter'!N21,"") -> 
A5: =+'Sjekkliste noter'!A22 -> 6 | B5: =IF('Sjekkliste noter'!K22<>"",1,0) -> 0 | C5: 0 | D5: =IF($C5=1,'Sjekkliste noter'!A22,"") ->  | E5: =IF($C5=1,'Sjekkliste noter'!B22,"") ->  | G5: =IF($C5=1,'Sjekkliste noter'!N22,"") -> 
A6: =+'Sjekkliste noter'!A23 -> 7 | B6: =IF('Sjekkliste noter'!K23<>"",1,0) -> 0 | C6: 0 | D6: =IF($C6=1,'Sjekkliste noter'!A23,"") ->  | E6: =IF($C6=1,'Sjekkliste noter'!B23,"") ->  | G6: =IF($C6=1,'Sjekkliste noter'!N23,"") -> 
A7: =+'Sjekkliste noter'!A24 -> 8 | B7: =IF('Sjekkliste noter'!K24<>"",1,0) -> 0 | C7: 0 | D7: =IF($C7=1,'Sjekkliste noter'!A24,"") ->  | E7: =IF($C7=1,'Sjekkliste noter'!B24,"") ->  | G7: =IF($C7=1,'Sjekkliste noter'!N24,"") -> 
A8: =+'Sjekkliste noter'!A25 -> 9 | B8: =IF('Sjekkliste noter'!K25<>"",1,0) -> 0 | C8: 0 | D8: =IF($C8=1,'Sjekkliste noter'!A25,"") ->  | E8: =IF($C8=1,'Sjekkliste noter'!B25,"") ->  | G8: =IF($C8=1,'Sjekkliste noter'!N25,"") -> 
A9: =+'Sjekkliste noter'!A26 -> 10 | B9: =IF('Sjekkliste noter'!K26<>"",1,0) -> 0 | C9: 0 | D9: =IF($C9=1,'Sjekkliste noter'!A26,"") ->  | E9: =IF($C9=1,'Sjekkliste noter'!B26,"") ->  | G9: =IF($C9=1,'Sjekkliste noter'!N26,"") -> 
A10: =+'Sjekkliste noter'!A27 -> 11 | B10: =IF('Sjekkliste noter'!K27<>"",1,0) -> 0 | C10: 0 | D10: =IF($C10=1,'Sjekkliste noter'!A27,"") ->  | E10: =IF($C10=1,'Sjekkliste noter'!B27,"") ->  | G10: =IF($C10=1,'Sjekkliste noter'!N27,"") -> 
A11: =+'Sjekkliste noter'!A29 -> 12 | B11: =IF('Sjekkliste noter'!K29<>"",1,0) -> 0 | C11: 0 | D11: =IF($C11=1,'Sjekkliste noter'!A29,"") ->  | E11: =IF($C11=1,'Sjekkliste noter'!B29,"") ->  | G11: =IF($C11=1,'Sjekkliste noter'!N29,"") -> 
A12: =+'Sjekkliste noter'!A31 -> 13 | B12: =IF('Sjekkliste noter'!K31<>"",1,0) -> 0 | C12: 0 | D12: =IF($C12=1,'Sjekkliste noter'!A31,"") ->  | E12: =IF($C12=1,'Sjekkliste noter'!B31,"") ->  | G12: =IF($C12=1,'Sjekkliste noter'!N31,"") -> 
A13: =+'Sjekkliste noter'!A34 -> 14 | B13: =IF('Sjekkliste noter'!K34<>"",1,0) -> 0 | C13: 0 | D13: =IF($C13=1,'Sjekkliste noter'!A34,"") ->  | E13: =IF($C13=1,'Sjekkliste noter'!B34,"") ->  | G13: =IF($C13=1,'Sjekkliste noter'!N34,"") -> 
A14: =+'Sjekkliste noter'!A35 -> 15 | B14: =IF('Sjekkliste noter'!K35<>"",1,0) -> 0 | C14: 0 | D14: =IF($C14=1,'Sjekkliste noter'!A35,"") ->  | E14: =IF($C14=1,'Sjekkliste noter'!B35,"") ->  | G14: =IF($C14=1,'Sjekkliste noter'!N35,"") -> 
A15: =+'Sjekkliste noter'!A38 -> 17 | B15: =IF('Sjekkliste noter'!K38<>"",1,0) -> 0 | C15: 0 | D15: =IF($C15=1,'Sjekkliste noter'!A38,"") ->  | E15: =IF($C15=1,'Sjekkliste noter'!B38,"") ->  | G15: =IF($C15=1,'Sjekkliste noter'!N38,"") -> 
A16: =+'Sjekkliste noter'!A39 -> 18 | B16: =IF('Sjekkliste noter'!K39<>"",1,0) -> 0 | C16: =SUM(B16:B16) -> 0 | D16: =IF($C16=1,'Sjekkliste noter'!A39,"") ->  | E16: =IF($C16=1,'Sjekkliste noter'!B39,"") ->  | G16: =IF($C16=1,'Sjekkliste noter'!N39,"") -> 
A17: =+'Sjekkliste noter'!A40 -> 19 | B17: =IF('Sjekkliste noter'!K40<>"",1,0) -> 0 | C17: 0 | D17: =IF($C17=1,'Sjekkliste noter'!A40,"") ->  | E17: =IF($C17=1,'Sjekkliste noter'!B40,"") ->  | G17: =IF($C17=1,'Sjekkliste noter'!N40,"") -> 
A18: =+'Sjekkliste noter'!A42 -> 20 | B18: =IF('Sjekkliste noter'!K42<>"",1,0) -> 0 | C18: 0 | D18: =IF($C18=1,'Sjekkliste noter'!A42,"") ->  | E18: =IF($C18=1,'Sjekkliste noter'!B42,"") ->  | G18: =IF($C18=1,'Sjekkliste noter'!N42,"") -> 
A19: =+'Sjekkliste noter'!A44 -> 21 | B19: =IF('Sjekkliste noter'!K44<>"",1,0) -> 0 | C19: 0 | D19: =IF($C19=1,'Sjekkliste noter'!A44,"") ->  | E19: =IF($C19=1,'Sjekkliste noter'!B44,"") ->  | G19: =IF($C19=1,'Sjekkliste noter'!N44,"") -> 
A20: =+'Sjekkliste noter'!A45 -> 22 | B20: =IF('Sjekkliste noter'!K45<>"",1,0) -> 0 | C20: 0 | D20: =IF($C20=1,'Sjekkliste noter'!A45,"") ->  | E20: =IF($C20=1,'Sjekkliste noter'!B45,"") ->  | G20: =IF($C20=1,'Sjekkliste noter'!N45,"") -> 
A21: =+'Sjekkliste noter'!A46 -> 23 | B21: =IF('Sjekkliste noter'!K46<>"",1,0) -> 0 | C21: 0 | D21: =IF($C21=1,'Sjekkliste noter'!A46,"") ->  | E21: =IF($C21=1,'Sjekkliste noter'!B46,"") ->  | G21: =IF($C21=1,'Sjekkliste noter'!N46,"") -> 
A22: =+'Sjekkliste noter'!A47 -> 24 | B22: =IF('Sjekkliste noter'!K47<>"",1,0) -> 0 | C22: 0 | D22: =IF($C22=1,'Sjekkliste noter'!A47,"") ->  | E22: =IF($C22=1,'Sjekkliste noter'!B47,"") ->  | G22: =IF($C22=1,'Sjekkliste noter'!N47,"") -> 
A23: =+'Sjekkliste noter'!A48 -> 25 | B23: =IF('Sjekkliste noter'!K48<>"",1,0) -> 0 | C23: 0 | D23: =IF($C23=1,'Sjekkliste noter'!A48,"") ->  | E23: =IF($C23=1,'Sjekkliste noter'!B48,"") ->  | G23: =IF($C23=1,'Sjekkliste noter'!N48,"") -> 
A24: =+'Sjekkliste noter'!A49 -> 26 | B24: =IF('Sjekkliste noter'!K49<>"",1,0) -> 0 | C24: 0 | D24: =IF($C24=1,'Sjekkliste noter'!A49,"") ->  | E24: =IF($C24=1,'Sjekkliste noter'!B49,"") ->  | G24: =IF($C24=1,'Sjekkliste noter'!N49,"") -> 
A25: =+'Sjekkliste noter'!A52 -> 27 | B25: =IF('Sjekkliste noter'!K52<>"",1,0) -> 0 | C25: 0 | D25: =IF($C25=1,'Sjekkliste noter'!A52,"") ->  | E25: =IF($C25=1,'Sjekkliste noter'!B52,"") ->  | G25: =IF($C25=1,'Sjekkliste noter'!N52,"") -> 
A26: =+'Sjekkliste noter'!A53 -> 28 | B26: =IF('Sjekkliste noter'!K53<>"",1,0) -> 0 | C26: 0 | D26: =IF($C26=1,'Sjekkliste noter'!A53,"") ->  | E26: =IF($C26=1,'Sjekkliste noter'!B53,"") ->  | G26: =IF($C26=1,'Sjekkliste noter'!N53,"") -> 
A27: =+'Sjekkliste noter'!A54 -> 29 | B27: =IF('Sjekkliste noter'!K54<>"",1,0) -> 0 | C27: 0 | D27: =IF($C27=1,'Sjekkliste noter'!A54,"") ->  | E27: =IF($C27=1,'Sjekkliste noter'!B54,"") ->  | G27: =IF($C27=1,'Sjekkliste noter'!N54,"") -> 
A28: =+'Sjekkliste noter'!A55 -> 30 | B28: =IF('Sjekkliste noter'!K55<>"",1,0) -> 0 | C28: 0 | D28: =IF($C28=1,'Sjekkliste noter'!A55,"") ->  | E28: =IF($C28=1,'Sjekkliste noter'!B55,"") ->  | G28: =IF($C28=1,'Sjekkliste noter'!N55,"") -> 
A29: =+'Sjekkliste noter'!A56 -> 31 | B29: =IF('Sjekkliste noter'!K56<>"",1,0) -> 0 | C29: 0 | D29: =IF($C29=1,'Sjekkliste noter'!A56,"") ->  | E29: =IF($C29=1,'Sjekkliste noter'!B56,"") ->  | G29: =IF($C29=1,'Sjekkliste noter'!N56,"") -> 
A30: =+'Sjekkliste noter'!A57 -> 32 | B30: =IF('Sjekkliste noter'!K57<>"",1,0) -> 0 | C30: 0 | D30: =IF($C30=1,'Sjekkliste noter'!A57,"") ->  | E30: =IF($C30=1,'Sjekkliste noter'!B57,"") ->  | G30: =IF($C30=1,'Sjekkliste noter'!N57,"") -> 
A31: =+'Sjekkliste noter'!A58 -> 33 | B31: =IF('Sjekkliste noter'!K58<>"",1,0) -> 0 | C31: 0 | D31: =IF($C31=1,'Sjekkliste noter'!A58,"") ->  | E31: =IF($C31=1,'Sjekkliste noter'!B58,"") ->  | G31: =IF($C31=1,'Sjekkliste noter'!N58,"") -> 
A32: =+'Sjekkliste noter'!A60 -> 34 | B32: =IF('Sjekkliste noter'!K60<>"",1,0) -> 0 | C32: 0 | D32: =IF($C32=1,'Sjekkliste noter'!A60,"") ->  | E32: =IF($C32=1,'Sjekkliste noter'!B60,"") ->  | G32: =IF($C32=1,'Sjekkliste noter'!N60,"") -> 
A33: =+'Sjekkliste noter'!A62 -> 35 | B33: =IF('Sjekkliste noter'!K62<>"",1,0) -> 0 | C33: 0 | D33: =IF($C33=1,'Sjekkliste noter'!A62,"") ->  | E33: =IF($C33=1,'Sjekkliste noter'!B62,"") ->  | G33: =IF($C33=1,'Sjekkliste noter'!N62,"") -> 
A34: =+'Sjekkliste noter'!A64 -> 36 | B34: =IF('Sjekkliste noter'!K64<>"",1,0) -> 0 | C34: 0 | D34: =IF($C34=1,'Sjekkliste noter'!A64,"") ->  | E34: =IF($C34=1,'Sjekkliste noter'!B64,"") ->  | G34: =IF($C34=1,'Sjekkliste noter'!N64,"") -> 
A35: =+'Sjekkliste noter'!A65 -> 37 | B35: =IF('Sjekkliste noter'!K65<>"",1,0) -> 0 | C35: =SUM(B35:B35) -> 0 | D35: =IF($C35=1,'Sjekkliste noter'!A65,"") ->  | E35: =IF($C35=1,'Sjekkliste noter'!B65,"") ->  | G35: =IF($C35=1,'Sjekkliste noter'!N65,"") -> 
A36: =+'Sjekkliste noter'!A66 -> 38 | B36: =IF('Sjekkliste noter'!K66<>"",1,0) -> 0 | C36: 0 | D36: =IF($C36=1,'Sjekkliste noter'!A66,"") ->  | E36: =IF($C36=1,'Sjekkliste noter'!B66,"") ->  | G36: =IF($C36=1,'Sjekkliste noter'!N66,"") -> 
A37: =+'Sjekkliste noter'!A67 -> 39 | B37: =IF('Sjekkliste noter'!K67<>"",1,0) -> 0 | C37: 0 | D37: =IF($C37=1,'Sjekkliste noter'!A67,"") ->  | E37: =IF($C37=1,'Sjekkliste noter'!B67,"") ->  | G37: =IF($C37=1,'Sjekkliste noter'!N67,"") -> 
A38: =+'Sjekkliste noter'!A73 -> 43 | B38: =IF('Sjekkliste noter'!K73<>"",1,0) -> 0 | C38: 0 | D38: =IF($C38=1,'Sjekkliste noter'!A73,"") ->  | E38: =IF($C38=1,'Sjekkliste noter'!B73,"") ->  | G38: =IF($C38=1,'Sjekkliste noter'!N73,"") -> 
A39: =+'Sjekkliste noter'!A75 -> 44 | B39: =IF('Sjekkliste noter'!K75<>"",1,0) -> 0 | C39: 0 | D39: =IF($C39=1,'Sjekkliste noter'!A75,"") ->  | E39: =IF($C39=1,'Sjekkliste noter'!B75,"") ->  | G39: =IF($C39=1,'Sjekkliste noter'!N75,"") -> 
A40: =+'Sjekkliste noter'!A76 -> 45 | B40: =IF('Sjekkliste noter'!K76<>"",1,0) -> 0 | C40: 0 | D40: =IF($C40=1,'Sjekkliste noter'!A76,"") ->  | E40: =IF($C40=1,'Sjekkliste noter'!B76,"") ->  | G40: =IF($C40=1,'Sjekkliste noter'!N76,"") -> 
A41: =+'Sjekkliste noter'!A81 -> 47 | B41: =IF('Sjekkliste noter'!K81<>"",1,0) -> 0 | C41: 0 | D41: =IF($C41=1,'Sjekkliste noter'!A81,"") ->  | E41: =IF($C41=1,'Sjekkliste noter'!B81,"") ->  | G41: =IF($C41=1,'Sjekkliste noter'!N81,"") -> 
A42: =+'Sjekkliste noter'!A82 -> 48 | B42: =IF('Sjekkliste noter'!K82<>"",1,0) -> 0 | C42: 0 | D42: =IF($C42=1,'Sjekkliste noter'!A82,"") ->  | E42: =IF($C42=1,'Sjekkliste noter'!B82,"") ->  | G42: =IF($C42=1,'Sjekkliste noter'!N82,"") -> 
A43: =+'Sjekkliste noter'!A83 -> 49 | B43: =IF('Sjekkliste noter'!K83<>"",1,0) -> 0 | C43: 0 | D43: =IF($C43=1,'Sjekkliste noter'!A83,"") ->  | E43: =IF($C43=1,'Sjekkliste noter'!B83,"") ->  | G43: =IF($C43=1,'Sjekkliste noter'!N83,"") -> 
A44: =+'Sjekkliste noter'!A85 -> 50 | B44: =IF('Sjekkliste noter'!K85<>"",1,0) -> 0 | C44: 0 | D44: =IF($C44=1,'Sjekkliste noter'!A85,"") ->  | E44: =IF($C44=1,'Sjekkliste noter'!B85,"") ->  | G44: =IF($C44=1,'Sjekkliste noter'!N85,"") -> 
A45: =+'Sjekkliste noter'!A86 -> 51 | B45: =IF('Sjekkliste noter'!K86<>"",1,0) -> 0 | C45: 0 | D45: =IF($C45=1,'Sjekkliste noter'!A86,"") ->  | E45: =IF($C45=1,'Sjekkliste noter'!B86,"") ->  | G45: =IF($C45=1,'Sjekkliste noter'!N86,"") -> 
A46: =+'Sjekkliste noter'!A88 -> 52 | B46: =IF('Sjekkliste noter'!K88<>"",1,0) -> 0 | C46: 0 | D46: =IF($C46=1,'Sjekkliste noter'!A88,"") ->  | E46: =IF($C46=1,'Sjekkliste noter'!B88,"") ->  | G46: =IF($C46=1,'Sjekkliste noter'!N88,"") -> 
A47: =+'Sjekkliste noter'!A90 -> 53 | B47: =IF('Sjekkliste noter'!K90<>"",1,0) -> 0 | C47: 0 | D47: =IF($C47=1,'Sjekkliste noter'!A90,"") ->  | E47: =IF($C47=1,'Sjekkliste noter'!B90,"") ->  | G47: =IF($C47=1,'Sjekkliste noter'!N90,"") -> 
A48: =+'Sjekkliste noter'!A93 -> 54 | B48: =IF('Sjekkliste noter'!K93<>"",1,0) -> 0 | C48: 0 | D48: =IF($C48=1,'Sjekkliste noter'!A93,"") ->  | E48: =IF($C48=1,'Sjekkliste noter'!B93,"") ->  | G48: =IF($C48=1,'Sjekkliste noter'!N93,"") -> 
A49: =+'Sjekkliste noter'!A94 -> 55 | B49: =IF('Sjekkliste noter'!K94<>"",1,0) -> 0 | C49: 0 | D49: =IF($C49=1,'Sjekkliste noter'!A94,"") ->  | E49: =IF($C49=1,'Sjekkliste noter'!B94,"") ->  | G49: =IF($C49=1,'Sjekkliste noter'!N94,"") -> 
A50: =+'Sjekkliste noter'!A95 -> 56 | B50: =IF('Sjekkliste noter'!K95<>"",1,0) -> 0 | C50: 0 | D50: =IF($C50=1,'Sjekkliste noter'!A95,"") ->  | E50: =IF($C50=1,'Sjekkliste noter'!B95,"") ->  | G50: =IF($C50=1,'Sjekkliste noter'!N95,"") -> 
A51: =+'Sjekkliste noter'!A97 -> 57 | B51: =IF('Sjekkliste noter'!K97<>"",1,0) -> 0 | C51: 0 | D51: =IF($C51=1,'Sjekkliste noter'!A97,"") ->  | E51: =IF($C51=1,'Sjekkliste noter'!B97,"") ->  | G51: =IF($C51=1,'Sjekkliste noter'!N97,"") -> 
A52: =+'Sjekkliste noter'!A99 -> 58 | B52: =IF('Sjekkliste noter'!K99<>"",1,0) -> 0 | C52: 0 | D52: =IF($C52=1,'Sjekkliste noter'!A99,"") ->  | E52: =IF($C52=1,'Sjekkliste noter'!B99,"") ->  | G52: =IF($C52=1,'Sjekkliste noter'!N99,"") -> 
A53: =+'Sjekkliste noter'!A102 -> 59 | B53: =IF('Sjekkliste noter'!K102<>"",1,0) -> 0 | C53: 0 | D53: =IF($C53=1,'Sjekkliste noter'!A102,"") ->  | E53: =IF($C53=1,'Sjekkliste noter'!B102,"") ->  | G53: =IF($C53=1,'Sjekkliste noter'!N102,"") -> 
A54: =+'Sjekkliste noter'!A103 -> 60 | B54: =IF('Sjekkliste noter'!K103<>"",1,0) -> 0 | C54: 0 | D54: =IF($C54=1,'Sjekkliste noter'!A103,"") ->  | E54: =IF($C54=1,'Sjekkliste noter'!B103,"") ->  | G54: =IF($C54=1,'Sjekkliste noter'!N103,"") -> 
A55: =+'Sjekkliste noter'!A104 -> 61 | B55: =IF('Sjekkliste noter'!K104<>"",1,0) -> 0 | C55: 0 | D55: =IF($C55=1,'Sjekkliste noter'!A104,"") ->  | E55: =IF($C55=1,'Sjekkliste noter'!B104,"") ->  | G55: =IF($C55=1,'Sjekkliste noter'!N104,"") -> 
A56: =+'Sjekkliste noter'!A107 -> 62 | B56: =IF('Sjekkliste noter'!K107<>"",1,0) -> 0 | C56: 0 | D56: =IF($C56=1,'Sjekkliste noter'!A107,"") ->  | E56: =IF($C56=1,'Sjekkliste noter'!B107,"") ->  | G56: =IF($C56=1,'Sjekkliste noter'!N107,"") -> 
A57: =+'Sjekkliste noter'!A108 -> 63 | B57: =IF('Sjekkliste noter'!K108<>"",1,0) -> 0 | C57: 0 | D57: =IF($C57=1,'Sjekkliste noter'!A108,"") ->  | E57: =IF($C57=1,'Sjekkliste noter'!B108,"") ->  | G57: =IF($C57=1,'Sjekkliste noter'!N108,"") -> 
A58: =+'Sjekkliste noter'!A111 -> 64 | B58: =IF('Sjekkliste noter'!K111<>"",1,0) -> 0 | C58: 0 | D58: =IF($C58=1,'Sjekkliste noter'!A111,"") ->  | E58: =IF($C58=1,'Sjekkliste noter'!B111,"") ->  | G58: =IF($C58=1,'Sjekkliste noter'!N111,"") -> 
A59: =+'Sjekkliste noter'!A113 -> 65 | B59: =IF('Sjekkliste noter'!K113<>"",1,0) -> 0 | C59: 0 | D59: =IF($C59=1,'Sjekkliste noter'!A113,"") ->  | E59: =IF($C59=1,'Sjekkliste noter'!B113,"") ->  | G59: =IF($C59=1,'Sjekkliste noter'!N113,"") -> 
A60: =+'Sjekkliste noter'!A115 -> 66 | B60: =IF('Sjekkliste noter'!K115<>"",1,0) -> 0 | C60: 0 | D60: =IF($C60=1,'Sjekkliste noter'!A115,"") ->  | E60: =IF($C60=1,'Sjekkliste noter'!B115,"") ->  | G60: =IF($C60=1,'Sjekkliste noter'!N115,"") -> 
A61: =+'Sjekkliste noter'!A116 -> 67 | B61: =IF('Sjekkliste noter'!K116<>"",1,0) -> 0 | C61: 0 | D61: =IF($C61=1,'Sjekkliste noter'!A116,"") ->  | E61: =IF($C61=1,'Sjekkliste noter'!B116,"") ->  | G61: =IF($C61=1,'Sjekkliste noter'!N116,"") -> 
A62: =+'Sjekkliste noter'!A117 -> 68 | B62: =IF('Sjekkliste noter'!K117<>"",1,0) -> 0 | C62: 0 | D62: =IF($C62=1,'Sjekkliste noter'!A117,"") ->  | E62: =IF($C62=1,'Sjekkliste noter'!B117,"") ->  | G62: =IF($C62=1,'Sjekkliste noter'!N117,"") -> 
A63: =+'Sjekkliste noter'!A118 -> 69 | B63: =IF('Sjekkliste noter'!K118<>"",1,0) -> 0 | C63: 0 | D63: =IF($C63=1,'Sjekkliste noter'!A118,"") ->  | E63: =IF($C63=1,'Sjekkliste noter'!B118,"") ->  | G63: =IF($C63=1,'Sjekkliste noter'!N118,"") -> 
A64: =+'Sjekkliste noter'!A120 -> 70 | B64: =IF('Sjekkliste noter'!K120<>"",1,0) -> 0 | C64: 0 | D64: =IF($C64=1,'Sjekkliste noter'!A120,"") ->  | E64: =IF($C64=1,'Sjekkliste noter'!B120,"") ->  | G64: =IF($C64=1,'Sjekkliste noter'!N120,"") -> 
A65: =+'Sjekkliste noter'!A122 -> 71 | B65: =IF('Sjekkliste noter'!K122<>"",1,0) -> 0 | C65: 0 | D65: =IF($C65=1,'Sjekkliste noter'!A122,"") ->  | E65: =IF($C65=1,'Sjekkliste noter'!B122,"") ->  | G65: =IF($C65=1,'Sjekkliste noter'!N122,"") -> 
A66: =+'Sjekkliste noter'!A124 -> 72 | B66: =IF('Sjekkliste noter'!K124<>"",1,0) -> 0 | C66: 0 | D66: =IF($C66=1,'Sjekkliste noter'!A124,"") ->  | E66: =IF($C66=1,'Sjekkliste noter'!B124,"") ->  | G66: =IF($C66=1,'Sjekkliste noter'!N124,"") -> 
A67: =+'Sjekkliste noter'!#REF! ->  | B67: =IF('Sjekkliste noter'!#REF!<>"",1,0) ->  | C67: =SUM(B67:B67) ->  | D67: =IF($C67=1,'Sjekkliste noter'!#REF!,"") ->  | E67: =IF($C67=1,'Sjekkliste noter'!#REF!,"") ->  | G67: =IF($C67=1,'Sjekkliste noter'!#REF!,"") -> 
A68: =+'Sjekkliste noter'!#REF! ->  | B68: =IF('Sjekkliste noter'!#REF!<>"",1,0) ->  | D68: =IF($C68=1,'Sjekkliste noter'!#REF!,"") ->  | E68: =IF($C68=1,'Sjekkliste noter'!#REF!,"") ->  | G68: =IF($C68=1,'Sjekkliste noter'!#REF!,"") -> 
A69: =+'Sjekkliste noter'!A129 -> 73 | B69: =IF('Sjekkliste noter'!K129<>"",1,0) -> 0 | C69: 0 | D69: =IF($C69=1,'Sjekkliste noter'!A129,"") ->  | E69: =IF($C69=1,'Sjekkliste noter'!B129,"") ->  | G69: =IF($C69=1,'Sjekkliste noter'!N129,"") -> 
A70: =+'Sjekkliste noter'!A133 -> 74 | B70: =IF('Sjekkliste noter'!K133<>"",1,0) -> 0 | C70: 0 | D70: =IF($C70=1,'Sjekkliste noter'!A133,"") ->  | E70: =IF($C70=1,'Sjekkliste noter'!B133,"") ->  | G70: =IF($C70=1,'Sjekkliste noter'!N133,"") -> 
A71: =+'Sjekkliste noter'!A134 -> 75 | B71: =IF('Sjekkliste noter'!K134<>"",1,0) -> 0 | C71: 0 | D71: =IF($C71=1,'Sjekkliste noter'!A134,"") ->  | E71: =IF($C71=1,'Sjekkliste noter'!B134,"") ->  | G71: =IF($C71=1,'Sjekkliste noter'!N134,"") -> 
A72: =+'Sjekkliste noter'!A135 -> 76 | B72: =IF('Sjekkliste noter'!K135<>"",1,0) -> 0 | C72: 0 | D72: =IF($C72=1,'Sjekkliste noter'!A135,"") ->  | E72: =IF($C72=1,'Sjekkliste noter'!B135,"") ->  | G72: =IF($C72=1,'Sjekkliste noter'!N135,"") -> 
A73: =+'Sjekkliste noter'!A137 -> 77 | B73: =IF('Sjekkliste noter'!K137<>"",1,0) -> 0 | C73: 0 | D73: =IF($C73=1,'Sjekkliste noter'!A137,"") ->  | E73: =IF($C73=1,'Sjekkliste noter'!B137,"") ->  | G73: =IF($C73=1,'Sjekkliste noter'!N137,"") -> 
A74: =+'Sjekkliste noter'!A141 -> 78 | B74: =IF('Sjekkliste noter'!K141<>"",1,0) -> 0 | C74: 0 | D74: =IF($C74=1,'Sjekkliste noter'!A141,"") ->  | E74: =IF($C74=1,'Sjekkliste noter'!B141,"") ->  | G74: =IF($C74=1,'Sjekkliste noter'!N141,"") -> 
A75: =+'Sjekkliste noter'!A144 -> 79 | B75: =IF('Sjekkliste noter'!K144<>"",1,0) -> 0 | C75: 0 | D75: =IF($C75=1,'Sjekkliste noter'!A144,"") ->  | E75: =IF($C75=1,'Sjekkliste noter'!B144,"") ->  | G75: =IF($C75=1,'Sjekkliste noter'!N144,"") -> 
A76: =+'Sjekkliste noter'!A147 -> 80 | B76: =IF('Sjekkliste noter'!K147<>"",1,0) -> 0 | C76: 0 | D76: =IF($C76=1,'Sjekkliste noter'!A147,"") ->  | E76: =IF($C76=1,'Sjekkliste noter'!B147,"") ->  | G76: =IF($C76=1,'Sjekkliste noter'!N147,"") -> 
A77: =+'Sjekkliste noter'!A148 -> 81 | B77: =IF('Sjekkliste noter'!K148<>"",1,0) -> 0 | C77: 0 | D77: =IF($C77=1,'Sjekkliste noter'!A148,"") ->  | E77: =IF($C77=1,'Sjekkliste noter'!B148,"") ->  | G77: =IF($C77=1,'Sjekkliste noter'!N148,"") -> 
A78: =+'Sjekkliste noter'!A149 -> 82 | B78: =IF('Sjekkliste noter'!K149<>"",1,0) -> 0 | C78: 0 | D78: =IF($C78=1,'Sjekkliste noter'!A149,"") ->  | E78: =IF($C78=1,'Sjekkliste noter'!B149,"") ->  | G78: =IF($C78=1,'Sjekkliste noter'!N149,"") -> 
A79: =+'Sjekkliste noter'!A151 -> 83 | B79: =IF('Sjekkliste noter'!K151<>"",1,0) -> 0 | C79: 0 | D79: =IF($C79=1,'Sjekkliste noter'!A151,"") ->  | E79: =IF($C79=1,'Sjekkliste noter'!B151,"") ->  | G79: =IF($C79=1,'Sjekkliste noter'!N151,"") -> 
A80: =+'Sjekkliste noter'!A152 -> 84 | B80: =IF('Sjekkliste noter'!K152<>"",1,0) -> 0 | C80: 0 | D80: =IF($C80=1,'Sjekkliste noter'!A152,"") ->  | E80: =IF($C80=1,'Sjekkliste noter'!B152,"") ->  | G80: =IF($C80=1,'Sjekkliste noter'!N152,"") -> 
A81: =+'Sjekkliste noter'!A153 -> 85 | B81: =IF('Sjekkliste noter'!K153<>"",1,0) -> 0 | C81: 0 | D81: =IF($C81=1,'Sjekkliste noter'!A153,"") ->  | E81: =IF($C81=1,'Sjekkliste noter'!B153,"") ->  | G81: =IF($C81=1,'Sjekkliste noter'!N153,"") -> 
A82: =+'Sjekkliste noter'!A160 -> 87 | B82: =IF('Sjekkliste noter'!K160<>"",1,0) -> 0 | C82: 0 | D82: =IF($C82=1,'Sjekkliste noter'!A160,"") ->  | E82: =IF($C82=1,'Sjekkliste noter'!B160,"") ->  | G82: =IF($C82=1,'Sjekkliste noter'!N160,"") -> 
A83: =+'Sjekkliste noter'!A161 -> 88 | B83: =IF('Sjekkliste noter'!K161<>"",1,0) -> 0 | C83: 0 | D83: =IF($C83=1,'Sjekkliste noter'!A161,"") ->  | E83: =IF($C83=1,'Sjekkliste noter'!B161,"") ->  | G83: =IF($C83=1,'Sjekkliste noter'!N161,"") -> 
A84: =+'Sjekkliste noter'!A162 -> 89 | B84: =IF('Sjekkliste noter'!K162<>"",1,0) -> 0 | C84: 0 | D84: =IF($C84=1,'Sjekkliste noter'!A162,"") ->  | E84: =IF($C84=1,'Sjekkliste noter'!B162,"") ->  | G84: =IF($C84=1,'Sjekkliste noter'!N162,"") -> 
A85: =+'Sjekkliste noter'!A163 -> 90 | B85: =IF('Sjekkliste noter'!K163<>"",1,0) -> 0 | C85: 0 | D85: =IF($C85=1,'Sjekkliste noter'!A163,"") ->  | E85: =IF($C85=1,'Sjekkliste noter'!B163,"") ->  | G85: =IF($C85=1,'Sjekkliste noter'!N163,"") -> 
A86: =+'Sjekkliste noter'!A167 -> 91 | B86: =IF('Sjekkliste noter'!K167<>"",1,0) -> 0 | C86: 0 | D86: =IF($C86=1,'Sjekkliste noter'!A167,"") ->  | E86: =IF($C86=1,'Sjekkliste noter'!B167,"") ->  | G86: =IF($C86=1,'Sjekkliste noter'!N167,"") -> 
A87: =+'Sjekkliste noter'!A168 -> 92 | B87: =IF('Sjekkliste noter'!K168<>"",1,0) -> 0 | C87: 0 | D87: =IF($C87=1,'Sjekkliste noter'!A168,"") ->  | E87: =IF($C87=1,'Sjekkliste noter'!B168,"") ->  | G87: =IF($C87=1,'Sjekkliste noter'!N168,"") -> 
A88: =+'Sjekkliste noter'!A169 -> 93 | B88: =IF('Sjekkliste noter'!K169<>"",1,0) -> 0 | C88: 0 | D88: =IF($C88=1,'Sjekkliste noter'!A169,"") ->  | E88: =IF($C88=1,'Sjekkliste noter'!B169,"") ->  | G88: =IF($C88=1,'Sjekkliste noter'!N169,"") -> 
A89: =+'Sjekkliste noter'!A170 -> 94 | B89: =IF('Sjekkliste noter'!K170<>"",1,0) -> 0 | C89: 0 | D89: =IF($C89=1,'Sjekkliste noter'!A170,"") ->  | E89: =IF($C89=1,'Sjekkliste noter'!B170,"") ->  | G89: =IF($C89=1,'Sjekkliste noter'!N170,"") -> 
A90: =+'Sjekkliste noter'!A171 -> 95 | B90: =IF('Sjekkliste noter'!K171<>"",1,0) -> 0 | C90: 0 | D90: =IF($C90=1,'Sjekkliste noter'!A171,"") ->  | E90: =IF($C90=1,'Sjekkliste noter'!B171,"") ->  | G90: =IF($C90=1,'Sjekkliste noter'!N171,"") -> 
A91: =+'Sjekkliste noter'!A173 -> 96 | B91: =IF('Sjekkliste noter'!K173<>"",1,0) -> 0 | C91: 0 | D91: =IF($C91=1,'Sjekkliste noter'!A173,"") ->  | E91: =IF($C91=1,'Sjekkliste noter'!B173,"") ->  | G91: =IF($C91=1,'Sjekkliste noter'!N173,"") -> 
A92: =+'Sjekkliste noter'!A174 -> 97 | B92: =IF('Sjekkliste noter'!K174<>"",1,0) -> 0 | C92: 0 | D92: =IF($C92=1,'Sjekkliste noter'!A174,"") ->  | E92: =IF($C92=1,'Sjekkliste noter'!B174,"") ->  | G92: =IF($C92=1,'Sjekkliste noter'!N174,"") -> 
A93: =+'Sjekkliste noter'!A175 -> 98 | B93: =IF('Sjekkliste noter'!K175<>"",1,0) -> 0 | C93: 0 | D93: =IF($C93=1,'Sjekkliste noter'!A175,"") ->  | E93: =IF($C93=1,'Sjekkliste noter'!B175,"") ->  | G93: =IF($C93=1,'Sjekkliste noter'!N175,"") -> 
A94: =+'Sjekkliste noter'!A177 -> 99 | B94: =IF('Sjekkliste noter'!K177<>"",1,0) -> 0 | C94: 0 | D94: =IF($C94=1,'Sjekkliste noter'!A177,"") ->  | E94: =IF($C94=1,'Sjekkliste noter'!B177,"") ->  | G94: =IF($C94=1,'Sjekkliste noter'!N177,"") -> 
A95: =+'Sjekkliste noter'!A178 -> 100 | B95: =IF('Sjekkliste noter'!K178<>"",1,0) -> 0 | C95: 0 | D95: =IF($C95=1,'Sjekkliste noter'!A178,"") ->  | E95: =IF($C95=1,'Sjekkliste noter'!B178,"") ->  | G95: =IF($C95=1,'Sjekkliste noter'!N178,"") -> 
A96: =+'Sjekkliste noter'!A179 -> 101 | B96: =IF('Sjekkliste noter'!K179<>"",1,0) -> 0 | C96: 0 | D96: =IF($C96=1,'Sjekkliste noter'!A179,"") ->  | E96: =IF($C96=1,'Sjekkliste noter'!B179,"") ->  | G96: =IF($C96=1,'Sjekkliste noter'!N179,"") -> 
A97: =+'Sjekkliste noter'!A180 -> 102 | B97: =IF('Sjekkliste noter'!K180<>"",1,0) -> 0 | C97: 0 | D97: =IF($C97=1,'Sjekkliste noter'!A180,"") ->  | E97: =IF($C97=1,'Sjekkliste noter'!B180,"") ->  | G97: =IF($C97=1,'Sjekkliste noter'!N180,"") -> 
A98: =+'Sjekkliste noter'!A181 -> 103 | B98: =IF('Sjekkliste noter'!K181<>"",1,0) -> 0 | C98: 0 | D98: =IF($C98=1,'Sjekkliste noter'!A181,"") ->  | E98: =IF($C98=1,'Sjekkliste noter'!B181,"") ->  | G98: =IF($C98=1,'Sjekkliste noter'!N181,"") -> 
A99: =+'Sjekkliste noter'!A184 -> 104 | B99: =IF('Sjekkliste noter'!K184<>"",1,0) -> 0 | C99: =SUM(B99:B99) -> 0 | D99: =IF($C99=1,'Sjekkliste noter'!A184,"") ->  | E99: =IF($C99=1,'Sjekkliste noter'!B184,"") ->  | G99: =IF($C99=1,'Sjekkliste noter'!N184,"") -> 
A100: =+'Sjekkliste noter'!A189 -> 107 | B100: =IF('Sjekkliste noter'!K189<>"",1,0) -> 0 | C100: 0 | D100: =IF($C100=1,'Sjekkliste noter'!A189,"") ->  | E100: =IF($C100=1,'Sjekkliste noter'!B189,"") ->  | G100: =IF($C100=1,'Sjekkliste noter'!N189,"") -> 
A101: =+'Sjekkliste noter'!A190 -> 108 | B101: =IF('Sjekkliste noter'!K190<>"",1,0) -> 0 | C101: 0 | D101: =IF($C101=1,'Sjekkliste noter'!A190,"") ->  | E101: =IF($C101=1,'Sjekkliste noter'!B190,"") ->  | G101: =IF($C101=1,'Sjekkliste noter'!N190,"") -> 
A102: =+'Sjekkliste noter'!A204 -> 119 | B102: =IF('Sjekkliste noter'!K204<>"",1,0) -> 0 | C102: 0 | D102: =IF($C102=1,'Sjekkliste noter'!A204,"") ->  | E102: =IF($C102=1,'Sjekkliste noter'!B204,"") ->  | G102: =IF($C102=1,'Sjekkliste noter'!N204,"") -> 
A103: =+'Sjekkliste noter'!A206 -> 120 | B103: =IF('Sjekkliste noter'!K206<>"",1,0) -> 0 | C103: 0 | D103: =IF($C103=1,'Sjekkliste noter'!A206,"") ->  | E103: =IF($C103=1,'Sjekkliste noter'!B206,"") ->  | G103: =IF($C103=1,'Sjekkliste noter'!N206,"") -> 
A104: =+'Sjekkliste noter'!A209 -> 121 | B104: =IF('Sjekkliste noter'!K209<>"",1,0) -> 0 | C104: 0 | D104: =IF($C104=1,'Sjekkliste noter'!A209,"") ->  | E104: =IF($C104=1,'Sjekkliste noter'!B209,"") ->  | G104: =IF($C104=1,'Sjekkliste noter'!N209,"") -> 
A105: =+'Sjekkliste noter'!A211 -> 122 | B105: =IF('Sjekkliste noter'!K211<>"",1,0) -> 0 | C105: 0 | D105: =IF($C105=1,'Sjekkliste noter'!A211,"") ->  | E105: =IF($C105=1,'Sjekkliste noter'!B211,"") ->  | G105: =IF($C105=1,'Sjekkliste noter'!N211,"") -> 
A106: =+'Sjekkliste noter'!A222 -> 125 | B106: =IF('Sjekkliste noter'!K222<>"",1,0) -> 0 | C106: 0 | D106: =IF($C106=1,'Sjekkliste noter'!A222,"") ->  | E106: =IF($C106=1,'Sjekkliste noter'!B222,"") ->  | G106: =IF($C106=1,'Sjekkliste noter'!N222,"") -> 
A107: =+'Sjekkliste noter'!A233 -> 130 | B107: =IF('Sjekkliste noter'!K233<>"",1,0) -> 0 | C107: 0 | D107: =IF($C107=1,'Sjekkliste noter'!A233,"") ->  | E107: =IF($C107=1,'Sjekkliste noter'!B233,"") ->  | G107: =IF($C107=1,'Sjekkliste noter'!N233,"") -> 
A108: =+'Sjekkliste noter'!A236 -> 131 | B108: =IF('Sjekkliste noter'!K236<>"",1,0) -> 0 | C108: 0 | D108: =IF($C108=1,'Sjekkliste noter'!A236,"") ->  | E108: =IF($C108=1,'Sjekkliste noter'!B236,"") ->  | G108: =IF($C108=1,'Sjekkliste noter'!N236,"") -> 
A109: =+'Sjekkliste noter'!A239 -> 132 | B109: =IF('Sjekkliste noter'!K239<>"",1,0) -> 0 | C109: 0 | D109: =IF($C109=1,'Sjekkliste noter'!A239,"") ->  | E109: =IF($C109=1,'Sjekkliste noter'!B239,"") ->  | G109: =IF($C109=1,'Sjekkliste noter'!N239,"") -> 
A110: =+'Sjekkliste noter'!A242 -> 133 | B110: =IF('Sjekkliste noter'!K242<>"",1,0) -> 0 | C110: 0 | D110: =IF($C110=1,'Sjekkliste noter'!A242,"") ->  | E110: =IF($C110=1,'Sjekkliste noter'!B242,"") ->  | G110: =IF($C110=1,'Sjekkliste noter'!N242,"") -> 
A111: =+'Sjekkliste noter'!A244 -> 134 | B111: =IF('Sjekkliste noter'!K244<>"",1,0) -> 0 | C111: 0 | D111: =IF($C111=1,'Sjekkliste noter'!A244,"") ->  | E111: =IF($C111=1,'Sjekkliste noter'!B244,"") ->  | G111: =IF($C111=1,'Sjekkliste noter'!N244,"") -> 
A112: =+'Sjekkliste noter'!A246 -> 135 | B112: =IF('Sjekkliste noter'!K246<>"",1,0) -> 0 | C112: 0 | D112: =IF($C112=1,'Sjekkliste noter'!A246,"") ->  | E112: =IF($C112=1,'Sjekkliste noter'!B246,"") ->  | G112: =IF($C112=1,'Sjekkliste noter'!N246,"") -> 
A113: =+'Sjekkliste noter'!A248 -> 136 | B113: =IF('Sjekkliste noter'!K248<>"",1,0) -> 0 | C113: 0 | D113: =IF($C113=1,'Sjekkliste noter'!A248,"") ->  | E113: =IF($C113=1,'Sjekkliste noter'!B248,"") ->  | G113: =IF($C113=1,'Sjekkliste noter'!N248,"") -> 
A114: =+'Sjekkliste noter'!A252 -> 137 | B114: =IF('Sjekkliste noter'!K252<>"",1,0) -> 0 | C114: 0 | D114: =IF($C114=1,'Sjekkliste noter'!A252,"") ->  | E114: =IF($C114=1,'Sjekkliste noter'!B252,"") ->  | G114: =IF($C114=1,'Sjekkliste noter'!N252,"") -> 
A115: =+'Sjekkliste noter'!A254 -> 138 | B115: =IF('Sjekkliste noter'!K254<>"",1,0) -> 0 | C115: 0 | D115: =IF($C115=1,'Sjekkliste noter'!A254,"") ->  | E115: =IF($C115=1,'Sjekkliste noter'!B254,"") ->  | G115: =IF($C115=1,'Sjekkliste noter'!N254,"") -> 
A116: =+'Sjekkliste noter'!A256 -> 139 | B116: =IF('Sjekkliste noter'!K256<>"",1,0) -> 0 | C116: 0 | D116: =IF($C116=1,'Sjekkliste noter'!A256,"") ->  | E116: =IF($C116=1,'Sjekkliste noter'!B256,"") ->  | G116: =IF($C116=1,'Sjekkliste noter'!N256,"") -> 
A117: =+'Sjekkliste noter'!A259 -> 140 | B117: =IF('Sjekkliste noter'!K259<>"",1,0) -> 0 | C117: 0 | D117: =IF($C117=1,'Sjekkliste noter'!A259,"") ->  | E117: =IF($C117=1,'Sjekkliste noter'!B259,"") ->  | G117: =IF($C117=1,'Sjekkliste noter'!N259,"") -> 
A118: =+'Sjekkliste noter'!A262 -> 141 | B118: =IF('Sjekkliste noter'!K262<>"",1,0) -> 0 | C118: 0 | D118: =IF($C118=1,'Sjekkliste noter'!A262,"") ->  | E118: =IF($C118=1,'Sjekkliste noter'!B262,"") ->  | G118: =IF($C118=1,'Sjekkliste noter'!N262,"") -> 
A119: =+'Sjekkliste noter'!A266 -> 142 | B119: =IF('Sjekkliste noter'!K266<>"",1,0) -> 0 | C119: 0 | D119: =IF($C119=1,'Sjekkliste noter'!A266,"") ->  | E119: =IF($C119=1,'Sjekkliste noter'!B266,"") ->  | G119: =IF($C119=1,'Sjekkliste noter'!N266,"") -> 
A120: =+'Sjekkliste noter'!A267 -> 143 | B120: =IF('Sjekkliste noter'!K267<>"",1,0) -> 0 | C120: 0 | D120: =IF($C120=1,'Sjekkliste noter'!A267,"") ->  | E120: =IF($C120=1,'Sjekkliste noter'!B267,"") ->  | G120: =IF($C120=1,'Sjekkliste noter'!N267,"") -> 
A121: =+'Sjekkliste noter'!A268 -> 144 | B121: =IF('Sjekkliste noter'!K268<>"",1,0) -> 0 | C121: 0 | D121: =IF($C121=1,'Sjekkliste noter'!A268,"") ->  | E121: =IF($C121=1,'Sjekkliste noter'!B268,"") ->  | G121: =IF($C121=1,'Sjekkliste noter'!N268,"") -> 
A122: =+'Sjekkliste noter'!A270 -> 145 | B122: =IF('Sjekkliste noter'!K270<>"",1,0) -> 0 | C122: 0 | D122: =IF($C122=1,'Sjekkliste noter'!A270,"") ->  | E122: =IF($C122=1,'Sjekkliste noter'!B270,"") ->  | G122: =IF($C122=1,'Sjekkliste noter'!N270,"") -> 
A123: =+'Sjekkliste noter'!A271 -> 146 | B123: =IF('Sjekkliste noter'!K271<>"",1,0) -> 0 | C123: 0 | D123: =IF($C123=1,'Sjekkliste noter'!A271,"") ->  | E123: =IF($C123=1,'Sjekkliste noter'!B271,"") ->  | G123: =IF($C123=1,'Sjekkliste noter'!N271,"") -> 
A124: =+'Sjekkliste noter'!A273 -> 147 | B124: =IF('Sjekkliste noter'!K273<>"",1,0) -> 0 | C124: 0 | D124: =IF($C124=1,'Sjekkliste noter'!A273,"") ->  | E124: =IF($C124=1,'Sjekkliste noter'!B273,"") ->  | G124: =IF($C124=1,'Sjekkliste noter'!N273,"") -> 
A125: =+'Sjekkliste noter'!A274 -> 148 | B125: =IF('Sjekkliste noter'!K274<>"",1,0) -> 0 | C125: 0 | D125: =IF($C125=1,'Sjekkliste noter'!A274,"") ->  | E125: =IF($C125=1,'Sjekkliste noter'!B274,"") ->  | G125: =IF($C125=1,'Sjekkliste noter'!N274,"") -> 
A126: =+'Sjekkliste noter'!A275 -> 149 | B126: =IF('Sjekkliste noter'!K275<>"",1,0) -> 0 | C126: 0 | D126: =IF($C126=1,'Sjekkliste noter'!A275,"") ->  | E126: =IF($C126=1,'Sjekkliste noter'!B275,"") ->  | G126: =IF($C126=1,'Sjekkliste noter'!N275,"") -> 
A127: =+'Sjekkliste noter'!A279 -> 150 | B127: =IF('Sjekkliste noter'!K279<>"",1,0) -> 0 | C127: 0 | D127: =IF($C127=1,'Sjekkliste noter'!A279,"") ->  | E127: =IF($C127=1,'Sjekkliste noter'!B279,"") ->  | G127: =IF($C127=1,'Sjekkliste noter'!N279,"") -> 
A128: =+'Sjekkliste noter'!A283 -> 151 | B128: =IF('Sjekkliste noter'!K283<>"",1,0) -> 0 | C128: 0 | D128: =IF($C128=1,'Sjekkliste noter'!A283,"") ->  | E128: =IF($C128=1,'Sjekkliste noter'!B283,"") ->  | G128: =IF($C128=1,'Sjekkliste noter'!N283,"") -> 
A129: =+'Sjekkliste noter'!A285 -> 152 | B129: =IF('Sjekkliste noter'!K285<>"",1,0) -> 0 | C129: 0 | D129: =IF($C129=1,'Sjekkliste noter'!A285,"") ->  | E129: =IF($C129=1,'Sjekkliste noter'!B285,"") ->  | G129: =IF($C129=1,'Sjekkliste noter'!N285,"") -> 
A130: =+'Sjekkliste noter'!A287 -> 153 | B130: =IF('Sjekkliste noter'!K287<>"",1,0) -> 0 | C130: 0 | D130: =IF($C130=1,'Sjekkliste noter'!A287,"") ->  | E130: =IF($C130=1,'Sjekkliste noter'!B287,"") ->  | G130: =IF($C130=1,'Sjekkliste noter'!N287,"") -> 
A131: =+'Sjekkliste noter'!A290 -> 154 | B131: =IF('Sjekkliste noter'!K290<>"",1,0) -> 0 | C131: =SUM(B131:B131) -> 0 | D131: =IF($C131=1,'Sjekkliste noter'!A290,"") ->  | E131: =IF($C131=1,'Sjekkliste noter'!B290,"") ->  | G131: =IF($C131=1,'Sjekkliste noter'!N290,"") -> 
A132: =+'Sjekkliste noter'!A291 -> 155 | B132: =IF('Sjekkliste noter'!K291<>"",1,0) -> 0 | C132: 0 | D132: =IF($C132=1,'Sjekkliste noter'!A291,"") ->  | E132: =IF($C132=1,'Sjekkliste noter'!B291,"") ->  | G132: =IF($C132=1,'Sjekkliste noter'!N291,"") -> 
A133: =+'Sjekkliste noter'!A292 -> 156 | B133: =IF('Sjekkliste noter'!K292<>"",1,0) -> 0 | C133: 0 | D133: =IF($C133=1,'Sjekkliste noter'!A292,"") ->  | E133: =IF($C133=1,'Sjekkliste noter'!B292,"") ->  | G133: =IF($C133=1,'Sjekkliste noter'!N292,"") -> 
A134: =+'Sjekkliste noter'!A293 -> 157 | B134: =IF('Sjekkliste noter'!K293<>"",1,0) -> 0 | C134: 0 | D134: =IF($C134=1,'Sjekkliste noter'!A293,"") ->  | E134: =IF($C134=1,'Sjekkliste noter'!B293,"") ->  | G134: =IF($C134=1,'Sjekkliste noter'!N293,"") -> 
A135: =+'Sjekkliste noter'!#REF! ->  | B135: =IF('Sjekkliste noter'!#REF!<>"",1,0) ->  | D135: =IF($C135=1,'Sjekkliste noter'!#REF!,"") ->  | E135: =IF($C135=1,'Sjekkliste noter'!#REF!,"") ->  | G135: =IF($C135=1,'Sjekkliste noter'!#REF!,"") -> 
A136: =+'Sjekkliste noter'!#REF! ->  | B136: =IF('Sjekkliste noter'!#REF!<>"",1,0) ->  | D136: =IF($C136=1,'Sjekkliste noter'!#REF!,"") ->  | E136: =IF($C136=1,'Sjekkliste noter'!#REF!,"") ->  | G136: =IF($C136=1,'Sjekkliste noter'!#REF!,"") -> 
A137: =+'Sjekkliste noter'!#REF! ->  | B137: =IF('Sjekkliste noter'!#REF!<>"",1,0) ->  | D137: =IF($C137=1,'Sjekkliste noter'!#REF!,"") ->  | E137: =IF($C137=1,'Sjekkliste noter'!#REF!,"") ->  | G137: =IF($C137=1,'Sjekkliste noter'!#REF!,"") -> 
A138: =+'Sjekkliste noter'!#REF! ->  | B138: =IF('Sjekkliste noter'!#REF!<>"",1,0) ->  | D138: =IF($C138=1,'Sjekkliste noter'!#REF!,"") ->  | E138: =IF($C138=1,'Sjekkliste noter'!#REF!,"") ->  | G138: =IF($C138=1,'Sjekkliste noter'!#REF!,"") -> 
A139: =+'Sjekkliste noter'!#REF! ->  | B139: =IF('Sjekkliste noter'!#REF!<>"",1,0) ->  | D139: =IF($C139=1,'Sjekkliste noter'!#REF!,"") ->  | E139: =IF($C139=1,'Sjekkliste noter'!#REF!,"") ->  | G139: =IF($C139=1,'Sjekkliste noter'!#REF!,"") -> 
A140: =+'Sjekkliste noter'!#REF! ->  | B140: =IF('Sjekkliste noter'!#REF!<>"",1,0) ->  | D140: =IF($C140=1,'Sjekkliste noter'!#REF!,"") ->  | E140: =IF($C140=1,'Sjekkliste noter'!#REF!,"") ->  | G140: =IF($C140=1,'Sjekkliste noter'!#REF!,"") -> 
A141: =+'Sjekkliste noter'!#REF! ->  | B141: =IF('Sjekkliste noter'!#REF!<>"",1,0) ->  | D141: =IF($C141=1,'Sjekkliste noter'!#REF!,"") ->  | E141: =IF($C141=1,'Sjekkliste noter'!#REF!,"") ->  | G141: =IF($C141=1,'Sjekkliste noter'!#REF!,"") -> 
A142: =+'Sjekkliste noter'!#REF! ->  | B142: =IF('Sjekkliste noter'!#REF!<>"",1,0) ->  | D142: =IF($C142=1,'Sjekkliste noter'!#REF!,"") ->  | E142: =IF($C142=1,'Sjekkliste noter'!#REF!,"") ->  | G142: =IF($C142=1,'Sjekkliste noter'!#REF!,"") -> 
A143: =+'Sjekkliste noter'!#REF! ->  | B143: =IF('Sjekkliste noter'!#REF!<>"",1,0) ->  | D143: =IF($C143=1,'Sjekkliste noter'!#REF!,"") ->  | E143: =IF($C143=1,'Sjekkliste noter'!#REF!,"") ->  | G143: =IF($C143=1,'Sjekkliste noter'!#REF!,"") -> 
A144: =+'Sjekkliste noter'!#REF! ->  | B144: =IF('Sjekkliste noter'!#REF!<>"",1,0) ->  | D144: =IF($C144=1,'Sjekkliste noter'!#REF!,"") ->  | E144: =IF($C144=1,'Sjekkliste noter'!#REF!,"") ->  | G144: =IF($C144=1,'Sjekkliste noter'!#REF!,"") -> 
A145: =+'Sjekkliste noter'!#REF! ->  | B145: =IF('Sjekkliste noter'!#REF!<>"",1,0) ->  | D145: =IF($C145=1,'Sjekkliste noter'!#REF!,"") ->  | E145: =IF($C145=1,'Sjekkliste noter'!#REF!,"") ->  | G145: =IF($C145=1,'Sjekkliste noter'!#REF!,"") -> 
A146: =+'Sjekkliste noter'!#REF! ->  | B146: =IF('Sjekkliste noter'!#REF!<>"",1,0) ->  | D146: =IF($C146=1,'Sjekkliste noter'!#REF!,"") ->  | E146: =IF($C146=1,'Sjekkliste noter'!#REF!,"") ->  | G146: =IF($C146=1,'Sjekkliste noter'!#REF!,"") -> 
A147: =+'Sjekkliste noter'!#REF! ->  | B147: =IF('Sjekkliste noter'!#REF!<>"",1,0) ->  | D147: =IF($C147=1,'Sjekkliste noter'!#REF!,"") ->  | E147: =IF($C147=1,'Sjekkliste noter'!#REF!,"") ->  | G147: =IF($C147=1,'Sjekkliste noter'!#REF!,"") -> 
A148: =+'Sjekkliste noter'!#REF! ->  | B148: =IF('Sjekkliste noter'!#REF!<>"",1,0) ->  | D148: =IF($C148=1,'Sjekkliste noter'!#REF!,"") ->  | E148: =IF($C148=1,'Sjekkliste noter'!#REF!,"") ->  | G148: =IF($C148=1,'Sjekkliste noter'!#REF!,"") -> 
A149: =+'Sjekkliste noter'!#REF! ->  | B149: =IF('Sjekkliste noter'!#REF!<>"",1,0) ->  | D149: =IF($C149=1,'Sjekkliste noter'!#REF!,"") ->  | E149: =IF($C149=1,'Sjekkliste noter'!#REF!,"") ->  | G149: =IF($C149=1,'Sjekkliste noter'!#REF!,"") -> 
A150: =+'Sjekkliste noter'!#REF! ->  | B150: =IF('Sjekkliste noter'!#REF!<>"",1,0) ->  | D150: =IF($C150=1,'Sjekkliste noter'!#REF!,"") ->  | E150: =IF($C150=1,'Sjekkliste noter'!#REF!,"") ->  | G150: =IF($C150=1,'Sjekkliste noter'!#REF!,"") -> 
A151: =+'Sjekkliste noter'!#REF! ->  | B151: =IF('Sjekkliste noter'!#REF!<>"",1,0) ->  | D151: =IF($C151=1,'Sjekkliste noter'!#REF!,"") ->  | E151: =IF($C151=1,'Sjekkliste noter'!#REF!,"") ->  | G151: =IF($C151=1,'Sjekkliste noter'!#REF!,"") -> 
A152: =+'Sjekkliste noter'!#REF! ->  | B152: =IF('Sjekkliste noter'!#REF!<>"",1,0) ->  | D152: =IF($C152=1,'Sjekkliste noter'!#REF!,"") ->  | E152: =IF($C152=1,'Sjekkliste noter'!#REF!,"") ->  | G152: =IF($C152=1,'Sjekkliste noter'!#REF!,"") -> 

Sheet N_IA (hidden)
C1: =COUNTIF(C2:C196,"=1") -> 0 | D1: IA-svar | E1: =+Forside!B2 -> 0 | F1: =+Forside!B3 -> 2020 | G1: Kommentarer
A2: =+'Sjekkliste noter'!A16 -> 1 | B2: =IF('Sjekkliste noter'!M16<>"",1,0) -> 0 | C2: =SUM(B2:B2) -> 0 | D2: =IF($C2=1,'Sjekkliste noter'!A16,"") ->  | E2: =IF($C2=1,'Sjekkliste noter'!B16,"") ->  | G2: =IF($C2=1,'Sjekkliste noter'!N16,"") -> 
A3: =+'Sjekkliste noter'!A17 -> 2 | B3: =IF('Sjekkliste noter'!M17<>"",1,0) -> 0 | C3: 0 | D3: =IF($C3=1,'Sjekkliste noter'!A17,"") ->  | E3: =IF($C3=1,'Sjekkliste noter'!B17,"") ->  | G3: =IF($C3=1,'Sjekkliste noter'!N17,"") -> 
A4: =+'Sjekkliste noter'!A18 -> 3 | B4: =IF('Sjekkliste noter'!M18<>"",1,0) -> 0 | C4: 0 | D4: =IF($C4=1,'Sjekkliste noter'!A18,"") ->  | E4: =IF($C4=1,'Sjekkliste noter'!B18,"") ->  | G4: =IF($C4=1,'Sjekkliste noter'!N18,"") -> 
A5: =+'Sjekkliste noter'!A20 -> 4 | B5: =IF('Sjekkliste noter'!M20<>"",1,0) -> 0 | C5: 0 | D5: =IF($C5=1,'Sjekkliste noter'!A20,"") ->  | E5: =IF($C5=1,'Sjekkliste noter'!B20,"") ->  | G5: =IF($C5=1,'Sjekkliste noter'!N20,"") -> 
A6: =+'Sjekkliste noter'!A21 -> 5 | B6: =IF('Sjekkliste noter'!M21<>"",1,0) -> 0 | C6: 0 | D6: =IF($C6=1,'Sjekkliste noter'!A21,"") ->  | E6: =IF($C6=1,'Sjekkliste noter'!B21,"") ->  | G6: =IF($C6=1,'Sjekkliste noter'!N21,"") -> 
A7: =+'Sjekkliste noter'!A22 -> 6 | B7: =IF('Sjekkliste noter'!M22<>"",1,0) -> 0 | C7: 0 | D7: =IF($C7=1,'Sjekkliste noter'!A22,"") ->  | E7: =IF($C7=1,'Sjekkliste noter'!B22,"") ->  | G7: =IF($C7=1,'Sjekkliste noter'!N22,"") -> 
A8: =+'Sjekkliste noter'!A23 -> 7 | B8: =IF('Sjekkliste noter'!M23<>"",1,0) -> 0 | C8: 0 | D8: =IF($C8=1,'Sjekkliste noter'!A23,"") ->  | E8: =IF($C8=1,'Sjekkliste noter'!B23,"") ->  | G8: =IF($C8=1,'Sjekkliste noter'!N23,"") -> 
A9: =+'Sjekkliste noter'!A24 -> 8 | B9: =IF('Sjekkliste noter'!M24<>"",1,0) -> 0 | C9: 0 | D9: =IF($C9=1,'Sjekkliste noter'!A24,"") ->  | E9: =IF($C9=1,'Sjekkliste noter'!B24,"") ->  | G9: =IF($C9=1,'Sjekkliste noter'!N24,"") -> 
A10: =+'Sjekkliste noter'!A25 -> 9 | B10: =IF('Sjekkliste noter'!M25<>"",1,0) -> 0 | C10: 0 | D10: =IF($C10=1,'Sjekkliste noter'!A25,"") ->  | E10: =IF($C10=1,'Sjekkliste noter'!B25,"") ->  | G10: =IF($C10=1,'Sjekkliste noter'!N25,"") -> 
A11: =+'Sjekkliste noter'!A26 -> 10 | B11: =IF('Sjekkliste noter'!M26<>"",1,0) -> 0 | C11: 0 | D11: =IF($C11=1,'Sjekkliste noter'!A26,"") ->  | E11: =IF($C11=1,'Sjekkliste noter'!B26,"") ->  | G11: =IF($C11=1,'Sjekkliste noter'!N26,"") -> 
A12: =+'Sjekkliste noter'!A27 -> 11 | B12: =IF('Sjekkliste noter'!M27<>"",1,0) -> 0 | C12: 0 | D12: =IF($C12=1,'Sjekkliste noter'!A27,"") ->  | E12: =IF($C12=1,'Sjekkliste noter'!B27,"") ->  | G12: =IF($C12=1,'Sjekkliste noter'!N27,"") -> 
A13: =+'Sjekkliste noter'!A29 -> 12 | B13: =IF('Sjekkliste noter'!M29<>"",1,0) -> 0 | C13: 0 | D13: =IF($C13=1,'Sjekkliste noter'!A29,"") ->  | E13: =IF($C13=1,'Sjekkliste noter'!B29,"") ->  | G13: =IF($C13=1,'Sjekkliste noter'!N29,"") -> 
A14: =+'Sjekkliste noter'!A31 -> 13 | B14: =IF('Sjekkliste noter'!M31<>"",1,0) -> 0 | C14: 0 | D14: =IF($C14=1,'Sjekkliste noter'!A31,"") ->  | E14: =IF($C14=1,'Sjekkliste noter'!B31,"") ->  | G14: =IF($C14=1,'Sjekkliste noter'!N31,"") -> 
A15: =+'Sjekkliste noter'!A34 -> 14 | B15: =IF('Sjekkliste noter'!M34<>"",1,0) -> 0 | C15: 0 | D15: =IF($C15=1,'Sjekkliste noter'!A34,"") ->  | E15: =IF($C15=1,'Sjekkliste noter'!B34,"") ->  | G15: =IF($C15=1,'Sjekkliste noter'!N34,"") -> 
A16: =+'Sjekkliste noter'!A35 -> 15 | B16: =IF('Sjekkliste noter'!M35<>"",1,0) -> 0 | C16: 0 | D16: =IF($C16=1,'Sjekkliste noter'!A35,"") ->  | E16: =IF($C16=1,'Sjekkliste noter'!B35,"") ->  | G16: =IF($C16=1,'Sjekkliste noter'!N35,"") -> 
A17: =+'Sjekkliste noter'!A37 -> 16 | B17: =IF('Sjekkliste noter'!M37<>"",1,0) -> 0 | C17: 0 | D17: =IF($C17=1,'Sjekkliste noter'!A37,"") ->  | E17: =IF($C17=1,'Sjekkliste noter'!B37,"") ->  | G17: =IF($C17=1,'Sjekkliste noter'!N37,"") -> 
A18: =+'Sjekkliste noter'!A38 -> 17 | B18: =IF('Sjekkliste noter'!M38<>"",1,0) -> 0 | C18: 0 | D18: =IF($C18=1,'Sjekkliste noter'!A38,"") ->  | E18: =IF($C18=1,'Sjekkliste noter'!B38,"") ->  | G18: =IF($C18=1,'Sjekkliste noter'!N38,"") -> 
A19: =+'Sjekkliste noter'!A40 -> 19 | B19: =IF('Sjekkliste noter'!M40<>"",1,0) -> 0 | C19: 0 | D19: =IF($C19=1,'Sjekkliste noter'!A40,"") ->  | E19: =IF($C19=1,'Sjekkliste noter'!B40,"") ->  | G19: =IF($C19=1,'Sjekkliste noter'!N40,"") -> 
A20: =+'Sjekkliste noter'!A42 -> 20 | B20: =IF('Sjekkliste noter'!M42<>"",1,0) -> 0 | C20: 0 | D20: =IF($C20=1,'Sjekkliste noter'!A42,"") ->  | E20: =IF($C20=1,'Sjekkliste noter'!B42,"") ->  | G20: =IF($C20=1,'Sjekkliste noter'!N42,"") -> 
A21: =+'Sjekkliste noter'!A44 -> 21 | B21: =IF('Sjekkliste noter'!M44<>"",1,0) -> 0 | C21: 0 | D21: =IF($C21=1,'Sjekkliste noter'!A44,"") ->  | E21: =IF($C21=1,'Sjekkliste noter'!B44,"") ->  | G21: =IF($C21=1,'Sjekkliste noter'!N44,"") -> 
A22: =+'Sjekkliste noter'!A45 -> 22 | B22: =IF('Sjekkliste noter'!M45<>"",1,0) -> 0 | C22: 0 | D22: =IF($C22=1,'Sjekkliste noter'!A45,"") ->  | E22: =IF($C22=1,'Sjekkliste noter'!B45,"") ->  | G22: =IF($C22=1,'Sjekkliste noter'!N45,"") -> 
A23: =+'Sjekkliste noter'!A46 -> 23 | B23: =IF('Sjekkliste noter'!M46<>"",1,0) -> 0 | C23: 0 | D23: =IF($C23=1,'Sjekkliste noter'!A46,"") ->  | E23: =IF($C23=1,'Sjekkliste noter'!B46,"") ->  | G23: =IF($C23=1,'Sjekkliste noter'!N46,"") -> 
A24: =+'Sjekkliste noter'!A47 -> 24 | B24: =IF('Sjekkliste noter'!M47<>"",1,0) -> 0 | C24: 0 | D24: =IF($C24=1,'Sjekkliste noter'!A47,"") ->  | E24: =IF($C24=1,'Sjekkliste noter'!B47,"") ->  | G24: =IF($C24=1,'Sjekkliste noter'!N47,"") -> 
A25: =+'Sjekkliste noter'!A48 -> 25 | B25: =IF('Sjekkliste noter'!M48<>"",1,0) -> 0 | C25: 0 | D25: =IF($C25=1,'Sjekkliste noter'!A48,"") ->  | E25: =IF($C25=1,'Sjekkliste noter'!B48,"") ->  | G25: =IF($C25=1,'Sjekkliste noter'!N48,"") -> 
A26: =+'Sjekkliste noter'!A49 -> 26 | B26: =IF('Sjekkliste noter'!M49<>"",1,0) -> 0 | C26: 0 | D26: =IF($C26=1,'Sjekkliste noter'!A49,"") ->  | E26: =IF($C26=1,'Sjekkliste noter'!B49,"") ->  | G26: =IF($C26=1,'Sjekkliste noter'!N49,"") -> 
A27: =+'Sjekkliste noter'!A52 -> 27 | B27: =IF('Sjekkliste noter'!M52<>"",1,0) -> 0 | C27: 0 | D27: =IF($C27=1,'Sjekkliste noter'!A52,"") ->  | E27: =IF($C27=1,'Sjekkliste noter'!B52,"") ->  | G27: =IF($C27=1,'Sjekkliste noter'!N52,"") -> 
A28: =+'Sjekkliste noter'!A53 -> 28 | B28: =IF('Sjekkliste noter'!M53<>"",1,0) -> 0 | C28: 0 | D28: =IF($C28=1,'Sjekkliste noter'!A53,"") ->  | E28: =IF($C28=1,'Sjekkliste noter'!B53,"") ->  | G28: =IF($C28=1,'Sjekkliste noter'!N53,"") -> 
A29: =+'Sjekkliste noter'!A54 -> 29 | B29: =IF('Sjekkliste noter'!M54<>"",1,0) -> 0 | C29: 0 | D29: =IF($C29=1,'Sjekkliste noter'!A54,"") ->  | E29: =IF($C29=1,'Sjekkliste noter'!B54,"") ->  | G29: =IF($C29=1,'Sjekkliste noter'!N54,"") -> 
A30: =+'Sjekkliste noter'!A55 -> 30 | B30: =IF('Sjekkliste noter'!M55<>"",1,0) -> 0 | C30: 0 | D30: =IF($C30=1,'Sjekkliste noter'!A55,"") ->  | E30: =IF($C30=1,'Sjekkliste noter'!B55,"") ->  | G30: =IF($C30=1,'Sjekkliste noter'!N55,"") -> 
A31: =+'Sjekkliste noter'!A56 -> 31 | B31: =IF('Sjekkliste noter'!M56<>"",1,0) -> 0 | C31: 0 | D31: =IF($C31=1,'Sjekkliste noter'!A56,"") ->  | E31: =IF($C31=1,'Sjekkliste noter'!B56,"") ->  | G31: =IF($C31=1,'Sjekkliste noter'!N56,"") -> 
A32: =+'Sjekkliste noter'!A57 -> 32 | B32: =IF('Sjekkliste noter'!M57<>"",1,0) -> 0 | C32: 0 | D32: =IF($C32=1,'Sjekkliste noter'!A57,"") ->  | E32: =IF($C32=1,'Sjekkliste noter'!B57,"") ->  | G32: =IF($C32=1,'Sjekkliste noter'!N57,"") -> 
A33: =+'Sjekkliste noter'!A58 -> 33 | B33: =IF('Sjekkliste noter'!M58<>"",1,0) -> 0 | C33: 0 | D33: =IF($C33=1,'Sjekkliste noter'!A58,"") ->  | E33: =IF($C33=1,'Sjekkliste noter'!B58,"") ->  | G33: =IF($C33=1,'Sjekkliste noter'!N58,"") -> 
A34: =+'Sjekkliste noter'!A60 -> 34 | B34: =IF('Sjekkliste noter'!M60<>"",1,0) -> 0 | C34: =SUM(B34:B34) -> 0 | D34: =IF($C34=1,'Sjekkliste noter'!A60,"") ->  | E34: =IF($C34=1,'Sjekkliste noter'!B60,"") ->  | G34: =IF($C34=1,'Sjekkliste noter'!N60,"") -> 
A35: =+'Sjekkliste noter'!A62 -> 35 | B35: =IF('Sjekkliste noter'!M62<>"",1,0) -> 0 | C35: 0 | D35: =IF($C35=1,'Sjekkliste noter'!A62,"") ->  | E35: =IF($C35=1,'Sjekkliste noter'!B62,"") ->  | G35: =IF($C35=1,'Sjekkliste noter'!N62,"") -> 
A36: =+'Sjekkliste noter'!A64 -> 36 | B36: =IF('Sjekkliste noter'!M64<>"",1,0) -> 0 | C36: 0 | D36: =IF($C36=1,'Sjekkliste noter'!A64,"") ->  | E36: =IF($C36=1,'Sjekkliste noter'!B64,"") ->  | G36: =IF($C36=1,'Sjekkliste noter'!N64,"") -> 
A37: =+'Sjekkliste noter'!A65 -> 37 | B37: =IF('Sjekkliste noter'!M65<>"",1,0) -> 0 | C37: 0 | D37: =IF($C37=1,'Sjekkliste noter'!A65,"") ->  | E37: =IF($C37=1,'Sjekkliste noter'!B65,"") ->  | G37: =IF($C37=1,'Sjekkliste noter'!N65,"") -> 
A38: =+'Sjekkliste noter'!A66 -> 38 | B38: =IF('Sjekkliste noter'!M66<>"",1,0) -> 0 | C38: 0 | D38: =IF($C38=1,'Sjekkliste noter'!A66,"") ->  | E38: =IF($C38=1,'Sjekkliste noter'!B66,"") ->  | G38: =IF($C38=1,'Sjekkliste noter'!N66,"") -> 
A39: =+'Sjekkliste noter'!A67 -> 39 | B39: =IF('Sjekkliste noter'!M67<>"",1,0) -> 0 | C39: 0 | D39: =IF($C39=1,'Sjekkliste noter'!A67,"") ->  | E39: =IF($C39=1,'Sjekkliste noter'!B67,"") ->  | G39: =IF($C39=1,'Sjekkliste noter'!N67,"") -> 
A40: =+'Sjekkliste noter'!A69 -> 40 | B40: =IF('Sjekkliste noter'!M69<>"",1,0) -> 0 | C40: 0 | D40: =IF($C40=1,'Sjekkliste noter'!A69,"") ->  | E40: =IF($C40=1,'Sjekkliste noter'!B69,"") ->  | G40: =IF($C40=1,'Sjekkliste noter'!N69,"") -> 
A41: =+'Sjekkliste noter'!A70 -> 41 | B41: =IF('Sjekkliste noter'!M70<>"",1,0) -> 0 | C41: 0 | D41: =IF($C41=1,'Sjekkliste noter'!A70,"") ->  | E41: =IF($C41=1,'Sjekkliste noter'!B70,"") ->  | G41: =IF($C41=1,'Sjekkliste noter'!N70,"") -> 
A42: =+'Sjekkliste noter'!A71 -> 42 | B42: =IF('Sjekkliste noter'!M71<>"",1,0) -> 0 | C42: 0 | D42: =IF($C42=1,'Sjekkliste noter'!A71,"") ->  | E42: =IF($C42=1,'Sjekkliste noter'!B71,"") ->  | G42: =IF($C42=1,'Sjekkliste noter'!N71,"") -> 
A43: =+'Sjekkliste noter'!A73 -> 43 | B43: =IF('Sjekkliste noter'!M73<>"",1,0) -> 0 | C43: 0 | D43: =IF($C43=1,'Sjekkliste noter'!A73,"") ->  | E43: =IF($C43=1,'Sjekkliste noter'!B73,"") ->  | G43: =IF($C43=1,'Sjekkliste noter'!N73,"") -> 
A44: =+'Sjekkliste noter'!A75 -> 44 | B44: =IF('Sjekkliste noter'!M75<>"",1,0) -> 0 | C44: 0 | D44: =IF($C44=1,'Sjekkliste noter'!A75,"") ->  | E44: =IF($C44=1,'Sjekkliste noter'!B75,"") ->  | G44: =IF($C44=1,'Sjekkliste noter'!N75,"") -> 
A45: =+'Sjekkliste noter'!A76 -> 45 | B45: =IF('Sjekkliste noter'!M76<>"",1,0) -> 0 | C45: 0 | D45: =IF($C45=1,'Sjekkliste noter'!A76,"") ->  | E45: =IF($C45=1,'Sjekkliste noter'!B76,"") ->  | G45: =IF($C45=1,'Sjekkliste noter'!N76,"") -> 
A46: =+'Sjekkliste noter'!A77 -> 46 | B46: =IF('Sjekkliste noter'!M77<>"",1,0) -> 0 | C46: 0 | D46: =IF($C46=1,'Sjekkliste noter'!A77,"") ->  | E46: =IF($C46=1,'Sjekkliste noter'!B77,"") ->  | G46: =IF($C46=1,'Sjekkliste noter'!N77,"") -> 
A47: =+'Sjekkliste noter'!A81 -> 47 | B47: =IF('Sjekkliste noter'!M81<>"",1,0) -> 0 | C47: 0 | D47: =IF($C47=1,'Sjekkliste noter'!A81,"") ->  | E47: =IF($C47=1,'Sjekkliste noter'!B81,"") ->  | G47: =IF($C47=1,'Sjekkliste noter'!N81,"") -> 
A48: =+'Sjekkliste noter'!A82 -> 48 | B48: =IF('Sjekkliste noter'!M82<>"",1,0) -> 0 | C48: 0 | D48: =IF($C48=1,'Sjekkliste noter'!A82,"") ->  | E48: =IF($C48=1,'Sjekkliste noter'!B82,"") ->  | G48: =IF($C48=1,'Sjekkliste noter'!N82,"") -> 
A49: =+'Sjekkliste noter'!A83 -> 49 | B49: =IF('Sjekkliste noter'!M83<>"",1,0) -> 0 | C49: 0 | D49: =IF($C49=1,'Sjekkliste noter'!A83,"") ->  | E49: =IF($C49=1,'Sjekkliste noter'!B83,"") ->  | G49: =IF($C49=1,'Sjekkliste noter'!N83,"") -> 
A50: =+'Sjekkliste noter'!A85 -> 50 | B50: =IF('Sjekkliste noter'!M85<>"",1,0) -> 0 | C50: 0 | D50: =IF($C50=1,'Sjekkliste noter'!A85,"") ->  | E50: =IF($C50=1,'Sjekkliste noter'!B85,"") ->  | G50: =IF($C50=1,'Sjekkliste noter'!N85,"") -> 
A51: =+'Sjekkliste noter'!A86 -> 51 | B51: =IF('Sjekkliste noter'!M86<>"",1,0) -> 0 | C51: 0 | D51: =IF($C51=1,'Sjekkliste noter'!A86,"") ->  | E51: =IF($C51=1,'Sjekkliste noter'!B86,"") ->  | G51: =IF($C51=1,'Sjekkliste noter'!N86,"") -> 
A52: =+'Sjekkliste noter'!A88 -> 52 | B52: =IF('Sjekkliste noter'!M88<>"",1,0) -> 0 | C52: 0 | D52: =IF($C52=1,'Sjekkliste noter'!A88,"") ->  | E52: =IF($C52=1,'Sjekkliste noter'!B88,"") ->  | G52: =IF($C52=1,'Sjekkliste noter'!N88,"") -> 
A53: =+'Sjekkliste noter'!A90 -> 53 | B53: =IF('Sjekkliste noter'!M90<>"",1,0) -> 0 | C53: 0 | D53: =IF($C53=1,'Sjekkliste noter'!A90,"") ->  | E53: =IF($C53=1,'Sjekkliste noter'!B90,"") ->  | G53: =IF($C53=1,'Sjekkliste noter'!N90,"") -> 
A54: =+'Sjekkliste noter'!A93 -> 54 | B54: =IF('Sjekkliste noter'!M93<>"",1,0) -> 0 | C54: 0 | D54: =IF($C54=1,'Sjekkliste noter'!A93,"") ->  | E54: =IF($C54=1,'Sjekkliste noter'!B93,"") ->  | G54: =IF($C54=1,'Sjekkliste noter'!N93,"") -> 
A55: =+'Sjekkliste noter'!A94 -> 55 | B55: =IF('Sjekkliste noter'!M94<>"",1,0) -> 0 | C55: 0 | D55: =IF($C55=1,'Sjekkliste noter'!A94,"") ->  | E55: =IF($C55=1,'Sjekkliste noter'!B94,"") ->  | G55: =IF($C55=1,'Sjekkliste noter'!N94,"") -> 
A56: =+'Sjekkliste noter'!A95 -> 56 | B56: =IF('Sjekkliste noter'!M95<>"",1,0) -> 0 | C56: 0 | D56: =IF($C56=1,'Sjekkliste noter'!A95,"") ->  | E56: =IF($C56=1,'Sjekkliste noter'!B95,"") ->  | G56: =IF($C56=1,'Sjekkliste noter'!N95,"") -> 
A57: =+'Sjekkliste noter'!A97 -> 57 | B57: =IF('Sjekkliste noter'!M97<>"",1,0) -> 0 | C57: 0 | D57: =IF($C57=1,'Sjekkliste noter'!A97,"") ->  | E57: =IF($C57=1,'Sjekkliste noter'!B97,"") ->  | G57: =IF($C57=1,'Sjekkliste noter'!N97,"") -> 
A58: =+'Sjekkliste noter'!A99 -> 58 | B58: =IF('Sjekkliste noter'!M99<>"",1,0) -> 0 | C58: 0 | D58: =IF($C58=1,'Sjekkliste noter'!A99,"") ->  | E58: =IF($C58=1,'Sjekkliste noter'!B99,"") ->  | G58: =IF($C58=1,'Sjekkliste noter'!N99,"") -> 
A59: =+'Sjekkliste noter'!A102 -> 59 | B59: =IF('Sjekkliste noter'!M102<>"",1,0) -> 0 | C59: 0 | D59: =IF($C59=1,'Sjekkliste noter'!A102,"") ->  | E59: =IF($C59=1,'Sjekkliste noter'!B102,"") ->  | G59: =IF($C59=1,'Sjekkliste noter'!N102,"") -> 
A60: =+'Sjekkliste noter'!A103 -> 60 | B60: =IF('Sjekkliste noter'!M103<>"",1,0) -> 0 | C60: 0 | D60: =IF($C60=1,'Sjekkliste noter'!A103,"") ->  | E60: =IF($C60=1,'Sjekkliste noter'!B103,"") ->  | G60: =IF($C60=1,'Sjekkliste noter'!N103,"") -> 
A61: =+'Sjekkliste noter'!A104 -> 61 | B61: =IF('Sjekkliste noter'!M104<>"",1,0) -> 0 | C61: 0 | D61: =IF($C61=1,'Sjekkliste noter'!A104,"") ->  | E61: =IF($C61=1,'Sjekkliste noter'!B104,"") ->  | G61: =IF($C61=1,'Sjekkliste noter'!N104,"") -> 
A62: =+'Sjekkliste noter'!A107 -> 62 | B62: =IF('Sjekkliste noter'!M107<>"",1,0) -> 0 | C62: 0 | D62: =IF($C62=1,'Sjekkliste noter'!A107,"") ->  | E62: =IF($C62=1,'Sjekkliste noter'!B107,"") ->  | G62: =IF($C62=1,'Sjekkliste noter'!N107,"") -> 
A63: =+'Sjekkliste noter'!A108 -> 63 | B63: =IF('Sjekkliste noter'!M108<>"",1,0) -> 0 | C63: 0 | D63: =IF($C63=1,'Sjekkliste noter'!A108,"") ->  | E63: =IF($C63=1,'Sjekkliste noter'!B108,"") ->  | G63: =IF($C63=1,'Sjekkliste noter'!N108,"") -> 
A64: =+'Sjekkliste noter'!A111 -> 64 | B64: =IF('Sjekkliste noter'!M111<>"",1,0) -> 0 | C64: 0 | D64: =IF($C64=1,'Sjekkliste noter'!A111,"") ->  | E64: =IF($C64=1,'Sjekkliste noter'!B111,"") ->  | G64: =IF($C64=1,'Sjekkliste noter'!N111,"") -> 
A65: =+'Sjekkliste noter'!A113 -> 65 | B65: =IF('Sjekkliste noter'!M113<>"",1,0) -> 0 | C65: 0 | D65: =IF($C65=1,'Sjekkliste noter'!A113,"") ->  | E65: =IF($C65=1,'Sjekkliste noter'!B113,"") ->  | G65: =IF($C65=1,'Sjekkliste noter'!N113,"") -> 
A66: =+'Sjekkliste noter'!A115 -> 66 | B66: =IF('Sjekkliste noter'!M115<>"",1,0) -> 0 | C66: =SUM(B66:B66) -> 0 | D66: =IF($C66=1,'Sjekkliste noter'!A115,"") ->  | E66: =IF($C66=1,'Sjekkliste noter'!B115,"") ->  | G66: =IF($C66=1,'Sjekkliste noter'!N115,"") -> 
A67: =+'Sjekkliste noter'!A116 -> 67 | B67: =IF('Sjekkliste noter'!M116<>"",1,0) -> 0 | C67: 0 | D67: =IF($C67=1,'Sjekkliste noter'!A116,"") ->  | E67: =IF($C67=1,'Sjekkliste noter'!B116,"") ->  | G67: =IF($C67=1,'Sjekkliste noter'!N116,"") -> 
A68: =+'Sjekkliste noter'!A117 -> 68 | B68: =IF('Sjekkliste noter'!M117<>"",1,0) -> 0 | C68: 0 | D68: =IF($C68=1,'Sjekkliste noter'!A117,"") ->  | E68: =IF($C68=1,'Sjekkliste noter'!B117,"") ->  | G68: =IF($C68=1,'Sjekkliste noter'!N117,"") -> 
A69: =+'Sjekkliste noter'!A118 -> 69 | B69: =IF('Sjekkliste noter'!M118<>"",1,0) -> 0 | C69: 0 | D69: =IF($C69=1,'Sjekkliste noter'!A118,"") ->  | E69: =IF($C69=1,'Sjekkliste noter'!B118,"") ->  | G69: =IF($C69=1,'Sjekkliste noter'!N118,"") -> 
A70: =+'Sjekkliste noter'!A120 -> 70 | B70: =IF('Sjekkliste noter'!M120<>"",1,0) -> 0 | C70: 0 | D70: =IF($C70=1,'Sjekkliste noter'!A120,"") ->  | E70: =IF($C70=1,'Sjekkliste noter'!B120,"") ->  | G70: =IF($C70=1,'Sjekkliste noter'!N120,"") -> 
A71: =+'Sjekkliste noter'!A122 -> 71 | B71: =IF('Sjekkliste noter'!M122<>"",1,0) -> 0 | C71: 0 | D71: =IF($C71=1,'Sjekkliste noter'!A122,"") ->  | E71: =IF($C71=1,'Sjekkliste noter'!B122,"") ->  | G71: =IF($C71=1,'Sjekkliste noter'!N122,"") -> 
A72: =+'Sjekkliste noter'!A124 -> 72 | B72: =IF('Sjekkliste noter'!M124<>"",1,0) -> 0 | C72: 0 | D72: =IF($C72=1,'Sjekkliste noter'!A124,"") ->  | E72: =IF($C72=1,'Sjekkliste noter'!B124,"") ->  | G72: =IF($C72=1,'Sjekkliste noter'!N124,"") -> 
A73: =+'Sjekkliste noter'!A129 -> 73 | B73: =IF('Sjekkliste noter'!M129<>"",1,0) -> 0 | C73: 0 | D73: =IF($C73=1,'Sjekkliste noter'!A129,"") ->  | E73: =IF($C73=1,'Sjekkliste noter'!B129,"") ->  | G73: =IF($C73=1,'Sjekkliste noter'!N129,"") -> 
A74: =+'Sjekkliste noter'!A133 -> 74 | B74: =IF('Sjekkliste noter'!M133<>"",1,0) -> 0 | C74: 0 | D74: =IF($C74=1,'Sjekkliste noter'!A133,"") ->  | E74: =IF($C74=1,'Sjekkliste noter'!B133,"") ->  | G74: =IF($C74=1,'Sjekkliste noter'!N133,"") -> 
A75: =+'Sjekkliste noter'!A134 -> 75 | B75: =IF('Sjekkliste noter'!M134<>"",1,0) -> 0 | C75: 0 | D75: =IF($C75=1,'Sjekkliste noter'!A134,"") ->  | E75: =IF($C75=1,'Sjekkliste noter'!B134,"") ->  | G75: =IF($C75=1,'Sjekkliste noter'!N134,"") -> 
A76: =+'Sjekkliste noter'!A135 -> 76 | B76: =IF('Sjekkliste noter'!M135<>"",1,0) -> 0 | C76: 0 | D76: =IF($C76=1,'Sjekkliste noter'!A135,"") ->  | E76: =IF($C76=1,'Sjekkliste noter'!B135,"") ->  | G76: =IF($C76=1,'Sjekkliste noter'!N135,"") -> 
A77: =+'Sjekkliste noter'!A137 -> 77 | B77: =IF('Sjekkliste noter'!M137<>"",1,0) -> 0 | C77: 0 | D77: =IF($C77=1,'Sjekkliste noter'!A137,"") ->  | E77: =IF($C77=1,'Sjekkliste noter'!B137,"") ->  | G77: =IF($C77=1,'Sjekkliste noter'!N137,"") -> 
A78: =+'Sjekkliste noter'!A141 -> 78 | B78: =IF('Sjekkliste noter'!M141<>"",1,0) -> 0 | C78: 0 | D78: =IF($C78=1,'Sjekkliste noter'!A141,"") ->  | E78: =IF($C78=1,'Sjekkliste noter'!B141,"") ->  | G78: =IF($C78=1,'Sjekkliste noter'!N141,"") -> 
A79: =+'Sjekkliste noter'!A144 -> 79 | B79: =IF('Sjekkliste noter'!M144<>"",1,0) -> 0 | C79: 0 | D79: =IF($C79=1,'Sjekkliste noter'!A144,"") ->  | E79: =IF($C79=1,'Sjekkliste noter'!B144,"") ->  | G79: =IF($C79=1,'Sjekkliste noter'!N144,"") -> 
A80: =+'Sjekkliste noter'!A147 -> 80 | B80: =IF('Sjekkliste noter'!M147<>"",1,0) -> 0 | C80: 0 | D80: =IF($C80=1,'Sjekkliste noter'!A147,"") ->  | E80: =IF($C80=1,'Sjekkliste noter'!B147,"") ->  | G80: =IF($C80=1,'Sjekkliste noter'!N147,"") -> 
A81: =+'Sjekkliste noter'!A148 -> 81 | B81: =IF('Sjekkliste noter'!M148<>"",1,0) -> 0 | C81: 0 | D81: =IF($C81=1,'Sjekkliste noter'!A148,"") ->  | E81: =IF($C81=1,'Sjekkliste noter'!B148,"") ->  | G81: =IF($C81=1,'Sjekkliste noter'!N148,"") -> 
A82: =+'Sjekkliste noter'!A149 -> 82 | B82: =IF('Sjekkliste noter'!M149<>"",1,0) -> 0 | C82: 0 | D82: =IF($C82=1,'Sjekkliste noter'!A149,"") ->  | E82: =IF($C82=1,'Sjekkliste noter'!B149,"") ->  | G82: =IF($C82=1,'Sjekkliste noter'!N149,"") -> 
A83: =+'Sjekkliste noter'!A151 -> 83 | B83: =IF('Sjekkliste noter'!M151<>"",1,0) -> 0 | C83: 0 | D83: =IF($C83=1,'Sjekkliste noter'!A151,"") ->  | E83: =IF($C83=1,'Sjekkliste noter'!B151,"") ->  | G83: =IF($C83=1,'Sjekkliste noter'!N151,"") -> 
A84: =+'Sjekkliste noter'!A152 -> 84 | B84: =IF('Sjekkliste noter'!M152<>"",1,0) -> 0 | C84: 0 | D84: =IF($C84=1,'Sjekkliste noter'!A152,"") ->  | E84: =IF($C84=1,'Sjekkliste noter'!B152,"") ->  | G84: =IF($C84=1,'Sjekkliste noter'!N152,"") -> 
A85: =+'Sjekkliste noter'!A153 -> 85 | B85: =IF('Sjekkliste noter'!M153<>"",1,0) -> 0 | C85: 0 | D85: =IF($C85=1,'Sjekkliste noter'!A153,"") ->  | E85: =IF($C85=1,'Sjekkliste noter'!B153,"") ->  | G85: =IF($C85=1,'Sjekkliste noter'!N153,"") -> 
A86: =+'Sjekkliste noter'!A156 -> 86 | B86: =IF('Sjekkliste noter'!M156<>"",1,0) -> 0 | C86: 0 | D86: =IF($C86=1,'Sjekkliste noter'!A156,"") ->  | E86: =IF($C86=1,'Sjekkliste noter'!B156,"") ->  | G86: =IF($C86=1,'Sjekkliste noter'!N156,"") -> 
A87: =+'Sjekkliste noter'!A160 -> 87 | B87: =IF('Sjekkliste noter'!M160<>"",1,0) -> 0 | C87: 0 | D87: =IF($C87=1,'Sjekkliste noter'!A160,"") ->  | E87: =IF($C87=1,'Sjekkliste noter'!B160,"") ->  | G87: =IF($C87=1,'Sjekkliste noter'!N160,"") -> 
A88: =+'Sjekkliste noter'!A161 -> 88 | B88: =IF('Sjekkliste noter'!M161<>"",1,0) -> 0 | C88: 0 | D88: =IF($C88=1,'Sjekkliste noter'!A161,"") ->  | E88: =IF($C88=1,'Sjekkliste noter'!B161,"") ->  | G88: =IF($C88=1,'Sjekkliste noter'!N161,"") -> 
A89: =+'Sjekkliste noter'!A162 -> 89 | B89: =IF('Sjekkliste noter'!M162<>"",1,0) -> 0 | C89: 0 | D89: =IF($C89=1,'Sjekkliste noter'!A162,"") ->  | E89: =IF($C89=1,'Sjekkliste noter'!B162,"") ->  | G89: =IF($C89=1,'Sjekkliste noter'!N162,"") -> 
A90: =+'Sjekkliste noter'!A163 -> 90 | B90: =IF('Sjekkliste noter'!M163<>"",1,0) -> 0 | C90: 0 | D90: =IF($C90=1,'Sjekkliste noter'!A163,"") ->  | E90: =IF($C90=1,'Sjekkliste noter'!B163,"") ->  | G90: =IF($C90=1,'Sjekkliste noter'!N163,"") -> 
A91: =+'Sjekkliste noter'!A167 -> 91 | B91: =IF('Sjekkliste noter'!M167<>"",1,0) -> 0 | C91: 0 | D91: =IF($C91=1,'Sjekkliste noter'!A167,"") ->  | E91: =IF($C91=1,'Sjekkliste noter'!B167,"") ->  | G91: =IF($C91=1,'Sjekkliste noter'!N167,"") -> 
A92: =+'Sjekkliste noter'!A168 -> 92 | B92: =IF('Sjekkliste noter'!M168<>"",1,0) -> 0 | C92: 0 | D92: =IF($C92=1,'Sjekkliste noter'!A168,"") ->  | E92: =IF($C92=1,'Sjekkliste noter'!B168,"") ->  | G92: =IF($C92=1,'Sjekkliste noter'!N168,"") -> 
A93: =+'Sjekkliste noter'!A169 -> 93 | B93: =IF('Sjekkliste noter'!M169<>"",1,0) -> 0 | C93: 0 | D93: =IF($C93=1,'Sjekkliste noter'!A169,"") ->  | E93: =IF($C93=1,'Sjekkliste noter'!B169,"") ->  | G93: =IF($C93=1,'Sjekkliste noter'!N169,"") -> 
A94: =+'Sjekkliste noter'!A170 -> 94 | B94: =IF('Sjekkliste noter'!M170<>"",1,0) -> 0 | C94: 0 | D94: =IF($C94=1,'Sjekkliste noter'!A170,"") ->  | E94: =IF($C94=1,'Sjekkliste noter'!B170,"") ->  | G94: =IF($C94=1,'Sjekkliste noter'!N170,"") -> 
A95: =+'Sjekkliste noter'!A171 -> 95 | B95: =IF('Sjekkliste noter'!M171<>"",1,0) -> 0 | C95: 0 | D95: =IF($C95=1,'Sjekkliste noter'!A171,"") ->  | E95: =IF($C95=1,'Sjekkliste noter'!B171,"") ->  | G95: =IF($C95=1,'Sjekkliste noter'!N171,"") -> 
A96: =+'Sjekkliste noter'!A173 -> 96 | B96: =IF('Sjekkliste noter'!M173<>"",1,0) -> 0 | C96: 0 | D96: =IF($C96=1,'Sjekkliste noter'!A173,"") ->  | E96: =IF($C96=1,'Sjekkliste noter'!B173,"") ->  | G96: =IF($C96=1,'Sjekkliste noter'!N173,"") -> 
A97: =+'Sjekkliste noter'!A174 -> 97 | B97: =IF('Sjekkliste noter'!M174<>"",1,0) -> 0 | C97: 0 | D97: =IF($C97=1,'Sjekkliste noter'!A174,"") ->  | E97: =IF($C97=1,'Sjekkliste noter'!B174,"") ->  | G97: =IF($C97=1,'Sjekkliste noter'!N174,"") -> 
A98: =+'Sjekkliste noter'!A175 -> 98 | B98: =IF('Sjekkliste noter'!M175<>"",1,0) -> 0 | C98: =SUM(B98:B98) -> 0 | D98: =IF($C98=1,'Sjekkliste noter'!A175,"") ->  | E98: =IF($C98=1,'Sjekkliste noter'!B175,"") ->  | G98: =IF($C98=1,'Sjekkliste noter'!N175,"") -> 
A99: =+'Sjekkliste noter'!A177 -> 99 | B99: =IF('Sjekkliste noter'!M177<>"",1,0) -> 0 | C99: 0 | D99: =IF($C99=1,'Sjekkliste noter'!A177,"") ->  | E99: =IF($C99=1,'Sjekkliste noter'!B177,"") ->  | G99: =IF($C99=1,'Sjekkliste noter'!N177,"") -> 
A100: =+'Sjekkliste noter'!A178 -> 100 | B100: =IF('Sjekkliste noter'!M178<>"",1,0) -> 0 | C100: 0 | D100: =IF($C100=1,'Sjekkliste noter'!A178,"") ->  | E100: =IF($C100=1,'Sjekkliste noter'!B178,"") ->  | G100: =IF($C100=1,'Sjekkliste noter'!N178,"") -> 
A101: =+'Sjekkliste noter'!A179 -> 101 | B101: =IF('Sjekkliste noter'!M179<>"",1,0) -> 0 | C101: 0 | D101: =IF($C101=1,'Sjekkliste noter'!A179,"") ->  | E101: =IF($C101=1,'Sjekkliste noter'!B179,"") ->  | G101: =IF($C101=1,'Sjekkliste noter'!N179,"") -> 
A102: =+'Sjekkliste noter'!A180 -> 102 | B102: =IF('Sjekkliste noter'!M180<>"",1,0) -> 0 | C102: 0 | D102: =IF($C102=1,'Sjekkliste noter'!A180,"") ->  | E102: =IF($C102=1,'Sjekkliste noter'!B180,"") ->  | G102: =IF($C102=1,'Sjekkliste noter'!N180,"") -> 
A103: =+'Sjekkliste noter'!A181 -> 103 | B103: =IF('Sjekkliste noter'!M181<>"",1,0) -> 0 | C103: 0 | D103: =IF($C103=1,'Sjekkliste noter'!A181,"") ->  | E103: =IF($C103=1,'Sjekkliste noter'!B181,"") ->  | G103: =IF($C103=1,'Sjekkliste noter'!N181,"") -> 
A104: =+'Sjekkliste noter'!A184 -> 104 | B104: =IF('Sjekkliste noter'!M184<>"",1,0) -> 0 | C104: 0 | D104: =IF($C104=1,'Sjekkliste noter'!A184,"") ->  | E104: =IF($C104=1,'Sjekkliste noter'!B184,"") ->  | G104: =IF($C104=1,'Sjekkliste noter'!N184,"") -> 
A105: =+'Sjekkliste noter'!A187 -> 105 | B105: =IF('Sjekkliste noter'!M187<>"",1,0) -> 0 | C105: 0 | D105: =IF($C105=1,'Sjekkliste noter'!A187,"") ->  | E105: =IF($C105=1,'Sjekkliste noter'!B187,"") ->  | G105: =IF($C105=1,'Sjekkliste noter'!N187,"") -> 
A106: =+'Sjekkliste noter'!A188 -> 106 | B106: =IF('Sjekkliste noter'!M188<>"",1,0) -> 0 | C106: 0 | D106: =IF($C106=1,'Sjekkliste noter'!A188,"") ->  | E106: =IF($C106=1,'Sjekkliste noter'!B188,"") ->  | G106: =IF($C106=1,'Sjekkliste noter'!N188,"") -> 
A107: =+'Sjekkliste noter'!A189 -> 107 | B107: =IF('Sjekkliste noter'!M189<>"",1,0) -> 0 | C107: 0 | D107: =IF($C107=1,'Sjekkliste noter'!A189,"") ->  | E107: =IF($C107=1,'Sjekkliste noter'!B189,"") ->  | G107: =IF($C107=1,'Sjekkliste noter'!N189,"") -> 
A108: =+'Sjekkliste noter'!A190 -> 108 | B108: =IF('Sjekkliste noter'!M190<>"",1,0) -> 0 | C108: 0 | D108: =IF($C108=1,'Sjekkliste noter'!A190,"") ->  | E108: =IF($C108=1,'Sjekkliste noter'!B190,"") ->  | G108: =IF($C108=1,'Sjekkliste noter'!N190,"") -> 
A109: =+'Sjekkliste noter'!A191 -> 109 | B109: =IF('Sjekkliste noter'!M191<>"",1,0) -> 0 | C109: 0 | D109: =IF($C109=1,'Sjekkliste noter'!A191,"") ->  | E109: =IF($C109=1,'Sjekkliste noter'!B191,"") ->  | G109: =IF($C109=1,'Sjekkliste noter'!N191,"") -> 
A110: =+'Sjekkliste noter'!A194 -> 110 | B110: =IF('Sjekkliste noter'!M194<>"",1,0) -> 0 | C110: 0 | D110: =IF($C110=1,'Sjekkliste noter'!A194,"") ->  | E110: =IF($C110=1,'Sjekkliste noter'!B194,"") ->  | G110: =IF($C110=1,'Sjekkliste noter'!N194,"") -> 
A111: =+'Sjekkliste noter'!A195 -> 111 | B111: =IF('Sjekkliste noter'!M195<>"",1,0) -> 0 | C111: 0 | D111: =IF($C111=1,'Sjekkliste noter'!A195,"") ->  | E111: =IF($C111=1,'Sjekkliste noter'!B195,"") ->  | G111: =IF($C111=1,'Sjekkliste noter'!N195,"") -> 
A112: =+'Sjekkliste noter'!A196 -> 112 | B112: =IF('Sjekkliste noter'!M196<>"",1,0) -> 0 | C112: 0 | D112: =IF($C112=1,'Sjekkliste noter'!A196,"") ->  | E112: =IF($C112=1,'Sjekkliste noter'!B196,"") ->  | G112: =IF($C112=1,'Sjekkliste noter'!N196,"") -> 
A113: =+'Sjekkliste noter'!A197 -> 113 | B113: =IF('Sjekkliste noter'!M197<>"",1,0) -> 0 | C113: 0 | D113: =IF($C113=1,'Sjekkliste noter'!A197,"") ->  | E113: =IF($C113=1,'Sjekkliste noter'!B197,"") ->  | G113: =IF($C113=1,'Sjekkliste noter'!N197,"") -> 
A114: =+'Sjekkliste noter'!A198 -> 114 | B114: =IF('Sjekkliste noter'!M198<>"",1,0) -> 0 | C114: 0 | D114: =IF($C114=1,'Sjekkliste noter'!A198,"") ->  | E114: =IF($C114=1,'Sjekkliste noter'!B198,"") ->  | G114: =IF($C114=1,'Sjekkliste noter'!N198,"") -> 
A115: =+'Sjekkliste noter'!A199 -> 115 | B115: =IF('Sjekkliste noter'!M199<>"",1,0) -> 0 | C115: 0 | D115: =IF($C115=1,'Sjekkliste noter'!A199,"") ->  | E115: =IF($C115=1,'Sjekkliste noter'!B199,"") ->  | G115: =IF($C115=1,'Sjekkliste noter'!N199,"") -> 
A116: =+'Sjekkliste noter'!A200 -> 116 | B116: =IF('Sjekkliste noter'!M200<>"",1,0) -> 0 | C116: 0 | D116: =IF($C116=1,'Sjekkliste noter'!A200,"") ->  | E116: =IF($C116=1,'Sjekkliste noter'!B200,"") ->  | G116: =IF($C116=1,'Sjekkliste noter'!N200,"") -> 
A117: =+'Sjekkliste noter'!A201 -> 117 | B117: =IF('Sjekkliste noter'!M201<>"",1,0) -> 0 | C117: 0 | D117: =IF($C117=1,'Sjekkliste noter'!A201,"") ->  | E117: =IF($C117=1,'Sjekkliste noter'!B201,"") ->  | G117: =IF($C117=1,'Sjekkliste noter'!N201,"") -> 
A118: =+'Sjekkliste noter'!A202 -> 118 | B118: =IF('Sjekkliste noter'!M202<>"",1,0) -> 0 | C118: 0 | D118: =IF($C118=1,'Sjekkliste noter'!A202,"") ->  | E118: =IF($C118=1,'Sjekkliste noter'!B202,"") ->  | G118: =IF($C118=1,'Sjekkliste noter'!N202,"") -> 
A119: =+'Sjekkliste noter'!A204 -> 119 | B119: =IF('Sjekkliste noter'!M204<>"",1,0) -> 0 | C119: 0 | D119: =IF($C119=1,'Sjekkliste noter'!A204,"") ->  | E119: =IF($C119=1,'Sjekkliste noter'!B204,"") ->  | G119: =IF($C119=1,'Sjekkliste noter'!N204,"") -> 
A120: =+'Sjekkliste noter'!A206 -> 120 | B120: =IF('Sjekkliste noter'!M206<>"",1,0) -> 0 | C120: 0 | D120: =IF($C120=1,'Sjekkliste noter'!A206,"") ->  | E120: =IF($C120=1,'Sjekkliste noter'!B206,"") ->  | G120: =IF($C120=1,'Sjekkliste noter'!N206,"") -> 
A121: =+'Sjekkliste noter'!A209 -> 121 | B121: =IF('Sjekkliste noter'!M209<>"",1,0) -> 0 | C121: 0 | D121: =IF($C121=1,'Sjekkliste noter'!A209,"") ->  | E121: =IF($C121=1,'Sjekkliste noter'!B209,"") ->  | G121: =IF($C121=1,'Sjekkliste noter'!N209,"") -> 
A122: =+'Sjekkliste noter'!A211 -> 122 | B122: =IF('Sjekkliste noter'!M211<>"",1,0) -> 0 | C122: 0 | D122: =IF($C122=1,'Sjekkliste noter'!A211,"") ->  | E122: =IF($C122=1,'Sjekkliste noter'!B211,"") ->  | G122: =IF($C122=1,'Sjekkliste noter'!N211,"") -> 
A123: =+'Sjekkliste noter'!A215 -> 123 | B123: =IF('Sjekkliste noter'!M215<>"",1,0) -> 0 | C123: 0 | D123: =IF($C123=1,'Sjekkliste noter'!A215,"") ->  | E123: =IF($C123=1,'Sjekkliste noter'!B215,"") ->  | G123: =IF($C123=1,'Sjekkliste noter'!N215,"") -> 
A124: =+'Sjekkliste noter'!A220 -> 124 | B124: =IF('Sjekkliste noter'!M220<>"",1,0) -> 0 | C124: 0 | D124: =IF($C124=1,'Sjekkliste noter'!A220,"") ->  | E124: =IF($C124=1,'Sjekkliste noter'!B220,"") ->  | G124: =IF($C124=1,'Sjekkliste noter'!N220,"") -> 
A125: =+'Sjekkliste noter'!A222 -> 125 | B125: =IF('Sjekkliste noter'!M222<>"",1,0) -> 0 | C125: 0 | D125: =IF($C125=1,'Sjekkliste noter'!A222,"") ->  | E125: =IF($C125=1,'Sjekkliste noter'!B222,"") ->  | G125: =IF($C125=1,'Sjekkliste noter'!N222,"") -> 
A126: =+'Sjekkliste noter'!A224 -> 126 | B126: =IF('Sjekkliste noter'!M224<>"",1,0) -> 0 | C126: 0 | D126: =IF($C126=1,'Sjekkliste noter'!A224,"") ->  | E126: =IF($C126=1,'Sjekkliste noter'!B224,"") ->  | G126: =IF($C126=1,'Sjekkliste noter'!N224,"") -> 
A127: =+'Sjekkliste noter'!A226 -> 127 | B127: =IF('Sjekkliste noter'!M226<>"",1,0) -> 0 | C127: 0 | D127: =IF($C127=1,'Sjekkliste noter'!A226,"") ->  | E127: =IF($C127=1,'Sjekkliste noter'!B226,"") ->  | G127: =IF($C127=1,'Sjekkliste noter'!N226,"") -> 
A128: =+'Sjekkliste noter'!A227 -> 128 | B128: =IF('Sjekkliste noter'!M227<>"",1,0) -> 0 | C128: 0 | D128: =IF($C128=1,'Sjekkliste noter'!A227,"") ->  | E128: =IF($C128=1,'Sjekkliste noter'!B227,"") ->  | G128: =IF($C128=1,'Sjekkliste noter'!N227,"") -> 
A129: =+'Sjekkliste noter'!A228 -> 129 | B129: =IF('Sjekkliste noter'!M228<>"",1,0) -> 0 | C129: 0 | D129: =IF($C129=1,'Sjekkliste noter'!A228,"") ->  | E129: =IF($C129=1,'Sjekkliste noter'!B228,"") ->  | G129: =IF($C129=1,'Sjekkliste noter'!N228,"") -> 
A130: =+'Sjekkliste noter'!A233 -> 130 | B130: =IF('Sjekkliste noter'!M233<>"",1,0) -> 0 | C130: =SUM(B130:B130) -> 0 | D130: =IF($C130=1,'Sjekkliste noter'!A233,"") ->  | E130: =IF($C130=1,'Sjekkliste noter'!B233,"") ->  | G130: =IF($C130=1,'Sjekkliste noter'!N233,"") -> 
A131: =+'Sjekkliste noter'!A236 -> 131 | B131: =IF('Sjekkliste noter'!M236<>"",1,0) -> 0 | C131: 0 | D131: =IF($C131=1,'Sjekkliste noter'!A236,"") ->  | E131: =IF($C131=1,'Sjekkliste noter'!B236,"") ->  | G131: =IF($C131=1,'Sjekkliste noter'!N236,"") -> 
A132: =+'Sjekkliste noter'!A239 -> 132 | B132: =IF('Sjekkliste noter'!M239<>"",1,0) -> 0 | C132: 0 | D132: =IF($C132=1,'Sjekkliste noter'!A239,"") ->  | E132: =IF($C132=1,'Sjekkliste noter'!B239,"") ->  | G132: =IF($C132=1,'Sjekkliste noter'!N239,"") -> 
A133: =+'Sjekkliste noter'!A242 -> 133 | B133: =IF('Sjekkliste noter'!M242<>"",1,0) -> 0 | C133: 0 | D133: =IF($C133=1,'Sjekkliste noter'!A242,"") ->  | E133: =IF($C133=1,'Sjekkliste noter'!B242,"") ->  | G133: =IF($C133=1,'Sjekkliste noter'!N242,"") -> 
A134: =+'Sjekkliste noter'!A244 -> 134 | B134: =IF('Sjekkliste noter'!M244<>"",1,0) -> 0 | C134: 0 | D134: =IF($C134=1,'Sjekkliste noter'!A244,"") ->  | E134: =IF($C134=1,'Sjekkliste noter'!B244,"") ->  | G134: =IF($C134=1,'Sjekkliste noter'!N244,"") -> 
A135: =+'Sjekkliste noter'!A246 -> 135 | B135: =IF('Sjekkliste noter'!M246<>"",1,0) -> 0 | C135: 0 | D135: =IF($C135=1,'Sjekkliste noter'!A246,"") ->  | E135: =IF($C135=1,'Sjekkliste noter'!B246,"") ->  | G135: =IF($C135=1,'Sjekkliste noter'!N246,"") -> 
A136: =+'Sjekkliste noter'!A248 -> 136 | B136: =IF('Sjekkliste noter'!M248<>"",1,0) -> 0 | C136: 0 | D136: =IF($C136=1,'Sjekkliste noter'!A248,"") ->  | E136: =IF($C136=1,'Sjekkliste noter'!B248,"") ->  | G136: =IF($C136=1,'Sjekkliste noter'!N248,"") -> 
A137: =+'Sjekkliste noter'!A252 -> 137 | B137: =IF('Sjekkliste noter'!M252<>"",1,0) -> 0 | C137: 0 | D137: =IF($C137=1,'Sjekkliste noter'!A252,"") ->  | E137: =IF($C137=1,'Sjekkliste noter'!B252,"") ->  | G137: =IF($C137=1,'Sjekkliste noter'!N252,"") -> 
A138: =+'Sjekkliste noter'!A254 -> 138 | B138: =IF('Sjekkliste noter'!M254<>"",1,0) -> 0 | C138: 0 | D138: =IF($C138=1,'Sjekkliste noter'!A254,"") ->  | E138: =IF($C138=1,'Sjekkliste noter'!B254,"") ->  | G138: =IF($C138=1,'Sjekkliste noter'!N254,"") -> 
A139: =+'Sjekkliste noter'!A256 -> 139 | B139: =IF('Sjekkliste noter'!M256<>"",1,0) -> 0 | C139: 0 | D139: =IF($C139=1,'Sjekkliste noter'!A256,"") ->  | E139: =IF($C139=1,'Sjekkliste noter'!B256,"") ->  | G139: =IF($C139=1,'Sjekkliste noter'!N256,"") -> 
A140: =+'Sjekkliste noter'!A259 -> 140 | B140: =IF('Sjekkliste noter'!M259<>"",1,0) -> 0 | C140: 0 | D140: =IF($C140=1,'Sjekkliste noter'!A259,"") ->  | E140: =IF($C140=1,'Sjekkliste noter'!B259,"") ->  | G140: =IF($C140=1,'Sjekkliste noter'!N259,"") -> 
A141: =+'Sjekkliste noter'!A262 -> 141 | B141: =IF('Sjekkliste noter'!M262<>"",1,0) -> 0 | C141: 0 | D141: =IF($C141=1,'Sjekkliste noter'!A262,"") ->  | E141: =IF($C141=1,'Sjekkliste noter'!B262,"") ->  | G141: =IF($C141=1,'Sjekkliste noter'!N262,"") -> 
A142: =+'Sjekkliste noter'!A266 -> 142 | B142: =IF('Sjekkliste noter'!M266<>"",1,0) -> 0 | C142: 0 | D142: =IF($C142=1,'Sjekkliste noter'!A266,"") ->  | E142: =IF($C142=1,'Sjekkliste noter'!B266,"") ->  | G142: =IF($C142=1,'Sjekkliste noter'!N266,"") -> 
A143: =+'Sjekkliste noter'!A267 -> 143 | B143: =IF('Sjekkliste noter'!M267<>"",1,0) -> 0 | C143: 0 | D143: =IF($C143=1,'Sjekkliste noter'!A267,"") ->  | E143: =IF($C143=1,'Sjekkliste noter'!B267,"") ->  | G143: =IF($C143=1,'Sjekkliste noter'!N267,"") -> 
A144: =+'Sjekkliste noter'!A268 -> 144 | B144: =IF('Sjekkliste noter'!M268<>"",1,0) -> 0 | C144: 0 | D144: =IF($C144=1,'Sjekkliste noter'!A268,"") ->  | E144: =IF($C144=1,'Sjekkliste noter'!B268,"") ->  | G144: =IF($C144=1,'Sjekkliste noter'!N268,"") -> 
A145: =+'Sjekkliste noter'!A270 -> 145 | B145: =IF('Sjekkliste noter'!M270<>"",1,0) -> 0 | C145: 0 | D145: =IF($C145=1,'Sjekkliste noter'!A270,"") ->  | E145: =IF($C145=1,'Sjekkliste noter'!B270,"") ->  | G145: =IF($C145=1,'Sjekkliste noter'!N270,"") -> 
A146: =+'Sjekkliste noter'!A271 -> 146 | B146: =IF('Sjekkliste noter'!M271<>"",1,0) -> 0 | C146: 0 | D146: =IF($C146=1,'Sjekkliste noter'!A271,"") ->  | E146: =IF($C146=1,'Sjekkliste noter'!B271,"") ->  | G146: =IF($C146=1,'Sjekkliste noter'!N271,"") -> 
A147: =+'Sjekkliste noter'!A273 -> 147 | B147: =IF('Sjekkliste noter'!M273<>"",1,0) -> 0 | C147: 0 | D147: =IF($C147=1,'Sjekkliste noter'!A273,"") ->  | E147: =IF($C147=1,'Sjekkliste noter'!B273,"") ->  | G147: =IF($C147=1,'Sjekkliste noter'!N273,"") -> 
A148: =+'Sjekkliste noter'!A274 -> 148 | B148: =IF('Sjekkliste noter'!M274<>"",1,0) -> 0 | C148: 0 | D148: =IF($C148=1,'Sjekkliste noter'!A274,"") ->  | E148: =IF($C148=1,'Sjekkliste noter'!B274,"") ->  | G148: =IF($C148=1,'Sjekkliste noter'!N274,"") -> 
A149: =+'Sjekkliste noter'!A275 -> 149 | B149: =IF('Sjekkliste noter'!M275<>"",1,0) -> 0 | C149: 0 | D149: =IF($C149=1,'Sjekkliste noter'!A275,"") ->  | E149: =IF($C149=1,'Sjekkliste noter'!B275,"") ->  | G149: =IF($C149=1,'Sjekkliste noter'!N275,"") -> 
A150: =+'Sjekkliste noter'!A279 -> 150 | B150: =IF('Sjekkliste noter'!M279<>"",1,0) -> 0 | C150: 0 | D150: =IF($C150=1,'Sjekkliste noter'!A279,"") ->  | E150: =IF($C150=1,'Sjekkliste noter'!B279,"") ->  | G150: =IF($C150=1,'Sjekkliste noter'!N279,"") -> 
A151: =+'Sjekkliste noter'!A283 -> 151 | B151: =IF('Sjekkliste noter'!M283<>"",1,0) -> 0 | C151: 0 | D151: =IF($C151=1,'Sjekkliste noter'!A283,"") ->  | E151: =IF($C151=1,'Sjekkliste noter'!B283,"") ->  | G151: =IF($C151=1,'Sjekkliste noter'!N283,"") -> 
A152: =+'Sjekkliste noter'!A285 -> 152 | B152: =IF('Sjekkliste noter'!M285<>"",1,0) -> 0 | C152: 0 | D152: =IF($C152=1,'Sjekkliste noter'!A285,"") ->  | E152: =IF($C152=1,'Sjekkliste noter'!B285,"") ->  | G152: =IF($C152=1,'Sjekkliste noter'!N285,"") -> 
A153: =+'Sjekkliste noter'!A287 -> 153 | B153: =IF('Sjekkliste noter'!M287<>"",1,0) -> 0 | C153: 0 | D153: =IF($C153=1,'Sjekkliste noter'!A287,"") ->  | E153: =IF($C153=1,'Sjekkliste noter'!B287,"") ->  | G153: =IF($C153=1,'Sjekkliste noter'!N287,"") -> 
A154: =+'Sjekkliste noter'!A290 -> 154 | B154: =IF('Sjekkliste noter'!M290<>"",1,0) -> 0 | C154: 0 | D154: =IF($C154=1,'Sjekkliste noter'!A290,"") ->  | E154: =IF($C154=1,'Sjekkliste noter'!B290,"") ->  | G154: =IF($C154=1,'Sjekkliste noter'!N290,"") -> 
A155: =+'Sjekkliste noter'!A291 -> 155 | B155: =IF('Sjekkliste noter'!M291<>"",1,0) -> 0 | C155: 0 | D155: =IF($C155=1,'Sjekkliste noter'!A291,"") ->  | E155: =IF($C155=1,'Sjekkliste noter'!B291,"") ->  | G155: =IF($C155=1,'Sjekkliste noter'!N291,"") -> 
A156: =+'Sjekkliste noter'!A292 -> 156 | B156: =IF('Sjekkliste noter'!M292<>"",1,0) -> 0 | C156: 0 | D156: =IF($C156=1,'Sjekkliste noter'!A292,"") ->  | E156: =IF($C156=1,'Sjekkliste noter'!B292,"") ->  | G156: =IF($C156=1,'Sjekkliste noter'!N292,"") -> 
A157: =+'Sjekkliste noter'!A293 -> 157 | B157: =IF('Sjekkliste noter'!M293<>"",1,0) -> 0 | C157: 0 | D157: =IF($C157=1,'Sjekkliste noter'!A293,"") ->  | E157: =IF($C157=1,'Sjekkliste noter'!B293,"") ->  | G157: =IF($C157=1,'Sjekkliste noter'!N293,"") -> 

Sheet N_IB (hidden)
C1: =COUNTIF(C2:C160,"=1") -> 0 | D1: IBsvar | E1: =+Forside!B2 -> 0 | F1: =+Forside!B3 -> 2020 | G1: Kommentarer
A2: =+'Sjekkliste noter'!A16 -> 1 | B2: =IF('Sjekkliste noter'!L16<>"",1,0) -> 0 | C2: =SUM(B2:B2) -> 0 | D2: =IF($C2=1,'Sjekkliste noter'!A16,"") ->  | E2: =IF($C2=1,'Sjekkliste noter'!B16,"") ->  | G2: =IF($C2=1,'Sjekkliste noter'!N16,"") -> 
A3: =+'Sjekkliste noter'!A17 -> 2 | B3: =IF('Sjekkliste noter'!L17<>"",1,0) -> 0 | C3: 0 | D3: =IF($C3=1,'Sjekkliste noter'!A17,"") ->  | E3: =IF($C3=1,'Sjekkliste noter'!B17,"") ->  | G3: =IF($C3=1,'Sjekkliste noter'!N17,"") -> 
A4: =+'Sjekkliste noter'!A18 -> 3 | B4: =IF('Sjekkliste noter'!L18<>"",1,0) -> 0 | C4: 0 | D4: =IF($C4=1,'Sjekkliste noter'!A18,"") ->  | E4: =IF($C4=1,'Sjekkliste noter'!B18,"") ->  | G4: =IF($C4=1,'Sjekkliste noter'!N18,"") -> 
A5: =+'Sjekkliste noter'!A20 -> 4 | B5: =IF('Sjekkliste noter'!L20<>"",1,0) -> 0 | C5: 0 | D5: =IF($C5=1,'Sjekkliste noter'!A20,"") ->  | E5: =IF($C5=1,'Sjekkliste noter'!B20,"") ->  | G5: =IF($C5=1,'Sjekkliste noter'!N20,"") -> 
A6: =+'Sjekkliste noter'!A21 -> 5 | B6: =IF('Sjekkliste noter'!L21<>"",1,0) -> 0 | C6: 0 | D6: =IF($C6=1,'Sjekkliste noter'!A21,"") ->  | E6: =IF($C6=1,'Sjekkliste noter'!B21,"") ->  | G6: =IF($C6=1,'Sjekkliste noter'!N21,"") -> 
A7: =+'Sjekkliste noter'!A22 -> 6 | B7: =IF('Sjekkliste noter'!L22<>"",1,0) -> 0 | C7: 0 | D7: =IF($C7=1,'Sjekkliste noter'!A22,"") ->  | E7: =IF($C7=1,'Sjekkliste noter'!B22,"") ->  | G7: =IF($C7=1,'Sjekkliste noter'!N22,"") -> 
A8: =+'Sjekkliste noter'!A23 -> 7 | B8: =IF('Sjekkliste noter'!L23<>"",1,0) -> 0 | C8: 0 | D8: =IF($C8=1,'Sjekkliste noter'!A23,"") ->  | E8: =IF($C8=1,'Sjekkliste noter'!B23,"") ->  | G8: =IF($C8=1,'Sjekkliste noter'!N23,"") -> 
A9: =+'Sjekkliste noter'!A24 -> 8 | B9: =IF('Sjekkliste noter'!L24<>"",1,0) -> 0 | C9: 0 | D9: =IF($C9=1,'Sjekkliste noter'!A24,"") ->  | E9: =IF($C9=1,'Sjekkliste noter'!B24,"") ->  | G9: =IF($C9=1,'Sjekkliste noter'!N24,"") -> 
A10: =+'Sjekkliste noter'!A25 -> 9 | B10: =IF('Sjekkliste noter'!L25<>"",1,0) -> 0 | C10: 0 | D10: =IF($C10=1,'Sjekkliste noter'!A25,"") ->  | E10: =IF($C10=1,'Sjekkliste noter'!B25,"") ->  | G10: =IF($C10=1,'Sjekkliste noter'!N25,"") -> 
A11: =+'Sjekkliste noter'!A26 -> 10 | B11: =IF('Sjekkliste noter'!L26<>"",1,0) -> 0 | C11: 0 | D11: =IF($C11=1,'Sjekkliste noter'!A26,"") ->  | E11: =IF($C11=1,'Sjekkliste noter'!B26,"") ->  | G11: =IF($C11=1,'Sjekkliste noter'!N26,"") -> 
A12: =+'Sjekkliste noter'!A27 -> 11 | B12: =IF('Sjekkliste noter'!L27<>"",1,0) -> 0 | C12: 0 | D12: =IF($C12=1,'Sjekkliste noter'!A27,"") ->  | E12: =IF($C12=1,'Sjekkliste noter'!B27,"") ->  | G12: =IF($C12=1,'Sjekkliste noter'!N27,"") -> 
A13: =+'Sjekkliste noter'!A29 -> 12 | B13: =IF('Sjekkliste noter'!L29<>"",1,0) -> 0 | C13: 0 | D13: =IF($C13=1,'Sjekkliste noter'!A29,"") ->  | E13: =IF($C13=1,'Sjekkliste noter'!B29,"") ->  | G13: =IF($C13=1,'Sjekkliste noter'!N29,"") -> 
A14: =+'Sjekkliste noter'!A31 -> 13 | B14: =IF('Sjekkliste noter'!L31<>"",1,0) -> 0 | C14: 0 | D14: =IF($C14=1,'Sjekkliste noter'!A31,"") ->  | E14: =IF($C14=1,'Sjekkliste noter'!B31,"") ->  | G14: =IF($C14=1,'Sjekkliste noter'!N31,"") -> 
A15: =+'Sjekkliste noter'!A34 -> 14 | B15: =IF('Sjekkliste noter'!L34<>"",1,0) -> 0 | C15: 0 | D15: =IF($C15=1,'Sjekkliste noter'!A34,"") ->  | E15: =IF($C15=1,'Sjekkliste noter'!B34,"") ->  | G15: =IF($C15=1,'Sjekkliste noter'!N34,"") -> 
A16: =+'Sjekkliste noter'!A35 -> 15 | B16: =IF('Sjekkliste noter'!L35<>"",1,0) -> 0 | C16: 0 | D16: =IF($C16=1,'Sjekkliste noter'!A35,"") ->  | E16: =IF($C16=1,'Sjekkliste noter'!B35,"") ->  | G16: =IF($C16=1,'Sjekkliste noter'!N35,"") -> 
A17: =+'Sjekkliste noter'!A37 -> 16 | B17: =IF('Sjekkliste noter'!L37<>"",1,0) -> 0 | C17: 0 | D17: =IF($C17=1,'Sjekkliste noter'!A37,"") ->  | E17: =IF($C17=1,'Sjekkliste noter'!B37,"") ->  | G17: =IF($C17=1,'Sjekkliste noter'!N37,"") -> 
A18: =+'Sjekkliste noter'!A38 -> 17 | B18: =IF('Sjekkliste noter'!L38<>"",1,0) -> 0 | C18: 0 | D18: =IF($C18=1,'Sjekkliste noter'!A38,"") ->  | E18: =IF($C18=1,'Sjekkliste noter'!B38,"") ->  | G18: =IF($C18=1,'Sjekkliste noter'!N38,"") -> 
A19: =+'Sjekkliste noter'!A39 -> 18 | B19: =IF('Sjekkliste noter'!L39<>"",1,0) -> 0 | C19: 0 | D19: =IF($C19=1,'Sjekkliste noter'!A39,"") ->  | E19: =IF($C19=1,'Sjekkliste noter'!B39,"") ->  | G19: =IF($C19=1,'Sjekkliste noter'!N39,"") -> 
A20: =+'Sjekkliste noter'!A40 -> 19 | B20: =IF('Sjekkliste noter'!L40<>"",1,0) -> 0 | C20: 0 | D20: =IF($C20=1,'Sjekkliste noter'!A40,"") ->  | E20: =IF($C20=1,'Sjekkliste noter'!B40,"") ->  | G20: =IF($C20=1,'Sjekkliste noter'!N40,"") -> 
A21: =+'Sjekkliste noter'!A42 -> 20 | B21: =IF('Sjekkliste noter'!L42<>"",1,0) -> 0 | C21: 0 | D21: =IF($C21=1,'Sjekkliste noter'!A42,"") ->  | E21: =IF($C21=1,'Sjekkliste noter'!B42,"") ->  | G21: =IF($C21=1,'Sjekkliste noter'!N42,"") -> 
A22: =+'Sjekkliste noter'!A44 -> 21 | B22: =IF('Sjekkliste noter'!L44<>"",1,0) -> 0 | C22: 0 | D22: =IF($C22=1,'Sjekkliste noter'!A44,"") ->  | E22: =IF($C22=1,'Sjekkliste noter'!B44,"") ->  | G22: =IF($C22=1,'Sjekkliste noter'!N44,"") -> 
A23: =+'Sjekkliste noter'!A45 -> 22 | B23: =IF('Sjekkliste noter'!L45<>"",1,0) -> 0 | C23: 0 | D23: =IF($C23=1,'Sjekkliste noter'!A45,"") ->  | E23: =IF($C23=1,'Sjekkliste noter'!B45,"") ->  | G23: =IF($C23=1,'Sjekkliste noter'!N45,"") -> 
A24: =+'Sjekkliste noter'!A46 -> 23 | B24: =IF('Sjekkliste noter'!L46<>"",1,0) -> 0 | C24: 0 | D24: =IF($C24=1,'Sjekkliste noter'!A46,"") ->  | E24: =IF($C24=1,'Sjekkliste noter'!B46,"") ->  | G24: =IF($C24=1,'Sjekkliste noter'!N46,"") -> 
A25: =+'Sjekkliste noter'!A47 -> 24 | B25: =IF('Sjekkliste noter'!L47<>"",1,0) -> 0 | C25: 0 | D25: =IF($C25=1,'Sjekkliste noter'!A47,"") ->  | E25: =IF($C25=1,'Sjekkliste noter'!B47,"") ->  | G25: =IF($C25=1,'Sjekkliste noter'!N47,"") -> 
A26: =+'Sjekkliste noter'!A48 -> 25 | B26: =IF('Sjekkliste noter'!L48<>"",1,0) -> 0 | C26: 0 | D26: =IF($C26=1,'Sjekkliste noter'!A48,"") ->  | E26: =IF($C26=1,'Sjekkliste noter'!B48,"") ->  | G26: =IF($C26=1,'Sjekkliste noter'!N48,"") -> 
A27: =+'Sjekkliste noter'!A49 -> 26 | B27: =IF('Sjekkliste noter'!L49<>"",1,0) -> 0 | C27: 0 | D27: =IF($C27=1,'Sjekkliste noter'!A49,"") ->  | E27: =IF($C27=1,'Sjekkliste noter'!B49,"") ->  | G27: =IF($C27=1,'Sjekkliste noter'!N49,"") -> 
A28: =+'Sjekkliste noter'!A52 -> 27 | B28: =IF('Sjekkliste noter'!L52<>"",1,0) -> 0 | C28: 0 | D28: =IF($C28=1,'Sjekkliste noter'!A52,"") ->  | E28: =IF($C28=1,'Sjekkliste noter'!B52,"") ->  | G28: =IF($C28=1,'Sjekkliste noter'!N52,"") -> 
A29: =+'Sjekkliste noter'!A53 -> 28 | B29: =IF('Sjekkliste noter'!L53<>"",1,0) -> 0 | C29: 0 | D29: =IF($C29=1,'Sjekkliste noter'!A53,"") ->  | E29: =IF($C29=1,'Sjekkliste noter'!B53,"") ->  | G29: =IF($C29=1,'Sjekkliste noter'!N53,"") -> 
A30: =+'Sjekkliste noter'!A54 -> 29 | B30: =IF('Sjekkliste noter'!L54<>"",1,0) -> 0 | C30: 0 | D30: =IF($C30=1,'Sjekkliste noter'!A54,"") ->  | E30: =IF($C30=1,'Sjekkliste noter'!B54,"") ->  | G30: =IF($C30=1,'Sjekkliste noter'!N54,"") -> 
A31: =+'Sjekkliste noter'!A55 -> 30 | B31: =IF('Sjekkliste noter'!L55<>"",1,0) -> 0 | C31: 0 | D31: =IF($C31=1,'Sjekkliste noter'!A55,"") ->  | E31: =IF($C31=1,'Sjekkliste noter'!B55,"") ->  | G31: =IF($C31=1,'Sjekkliste noter'!N55,"") -> 
A32: =+'Sjekkliste noter'!A56 -> 31 | B32: =IF('Sjekkliste noter'!L56<>"",1,0) -> 0 | C32: 0 | D32: =IF($C32=1,'Sjekkliste noter'!A56,"") ->  | E32: =IF($C32=1,'Sjekkliste noter'!B56,"") ->  | G32: =IF($C32=1,'Sjekkliste noter'!N56,"") -> 
A33: =+'Sjekkliste noter'!A57 -> 32 | B33: =IF('Sjekkliste noter'!L57<>"",1,0) -> 0 | C33: 0 | D33: =IF($C33=1,'Sjekkliste noter'!A57,"") ->  | E33: =IF($C33=1,'Sjekkliste noter'!B57,"") ->  | G33: =IF($C33=1,'Sjekkliste noter'!N57,"") -> 
A34: =+'Sjekkliste noter'!A58 -> 33 | B34: =IF('Sjekkliste noter'!L58<>"",1,0) -> 0 | C34: =SUM(B34:B34) -> 0 | D34: =IF($C34=1,'Sjekkliste noter'!A58,"") ->  | E34: =IF($C34=1,'Sjekkliste noter'!B58,"") ->  | G34: =IF($C34=1,'Sjekkliste noter'!N58,"") -> 
A35: =+'Sjekkliste noter'!A60 -> 34 | B35: =IF('Sjekkliste noter'!L60<>"",1,0) -> 0 | C35: 0 | D35: =IF($C35=1,'Sjekkliste noter'!A60,"") ->  | E35: =IF($C35=1,'Sjekkliste noter'!B60,"") ->  | G35: =IF($C35=1,'Sjekkliste noter'!N60,"") -> 
A36: =+'Sjekkliste noter'!A62 -> 35 | B36: =IF('Sjekkliste noter'!L62<>"",1,0) -> 0 | C36: 0 | D36: =IF($C36=1,'Sjekkliste noter'!A62,"") ->  | E36: =IF($C36=1,'Sjekkliste noter'!B62,"") ->  | G36: =IF($C36=1,'Sjekkliste noter'!N62,"") -> 
A37: =+'Sjekkliste noter'!A64 -> 36 | B37: =IF('Sjekkliste noter'!L64<>"",1,0) -> 0 | C37: 0 | D37: =IF($C37=1,'Sjekkliste noter'!A64,"") ->  | E37: =IF($C37=1,'Sjekkliste noter'!B64,"") ->  | G37: =IF($C37=1,'Sjekkliste noter'!N64,"") -> 
A38: =+'Sjekkliste noter'!A65 -> 37 | B38: =IF('Sjekkliste noter'!L65<>"",1,0) -> 0 | C38: 0 | D38: =IF($C38=1,'Sjekkliste noter'!A65,"") ->  | E38: =IF($C38=1,'Sjekkliste noter'!B65,"") ->  | G38: =IF($C38=1,'Sjekkliste noter'!N65,"") -> 
A39: =+'Sjekkliste noter'!A66 -> 38 | B39: =IF('Sjekkliste noter'!L66<>"",1,0) -> 0 | C39: 0 | D39: =IF($C39=1,'Sjekkliste noter'!A66,"") ->  | E39: =IF($C39=1,'Sjekkliste noter'!B66,"") ->  | G39: =IF($C39=1,'Sjekkliste noter'!N66,"") -> 
A40: =+'Sjekkliste noter'!A67 -> 39 | B40: =IF('Sjekkliste noter'!L67<>"",1,0) -> 0 | C40: 0 | D40: =IF($C40=1,'Sjekkliste noter'!A67,"") ->  | E40: =IF($C40=1,'Sjekkliste noter'!B67,"") ->  | G40: =IF($C40=1,'Sjekkliste noter'!N67,"") -> 
A41: =+'Sjekkliste noter'!A69 -> 40 | B41: =IF('Sjekkliste noter'!L69<>"",1,0) -> 0 | C41: 0 | D41: =IF($C41=1,'Sjekkliste noter'!A69,"") ->  | E41: =IF($C41=1,'Sjekkliste noter'!B69,"") ->  | G41: =IF($C41=1,'Sjekkliste noter'!N69,"") -> 
A42: =+'Sjekkliste noter'!A70 -> 41 | B42: =IF('Sjekkliste noter'!L70<>"",1,0) -> 0 | C42: 0 | D42: =IF($C42=1,'Sjekkliste noter'!A70,"") ->  | E42: =IF($C42=1,'Sjekkliste noter'!B70,"") ->  | G42: =IF($C42=1,'Sjekkliste noter'!N70,"") -> 
A43: =+'Sjekkliste noter'!A71 -> 42 | B43: =IF('Sjekkliste noter'!L71<>"",1,0) -> 0 | C43: 0 | D43: =IF($C43=1,'Sjekkliste noter'!A71,"") ->  | E43: =IF($C43=1,'Sjekkliste noter'!B71,"") ->  | G43: =IF($C43=1,'Sjekkliste noter'!N71,"") -> 
A44: =+'Sjekkliste noter'!A73 -> 43 | B44: =IF('Sjekkliste noter'!L73<>"",1,0) -> 0 | C44: 0 | D44: =IF($C44=1,'Sjekkliste noter'!A73,"") ->  | E44: =IF($C44=1,'Sjekkliste noter'!B73,"") ->  | G44: =IF($C44=1,'Sjekkliste noter'!N73,"") -> 
A45: =+'Sjekkliste noter'!A75 -> 44 | B45: =IF('Sjekkliste noter'!L75<>"",1,0) -> 0 | C45: 0 | D45: =IF($C45=1,'Sjekkliste noter'!A75,"") ->  | E45: =IF($C45=1,'Sjekkliste noter'!B75,"") ->  | G45: =IF($C45=1,'Sjekkliste noter'!N75,"") -> 
A46: =+'Sjekkliste noter'!A76 -> 45 | B46: =IF('Sjekkliste noter'!L76<>"",1,0) -> 0 | C46: 0 | D46: =IF($C46=1,'Sjekkliste noter'!A76,"") ->  | E46: =IF($C46=1,'Sjekkliste noter'!B76,"") ->  | G46: =IF($C46=1,'Sjekkliste noter'!N76,"") -> 
A47: =+'Sjekkliste noter'!A77 -> 46 | B47: =IF('Sjekkliste noter'!L77<>"",1,0) -> 0 | C47: 0 | D47: =IF($C47=1,'Sjekkliste noter'!A77,"") ->  | E47: =IF($C47=1,'Sjekkliste noter'!B77,"") ->  | G47: =IF($C47=1,'Sjekkliste noter'!N77,"") -> 
A48: =+'Sjekkliste noter'!A81 -> 47 | B48: =IF('Sjekkliste noter'!L81<>"",1,0) -> 0 | C48: 0 | D48: =IF($C48=1,'Sjekkliste noter'!A81,"") ->  | E48: =IF($C48=1,'Sjekkliste noter'!B81,"") ->  | G48: =IF($C48=1,'Sjekkliste noter'!N81,"") -> 
A49: =+'Sjekkliste noter'!A82 -> 48 | B49: =IF('Sjekkliste noter'!L82<>"",1,0) -> 0 | C49: 0 | D49: =IF($C49=1,'Sjekkliste noter'!A82,"") ->  | E49: =IF($C49=1,'Sjekkliste noter'!B82,"") ->  | G49: =IF($C49=1,'Sjekkliste noter'!N82,"") -> 
A50: =+'Sjekkliste noter'!A83 -> 49 | B50: =IF('Sjekkliste noter'!L83<>"",1,0) -> 0 | C50: 0 | D50: =IF($C50=1,'Sjekkliste noter'!A83,"") ->  | E50: =IF($C50=1,'Sjekkliste noter'!B83,"") ->  | G50: =IF($C50=1,'Sjekkliste noter'!N83,"") -> 
A51: =+'Sjekkliste noter'!A85 -> 50 | B51: =IF('Sjekkliste noter'!L85<>"",1,0) -> 0 | C51: 0 | D51: =IF($C51=1,'Sjekkliste noter'!A85,"") ->  | E51: =IF($C51=1,'Sjekkliste noter'!B85,"") ->  | G51: =IF($C51=1,'Sjekkliste noter'!N85,"") -> 
A52: =+'Sjekkliste noter'!A86 -> 51 | B52: =IF('Sjekkliste noter'!L86<>"",1,0) -> 0 | C52: 0 | D52: =IF($C52=1,'Sjekkliste noter'!A86,"") ->  | E52: =IF($C52=1,'Sjekkliste noter'!B86,"") ->  | G52: =IF($C52=1,'Sjekkliste noter'!N86,"") -> 
A53: =+'Sjekkliste noter'!A88 -> 52 | B53: =IF('Sjekkliste noter'!L88<>"",1,0) -> 0 | C53: 0 | D53: =IF($C53=1,'Sjekkliste noter'!A88,"") ->  | E53: =IF($C53=1,'Sjekkliste noter'!B88,"") ->  | G53: =IF($C53=1,'Sjekkliste noter'!N88,"") -> 
A54: =+'Sjekkliste noter'!A90 -> 53 | B54: =IF('Sjekkliste noter'!L90<>"",1,0) -> 0 | C54: 0 | D54: =IF($C54=1,'Sjekkliste noter'!A90,"") ->  | E54: =IF($C54=1,'Sjekkliste noter'!B90,"") ->  | G54: =IF($C54=1,'Sjekkliste noter'!N90,"") -> 
A55: =+'Sjekkliste noter'!A93 -> 54 | B55: =IF('Sjekkliste noter'!L93<>"",1,0) -> 0 | C55: 0 | D55: =IF($C55=1,'Sjekkliste noter'!A93,"") ->  | E55: =IF($C55=1,'Sjekkliste noter'!B93,"") ->  | G55: =IF($C55=1,'Sjekkliste noter'!N93,"") -> 
A56: =+'Sjekkliste noter'!A94 -> 55 | B56: =IF('Sjekkliste noter'!L94<>"",1,0) -> 0 | C56: 0 | D56: =IF($C56=1,'Sjekkliste noter'!A94,"") ->  | E56: =IF($C56=1,'Sjekkliste noter'!B94,"") ->  | G56: =IF($C56=1,'Sjekkliste noter'!N94,"") -> 
A57: =+'Sjekkliste noter'!A95 -> 56 | B57: =IF('Sjekkliste noter'!L95<>"",1,0) -> 0 | C57: 0 | D57: =IF($C57=1,'Sjekkliste noter'!A95,"") ->  | E57: =IF($C57=1,'Sjekkliste noter'!B95,"") ->  | G57: =IF($C57=1,'Sjekkliste noter'!N95,"") -> 
A58: =+'Sjekkliste noter'!A97 -> 57 | B58: =IF('Sjekkliste noter'!L97<>"",1,0) -> 0 | C58: 0 | D58: =IF($C58=1,'Sjekkliste noter'!A97,"") ->  | E58: =IF($C58=1,'Sjekkliste noter'!B97,"") ->  | G58: =IF($C58=1,'Sjekkliste noter'!N97,"") -> 
A59: =+'Sjekkliste noter'!A99 -> 58 | B59: =IF('Sjekkliste noter'!L99<>"",1,0) -> 0 | C59: 0 | D59: =IF($C59=1,'Sjekkliste noter'!A99,"") ->  | E59: =IF($C59=1,'Sjekkliste noter'!B99,"") ->  | G59: =IF($C59=1,'Sjekkliste noter'!N99,"") -> 
A60: =+'Sjekkliste noter'!A102 -> 59 | B60: =IF('Sjekkliste noter'!L102<>"",1,0) -> 0 | C60: 0 | D60: =IF($C60=1,'Sjekkliste noter'!A102,"") ->  | E60: =IF($C60=1,'Sjekkliste noter'!B102,"") ->  | G60: =IF($C60=1,'Sjekkliste noter'!N102,"") -> 
A61: =+'Sjekkliste noter'!A103 -> 60 | B61: =IF('Sjekkliste noter'!L103<>"",1,0) -> 0 | C61: 0 | D61: =IF($C61=1,'Sjekkliste noter'!A103,"") ->  | E61: =IF($C61=1,'Sjekkliste noter'!B103,"") ->  | G61: =IF($C61=1,'Sjekkliste noter'!N103,"") -> 
A62: =+'Sjekkliste noter'!A104 -> 61 | B62: =IF('Sjekkliste noter'!L104<>"",1,0) -> 0 | C62: 0 | D62: =IF($C62=1,'Sjekkliste noter'!A104,"") ->  | E62: =IF($C62=1,'Sjekkliste noter'!B104,"") ->  | G62: =IF($C62=1,'Sjekkliste noter'!N104,"") -> 
A63: =+'Sjekkliste noter'!A107 -> 62 | B63: =IF('Sjekkliste noter'!L107<>"",1,0) -> 0 | C63: 0 | D63: =IF($C63=1,'Sjekkliste noter'!A107,"") ->  | E63: =IF($C63=1,'Sjekkliste noter'!B107,"") ->  | G63: =IF($C63=1,'Sjekkliste noter'!N107,"") -> 
A64: =+'Sjekkliste noter'!A108 -> 63 | B64: =IF('Sjekkliste noter'!L108<>"",1,0) -> 0 | C64: 0 | D64: =IF($C64=1,'Sjekkliste noter'!A108,"") ->  | E64: =IF($C64=1,'Sjekkliste noter'!B108,"") ->  | G64: =IF($C64=1,'Sjekkliste noter'!N108,"") -> 
A65: =+'Sjekkliste noter'!A111 -> 64 | B65: =IF('Sjekkliste noter'!L111<>"",1,0) -> 0 | C65: 0 | D65: =IF($C65=1,'Sjekkliste noter'!A111,"") ->  | E65: =IF($C65=1,'Sjekkliste noter'!B111,"") ->  | G65: =IF($C65=1,'Sjekkliste noter'!N111,"") -> 
A66: =+'Sjekkliste noter'!A113 -> 65 | B66: =IF('Sjekkliste noter'!L113<>"",1,0) -> 0 | C66: =SUM(B66:B66) -> 0 | D66: =IF($C66=1,'Sjekkliste noter'!A113,"") ->  | E66: =IF($C66=1,'Sjekkliste noter'!B113,"") ->  | G66: =IF($C66=1,'Sjekkliste noter'!N113,"") -> 
A67: =+'Sjekkliste noter'!A115 -> 66 | B67: =IF('Sjekkliste noter'!L115<>"",1,0) -> 0 | C67: 0 | D67: =IF($C67=1,'Sjekkliste noter'!A115,"") ->  | E67: =IF($C67=1,'Sjekkliste noter'!B115,"") ->  | G67: =IF($C67=1,'Sjekkliste noter'!N115,"") -> 
A68: =+'Sjekkliste noter'!A116 -> 67 | B68: =IF('Sjekkliste noter'!L116<>"",1,0) -> 0 | C68: 0 | D68: =IF($C68=1,'Sjekkliste noter'!A116,"") ->  | E68: =IF($C68=1,'Sjekkliste noter'!B116,"") ->  | G68: =IF($C68=1,'Sjekkliste noter'!N116,"") -> 
A69: =+'Sjekkliste noter'!A117 -> 68 | B69: =IF('Sjekkliste noter'!L117<>"",1,0) -> 0 | C69: 0 | D69: =IF($C69=1,'Sjekkliste noter'!A117,"") ->  | E69: =IF($C69=1,'Sjekkliste noter'!B117,"") ->  | G69: =IF($C69=1,'Sjekkliste noter'!N117,"") -> 
A70: =+'Sjekkliste noter'!A118 -> 69 | B70: =IF('Sjekkliste noter'!L118<>"",1,0) -> 0 | C70: 0 | D70: =IF($C70=1,'Sjekkliste noter'!A118,"") ->  | E70: =IF($C70=1,'Sjekkliste noter'!B118,"") ->  | G70: =IF($C70=1,'Sjekkliste noter'!N118,"") -> 
A71: =+'Sjekkliste noter'!A120 -> 70 | B71: =IF('Sjekkliste noter'!L120<>"",1,0) -> 0 | C71: 0 | D71: =IF($C71=1,'Sjekkliste noter'!A120,"") ->  | E71: =IF($C71=1,'Sjekkliste noter'!B120,"") ->  | G71: =IF($C71=1,'Sjekkliste noter'!N120,"") -> 
A72: =+'Sjekkliste noter'!A122 -> 71 | B72: =IF('Sjekkliste noter'!L122<>"",1,0) -> 0 | C72: 0 | D72: =IF($C72=1,'Sjekkliste noter'!A122,"") ->  | E72: =IF($C72=1,'Sjekkliste noter'!B122,"") ->  | G72: =IF($C72=1,'Sjekkliste noter'!N122,"") -> 
A73: =+'Sjekkliste noter'!A124 -> 72 | B73: =IF('Sjekkliste noter'!L124<>"",1,0) -> 0 | C73: 0 | D73: =IF($C73=1,'Sjekkliste noter'!A124,"") ->  | E73: =IF($C73=1,'Sjekkliste noter'!B124,"") ->  | G73: =IF($C73=1,'Sjekkliste noter'!N124,"") -> 
A74: =+'Sjekkliste noter'!A129 -> 73 | B74: =IF('Sjekkliste noter'!L129<>"",1,0) -> 0 | C74: 0 | D74: =IF($C74=1,'Sjekkliste noter'!A129,"") ->  | E74: =IF($C74=1,'Sjekkliste noter'!B129,"") ->  | G74: =IF($C74=1,'Sjekkliste noter'!N129,"") -> 
A75: =+'Sjekkliste noter'!A133 -> 74 | B75: =IF('Sjekkliste noter'!L133<>"",1,0) -> 0 | C75: 0 | D75: =IF($C75=1,'Sjekkliste noter'!A133,"") ->  | E75: =IF($C75=1,'Sjekkliste noter'!B133,"") ->  | G75: =IF($C75=1,'Sjekkliste noter'!N133,"") -> 
A76: =+'Sjekkliste noter'!A134 -> 75 | B76: =IF('Sjekkliste noter'!L134<>"",1,0) -> 0 | C76: 0 | D76: =IF($C76=1,'Sjekkliste noter'!A134,"") ->  | E76: =IF($C76=1,'Sjekkliste noter'!B134,"") ->  | G76: =IF($C76=1,'Sjekkliste noter'!N134,"") -> 
A77: =+'Sjekkliste noter'!A135 -> 76 | B77: =IF('Sjekkliste noter'!L135<>"",1,0) -> 0 | C77: 0 | D77: =IF($C77=1,'Sjekkliste noter'!A135,"") ->  | E77: =IF($C77=1,'Sjekkliste noter'!B135,"") ->  | G77: =IF($C77=1,'Sjekkliste noter'!N135,"") -> 
A78: =+'Sjekkliste noter'!A137 -> 77 | B78: =IF('Sjekkliste noter'!L137<>"",1,0) -> 0 | C78: 0 | D78: =IF($C78=1,'Sjekkliste noter'!A137,"") ->  | E78: =IF($C78=1,'Sjekkliste noter'!B137,"") ->  | G78: =IF($C78=1,'Sjekkliste noter'!N137,"") -> 
A79: =+'Sjekkliste noter'!A141 -> 78 | B79: =IF('Sjekkliste noter'!L141<>"",1,0) -> 0 | C79: 0 | D79: =IF($C79=1,'Sjekkliste noter'!A141,"") ->  | E79: =IF($C79=1,'Sjekkliste noter'!B141,"") ->  | G79: =IF($C79=1,'Sjekkliste noter'!N141,"") -> 
A80: =+'Sjekkliste noter'!A144 -> 79 | B80: =IF('Sjekkliste noter'!L144<>"",1,0) -> 0 | C80: 0 | D80: =IF($C80=1,'Sjekkliste noter'!A144,"") ->  | E80: =IF($C80=1,'Sjekkliste noter'!B144,"") ->  | G80: =IF($C80=1,'Sjekkliste noter'!N144,"") -> 
A81: =+'Sjekkliste noter'!A147 -> 80 | B81: =IF('Sjekkliste noter'!L147<>"",1,0) -> 0 | C81: 0 | D81: =IF($C81=1,'Sjekkliste noter'!A147,"") ->  | E81: =IF($C81=1,'Sjekkliste noter'!B147,"") ->  | G81: =IF($C81=1,'Sjekkliste noter'!N147,"") -> 
A82: =+'Sjekkliste noter'!A148 -> 81 | B82: =IF('Sjekkliste noter'!L148<>"",1,0) -> 0 | C82: 0 | D82: =IF($C82=1,'Sjekkliste noter'!A148,"") ->  | E82: =IF($C82=1,'Sjekkliste noter'!B148,"") ->  | G82: =IF($C82=1,'Sjekkliste noter'!N148,"") -> 
A83: =+'Sjekkliste noter'!A149 -> 82 | B83: =IF('Sjekkliste noter'!L149<>"",1,0) -> 0 | C83: 0 | D83: =IF($C83=1,'Sjekkliste noter'!A149,"") ->  | E83: =IF($C83=1,'Sjekkliste noter'!B149,"") ->  | G83: =IF($C83=1,'Sjekkliste noter'!N149,"") -> 
A84: =+'Sjekkliste noter'!A151 -> 83 | B84: =IF('Sjekkliste noter'!L151<>"",1,0) -> 0 | C84: 0 | D84: =IF($C84=1,'Sjekkliste noter'!A151,"") ->  | E84: =IF($C84=1,'Sjekkliste noter'!B151,"") ->  | G84: =IF($C84=1,'Sjekkliste noter'!N151,"") -> 
A85: =+'Sjekkliste noter'!A152 -> 84 | B85: =IF('Sjekkliste noter'!L152<>"",1,0) -> 0 | C85: 0 | D85: =IF($C85=1,'Sjekkliste noter'!A152,"") ->  | E85: =IF($C85=1,'Sjekkliste noter'!B152,"") ->  | G85: =IF($C85=1,'Sjekkliste noter'!N152,"") -> 
A86: =+'Sjekkliste noter'!A153 -> 85 | B86: =IF('Sjekkliste noter'!L153<>"",1,0) -> 0 | C86: 0 | D86: =IF($C86=1,'Sjekkliste noter'!A153,"") ->  | E86: =IF($C86=1,'Sjekkliste noter'!B153,"") ->  | G86: =IF($C86=1,'Sjekkliste noter'!N153,"") -> 
A87: =+'Sjekkliste noter'!A156 -> 86 | B87: =IF('Sjekkliste noter'!L156<>"",1,0) -> 0 | C87: 0 | D87: =IF($C87=1,'Sjekkliste noter'!A156,"") ->  | E87: =IF($C87=1,'Sjekkliste noter'!B156,"") ->  | G87: =IF($C87=1,'Sjekkliste noter'!N156,"") -> 
A88: =+'Sjekkliste noter'!A160 -> 87 | B88: =IF('Sjekkliste noter'!L160<>"",1,0) -> 0 | C88: 0 | D88: =IF($C88=1,'Sjekkliste noter'!A160,"") ->  | E88: =IF($C88=1,'Sjekkliste noter'!B160,"") ->  | G88: =IF($C88=1,'Sjekkliste noter'!N160,"") -> 
A89: =+'Sjekkliste noter'!A161 -> 88 | B89: =IF('Sjekkliste noter'!L161<>"",1,0) -> 0 | C89: 0 | D89: =IF($C89=1,'Sjekkliste noter'!A161,"") ->  | E89: =IF($C89=1,'Sjekkliste noter'!B161,"") ->  | G89: =IF($C89=1,'Sjekkliste noter'!N161,"") -> 
A90: =+'Sjekkliste noter'!A162 -> 89 | B90: =IF('Sjekkliste noter'!L162<>"",1,0) -> 0 | C90: 0 | D90: =IF($C90=1,'Sjekkliste noter'!A162,"") ->  | E90: =IF($C90=1,'Sjekkliste noter'!B162,"") ->  | G90: =IF($C90=1,'Sjekkliste noter'!N162,"") -> 
A91: =+'Sjekkliste noter'!A163 -> 90 | B91: =IF('Sjekkliste noter'!L163<>"",1,0) -> 0 | C91: 0 | D91: =IF($C91=1,'Sjekkliste noter'!A163,"") ->  | E91: =IF($C91=1,'Sjekkliste noter'!B163,"") ->  | G91: =IF($C91=1,'Sjekkliste noter'!N163,"") -> 
A92: =+'Sjekkliste noter'!A167 -> 91 | B92: =IF('Sjekkliste noter'!L167<>"",1,0) -> 0 | C92: 0 | D92: =IF($C92=1,'Sjekkliste noter'!A167,"") ->  | E92: =IF($C92=1,'Sjekkliste noter'!B167,"") ->  | G92: =IF($C92=1,'Sjekkliste noter'!N167,"") -> 
A93: =+'Sjekkliste noter'!A168 -> 92 | B93: =IF('Sjekkliste noter'!L168<>"",1,0) -> 0 | C93: 0 | D93: =IF($C93=1,'Sjekkliste noter'!A168,"") ->  | E93: =IF($C93=1,'Sjekkliste noter'!B168,"") ->  | G93: =IF($C93=1,'Sjekkliste noter'!N168,"") -> 
A94: =+'Sjekkliste noter'!A169 -> 93 | B94: =IF('Sjekkliste noter'!L169<>"",1,0) -> 0 | C94: 0 | D94: =IF($C94=1,'Sjekkliste noter'!A169,"") ->  | E94: =IF($C94=1,'Sjekkliste noter'!B169,"") ->  | G94: =IF($C94=1,'Sjekkliste noter'!N169,"") -> 
A95: =+'Sjekkliste noter'!A170 -> 94 | B95: =IF('Sjekkliste noter'!L170<>"",1,0) -> 0 | C95: 0 | D95: =IF($C95=1,'Sjekkliste noter'!A170,"") ->  | E95: =IF($C95=1,'Sjekkliste noter'!B170,"") ->  | G95: =IF($C95=1,'Sjekkliste noter'!N170,"") -> 
A96: =+'Sjekkliste noter'!A171 -> 95 | B96: =IF('Sjekkliste noter'!L171<>"",1,0) -> 0 | C96: 0 | D96: =IF($C96=1,'Sjekkliste noter'!A171,"") ->  | E96: =IF($C96=1,'Sjekkliste noter'!B171,"") ->  | G96: =IF($C96=1,'Sjekkliste noter'!N171,"") -> 
A97: =+'Sjekkliste noter'!A173 -> 96 | B97: =IF('Sjekkliste noter'!L173<>"",1,0) -> 0 | C97: 0 | D97: =IF($C97=1,'Sjekkliste noter'!A173,"") ->  | E97: =IF($C97=1,'Sjekkliste noter'!B173,"") ->  | G97: =IF($C97=1,'Sjekkliste noter'!N173,"") -> 
A98: =+'Sjekkliste noter'!A174 -> 97 | B98: =IF('Sjekkliste noter'!L174<>"",1,0) -> 0 | C98: =SUM(B98:B98) -> 0 | D98: =IF($C98=1,'Sjekkliste noter'!A174,"") ->  | E98: =IF($C98=1,'Sjekkliste noter'!B174,"") ->  | G98: =IF($C98=1,'Sjekkliste noter'!N174,"") -> 
A99: =+'Sjekkliste noter'!A175 -> 98 | B99: =IF('Sjekkliste noter'!L175<>"",1,0) -> 0 | C99: 0 | D99: =IF($C99=1,'Sjekkliste noter'!A175,"") ->  | E99: =IF($C99=1,'Sjekkliste noter'!B175,"") ->  | G99: =IF($C99=1,'Sjekkliste noter'!N175,"") -> 
A100: =+'Sjekkliste noter'!A177 -> 99 | B100: =IF('Sjekkliste noter'!L177<>"",1,0) -> 0 | C100: 0 | D100: =IF($C100=1,'Sjekkliste noter'!A177,"") ->  | E100: =IF($C100=1,'Sjekkliste noter'!B177,"") ->  | G100: =IF($C100=1,'Sjekkliste noter'!N177,"") -> 
A101: =+'Sjekkliste noter'!A178 -> 100 | B101: =IF('Sjekkliste noter'!L178<>"",1,0) -> 0 | C101: 0 | D101: =IF($C101=1,'Sjekkliste noter'!A178,"") ->  | E101: =IF($C101=1,'Sjekkliste noter'!B178,"") ->  | G101: =IF($C101=1,'Sjekkliste noter'!N178,"") -> 
A102: =+'Sjekkliste noter'!A179 -> 101 | B102: =IF('Sjekkliste noter'!L179<>"",1,0) -> 0 | C102: 0 | D102: =IF($C102=1,'Sjekkliste noter'!A179,"") ->  | E102: =IF($C102=1,'Sjekkliste noter'!B179,"") ->  | G102: =IF($C102=1,'Sjekkliste noter'!N179,"") -> 
A103: =+'Sjekkliste noter'!A180 -> 102 | B103: =IF('Sjekkliste noter'!L180<>"",1,0) -> 0 | C103: 0 | D103: =IF($C103=1,'Sjekkliste noter'!A180,"") ->  | E103: =IF($C103=1,'Sjekkliste noter'!B180,"") ->  | G103: =IF($C103=1,'Sjekkliste noter'!N180,"") -> 
A104: =+'Sjekkliste noter'!A181 -> 103 | B104: =IF('Sjekkliste noter'!L181<>"",1,0) -> 0 | C104: 0 | D104: =IF($C104=1,'Sjekkliste noter'!A181,"") ->  | E104: =IF($C104=1,'Sjekkliste noter'!B181,"") ->  | G104: =IF($C104=1,'Sjekkliste noter'!N181,"") -> 
A105: =+'Sjekkliste noter'!A184 -> 104 | B105: =IF('Sjekkliste noter'!L184<>"",1,0) -> 0 | C105: 0 | D105: =IF($C105=1,'Sjekkliste noter'!A184,"") ->  | E105: =IF($C105=1,'Sjekkliste noter'!B184,"") ->  | G105: =IF($C105=1,'Sjekkliste noter'!N184,"") -> 
A106: =+'Sjekkliste noter'!A187 -> 105 | B106: =IF('Sjekkliste noter'!L187<>"",1,0) -> 0 | C106: 0 | D106: =IF($C106=1,'Sjekkliste noter'!A187,"") ->  | E106: =IF($C106=1,'Sjekkliste noter'!B187,"") ->  | G106: =IF($C106=1,'Sjekkliste noter'!N187,"") -> 
A107: =+'Sjekkliste noter'!A188 -> 106 | B107: =IF('Sjekkliste noter'!L188<>"",1,0) -> 0 | C107: 0 | D107: =IF($C107=1,'Sjekkliste noter'!A188,"") ->  | E107: =IF($C107=1,'Sjekkliste noter'!B188,"") ->  | G107: =IF($C107=1,'Sjekkliste noter'!N188,"") -> 
A108: =+'Sjekkliste noter'!A189 -> 107 | B108: =IF('Sjekkliste noter'!L189<>"",1,0) -> 0 | C108: 0 | D108: =IF($C108=1,'Sjekkliste noter'!A189,"") ->  | E108: =IF($C108=1,'Sjekkliste noter'!B189,"") ->  | G108: =IF($C108=1,'Sjekkliste noter'!N189,"") -> 
A109: =+'Sjekkliste noter'!A190 -> 108 | B109: =IF('Sjekkliste noter'!L190<>"",1,0) -> 0 | C109: 0 | D109: =IF($C109=1,'Sjekkliste noter'!A190,"") ->  | E109: =IF($C109=1,'Sjekkliste noter'!B190,"") ->  | G109: =IF($C109=1,'Sjekkliste noter'!N190,"") -> 
A110: =+'Sjekkliste noter'!A191 -> 109 | B110: =IF('Sjekkliste noter'!L191<>"",1,0) -> 0 | C110: 0 | D110: =IF($C110=1,'Sjekkliste noter'!A191,"") ->  | E110: =IF($C110=1,'Sjekkliste noter'!B191,"") ->  | G110: =IF($C110=1,'Sjekkliste noter'!N191,"") -> 
A111: =+'Sjekkliste noter'!A194 -> 110 | B111: =IF('Sjekkliste noter'!L194<>"",1,0) -> 0 | C111: 0 | D111: =IF($C111=1,'Sjekkliste noter'!A194,"") ->  | E111: =IF($C111=1,'Sjekkliste noter'!B194,"") ->  | G111: =IF($C111=1,'Sjekkliste noter'!N194,"") -> 
A112: =+'Sjekkliste noter'!A195 -> 111 | B112: =IF('Sjekkliste noter'!L195<>"",1,0) -> 0 | C112: 0 | D112: =IF($C112=1,'Sjekkliste noter'!A195,"") ->  | E112: =IF($C112=1,'Sjekkliste noter'!B195,"") ->  | G112: =IF($C112=1,'Sjekkliste noter'!N195,"") -> 
A113: =+'Sjekkliste noter'!A196 -> 112 | B113: =IF('Sjekkliste noter'!L196<>"",1,0) -> 0 | C113: 0 | D113: =IF($C113=1,'Sjekkliste noter'!A196,"") ->  | E113: =IF($C113=1,'Sjekkliste noter'!B196,"") ->  | G113: =IF($C113=1,'Sjekkliste noter'!N196,"") -> 
A114: =+'Sjekkliste noter'!A197 -> 113 | B114: =IF('Sjekkliste noter'!L197<>"",1,0) -> 0 | C114: 0 | D114: =IF($C114=1,'Sjekkliste noter'!A197,"") ->  | E114: =IF($C114=1,'Sjekkliste noter'!B197,"") ->  | G114: =IF($C114=1,'Sjekkliste noter'!N197,"") -> 
A115: =+'Sjekkliste noter'!A198 -> 114 | B115: =IF('Sjekkliste noter'!L198<>"",1,0) -> 0 | C115: 0 | D115: =IF($C115=1,'Sjekkliste noter'!A198,"") ->  | E115: =IF($C115=1,'Sjekkliste noter'!B198,"") ->  | G115: =IF($C115=1,'Sjekkliste noter'!N198,"") -> 
A116: =+'Sjekkliste noter'!A199 -> 115 | B116: =IF('Sjekkliste noter'!L199<>"",1,0) -> 0 | C116: 0 | D116: =IF($C116=1,'Sjekkliste noter'!A199,"") ->  | E116: =IF($C116=1,'Sjekkliste noter'!B199,"") ->  | G116: =IF($C116=1,'Sjekkliste noter'!N199,"") -> 
A117: =+'Sjekkliste noter'!A200 -> 116 | B117: =IF('Sjekkliste noter'!L200<>"",1,0) -> 0 | C117: 0 | D117: =IF($C117=1,'Sjekkliste noter'!A200,"") ->  | E117: =IF($C117=1,'Sjekkliste noter'!B200,"") ->  | G117: =IF($C117=1,'Sjekkliste noter'!N200,"") -> 
A118: =+'Sjekkliste noter'!A201 -> 117 | B118: =IF('Sjekkliste noter'!L201<>"",1,0) -> 0 | C118: 0 | D118: =IF($C118=1,'Sjekkliste noter'!A201,"") ->  | E118: =IF($C118=1,'Sjekkliste noter'!B201,"") ->  | G118: =IF($C118=1,'Sjekkliste noter'!N201,"") -> 
A119: =+'Sjekkliste noter'!A202 -> 118 | B119: =IF('Sjekkliste noter'!L202<>"",1,0) -> 0 | C119: 0 | D119: =IF($C119=1,'Sjekkliste noter'!A202,"") ->  | E119: =IF($C119=1,'Sjekkliste noter'!B202,"") ->  | G119: =IF($C119=1,'Sjekkliste noter'!N202,"") -> 
A120: =+'Sjekkliste noter'!A204 -> 119 | B120: =IF('Sjekkliste noter'!L204<>"",1,0) -> 0 | C120: 0 | D120: =IF($C120=1,'Sjekkliste noter'!A204,"") ->  | E120: =IF($C120=1,'Sjekkliste noter'!B204,"") ->  | G120: =IF($C120=1,'Sjekkliste noter'!N204,"") -> 
A121: =+'Sjekkliste noter'!A206 -> 120 | B121: =IF('Sjekkliste noter'!L206<>"",1,0) -> 0 | C121: 0 | D121: =IF($C121=1,'Sjekkliste noter'!A206,"") ->  | E121: =IF($C121=1,'Sjekkliste noter'!B206,"") ->  | G121: =IF($C121=1,'Sjekkliste noter'!N206,"") -> 
A122: =+'Sjekkliste noter'!A209 -> 121 | B122: =IF('Sjekkliste noter'!L209<>"",1,0) -> 0 | C122: 0 | D122: =IF($C122=1,'Sjekkliste noter'!A209,"") ->  | E122: =IF($C122=1,'Sjekkliste noter'!B209,"") ->  | G122: =IF($C122=1,'Sjekkliste noter'!N209,"") -> 
A123: =+'Sjekkliste noter'!A211 -> 122 | B123: =IF('Sjekkliste noter'!L211<>"",1,0) -> 0 | C123: 0 | D123: =IF($C123=1,'Sjekkliste noter'!A211,"") ->  | E123: =IF($C123=1,'Sjekkliste noter'!B211,"") ->  | G123: =IF($C123=1,'Sjekkliste noter'!N211,"") -> 
A124: =+'Sjekkliste noter'!A215 -> 123 | B124: =IF('Sjekkliste noter'!L215<>"",1,0) -> 0 | C124: 0 | D124: =IF($C124=1,'Sjekkliste noter'!A215,"") ->  | E124: =IF($C124=1,'Sjekkliste noter'!B215,"") ->  | G124: =IF($C124=1,'Sjekkliste noter'!N215,"") -> 
A125: =+'Sjekkliste noter'!A220 -> 124 | B125: =IF('Sjekkliste noter'!L220<>"",1,0) -> 0 | C125: 0 | D125: =IF($C125=1,'Sjekkliste noter'!A220,"") ->  | E125: =IF($C125=1,'Sjekkliste noter'!B220,"") ->  | G125: =IF($C125=1,'Sjekkliste noter'!N220,"") -> 
A126: =+'Sjekkliste noter'!A222 -> 125 | B126: =IF('Sjekkliste noter'!L222<>"",1,0) -> 0 | C126: 0 | D126: =IF($C126=1,'Sjekkliste noter'!A222,"") ->  | E126: =IF($C126=1,'Sjekkliste noter'!B222,"") ->  | G126: =IF($C126=1,'Sjekkliste noter'!N222,"") -> 
A127: =+'Sjekkliste noter'!A224 -> 126 | B127: =IF('Sjekkliste noter'!L224<>"",1,0) -> 0 | C127: 0 | D127: =IF($C127=1,'Sjekkliste noter'!A224,"") ->  | E127: =IF($C127=1,'Sjekkliste noter'!B224,"") ->  | G127: =IF($C127=1,'Sjekkliste noter'!N224,"") -> 
A128: =+'Sjekkliste noter'!A226 -> 127 | B128: =IF('Sjekkliste noter'!L226<>"",1,0) -> 0 | C128: 0 | D128: =IF($C128=1,'Sjekkliste noter'!A226,"") ->  | E128: =IF($C128=1,'Sjekkliste noter'!B226,"") ->  | G128: =IF($C128=1,'Sjekkliste noter'!N226,"") -> 
A129: =+'Sjekkliste noter'!A227 -> 128 | B129: =IF('Sjekkliste noter'!L227<>"",1,0) -> 0 | C129: 0 | D129: =IF($C129=1,'Sjekkliste noter'!A227,"") ->  | E129: =IF($C129=1,'Sjekkliste noter'!B227,"") ->  | G129: =IF($C129=1,'Sjekkliste noter'!N227,"") -> 
A130: =+'Sjekkliste noter'!A228 -> 129 | B130: =IF('Sjekkliste noter'!L228<>"",1,0) -> 0 | C130: =SUM(B130:B130) -> 0 | D130: =IF($C130=1,'Sjekkliste noter'!A228,"") ->  | E130: =IF($C130=1,'Sjekkliste noter'!B228,"") ->  | G130: =IF($C130=1,'Sjekkliste noter'!N228,"") -> 
A131: =+'Sjekkliste noter'!A233 -> 130 | B131: =IF('Sjekkliste noter'!L233<>"",1,0) -> 0 | C131: 0 | D131: =IF($C131=1,'Sjekkliste noter'!A233,"") ->  | E131: =IF($C131=1,'Sjekkliste noter'!B233,"") ->  | G131: =IF($C131=1,'Sjekkliste noter'!N233,"") -> 
A132: =+'Sjekkliste noter'!A236 -> 131 | B132: =IF('Sjekkliste noter'!L236<>"",1,0) -> 0 | C132: 0 | D132: =IF($C132=1,'Sjekkliste noter'!A236,"") ->  | E132: =IF($C132=1,'Sjekkliste noter'!B236,"") ->  | G132: =IF($C132=1,'Sjekkliste noter'!N236,"") -> 
A133: =+'Sjekkliste noter'!A239 -> 132 | B133: =IF('Sjekkliste noter'!L239<>"",1,0) -> 0 | C133: 0 | D133: =IF($C133=1,'Sjekkliste noter'!A239,"") ->  | E133: =IF($C133=1,'Sjekkliste noter'!B239,"") ->  | G133: =IF($C133=1,'Sjekkliste noter'!N239,"") -> 
A134: =+'Sjekkliste noter'!A242 -> 133 | B134: =IF('Sjekkliste noter'!L242<>"",1,0) -> 0 | C134: 0 | D134: =IF($C134=1,'Sjekkliste noter'!A242,"") ->  | E134: =IF($C134=1,'Sjekkliste noter'!B242,"") ->  | G134: =IF($C134=1,'Sjekkliste noter'!N242,"") -> 
A135: =+'Sjekkliste noter'!A244 -> 134 | B135: =IF('Sjekkliste noter'!L244<>"",1,0) -> 0 | C135: 0 | D135: =IF($C135=1,'Sjekkliste noter'!A244,"") ->  | E135: =IF($C135=1,'Sjekkliste noter'!B244,"") ->  | G135: =IF($C135=1,'Sjekkliste noter'!N244,"") -> 
A136: =+'Sjekkliste noter'!A246 -> 135 | B136: =IF('Sjekkliste noter'!L246<>"",1,0) -> 0 | C136: 0 | D136: =IF($C136=1,'Sjekkliste noter'!A246,"") ->  | E136: =IF($C136=1,'Sjekkliste noter'!B246,"") ->  | G136: =IF($C136=1,'Sjekkliste noter'!N246,"") -> 
A137: =+'Sjekkliste noter'!A248 -> 136 | B137: =IF('Sjekkliste noter'!L248<>"",1,0) -> 0 | C137: 0 | D137: =IF($C137=1,'Sjekkliste noter'!A248,"") ->  | E137: =IF($C137=1,'Sjekkliste noter'!B248,"") ->  | G137: =IF($C137=1,'Sjekkliste noter'!N248,"") -> 
A138: =+'Sjekkliste noter'!A252 -> 137 | B138: =IF('Sjekkliste noter'!L252<>"",1,0) -> 0 | C138: 0 | D138: =IF($C138=1,'Sjekkliste noter'!A252,"") ->  | E138: =IF($C138=1,'Sjekkliste noter'!B252,"") ->  | G138: =IF($C138=1,'Sjekkliste noter'!N252,"") -> 
A139: =+'Sjekkliste noter'!A254 -> 138 | B139: =IF('Sjekkliste noter'!L254<>"",1,0) -> 0 | C139: 0 | D139: =IF($C139=1,'Sjekkliste noter'!A254,"") ->  | E139: =IF($C139=1,'Sjekkliste noter'!B254,"") ->  | G139: =IF($C139=1,'Sjekkliste noter'!N254,"") -> 
A140: =+'Sjekkliste noter'!A256 -> 139 | B140: =IF('Sjekkliste noter'!L256<>"",1,0) -> 0 | C140: 0 | D140: =IF($C140=1,'Sjekkliste noter'!A256,"") ->  | E140: =IF($C140=1,'Sjekkliste noter'!B256,"") ->  | G140: =IF($C140=1,'Sjekkliste noter'!N256,"") -> 
A141: =+'Sjekkliste noter'!A259 -> 140 | B141: =IF('Sjekkliste noter'!L259<>"",1,0) -> 0 | C141: 0 | D141: =IF($C141=1,'Sjekkliste noter'!A259,"") ->  | E141: =IF($C141=1,'Sjekkliste noter'!B259,"") ->  | G141: =IF($C141=1,'Sjekkliste noter'!N259,"") -> 
A142: =+'Sjekkliste noter'!A262 -> 141 | B142: =IF('Sjekkliste noter'!L262<>"",1,0) -> 0 | C142: 0 | D142: =IF($C142=1,'Sjekkliste noter'!A262,"") ->  | E142: =IF($C142=1,'Sjekkliste noter'!B262,"") ->  | G142: =IF($C142=1,'Sjekkliste noter'!N262,"") -> 
A143: =+'Sjekkliste noter'!A266 -> 142 | B143: =IF('Sjekkliste noter'!L266<>"",1,0) -> 0 | C143: 0 | D143: =IF($C143=1,'Sjekkliste noter'!A266,"") ->  | E143: =IF($C143=1,'Sjekkliste noter'!B266,"") ->  | G143: =IF($C143=1,'Sjekkliste noter'!N266,"") -> 
A144: =+'Sjekkliste noter'!A267 -> 143 | B144: =IF('Sjekkliste noter'!L267<>"",1,0) -> 0 | C144: 0 | D144: =IF($C144=1,'Sjekkliste noter'!A267,"") ->  | E144: =IF($C144=1,'Sjekkliste noter'!B267,"") ->  | G144: =IF($C144=1,'Sjekkliste noter'!N267,"") -> 
A145: =+'Sjekkliste noter'!A268 -> 144 | B145: =IF('Sjekkliste noter'!L268<>"",1,0) -> 0 | C145: 0 | D145: =IF($C145=1,'Sjekkliste noter'!A268,"") ->  | E145: =IF($C145=1,'Sjekkliste noter'!B268,"") ->  | G145: =IF($C145=1,'Sjekkliste noter'!N268,"") -> 
A146: =+'Sjekkliste noter'!A270 -> 145 | B146: =IF('Sjekkliste noter'!L270<>"",1,0) -> 0 | C146: 0 | D146: =IF($C146=1,'Sjekkliste noter'!A270,"") ->  | E146: =IF($C146=1,'Sjekkliste noter'!B270,"") ->  | G146: =IF($C146=1,'Sjekkliste noter'!N270,"") -> 
A147: =+'Sjekkliste noter'!A271 -> 146 | B147: =IF('Sjekkliste noter'!L271<>"",1,0) -> 0 | C147: 0 | D147: =IF($C147=1,'Sjekkliste noter'!A271,"") ->  | E147: =IF($C147=1,'Sjekkliste noter'!B271,"") ->  | G147: =IF($C147=1,'Sjekkliste noter'!N271,"") -> 
A148: =+'Sjekkliste noter'!A273 -> 147 | B148: =IF('Sjekkliste noter'!L273<>"",1,0) -> 0 | C148: 0 | D148: =IF($C148=1,'Sjekkliste noter'!A273,"") ->  | E148: =IF($C148=1,'Sjekkliste noter'!B273,"") ->  | G148: =IF($C148=1,'Sjekkliste noter'!N273,"") -> 
A149: =+'Sjekkliste noter'!A274 -> 148 | B149: =IF('Sjekkliste noter'!L274<>"",1,0) -> 0 | C149: 0 | D149: =IF($C149=1,'Sjekkliste noter'!A274,"") ->  | E149: =IF($C149=1,'Sjekkliste noter'!B274,"") ->  | G149: =IF($C149=1,'Sjekkliste noter'!N274,"") -> 
A150: =+'Sjekkliste noter'!A275 -> 149 | B150: =IF('Sjekkliste noter'!L275<>"",1,0) -> 0 | C150: 0 | D150: =IF($C150=1,'Sjekkliste noter'!A275,"") ->  | E150: =IF($C150=1,'Sjekkliste noter'!B275,"") ->  | G150: =IF($C150=1,'Sjekkliste noter'!N275,"") -> 
A151: =+'Sjekkliste noter'!A279 -> 150 | B151: =IF('Sjekkliste noter'!L279<>"",1,0) -> 0 | C151: 0 | D151: =IF($C151=1,'Sjekkliste noter'!A279,"") ->  | E151: =IF($C151=1,'Sjekkliste noter'!B279,"") ->  | G151: =IF($C151=1,'Sjekkliste noter'!N279,"") -> 
A152: =+'Sjekkliste noter'!A283 -> 151 | B152: =IF('Sjekkliste noter'!L283<>"",1,0) -> 0 | C152: 0 | D152: =IF($C152=1,'Sjekkliste noter'!A283,"") ->  | E152: =IF($C152=1,'Sjekkliste noter'!B283,"") ->  | G152: =IF($C152=1,'Sjekkliste noter'!N283,"") -> 
A153: =+'Sjekkliste noter'!A285 -> 152 | B153: =IF('Sjekkliste noter'!L285<>"",1,0) -> 0 | C153: 0 | D153: =IF($C153=1,'Sjekkliste noter'!A285,"") ->  | E153: =IF($C153=1,'Sjekkliste noter'!B285,"") ->  | G153: =IF($C153=1,'Sjekkliste noter'!N285,"") -> 
A154: =+'Sjekkliste noter'!A287 -> 153 | B154: =IF('Sjekkliste noter'!L287<>"",1,0) -> 0 | C154: 0 | D154: =IF($C154=1,'Sjekkliste noter'!A287,"") ->  | E154: =IF($C154=1,'Sjekkliste noter'!B287,"") ->  | G154: =IF($C154=1,'Sjekkliste noter'!N287,"") -> 
A155: =+'Sjekkliste noter'!A290 -> 154 | B155: =IF('Sjekkliste noter'!L290<>"",1,0) -> 0 | C155: 0 | D155: =IF($C155=1,'Sjekkliste noter'!A290,"") ->  | E155: =IF($C155=1,'Sjekkliste noter'!B290,"") ->  | G155: =IF($C155=1,'Sjekkliste noter'!N290,"") -> 
A156: =+'Sjekkliste noter'!A291 -> 155 | B156: =IF('Sjekkliste noter'!L291<>"",1,0) -> 0 | C156: 0 | D156: =IF($C156=1,'Sjekkliste noter'!A291,"") ->  | E156: =IF($C156=1,'Sjekkliste noter'!B291,"") ->  | G156: =IF($C156=1,'Sjekkliste noter'!N291,"") -> 
A157: =+'Sjekkliste noter'!A292 -> 156 | B157: =IF('Sjekkliste noter'!L292<>"",1,0) -> 0 | C157: 0 | D157: =IF($C157=1,'Sjekkliste noter'!A292,"") ->  | E157: =IF($C157=1,'Sjekkliste noter'!B292,"") ->  | G157: =IF($C157=1,'Sjekkliste noter'!N292,"") -> 
A158: =+'Sjekkliste noter'!A293 -> 157 | B158: =IF('Sjekkliste noter'!L293<>"",1,0) -> 0 | C158: 0 | D158: =IF($C158=1,'Sjekkliste noter'!A293,"") ->  | E158: =IF($C158=1,'Sjekkliste noter'!B293,"") ->  | G158: =IF($C158=1,'Sjekkliste noter'!N293,"") -> 

Sheet sjekkliste_noter_matrix (hidden)
A1: F0 | B1: E0 | C1: ="F"&COLUMN(A1) -> F1 | D1: ="F"&COLUMN(B1) -> F2 | E1: F3 | F1: F4 | G1: F5 | H1: F6 | I1: F7 | J1: F8 | K1: F9 | L1: F8F9 | M1: ="F"&COLUMN(J1) -> F10 | N1: ="F"&COLUMN(K1) -> F11 | O1: ="F"&COLUMN(L1) -> F12 | P1: F13 | Q1: F14 | R1: F15 | S1: F16 | T1: F17 | U1: ="F"&COLUMN(R1) -> F18 | V1: ="F"&COLUMN(S1) -> F19 | W1: ="F"&COLUMN(T1) -> F20 | X1: F21 | Y1: ="E"&COLUMN(A1) -> E1 | Z1: E2 | AA1: E3 | AB1: E4 | AC1: E5 | AD1: E6 | AE1: E7 | AF1: E8 | AG1: E9 | AH1: ="E"&COLUMN(J1) -> E10 | AI1: E11 | AJ1: ="E"&COLUMN(L1) -> E12 | AK1: ="E"&COLUMN(M1) -> E13 | AL1: ="E"&COLUMN(N1) -> E14 | AM1: ="E"&COLUMN(O1) -> E15
A2: x | B2: x | C2: x | D2: x | E2: x | F2: x | G2: x | H2: x | I2: x | J2: x | K2: x | L2: x | M2: x | N2: x | O2: x | P2: x | Q2: x | R2: x | S2: x | T2: x | U2: x | V2: x | W2: x | X2: x | Y2: x | Z2: x | AA2: x | AB2: x | AC2: x | AD2: x | AE2: x | AF2: x | AG2: x | AH2: x | AI2: x | AJ2: x | AK2: x | AL2: x | AM2: x
A3: x | B3: x | C3: x | D3: x | E3: x | F3: x | G3: x | H3: x | I3: x | J3: x | K3: x | L3: x | M3: x | N3: x | O3: x | P3: x | Q3: x | R3: x | S3: x | T3: x | U3: x | V3: x | W3: x | X3: x | Y3: x | Z3: x | AA3: x | AB3: x | AC3: x | AD3: x | AE3: x | AF3: x | AG3: x | AH3: x | AI3: x | AJ3: x | AK3: x | AL3: x | AM3: x
A4: x | B4: x | C4: x | D4: x | E4: x | F4: x | G4: x | H4: x | I4: x | J4: x | K4: x | L4: x | M4: x | N4: x | O4: x | P4: x | Q4: x | R4: x | S4: x | T4: x | U4: x | V4: x | W4: x | X4: x | Y4: x | Z4: x | AA4: x | AB4: x | AC4: x | AD4: x | AE4: x | AF4: x | AG4: x | AH4: x | AI4: x | AJ4: x | AK4: x | AL4: x | AM4: x
A5: x | B5: x | C5: x | D5: x | E5: x | F5: x | G5: x | H5: x | I5: x | J5: x | K5: x | L5: x | M5: x | N5: x | O5: x | P5: x | Q5: x | R5: x | S5: x | T5: x | U5: x | V5: x | W5: x | X5: x | Y5: x | Z5: x | AA5: x | AB5: x | AC5: x | AD5: x | AE5: x | AF5: x | AG5: x | AH5: x | AI5: x | AJ5: x | AK5: x | AL5: x | AM5: x
A6: x | B6: x | C6: x | D6: x | E6: x | F6: x | G6: x | H6: x | I6: x | J6: x | K6: x | L6: x | M6: x | N6: x | O6: x | P6: x | Q6: x | R6: x | S6: x | T6: x | U6: x | V6: x | W6: x | X6: x | Y6: x | Z6: x | AA6: x | AB6: x | AC6: x | AD6: x | AE6: x | AF6: x | AG6: x | AH6: x | AI6: x | AJ6: x | AK6: x | AL6: x | AM6: x
A7: x | B7: x | C7: x | D7: x | E7: x | F7: x | G7: x | H7: x | I7: x | J7: x | K7: x | L7: x | M7: x | N7: x | O7: x | P7: x | Q7: x | R7: x | S7: x | T7: x | U7: x | V7: x | W7: x | X7: x | Y7: x | Z7: x | AA7: x | AB7: x | AC7: x | AD7: x | AE7: x | AF7: x | AG7: x | AH7: x | AI7: x | AJ7: x | AK7: x | AL7: x | AM7: x
A8: x | C8: x | D8: x | E8: x | F8: x | G8: x | H8: x | I8: x | J8: x | K8: x | L8: x | M8: x | N8: x | O8: x | P8: x | Q8: x | R8: x | S8: x | T8: x | U8: x | V8: x | W8: x | X8: x | AC8: x
A9: x | C9: x | D9: x | E9: x | F9: x | G9: x | H9: x | I9: x | J9: x | K9: x | L9: x | M9: x | N9: x | O9: x | P9: x | Q9: x | R9: x | S9: x | T9: x | U9: x | V9: x | W9: x | X9: x | AC9: x
A10: x | C10: x | D10: x | E10: x | F10: x | G10: x | H10: x | I10: x | J10: x | K10: x | L10: x | M10: x | N10: x | O10: x | P10: x | Q10: x | R10: x | S10: x | T10: x | U10: x | V10: x | W10: x | X10: x
A11: x | C11: x | D11: x | E11: x | F11: x | G11: x | H11: x | I11: x | J11: x | K11: x | L11: x | M11: x | N11: x | O11: x | P11: x | Q11: x | R11: x | S11: x | T11: x | U11: x | V11: x | W11: x | X11: x
A12: x | C12: x | D12: x | E12: x | F12: x | G12: x | H12: x | I12: x | J12: x | K12: x | L12: x | M12: x | N12: x | O12: x | P12: x | Q12: x | R12: x | S12: x | T12: x | U12: x | V12: x | W12: x | X12: x
A13: x | C13: x | D13: x | E13: x | F13: x | G13: x | H13: x | I13: x | J13: x | K13: x | L13: x | M13: x | N13: x | O13: x | P13: x | Q13: x | R13: x | S13: x | T13: x | U13: x | V13: x | W13: x | X13: x
A14: x | C14: x | D14: x | E14: x | F14: x | G14: x | H14: x | I14: x | J14: x | K14: x | L14: x | M14: x | N14: x | O14: x | P14: x | Q14: x | R14: x | S14: x | T14: x | U14: x | V14: x | W14: x | X14: x | AG14: x
A15: x | B15: x | C15: x | D15: x | E15: x | F15: x | G15: x | H15: x | I15: x | J15: x | K15: x | L15: x | M15: x | N15: x | O15: x | P15: x | Q15: x | R15: x | S15: x | T15: x | U15: x | V15: x | W15: x | X15: x | Y15: x | AG15: x
A16: x | C16: x | D16: x | E16: x | F16: x | G16: x | H16: x | I16: x | J16: x | K16: x | L16: x | M16: x | N16: x | O16: x | P16: x | Q16: x | R16: x | S16: x | T16: x | U16: x | V16: x | W16: x | X16: x | AG16: x
A17: x | C17: x | D17: x | E17: x | F17: x | G17: x | H17: x | I17: x | J17: x | K17: x | L17: x | M17: x | N17: x | O17: x | P17: x | Q17: x | R17: x | S17: x | T17: x | U17: x | V17: x | W17: x | X17: x | AC17: x | AG17: x
A18: x | C18: x | D18: x | E18: x | F18: x | G18: x | H18: x | I18: x | J18: x | K18: x | L18: x | M18: x | N18: x | O18: x | P18: x | Q18: x | R18: x | S18: x | T18: x | U18: x | V18: x | W18: x | X18: x | AC18: x | AG18: x
A19: x | C19: x | D19: x | E19: x | F19: x | G19: x | H19: x | I19: x | J19: x | K19: x | L19: x | M19: x | N19: x | O19: x | P19: x | Q19: x | R19: x | S19: x | T19: x | U19: x | V19: x | W19: x | X19: x | AG19: x
A20: x | C20: x | D20: x | E20: x | F20: x | G20: x | H20: x | I20: x | J20: x | K20: x | L20: x | M20: x | N20: x | O20: x | P20: x | Q20: x | R20: x | S20: x | T20: x | U20: x | V20: x | W20: x | X20: x | AG20: x
A21: x | C21: x | D21: x | E21: x | F21: x | G21: x | H21: x | I21: x | J21: x | K21: x | L21: x | M21: x | N21: x | O21: x | P21: x | Q21: x | R21: x | S21: x | T21: x | U21: x | V21: x | W21: x | X21: x | AG21: x
A22: x | C22: x | D22: x | E22: x | F22: x | G22: x | H22: x | I22: x | J22: x | K22: x | L22: x | M22: x | N22: x | O22: x | P22: x | Q22: x | R22: x | S22: x | T22: x | U22: x | V22: x | W22: x | X22: x | AG22: x
A23: x | C23: x | D23: x | E23: x | F23: x | G23: x | H23: x | I23: x | J23: x | K23: x | L23: x | M23: x | N23: x | O23: x | P23: x | Q23: x | R23: x | S23: x | T23: x | U23: x | V23: x | W23: x | X23: x | AG23: x
A24: x | C24: x | D24: x | E24: x | G24: x | H24: x | I24: x | J24: x | K24: x | L24: x | M24: x | N24: x | O24: x | P24: x | Q24: x | R24: x | S24: x | T24: x | U24: x | V24: x | W24: x | X24: x | AG24: x
A25: x | C25: x | D25: x | E25: x | F25: x | G25: x | H25: x | I25: x | J25: x | K25: x | L25: x | M25: x | N25: x | O25: x | P25: x | Q25: x | R25: x | S25: x | T25: x | U25: x | V25: x | W25: x | X25: x | AG25: x
A26: x | C26: x | D26: x | E26: x | F26: x | G26: x | H26: x | I26: x | J26: x | K26: x | L26: x | M26: x | N26: x | O26: x | P26: x | Q26: x | R26: x | S26: x | T26: x | U26: x | V26: x | W26: x | X26: x | AG26: x
A27: x | C27: x | D27: x | F27: x | G27: x | H27: x | I27: x | J27: x | K27: x | L27: x | M27: x | N27: x | O27: x | P27: x | Q27: x | R27: x | S27: x | T27: x | U27: x | V27: x | W27: x | X27: x | AG27: x
A28: x | C28: x | D28: x | F28: x | G28: x | H28: x | I28: x | J28: x | K28: x | L28: x | M28: x | N28: x | O28: x | P28: x | Q28: x | R28: x | S28: x | T28: x | U28: x | V28: x | W28: x | X28: x | AG28: x
A29: x | C29: x | D29: x | E29: x | F29: x | G29: x | H29: x | I29: x | J29: x | K29: x | L29: x | M29: x | N29: x | O29: x | P29: x | Q29: x | R29: x | S29: x | T29: x | U29: x | V29: x | W29: x | X29: x | AG29: x
A30: x | C30: x | D30: x | E30: x | F30: x | G30: x | H30: x | I30: x | J30: x | K30: x | L30: x | M30: x | N30: x | O30: x | P30: x | Q30: x | R30: x | S30: x | T30: x | U30: x | V30: x | W30: x | X30: x | AG30: x
A31: x | C31: x | D31: x | E31: x | F31: x | G31: x | H31: x | I31: x | J31: x | K31: x | L31: x | M31: x | N31: x | O31: x | P31: x | Q31: x | R31: x | S31: x | T31: x | U31: x | V31: x | W31: x | X31: x | AG31: x
A32: x | C32: x | D32: x | E32: x | F32: x | G32: x | H32: x | I32: x | J32: x | K32: x | L32: x | M32: x | N32: x | O32: x | P32: x | Q32: x | R32: x | S32: x | T32: x | U32: x | V32: x | W32: x | X32: x | AG32: x
A33: x | C33: x | D33: x | E33: x | F33: x | G33: x | H33: x | I33: x | J33: x | K33: x | L33: x | M33: x | N33: x | O33: x | P33: x | Q33: x | R33: x | S33: x | T33: x | U33: x | V33: x | W33: x | X33: x | AG33: x
A34: x | C34: x | D34: x | E34: x | F34: x | G34: x | H34: x | I34: x | J34: x | K34: x | L34: x | M34: x | N34: x | O34: x | P34: x | Q34: x | R34: x | S34: x | T34: x | U34: x | V34: x | W34: x | X34: x | AG34: x
A35: x | C35: x | D35: x | E35: x | F35: x | G35: x | H35: x | I35: x | J35: x | K35: x | L35: x | M35: x | N35: x | O35: x | P35: x | Q35: x | R35: x | S35: x | T35: x | U35: x | V35: x | W35: x | X35: x | AG35: x
A36: x | C36: x | D36: x | E36: x | F36: x | G36: x | H36: x | I36: x | J36: x | K36: x | L36: x | M36: x | N36: x | O36: x | P36: x | Q36: x | R36: x | S36: x | T36: x | U36: x | V36: x | W36: x | X36: x | AG36: x
A37: x | C37: x | D37: x | E37: x | F37: x | G37: x | H37: x | I37: x | J37: x | K37: x | L37: x | M37: x | N37: x | O37: x | P37: x | Q37: x | R37: x | S37: x | T37: x | U37: x | V37: x | W37: x | X37: x | AC37: x | AG37: x
A38: x | C38: x | D38: x | E38: x | F38: x | G38: x | I38: x | J38: x | K38: x | L38: x | M38: x | N38: x | O38: x | P38: x | Q38: x | R38: x | S38: x | T38: x | U38: x | V38: x | W38: x | X38: x
A39: x | C39: x | D39: x | E39: x | F39: x | H39: x | I39: x | J39: x | K39: x | L39: x | M39: x | N39: x | O39: x | P39: x | Q39: x | R39: x | S39: x | T39: x | U39: x | V39: x | W39: x | X39: x | AC39: x
A40: x | C40: x | D40: x | E40: x | F40: x | G40: x | H40: x | I40: x | J40: x | K40: x | L40: x | M40: x | N40: x | O40: x | P40: x | Q40: x | R40: x | S40: x | T40: x | U40: x | V40: x | W40: x | X40: x
A41: x | B41: x | C41: x | D41: x | E41: x | F41: x | G41: x | H41: x | I41: x | J41: x | K41: x | L41: x | M41: x | N41: x | O41: x | P41: x | Q41: x | R41: x | S41: x | T41: x | U41: x | V41: x | W41: x | X41: x | Y41: x
A42: x | C42: x | D42: x | E42: x | F42: x | G42: x | H42: x | I42: x | J42: x | K42: x | L42: x | M42: x | O42: x | P42: x | Q42: x | R42: x | S42: x | T42: x | U42: x | V42: x | W42: x | X42: x
A43: x | C43: x | D43: x | E43: x | F43: x | G43: x | H43: x | I43: x | J43: x | K43: x | L43: x | M43: x | O43: x | P43: x | Q43: x | R43: x | S43: x | T43: x | U43: x | V43: x | W43: x | X43: x
A44: x | C44: x | D44: x | E44: x | F44: x | G44: x | H44: x | I44: x | J44: x | K44: x | L44: x | M44: x | O44: x | P44: x | Q44: x | R44: x | S44: x | T44: x | U44: x | V44: x | W44: x | X44: x
A45: x | C45: x | D45: x | E45: x | F45: x | G45: x | H45: x | I45: x | J45: x | K45: x | L45: x | M45: x | O45: x | P45: x | Q45: x | R45: x | S45: x | T45: x | U45: x | V45: x | W45: x | X45: x
A46: x | C46: x | D46: x | E46: x | F46: x | G46: x | H46: x | I46: x | J46: x | K46: x | L46: x | M46: x | O46: x | P46: x | Q46: x | R46: x | S46: x | T46: x | U46: x | V46: x | W46: x | X46: x
A47: x | C47: x | D47: x | E47: x | F47: x | G47: x | H47: x | I47: x | J47: x | K47: x | L47: x | M47: x | O47: x | P47: x | Q47: x | R47: x | S47: x | T47: x | U47: x | V47: x | W47: x | X47: x
A48: x | C48: x | D48: x | E48: x | F48: x | G48: x | H48: x | I48: x | J48: x | K48: x | L48: x | M48: x | O48: x | P48: x | Q48: x | R48: x | S48: x | T48: x | U48: x | V48: x | W48: x | X48: x
A49: x | C49: x | D49: x | E49: x | F49: x | G49: x | H49: x | I49: x | J49: x | K49: x | L49: x | M49: x | O49: x | P49: x | Q49: x | R49: x | S49: x | T49: x | U49: x | V49: x | W49: x | X49: x
A50: x | B50: x | C50: x | D50: x | E50: x | F50: x | G50: x | H50: x | I50: x | J50: x | K50: x | L50: x | M50: x | N50: x | O50: x | P50: x | Q50: x | R50: x | S50: x | T50: x | U50: x | V50: x | W50: x | X50: x | Y50: x
A51: x | C51: x | D51: x | F51: x | G51: x | H51: x | I51: x | J51: x | K51: x | L51: x | M51: x | N51: x | O51: x | P51: x | Q51: x | R51: x | S51: x | T51: x | U51: x | V51: x | W51: x | X51: x
A52: x | C52: x | D52: x | F52: x | G52: x | H52: x | I52: x | J52: x | K52: x | L52: x | M52: x | N52: x | O52: x | P52: x | Q52: x | R52: x | S52: x | T52: x | U52: x | V52: x | W52: x | X52: x
A53: x | C53: x | D53: x | F53: x | G53: x | H53: x | I53: x | J53: x | K53: x | L53: x | M53: x | N53: x | O53: x | P53: x | Q53: x | R53: x | S53: x | T53: x | U53: x | V53: x | W53: x | X53: x
A54: x | C54: x | D54: x | F54: x | G54: x | H54: x | I54: x | J54: x | K54: x | L54: x | M54: x | N54: x | O54: x | P54: x | Q54: x | R54: x | S54: x | T54: x | U54: x | V54: x | W54: x | X54: x
A55: x | C55: x | D55: x | F55: x | G55: x | H55: x | I55: x | J55: x | K55: x | L55: x | M55: x | N55: x | O55: x | P55: x | Q55: x | R55: x | S55: x | T55: x | U55: x | V55: x | W55: x | X55: x
A56: x | C56: x | D56: x | F56: x | G56: x | H56: x | I56: x | J56: x | K56: x | L56: x | M56: x | N56: x | O56: x | P56: x | Q56: x | R56: x | S56: x | T56: x | U56: x | V56: x | W56: x | X56: x
A57: x | C57: x | D57: x | F57: x | G57: x | H57: x | I57: x | J57: x | K57: x | L57: x | M57: x | N57: x | O57: x | P57: x | Q57: x | R57: x | S57: x | T57: x | U57: x | V57: x | W57: x | X57: x
A58: x | C58: x | D58: x | F58: x | G58: x | H58: x | I58: x | J58: x | K58: x | L58: x | M58: x | N58: x | O58: x | P58: x | Q58: x | R58: x | S58: x | T58: x | U58: x | V58: x | W58: x | X58: x
A59: x | C59: x | D59: x | F59: x | G59: x | H59: x | I59: x | J59: x | K59: x | L59: x | M59: x | N59: x | O59: x | P59: x | Q59: x | R59: x | S59: x | T59: x | U59: x | V59: x | W59: x | X59: x
A60: x | C60: x | D60: x | F60: x | G60: x | H60: x | I60: x | J60: x | K60: x | L60: x | M60: x | N60: x | O60: x | P60: x | Q60: x | R60: x | S60: x | T60: x | U60: x | V60: x | W60: x | X60: x
A61: x | B61: x | C61: x | D61: x | E61: x | F61: x | G61: x | H61: x | I61: x | J61: x | K61: x | L61: x | M61: x | N61: x | O61: x | P61: x | Q61: x | R61: x | S61: x | T61: x | U61: x | V61: x | W61: x | X61: x | Y61: x
A62: x | C62: x | D62: x | E62: x | F62: x | G62: x | H62: x | I62: x | J62: x | K62: x | L62: x | M62: x | N62: x | O62: x | P62: x | Q62: x | R62: x | S62: x | T62: x | U62: x | V62: x | W62: x | X62: x | Z62: x
A63: x | C63: x | D63: x | E63: x | F63: x | G63: x | H63: x | I63: x | J63: x | K63: x | L63: x | M63: x | N63: x | O63: x | P63: x | Q63: x | R63: x | S63: x | T63: x | U63: x | V63: x | W63: x | X63: x | Z63: x
A64: x | C64: x | D64: x | E64: x | F64: x | G64: x | H64: x | I64: x | J64: x | K64: x | L64: x | M64: x | N64: x | O64: x | P64: x | Q64: x | R64: x | S64: x | T64: x | U64: x | V64: x | W64: x | X64: x | Z64: x
A65: x | C65: x | D65: x | E65: x | F65: x | G65: x | H65: x | I65: x | J65: x | K65: x | L65: x | M65: x | N65: x | O65: x | P65: x | Q65: x | R65: x | S65: x | T65: x | U65: x | V65: x | W65: x | X65: x | Z65: x
A66: x | C66: x | D66: x | E66: x | F66: x | G66: x | H66: x | I66: x | J66: x | K66: x | L66: x | M66: x | N66: x | O66: x | P66: x | Q66: x | R66: x | S66: x | T66: x | U66: x | V66: x | W66: x | X66: x | Z66: x
A67: x | C67: x | D67: x | E67: x | F67: x | G67: x | H67: x | I67: x | J67: x | K67: x | L67: x | M67: x | N67: x | O67: x | P67: x | Q67: x | R67: x | S67: x | T67: x | U67: x | V67: x | W67: x | X67: x | Z67: x
A68: x | B68: x | C68: x | D68: x | E68: x | F68: x | G68: x | H68: x | I68: x | J68: x | K68: x | L68: x | M68: x | N68: x | O68: x | P68: x | Q68: x | R68: x | S68: x | T68: x | U68: x | V68: x | W68: x | X68: x | Y68: x
A69: x | C69: x | D69: x | E69: x | F69: x | G69: x | H69: x | I69: x | J69: x | K69: x | L69: x | M69: x | N69: x | O69: x | P69: x | Q69: x | R69: x | S69: x | T69: x | U69: x | V69: x | W69: x | X69: x | Z69: x | AC69: x
A70: x | C70: x | D70: x | E70: x | F70: x | G70: x | H70: x | I70: x | J70: x | K70: x | L70: x | M70: x | N70: x | O70: x | P70: x | Q70: x | R70: x | S70: x | T70: x | U70: x | V70: x | W70: x | X70: x | Z70: x | AC70: x
A71: x | C71: x | D71: x | E71: x | F71: x | G71: x | H71: x | I71: x | J71: x | K71: x | L71: x | M71: x | N71: x | O71: x | P71: x | Q71: x | R71: x | S71: x | T71: x | U71: x | V71: x | W71: x | X71: x | Z71: x | AC71: x
A72: x | B72: x | C72: x | D72: x | E72: x | F72: x | G72: x | H72: x | I72: x | J72: x | K72: x | L72: x | M72: x | N72: x | O72: x | P72: x | Q72: x | R72: x | S72: x | T72: x | U72: x | V72: x | W72: x | X72: x | Y72: x
A73: x | C73: x | D73: x | E73: x | F73: x | G73: x | H73: x | I73: x | J73: x | K73: x | L73: x | M73: x | N73: x | O73: x | P73: x | Q73: x | R73: x | S73: x | T73: x | V73: x | W73: x | X73: x | AA73: x
A74: x | C74: x | D74: x | E74: x | F74: x | G74: x | H74: x | I74: x | J74: x | K74: x | L74: x | M74: x | N74: x | O74: x | P74: x | Q74: x | R74: x | S74: x | T74: x | V74: x | W74: x | X74: x | AA74: x
A75: x | C75: x | D75: x | E75: x | F75: x | G75: x | H75: x | I75: x | J75: x | K75: x | L75: x | M75: x | N75: x | O75: x | P75: x | Q75: x | R75: x | S75: x | T75: x | V75: x | W75: x | X75: x | AA75: x
A76: x | C76: x | D76: x | E76: x | F76: x | G76: x | H76: x | I76: x | J76: x | K76: x | L76: x | M76: x | N76: x | O76: x | P76: x | Q76: x | R76: x | S76: x | T76: x | V76: x | W76: x | X76: x | AA76: x
A77: x | C77: x | D77: x | E77: x | F77: x | H77: x | I77: x | J77: x | K77: x | L77: x | M77: x | N77: x | O77: x | P77: x | Q77: x | R77: x | S77: x | T77: x | V77: x | W77: x | X77: x | AA77: x | AC77: x
A78: x | B78: x | C78: x | D78: x | E78: x | F78: x | G78: x | H78: x | I78: x | J78: x | K78: x | L78: x | M78: x | N78: x | O78: x | P78: x | Q78: x | R78: x | S78: x | T78: x | V78: x | W78: x | X78: x | Y78: x | AA78: x
A79: x | C79: x | D79: x | E79: x | F79: x | G79: x | H79: x | I79: x | J79: x | K79: x | L79: x | M79: x | N79: x | O79: x | P79: x | Q79: x | R79: x | S79: x | T79: x | V79: x | W79: x | X79: x | AA79: x
A80: x | C80: x | D80: x | E80: x | F80: x | G80: x | H80: x | I80: x | J80: x | K80: x | L80: x | M80: x | N80: x | O80: x | P80: x | Q80: x | R80: x | S80: x | T80: x | V80: x | W80: x | X80: x | AA80: x
A81: x | C81: x | D81: x | E81: x | F81: x | G81: x | H81: x | I81: x | J81: x | K81: x | L81: x | M81: x | N81: x | O81: x | P81: x | Q81: x | R81: x | S81: x | T81: x | V81: x | W81: x | X81: x | AA81: x
A82: x | C82: x | D82: x | E82: x | F82: x | G82: x | H82: x | I82: x | J82: x | K82: x | L82: x | M82: x | N82: x | O82: x | P82: x | Q82: x | R82: x | S82: x | T82: x | V82: x | W82: x | X82: x | AA82: x
A83: x | C83: x | D83: x | E83: x | F83: x | G83: x | H83: x | I83: x | J83: x | K83: x | L83: x | M83: x | N83: x | O83: x | P83: x | Q83: x | R83: x | S83: x | T83: x | V83: x | W83: x | X83: x | AA83: x
A84: x | C84: x | D84: x | E84: x | F84: x | G84: x | I84: x | J84: x | K84: x | L84: x | M84: x | N84: x | O84: x | P84: x | Q84: x | R84: x | S84: x | T84: x | V84: x | W84: x | X84: x | AA84: x
A85: x | C85: x | D85: x | E85: x | F85: x | G85: x | I85: x | J85: x | K85: x | L85: x | M85: x | N85: x | O85: x | P85: x | Q85: x | R85: x | S85: x | T85: x | V85: x | W85: x | X85: x | AA85: x
A86: x | C86: x | D86: x | E86: x | F86: x | G86: x | I86: x | J86: x | K86: x | L86: x | M86: x | N86: x | O86: x | P86: x | Q86: x | R86: x | S86: x | T86: x | V86: x | W86: x | X86: x | AA86: x
A87: x | B87: x | C87: x | D87: x | E87: x | F87: x | G87: x | H87: x | I87: x | J87: x | K87: x | L87: x | M87: x | N87: x | O87: x | P87: x | Q87: x | R87: x | S87: x | T87: x | U87: x | V87: x | W87: x | X87: x | Y87: x
A88: x | C88: x | D88: x | E88: x | F88: x | G88: x | H88: x | I88: x | J88: x | K88: x | L88: x | M88: x | N88: x | O88: x | P88: x | Q88: x | R88: x | S88: x | T88: x | U88: x | W88: x | X88: x | AB88: x
A89: x | C89: x | D89: x | E89: x | F89: x | G89: x | H89: x | I89: x | J89: x | K89: x | L89: x | M89: x | N89: x | O89: x | P89: x | Q89: x | R89: x | S89: x | T89: x | U89: x | W89: x | X89: x | AB89: x
A90: x | C90: x | D90: x | E90: x | F90: x | G90: x | H90: x | I90: x | J90: x | K90: x | L90: x | M90: x | N90: x | O90: x | P90: x | Q90: x | R90: x | S90: x | T90: x | U90: x | W90: x | X90: x | AB90: x
A91: x | C91: x | D91: x | E91: x | F91: x | G91: x | H91: x | I91: x | J91: x | K91: x | L91: x | M91: x | N91: x | O91: x | P91: x | Q91: x | R91: x | S91: x | T91: x | U91: x | W91: x | X91: x | AB91: x
A92: x | C92: x | D92: x | E92: x | F92: x | G92: x | H92: x | I92: x | J92: x | K92: x | L92: x | M92: x | N92: x | O92: x | P92: x | Q92: x | R92: x | S92: x | T92: x | U92: x | W92: x | X92: x | AB92: x
A93: x | C93: x | D93: x | E93: x | F93: x | G93: x | H93: x | I93: x | J93: x | K93: x | L93: x | M93: x | N93: x | O93: x | P93: x | Q93: x | R93: x | S93: x | T93: x | U93: x | W93: x | X93: x | AB93: x
A94: x | C94: x | D94: x | E94: x | F94: x | G94: x | H94: x | I94: x | J94: x | K94: x | L94: x | M94: x | N94: x | O94: x | P94: x | Q94: x | R94: x | S94: x | T94: x | U94: x | W94: x | X94: x | AB94: x
A95: x | C95: x | D95: x | E95: x | F95: x | G95: x | H95: x | I95: x | J95: x | K95: x | L95: x | M95: x | N95: x | O95: x | P95: x | Q95: x | R95: x | S95: x | T95: x | U95: x | W95: x | X95: x | AB95: x
A96: x | B96: x | C96: x | D96: x | E96: x | F96: x | G96: x | H96: x | I96: x | J96: x | K96: x | L96: x | M96: x | N96: x | O96: x | P96: x | Q96: x | R96: x | S96: x | T96: x | U96: x | V96: x | W96: x | X96: x | Y96: x
A97: x | C97: x | D97: x | E97: x | F97: x | G97: x | H97: x | I97: x | J97: x | K97: x | L97: x | M97: x | N97: x | O97: x | P97: x | Q97: x | R97: x | S97: x | T97: x | U97: x | V97: x | X97: x
A98: x | C98: x | D98: x | E98: x | F98: x | G98: x | H98: x | I98: x | J98: x | K98: x | L98: x | M98: x | N98: x | O98: x | P98: x | Q98: x | R98: x | S98: x | T98: x | U98: x | V98: x | X98: x
A99: x | C99: x | D99: x | E99: x | F99: x | G99: x | H99: x | I99: x | J99: x | K99: x | L99: x | M99: x | N99: x | O99: x | P99: x | Q99: x | R99: x | S99: x | T99: x | U99: x | V99: x | X99: x
A100: x | C100: x | D100: x | E100: x | F100: x | G100: x | H100: x | I100: x | J100: x | K100: x | L100: x | M100: x | N100: x | O100: x | P100: x | Q100: x | R100: x | S100: x | T100: x | U100: x | V100: x | X100: x
A101: x | C101: x | D101: x | E101: x | F101: x | G101: x | H101: x | I101: x | J101: x | K101: x | L101: x | M101: x | N101: x | O101: x | P101: x | Q101: x | R101: x | S101: x | T101: x | U101: x | V101: x | X101: x
A102: x | C102: x | D102: x | E102: x | F102: x | G102: x | H102: x | I102: x | J102: x | K102: x | L102: x | M102: x | N102: x | O102: x | P102: x | Q102: x | R102: x | S102: x | T102: x | U102: x | V102: x | X102: x
A103: x | C103: x | D103: x | E103: x | F103: x | G103: x | H103: x | I103: x | J103: x | K103: x | L103: x | M103: x | N103: x | O103: x | P103: x | Q103: x | R103: x | S103: x | T103: x | U103: x | V103: x | X103: x
A104: x | C104: x | D104: x | E104: x | F104: x | G104: x | H104: x | I104: x | J104: x | K104: x | L104: x | M104: x | N104: x | O104: x | P104: x | Q104: x | R104: x | S104: x | T104: x | U104: x | V104: x | X104: x
A105: x | B105: x | C105: x | D105: x | E105: x | F105: x | G105: x | H105: x | I105: x | J105: x | K105: x | L105: x | M105: x | N105: x | O105: x | P105: x | Q105: x | R105: x | S105: x | T105: x | U105: x | V105: x | W105: x | X105: x | Y105: x
A106: x | C106: x | D106: x | E106: x | F106: x | G106: x | H106: x | I106: x | J106: x | K106: x | L106: x | M106: x | N106: x | O106: x | P106: x | Q106: x | R106: x | S106: x | T106: x | U106: x | V106: x | W106: x
A107: x | C107: x | D107: x | E107: x | F107: x | G107: x | H107: x | I107: x | J107: x | K107: x | L107: x | M107: x | N107: x | O107: x | P107: x | Q107: x | R107: x | S107: x | T107: x | U107: x | V107: x | W107: x
A108: x | C108: x | D108: x | E108: x | F108: x | G108: x | H108: x | I108: x | J108: x | K108: x | L108: x | M108: x | N108: x | O108: x | P108: x | Q108: x | R108: x | S108: x | T108: x | U108: x | V108: x | W108: x
A109: x | C109: x | D109: x | E109: x | F109: x | G109: x | H109: x | I109: x | J109: x | K109: x | L109: x | M109: x | N109: x | O109: x | P109: x | Q109: x | R109: x | S109: x | T109: x | U109: x | V109: x | W109: x
A110: x | C110: x | D110: x | E110: x | F110: x | G110: x | H110: x | I110: x | J110: x | K110: x | L110: x | M110: x | N110: x | O110: x | P110: x | Q110: x | R110: x | S110: x | T110: x | U110: x | V110: x | W110: x
A111: x | C111: x | D111: x | E111: x | F111: x | G111: x | H111: x | I111: x | J111: x | K111: x | L111: x | M111: x | N111: x | O111: x | P111: x | Q111: x | R111: x | S111: x | T111: x | U111: x | V111: x | W111: x
A112: x | B112: x | C112: x | D112: x | E112: x | F112: x | G112: x | H112: x | I112: x | J112: x | K112: x | L112: x | M112: x | N112: x | O112: x | P112: x | Q112: x | R112: x | S112: x | T112: x | U112: x | V112: x | W112: x | X112: x | Y112: x
A113: x | C113: x | D113: x | E113: x | F113: x | G113: x | H113: x | I113: x | J113: x | K113: x | L113: x | M113: x | N113: x | O113: x | P113: x | Q113: x | R113: x | S113: x | T113: x | U113: x | V113: x | W113: x | X113: x
A114: x | C114: x | D114: x | E114: x | F114: x | G114: x | H114: x | I114: x | J114: x | K114: x | L114: x | M114: x | N114: x | O114: x | P114: x | Q114: x | R114: x | S114: x | T114: x | U114: x | V114: x | W114: x | X114: x
A115: x | C115: x | D115: x | E115: x | F115: x | G115: x | H115: x | I115: x | J115: x | K115: x | L115: x | M115: x | N115: x | O115: x | P115: x | Q115: x | R115: x | S115: x | T115: x | U115: x | V115: x | W115: x | X115: x
A116: x | C116: x | D116: x | E116: x | F116: x | G116: x | H116: x | I116: x | J116: x | K116: x | L116: x | M116: x | N116: x | O116: x | P116: x | Q116: x | R116: x | S116: x | T116: x | U116: x | V116: x | W116: x | X116: x
A117: x | C117: x | D117: x | E117: x | F117: x | G117: x | H117: x | I117: x | J117: x | K117: x | L117: x | M117: x | N117: x | O117: x | P117: x | Q117: x | R117: x | S117: x | T117: x | U117: x | V117: x | W117: x | X117: x
A118: x | C118: x | D118: x | E118: x | F118: x | G118: x | H118: x | I118: x | J118: x | K118: x | L118: x | M118: x | N118: x | O118: x | P118: x | Q118: x | R118: x | S118: x | T118: x | U118: x | V118: x | W118: x | X118: x
A119: x | B119: x | C119: x | D119: x | E119: x | F119: x | G119: x | H119: x | I119: x | J119: x | K119: x | L119: x | M119: x | N119: x | O119: x | P119: x | Q119: x | R119: x | S119: x | T119: x | U119: x | V119: x | W119: x | X119: x | Y119: x
A120: x | C120: x | D120: x | E120: x | F120: x | G120: x | H120: x | I120: x | J120: x | K120: x | L120: x | M120: x | N120: x | O120: x | P120: x | Q120: x | R120: x | S120: x | T120: x | U120: x | V120: x | W120: x | X120: x
A121: x | C121: x | D121: x | E121: x | F121: x | G121: x | H121: x | I121: x | J121: x | K121: x | L121: x | M121: x | N121: x | O121: x | P121: x | Q121: x | R121: x | S121: x | T121: x | U121: x | V121: x | W121: x | X121: x
A122: x | C122: x | D122: x | E122: x | F122: x | G122: x | H122: x | I122: x | J122: x | K122: x | L122: x | M122: x | N122: x | O122: x | P122: x | Q122: x | R122: x | S122: x | T122: x | U122: x | V122: x | W122: x | X122: x
A123: x | C123: x | D123: x | E123: x | F123: x | G123: x | H123: x | I123: x | J123: x | K123: x | L123: x | M123: x | N123: x | O123: x | P123: x | Q123: x | R123: x | S123: x | T123: x | U123: x | V123: x | W123: x | X123: x
A124: x | C124: x | D124: x | E124: x | F124: x | G124: x | H124: x | I124: x | J124: x | K124: x | L124: x | M124: x | N124: x | O124: x | P124: x | Q124: x | R124: x | S124: x | T124: x | U124: x | V124: x | W124: x | X124: x
A125: x | B125: x | C125: x | D125: x | E125: x | F125: x | G125: x | H125: x | I125: x | J125: x | K125: x | L125: x | M125: x | N125: x | O125: x | P125: x | Q125: x | R125: x | S125: x | T125: x | U125: x | V125: x | W125: x | X125: x | Y125: x
A126: x | C126: x | D126: x | E126: x | F126: x | G126: x | H126: x | I126: x | J126: x | K126: x | L126: x | M126: x | N126: x | O126: x | P126: x | Q126: x | R126: x | S126: x | T126: x | U126: x | V126: x | W126: x | X126: x
A127: x | C127: x | D127: x | E127: x | F127: x | G127: x | H127: x | I127: x | J127: x | K127: x | L127: x | M127: x | N127: x | O127: x | P127: x | Q127: x | R127: x | S127: x | T127: x | U127: x | V127: x | W127: x | X127: x
A128: x | B128: x | C128: x | D128: x | E128: x | F128: x | G128: x | H128: x | I128: x | J128: x | K128: x | L128: x | M128: x | N128: x | O128: x | P128: x | Q128: x | R128: x | S128: x | T128: x | U128: x | V128: x | W128: x | X128: x | Y128: x
A129: x | C129: x | D129: x | E129: x | G129: x | H129: x | I129: x | J129: x | K129: x | L129: x | M129: x | N129: x | O129: x | P129: x | Q129: x | R129: x | S129: x | T129: x | U129: x | V129: x | W129: x | X129: x
A130: x | C130: x | D130: x | E130: x | G130: x | H130: x | I130: x | J130: x | K130: x | L130: x | M130: x | N130: x | O130: x | P130: x | Q130: x | R130: x | S130: x | T130: x | U130: x | V130: x | W130: x | X130: x
A131: x | C131: x | D131: x | E131: x | G131: x | H131: x | I131: x | J131: x | K131: x | L131: x | M131: x | N131: x | O131: x | P131: x | Q131: x | R131: x | S131: x | T131: x | U131: x | V131: x | W131: x | X131: x
A132: x | B132: x | C132: x | D132: x | E132: x | F132: x | G132: x | H132: x | I132: x | J132: x | K132: x | L132: x | M132: x | N132: x | O132: x | P132: x | Q132: x | R132: x | S132: x | T132: x | U132: x | V132: x | W132: x | X132: x | Y132: x
A133: x | C133: x | D133: x | E133: x | F133: x | G133: x | H133: x | I133: x | J133: x | K133: x | L133: x | M133: x | N133: x | O133: x | P133: x | Q133: x | R133: x | S133: x | T133: x | U133: x | V133: x | W133: x | X133: x
A134: x | C134: x | D134: x | E134: x | F134: x | G134: x | H134: x | I134: x | J134: x | K134: x | L134: x | M134: x | N134: x | O134: x | P134: x | Q134: x | R134: x | S134: x | T134: x | U134: x | V134: x | W134: x | X134: x
A135: x | C135: x | D135: x | E135: x | F135: x | G135: x | H135: x | I135: x | J135: x | K135: x | L135: x | M135: x | N135: x | O135: x | P135: x | Q135: x | R135: x | S135: x | T135: x | U135: x | V135: x | W135: x | X135: x
A136: x | B136: x | C136: x | D136: x | E136: x | F136: x | G136: x | H136: x | I136: x | J136: x | K136: x | L136: x | M136: x | N136: x | O136: x | P136: x | Q136: x | R136: x | S136: x | T136: x | U136: x | V136: x | W136: x | X136: x | Y136: x
A137: x | C137: x | D137: x | E137: x | F137: x | G137: x | H137: x | I137: x | J137: x | K137: x | L137: x | M137: x | N137: x | O137: x | P137: x | Q137: x | R137: x | S137: x | T137: x | U137: x | V137: x | W137: x | X137: x
A138: x | B138: x | C138: x | D138: x | E138: x | F138: x | G138: x | H138: x | I138: x | J138: x | K138: x | L138: x | M138: x | N138: x | O138: x | P138: x | Q138: x | R138: x | S138: x | T138: x | U138: x | V138: x | W138: x | X138: x | Y138: x
A139: x | C139: x | D139: x | E139: x | F139: x | G139: x | H139: x | I139: x | J139: x | K139: x | L139: x | M139: x | N139: x | O139: x | P139: x | Q139: x | R139: x | S139: x | T139: x | U139: x | V139: x | W139: x | X139: x | AD139: x
A140: x | C140: x | D140: x | E140: x | F140: x | G140: x | H140: x | I140: x | J140: x | K140: x | L140: x | M140: x | N140: x | O140: x | P140: x | Q140: x | R140: x | S140: x | T140: x | U140: x | V140: x | W140: x | X140: x | AD140: x
A141: x | C141: x | D141: x | E141: x | F141: x | G141: x | H141: x | I141: x | J141: x | K141: x | L141: x | M141: x | N141: x | O141: x | P141: x | Q141: x | R141: x | S141: x | T141: x | U141: x | V141: x | W141: x | X141: x | AD141: x
A142: x | C142: x | D142: x | E142: x | F142: x | G142: x | H142: x | I142: x | J142: x | K142: x | L142: x | M142: x | N142: x | O142: x | P142: x | Q142: x | R142: x | S142: x | T142: x | U142: x | V142: x | W142: x | X142: x | AD142: x
A143: x | C143: x | D143: x | E143: x | F143: x | G143: x | H143: x | I143: x | J143: x | K143: x | L143: x | M143: x | N143: x | O143: x | P143: x | Q143: x | R143: x | S143: x | T143: x | U143: x | V143: x | W143: x | X143: x | AD143: x
A144: x | C144: x | D144: x | E144: x | F144: x | G144: x | H144: x | I144: x | J144: x | K144: x | L144: x | M144: x | N144: x | O144: x | P144: x | Q144: x | R144: x | S144: x | T144: x | U144: x | V144: x | W144: x | X144: x | AD144: x
A145: x | C145: x | D145: x | E145: x | F145: x | G145: x | H145: x | I145: x | J145: x | K145: x | L145: x | M145: x | N145: x | O145: x | P145: x | Q145: x | R145: x | S145: x | T145: x | U145: x | V145: x | W145: x | X145: x | AD145: x
A146: x | C146: x | D146: x | E146: x | F146: x | G146: x | H146: x | I146: x | J146: x | K146: x | L146: x | M146: x | N146: x | O146: x | P146: x | Q146: x | R146: x | S146: x | T146: x | U146: x | V146: x | W146: x | X146: x | AD146: x
A147: x | C147: x | D147: x | E147: x | F147: x | G147: x | H147: x | I147: x | J147: x | K147: x | L147: x | M147: x | N147: x | O147: x | P147: x | Q147: x | R147: x | S147: x | T147: x | U147: x | V147: x | W147: x | X147: x | AD147: x
A148: x | C148: x | D148: x | E148: x | F148: x | G148: x | H148: x | I148: x | J148: x | K148: x | L148: x | M148: x | N148: x | O148: x | P148: x | Q148: x | R148: x | S148: x | T148: x | U148: x | V148: x | W148: x | X148: x | AD148: x
A149: x | C149: x | D149: x | E149: x | F149: x | G149: x | H149: x | I149: x | J149: x | K149: x | L149: x | M149: x | N149: x | O149: x | P149: x | Q149: x | R149: x | S149: x | T149: x | U149: x | V149: x | W149: x | X149: x | AD149: x
A150: x | C150: x | D150: x | E150: x | F150: x | G150: x | H150: x | I150: x | J150: x | K150: x | L150: x | M150: x | N150: x | O150: x | P150: x | Q150: x | R150: x | S150: x | T150: x | U150: x | V150: x | W150: x | X150: x | AD150: x
A151: x | C151: x | D151: x | E151: x | F151: x | G151: x | H151: x | I151: x | J151: x | K151: x | L151: x | M151: x | N151: x | O151: x | P151: x | Q151: x | R151: x | S151: x | T151: x | U151: x | V151: x | W151: x | X151: x | AD151: x
A152: x | C152: x | D152: x | E152: x | F152: x | G152: x | H152: x | I152: x | J152: x | K152: x | L152: x | M152: x | N152: x | O152: x | P152: x | Q152: x | R152: x | S152: x | T152: x | U152: x | V152: x | W152: x | X152: x | AD152: x
A153: x | C153: x | D153: x | E153: x | F153: x | G153: x | H153: x | I153: x | J153: x | K153: x | L153: x | M153: x | N153: x | O153: x | P153: x | Q153: x | R153: x | S153: x | T153: x | U153: x | V153: x | W153: x | X153: x | AD153: x
A154: x | C154: x | D154: x | E154: x | F154: x | G154: x | H154: x | I154: x | J154: x | K154: x | L154: x | M154: x | N154: x | O154: x | P154: x | Q154: x | R154: x | S154: x | T154: x | U154: x | V154: x | W154: x | X154: x | AD154: x
A155: x | C155: x | D155: x | E155: x | F155: x | G155: x | H155: x | I155: x | J155: x | K155: x | L155: x | M155: x | N155: x | O155: x | P155: x | Q155: x | R155: x | S155: x | T155: x | U155: x | V155: x | W155: x | X155: x | AD155: x
A156: x | C156: x | D156: x | E156: x | F156: x | G156: x | H156: x | I156: x | J156: x | K156: x | L156: x | M156: x | N156: x | O156: x | P156: x | Q156: x | R156: x | S156: x | T156: x | U156: x | V156: x | W156: x | X156: x | AC156: x | AD156: x
A157: x | B157: x | C157: x | D157: x | E157: x | F157: x | G157: x | H157: x | I157: x | J157: x | K157: x | L157: x | M157: x | N157: x | O157: x | P157: x | Q157: x | R157: x | S157: x | T157: x | U157: x | V157: x | W157: x | X157: x | Y157: x
A158: x | C158: x | D158: x | E158: x | F158: x | G158: x | H158: x | I158: x | J158: x | K158: x | L158: x | M158: x | N158: x | O158: x | P158: x | Q158: x | R158: x | S158: x | T158: x | U158: x | V158: x | W158: x | X158: x
A159: x | C159: x | D159: x | E159: x | F159: x | G159: x | H159: x | I159: x | J159: x | K159: x | L159: x | M159: x | N159: x | O159: x | P159: x | Q159: x | R159: x | S159: x | T159: x | U159: x | V159: x | W159: x | X159: x
A160: x | C160: x | D160: x | E160: x | F160: x | G160: x | H160: x | I160: x | J160: x | K160: x | L160: x | M160: x | N160: x | O160: x | P160: x | Q160: x | R160: x | S160: x | T160: x | U160: x | V160: x | W160: x | X160: x
A161: x | C161: x | D161: x | E161: x | F161: x | G161: x | H161: x | I161: x | J161: x | K161: x | L161: x | M161: x | N161: x | O161: x | P161: x | Q161: x | R161: x | S161: x | T161: x | U161: x | V161: x | W161: x | X161: x
A162: x | C162: x | D162: x | E162: x | F162: x | G162: x | H162: x | I162: x | J162: x | K162: x | L162: x | M162: x | N162: x | O162: x | P162: x | Q162: x | R162: x | S162: x | T162: x | U162: x | V162: x | W162: x | X162: x
A163: x | C163: x | D163: x | E163: x | F163: x | G163: x | H163: x | I163: x | J163: x | K163: x | L163: x | M163: x | N163: x | O163: x | P163: x | Q163: x | R163: x | S163: x | T163: x | U163: x | V163: x | W163: x | X163: x
A164: x | C164: x | D164: x | E164: x | F164: x | G164: x | H164: x | I164: x | J164: x | K164: x | L164: x | M164: x | N164: x | O164: x | P164: x | Q164: x | R164: x | S164: x | T164: x | U164: x | V164: x | W164: x | X164: x
A165: x | B165: x | C165: x | D165: x | E165: x | F165: x | G165: x | H165: x | I165: x | J165: x | K165: x | L165: x | M165: x | N165: x | O165: x | P165: x | Q165: x | R165: x | S165: x | T165: x | U165: x | V165: x | W165: x | X165: x | Y165: x
A166: x | E166: x | F166: x | G166: x | H166: x | I166: x | J166: x | K166: x | L166: x | M166: x | N166: x | O166: x | P166: x | Q166: x | R166: x | S166: x | T166: x | U166: x | V166: x | W166: x | X166: x | AE166: x
A167: x | E167: x | F167: x | G167: x | H167: x | I167: x | J167: x | K167: x | L167: x | M167: x | N167: x | O167: x | P167: x | Q167: x | R167: x | S167: x | T167: x | U167: x | V167: x | W167: x | X167: x | AE167: x
A168: x | E168: x | F168: x | G168: x | H168: x | I168: x | J168: x | K168: x | L168: x | M168: x | N168: x | O168: x | P168: x | Q168: x | R168: x | S168: x | T168: x | U168: x | V168: x | W168: x | X168: x | AE168: x
A169: x | E169: x | F169: x | G169: x | H169: x | I169: x | J169: x | K169: x | L169: x | M169: x | N169: x | O169: x | P169: x | Q169: x | R169: x | S169: x | T169: x | U169: x | V169: x | W169: x | X169: x | AE169: x
A170: x | E170: x | F170: x | G170: x | H170: x | I170: x | J170: x | K170: x | L170: x | M170: x | N170: x | O170: x | P170: x | Q170: x | R170: x | S170: x | T170: x | U170: x | V170: x | W170: x | X170: x | AE170: x
A171: x | E171: x | F171: x | G171: x | H171: x | I171: x | J171: x | K171: x | L171: x | M171: x | N171: x | O171: x | P171: x | Q171: x | R171: x | S171: x | T171: x | U171: x | V171: x | W171: x | X171: x | AE171: x
A172: x | E172: x | F172: x | G172: x | H172: x | I172: x | J172: x | K172: x | L172: x | M172: x | N172: x | O172: x | P172: x | Q172: x | R172: x | S172: x | T172: x | U172: x | V172: x | W172: x | X172: x | AE172: x
A173: x | E173: x | F173: x | G173: x | H173: x | I173: x | J173: x | K173: x | L173: x | M173: x | N173: x | O173: x | P173: x | Q173: x | R173: x | S173: x | T173: x | U173: x | V173: x | W173: x | X173: x | AE173: x
A174: x | E174: x | F174: x | G174: x | H174: x | I174: x | J174: x | K174: x | L174: x | M174: x | N174: x | O174: x | P174: x | Q174: x | R174: x | S174: x | T174: x | U174: x | V174: x | W174: x | X174: x | AE174: x
A175: x | E175: x | F175: x | G175: x | H175: x | I175: x | J175: x | K175: x | L175: x | M175: x | N175: x | O175: x | P175: x | Q175: x | R175: x | S175: x | T175: x | U175: x | V175: x | W175: x | X175: x | AE175: x
A176: x | E176: x | F176: x | G176: x | H176: x | I176: x | J176: x | K176: x | L176: x | M176: x | N176: x | O176: x | P176: x | Q176: x | R176: x | S176: x | T176: x | U176: x | V176: x | W176: x | X176: x | AE176: x
A177: x | E177: x | F177: x | G177: x | H177: x | I177: x | J177: x | K177: x | L177: x | M177: x | N177: x | O177: x | P177: x | Q177: x | R177: x | S177: x | T177: x | U177: x | V177: x | W177: x | X177: x | AE177: x
A178: x | E178: x | F178: x | G178: x | H178: x | I178: x | J178: x | K178: x | L178: x | M178: x | N178: x | O178: x | P178: x | Q178: x | R178: x | S178: x | T178: x | U178: x | V178: x | W178: x | X178: x | AE178: x
A179: x | E179: x | F179: x | G179: x | H179: x | I179: x | J179: x | K179: x | L179: x | M179: x | N179: x | O179: x | P179: x | Q179: x | R179: x | S179: x | T179: x | U179: x | V179: x | W179: x | X179: x | AE179: x
A180: x | E180: x | F180: x | G180: x | H180: x | I180: x | J180: x | K180: x | L180: x | M180: x | N180: x | O180: x | P180: x | Q180: x | R180: x | S180: x | T180: x | U180: x | V180: x | W180: x | X180: x | AE180: x
A181: x | E181: x | F181: x | G181: x | H181: x | I181: x | J181: x | K181: x | L181: x | M181: x | N181: x | O181: x | P181: x | Q181: x | R181: x | S181: x | T181: x | U181: x | V181: x | W181: x | X181: x | AE181: x
A182: x | E182: x | F182: x | G182: x | H182: x | I182: x | J182: x | K182: x | L182: x | M182: x | N182: x | O182: x | P182: x | Q182: x | R182: x | S182: x | T182: x | U182: x | V182: x | W182: x | X182: x | AE182: x
A183: x | B183: x | C183: x | D183: x | E183: x | F183: x | G183: x | H183: x | I183: x | J183: x | K183: x | L183: x | M183: x | N183: x | O183: x | P183: x | Q183: x | R183: x | S183: x | T183: x | U183: x | V183: x | W183: x | X183: x | Y183: x | AE183: x
A184: x | D184: x | E184: x | F184: x | G184: x | H184: x | I184: x | J184: x | K184: x | L184: x | M184: x | N184: x | O184: x | P184: x | Q184: x | R184: x | S184: x | T184: x | U184: x | V184: x | W184: x | X184: x | AE184: x
A185: x | D185: x | E185: x | F185: x | G185: x | H185: x | I185: x | J185: x | K185: x | L185: x | M185: x | N185: x | O185: x | P185: x | Q185: x | R185: x | S185: x | T185: x | U185: x | V185: x | W185: x | X185: x
A186: x | B186: x | C186: x | D186: x | E186: x | F186: x | G186: x | H186: x | I186: x | J186: x | K186: x | L186: x | M186: x | N186: x | O186: x | P186: x | Q186: x | R186: x | S186: x | T186: x | U186: x | V186: x | W186: x | X186: x | Y186: x
A187: x | C187: x | D187: x | E187: x | F187: x | G187: x | H187: x | I187: x | J187: x | K187: x | L187: x | M187: x | N187: x | O187: x | P187: x | Q187: x | R187: x | S187: x | T187: x | U187: x | V187: x | W187: x | X187: x | AC187: x
A188: x | C188: x | D188: x | E188: x | F188: x | G188: x | H188: x | I188: x | J188: x | K188: x | L188: x | M188: x | N188: x | O188: x | P188: x | Q188: x | R188: x | S188: x | T188: x | U188: x | V188: x | W188: x | X188: x | AC188: x
A189: x | C189: x | D189: x | E189: x | F189: x | G189: x | H189: x | I189: x | J189: x | K189: x | L189: x | M189: x | N189: x | O189: x | P189: x | Q189: x | R189: x | S189: x | T189: x | U189: x | V189: x | W189: x | X189: x
A190: x | C190: x | D190: x | E190: x | F190: x | G190: x | H190: x | I190: x | J190: x | K190: x | L190: x | M190: x | N190: x | O190: x | P190: x | Q190: x | R190: x | S190: x | T190: x | U190: x | V190: x | W190: x | X190: x
A191: x | C191: x | D191: x | E191: x | F191: x | G191: x | H191: x | I191: x | J191: x | K191: x | L191: x | M191: x | N191: x | O191: x | P191: x | Q191: x | R191: x | S191: x | T191: x | U191: x | V191: x | W191: x | X191: x | AC191: x
A192: x | C192: x | D192: x | E192: x | F192: x | G192: x | H192: x | I192: x | J192: x | K192: x | L192: x | M192: x | N192: x | O192: x | P192: x | Q192: x | R192: x | S192: x | T192: x | U192: x | V192: x | W192: x | X192: x
A193: x | B193: x | C193: x | D193: x | E193: x | F193: x | G193: x | H193: x | I193: x | J193: x | K193: x | L193: x | M193: x | N193: x | O193: x | P193: x | Q193: x | R193: x | S193: x | T193: x | U193: x | V193: x | W193: x | X193: x | Y193: x
A194: x | C194: x | D194: x | E194: x | F194: x | G194: x | H194: x | I194: x | J194: x | K194: x | L194: x | M194: x | N194: x | O194: x | P194: x | Q194: x | R194: x | S194: x | T194: x | U194: x | V194: x | W194: x | X194: x | AC194: x
A195: x | C195: x | D195: x | E195: x | F195: x | G195: x | H195: x | I195: x | J195: x | K195: x | L195: x | M195: x | N195: x | O195: x | P195: x | Q195: x | R195: x | S195: x | T195: x | U195: x | V195: x | W195: x | X195: x | AC195: x
A196: x | C196: x | D196: x | E196: x | F196: x | G196: x | H196: x | I196: x | J196: x | K196: x | L196: x | M196: x | N196: x | O196: x | P196: x | Q196: x | R196: x | S196: x | T196: x | U196: x | V196: x | W196: x | X196: x | AC196: x
A197: x | C197: x | D197: x | E197: x | F197: x | G197: x | H197: x | I197: x | J197: x | K197: x | L197: x | M197: x | N197: x | O197: x | P197: x | Q197: x | R197: x | S197: x | T197: x | U197: x | V197: x | W197: x | X197: x | AC197: x
A198: x | C198: x | D198: x | E198: x | F198: x | G198: x | H198: x | I198: x | J198: x | K198: x | L198: x | M198: x | N198: x | O198: x | P198: x | Q198: x | R198: x | S198: x | T198: x | U198: x | V198: x | W198: x | X198: x | AC198: x
A199: x | C199: x | D199: x | E199: x | F199: x | G199: x | H199: x | I199: x | J199: x | K199: x | L199: x | M199: x | N199: x | O199: x | P199: x | Q199: x | R199: x | S199: x | T199: x | U199: x | V199: x | W199: x | X199: x | AC199: x
A200: x | C200: x | D200: x | E200: x | F200: x | G200: x | H200: x | I200: x | J200: x | K200: x | L200: x | M200: x | N200: x | O200: x | P200: x | Q200: x | R200: x | S200: x | T200: x | U200: x | V200: x | W200: x | X200: x | AC200: x
... 93 more rows

Sheet meta_data (hidden)
A1: Key | B1: Beskrivelse | C1: trigger_code
A2: =TRANSPOSE(sjekkliste_noter_matrix!A1:AM22) -> F0 | B2: Full | C2: FALSE
A3: E0 | B3: Endring | C3: TRUE
A4: F1 | B4: Har selskapet ansatte | C4: FALSE
A5: F2 | B5: Ytelsespensjon | C5: FALSE
A6: F3 | B6: FOU | C6: FALSE
A7: F4 | B7: langs. Tilvirkningskontrakter | C7: FALSE
A8: F5 | B8: Datter | C8: FALSE
A9: F6 | B9: Konsernregnskap | C9: FALSE
A10: F7 | B10: Restrukturering | C10: FALSE
A11: F8 | B11: Fusjon | C11: TRUE
A12: F9 | B12: Fisjon | C12: TRUE
A13: F8F9 | B13: Fusjon og Fisjon | C13: TRUE
A14: F10 | B14: Samvirkeforetak | C14: TRUE
A15: F11 | B15: Goodwill | C15: FALSE
A16: F12 | B16: Borettslag | C16: TRUE
A17: F13 | B17: Betalingsforetak | C17: TRUE
A18: F14 | B18: E-pengeforetak | C18: TRUE
A19: F15 | B19: Eiendomsmegler | C19: TRUE
A20: F16 | B20: Inkassovirksomhet | C20: TRUE
A21: F17 | B21: Ingen av delene | C21: FALSE
A22: F18 | B22: Datter | C22: FALSE
A23: F19 | B23: TS | C23: FALSE
A24: F20 | B24: FKV | C24: FALSE
A25: F21 | B25: Andre aksjer | C25: FALSE
A26: E1 | B26: Policy | C26: TRUE
A27: E2 | B27: Driftsmidler | C27: FALSE
A28: E3 | B28: Datter | C28: FALSE
A29: E4 | B29: TS | C29: FALSE
A30: E5 | B30: NRS (F) krav | C30: FALSE
A31: E6 | B31: Fordring mm | C31: FALSE
A32: E7 | B32: Pensjon | C32: FALSE
A33: E8 | B33: Ytelser | C33: FALSE
A34: E9 | B34: Regnskaprinsipper | C34: FALSE
A35: E10 | B35: Borettslag | C35: FALSE
A36: E11 | B36: Betalingsforetak | C36: FALSE
A37: E12 | B37: E-pengeforetak | C37: FALSE
A38: E13 | B38: Eiendomsmegler | C38: FALSE
A39: E14 | B39: Inkassovirksomhet | C39: FALSE
A40: E15 | B40: Ingen av delene | C40: TRUE

Sheet sjekkliste_formelle_matrix (hidden)
A1: =sjekkliste_noter_matrix!A1 -> F0 | B1: =sjekkliste_noter_matrix!B1 -> E0 | C1: =sjekkliste_noter_matrix!C1 -> F1 | D1: =sjekkliste_noter_matrix!D1 -> F2 | E1: =sjekkliste_noter_matrix!E1 -> F3 | F1: =sjekkliste_noter_matrix!F1 -> F4 | G1: =sjekkliste_noter_matrix!G1 -> F5 | H1: =sjekkliste_noter_matrix!H1 -> F6 | I1: =sjekkliste_noter_matrix!I1 -> F7 | J1: =sjekkliste_noter_matrix!J1 -> F8 | K1: =sjekkliste_noter_matrix!K1 -> F9 | L1: =sjekkliste_noter_matrix!L1 -> F8F9 | M1: =sjekkliste_noter_matrix!M1 -> F10 | N1: =sjekkliste_noter_matrix!N1 -> F11 | O1: =sjekkliste_noter_matrix!O1 -> F12 | P1: =sjekkliste_noter_matrix!P1 -> F13 | Q1: =sjekkliste_noter_matrix!Q1 -> F14 | R1: =sjekkliste_noter_matrix!R1 -> F15 | S1: =sjekkliste_noter_matrix!S1 -> F16 | T1: =sjekkliste_noter_matrix!T1 -> F17 | U1: =sjekkliste_noter_matrix!U1 -> F18 | V1: =sjekkliste_noter_matrix!V1 -> F19 | W1: =sjekkliste_noter_matrix!W1 -> F20 | X1: =sjekkliste_noter_matrix!X1 -> F21 | Y1: =sjekkliste_noter_matrix!Y1 -> E1 | Z1: =sjekkliste_noter_matrix!Z1 -> E2 | AA1: =sjekkliste_noter_matrix!AA1 -> E3 | AB1: =sjekkliste_noter_matrix!AB1 -> E4 | AC1: =sjekkliste_noter_matrix!AC1 -> E5 | AD1: =sjekkliste_noter_matrix!AD1 -> E6 | AE1: =sjekkliste_noter_matrix!AE1 -> E7 | AF1: =sjekkliste_noter_matrix!AF1 -> E8 | AG1: =sjekkliste_noter_matrix!AG1 -> E9 | AH1: =sjekkliste_noter_matrix!AH1 -> E10 | AI1: =sjekkliste_noter_matrix!AI1 -> E11 | AJ1: =sjekkliste_noter_matrix!AJ1 -> E12 | AK1: =sjekkliste_noter_matrix!AK1 -> E13 | AL1: =sjekkliste_noter_matrix!AL1 -> E14 | AM1: =sjekkliste_noter_matrix!AM1 -> E15
A2: x | B2: x | C2: x | D2: x | E2: x | F2: x | G2: x | H2: x | I2: x | J2: x | K2: x | L2: x | M2: x | N2: x | O2: x | P2: x | Q2: x | R2: x | S2: x | T2: x | U2: x | V2: x | W2: x | X2: x | Y2: x | Z2: x | AA2: x | AB2: x | AC2: x | AD2: x | AE2: x | AF2: x | AG2: x | AH2: x | AI2: x | AJ2: x | AK2: x | AL2: x | AM2: x
A3: x | B3: x | C3: x | D3: x | E3: x | F3: x | G3: x | H3: x | I3: x | J3: x | K3: x | L3: x | M3: x | N3: x | O3: x | P3: x | Q3: x | R3: x | S3: x | T3: x | U3: x | V3: x | W3: x | X3: x | Y3: x | Z3: x | AA3: x | AB3: x | AC3: x | AD3: x | AE3: x | AF3: x | AG3: x | AH3: x | AI3: x | AJ3: x | AK3: x | AL3: x | AM3: x
A4: x | B4: x | C4: x | D4: x | E4: x | F4: x | G4: x | H4: x | I4: x | J4: x | K4: x | L4: x | M4: x | N4: x | O4: x | P4: x | Q4: x | R4: x | S4: x | T4: x | U4: x | V4: x | W4: x | X4: x | Y4: x | Z4: x | AA4: x | AB4: x | AC4: x | AD4: x | AE4: x | AF4: x | AG4: x | AH4: x | AI4: x | AJ4: x | AK4: x | AL4: x | AM4: x
A5: x | B5: x | C5: x | D5: x | E5: x | F5: x | G5: x | H5: x | I5: x | J5: x | K5: x | L5: x | M5: x | N5: x | O5: x | P5: x | Q5: x | R5: x | S5: x | T5: x | U5: x | V5: x | W5: x | X5: x | Y5: x | Z5: x | AA5: x | AB5: x | AC5: x | AD5: x | AE5: x | AF5: x | AG5: x | AH5: x | AI5: x | AJ5: x | AK5: x | AL5: x | AM5: x
A6: x | B6: x | C6: x | D6: x | E6: x | F6: x | G6: x | H6: x | I6: x | J6: x | K6: x | L6: x | M6: x | N6: x | O6: x | P6: x | Q6: x | R6: x | S6: x | T6: x | U6: x | V6: x | W6: x | X6: x | Y6: x | Z6: x | AA6: x | AB6: x | AC6: x | AD6: x | AE6: x | AF6: x | AG6: x | AH6: x | AI6: x | AJ6: x | AK6: x | AL6: x | AM6: x
A7: x | B7: x | C7: x | D7: x | E7: x | F7: x | G7: x | H7: x | I7: x | J7: x | K7: x | L7: x | M7: x | N7: x | O7: x | P7: x | Q7: x | R7: x | S7: x | T7: x | U7: x | V7: x | W7: x | X7: x | Y7: x | Z7: x | AA7: x | AB7: x | AC7: x | AD7: x | AE7: x | AF7: x | AG7: x | AH7: x | AI7: x | AJ7: x | AK7: x | AL7: x | AM7: x
A8: x | B8: x | C8: x | D8: x | E8: x | F8: x | G8: x | H8: x | I8: x | J8: x | K8: x | L8: x | M8: x | N8: x | O8: x | P8: x | Q8: x | R8: x | S8: x | T8: x | U8: x | V8: x | W8: x | X8: x | Y8: x | Z8: x | AA8: x | AB8: x | AC8: x | AD8: x | AE8: x | AF8: x | AG8: x | AH8: x | AI8: x | AJ8: x | AK8: x | AL8: x | AM8: x
A9: x | C9: x | D9: x | E9: x | F9: x | G9: x | H9: x | I9: x | J9: x | K9: x | L9: x | M9: x | N9: x | O9: x | P9: x | Q9: x | R9: x | S9: x | T9: x | U9: x | V9: x | W9: x | X9: x
A10: x | C10: x | D10: x | E10: x | F10: x | G10: x | H10: x | I10: x | J10: x | K10: x | L10: x | M10: x | N10: x | O10: x | P10: x | Q10: x | R10: x | S10: x | T10: x | U10: x | V10: x | W10: x | X10: x
A11: x | C11: x | D11: x | E11: x | F11: x | G11: x | H11: x | I11: x | J11: x | K11: x | L11: x | M11: x | N11: x | O11: x | P11: x | Q11: x | R11: x | S11: x | T11: x | U11: x | V11: x | W11: x | X11: x
A12: x | C12: x | D12: x | E12: x | F12: x | G12: x | H12: x | I12: x | J12: x | K12: x | L12: x | M12: x | N12: x | O12: x | P12: x | Q12: x | R12: x | S12: x | T12: x | U12: x | V12: x | W12: x | X12: x
A13: x | C13: x | D13: x | E13: x | F13: x | G13: x | H13: x | I13: x | J13: x | K13: x | L13: x | M13: x | N13: x | O13: x | P13: x | Q13: x | R13: x | S13: x | T13: x | U13: x | V13: x | W13: x | X13: x
A14: x | C14: x | D14: x | E14: x | F14: x | G14: x | H14: x | I14: x | J14: x | K14: x | L14: x | M14: x | N14: x | O14: x | P14: x | Q14: x | R14: x | S14: x | T14: x | U14: x | V14: x | W14: x | X14: x
A15: x | B15: x | C15: x | D15: x | E15: x | F15: x | G15: x | H15: x | I15: x | J15: x | K15: x | L15: x | M15: x | N15: x | O15: x | P15: x | Q15: x | R15: x | S15: x | T15: x | U15: x | V15: x | W15: x | X15: x | Y15: x
A16: x | C16: x | D16: x | E16: x | F16: x | G16: x | H16: x | I16: x | J16: x | K16: x | L16: x | M16: x | N16: x | O16: x | P16: x | Q16: x | R16: x | S16: x | T16: x | U16: x | V16: x | W16: x | X16: x
A17: x | C17: x | D17: x | E17: x | F17: x | G17: x | H17: x | I17: x | J17: x | K17: x | L17: x | M17: x | N17: x | O17: x | P17: x | Q17: x | R17: x | S17: x | T17: x | U17: x | V17: x | W17: x | X17: x
A18: x | C18: x | D18: x | E18: x | F18: x | G18: x | H18: x | I18: x | J18: x | K18: x | L18: x | M18: x | N18: x | O18: x | P18: x | Q18: x | R18: x | S18: x | T18: x | U18: x | V18: x | W18: x | X18: x
A19: x | B19: x | C19: x | D19: x | E19: x | F19: x | G19: x | H19: x | I19: x | J19: x | K19: x | L19: x | M19: x | N19: x | O19: x | P19: x | Q19: x | R19: x | S19: x | T19: x | U19: x | V19: x | W19: x | X19: x | Y19: x
A20: x | C20: x | D20: x | E20: x | F20: x | G20: x | H20: x | I20: x | J20: x | K20: x | L20: x | M20: x | N20: x | O20: x | P20: x | Q20: x | R20: x | S20: x | T20: x | U20: x | V20: x | W20: x | X20: x
A21: x | C21: x | D21: x | E21: x | F21: x | G21: x | H21: x | I21: x | J21: x | K21: x | L21: x | M21: x | N21: x | O21: x | P21: x | Q21: x | R21: x | S21: x | T21: x | U21: x | V21: x | W21: x | X21: x
A22: x | C22: x | D22: x | E22: x | F22: x | G22: x | H22: x | I22: x | J22: x | K22: x | L22: x | M22: x | N22: x | O22: x | P22: x | Q22: x | R22: x | S22: x | T22: x | U22: x | V22: x | W22: x | X22: x
A23: x | B23: x | C23: x | D23: x | E23: x | F23: x | G23: x | H23: x | I23: x | J23: x | K23: x | L23: x | M23: x | N23: x | O23: x | P23: x | Q23: x | R23: x | S23: x | T23: x | U23: x | V23: x | W23: x | X23: x | Y23: x
A24: x | C24: x | D24: x | E24: x | F24: x | G24: x | H24: x | I24: x | J24: x | K24: x | L24: x | M24: x | N24: x | O24: x | P24: x | Q24: x | R24: x | S24: x | T24: x | U24: x | V24: x | W24: x | X24: x
A25: x | C25: x | D25: x | E25: x | F25: x | G25: x | H25: x | I25: x | J25: x | K25: x | L25: x | M25: x | N25: x | O25: x | P25: x | Q25: x | R25: x | S25: x | T25: x | U25: x | V25: x | W25: x | X25: x
A26: x | C26: x | D26: x | E26: x | F26: x | G26: x | H26: x | I26: x | J26: x | K26: x | L26: x | M26: x | N26: x | O26: x | P26: x | Q26: x | R26: x | S26: x | T26: x | U26: x | V26: x | W26: x | X26: x
A27: x | C27: x | D27: x | E27: x | F27: x | G27: x | H27: x | I27: x | J27: x | K27: x | L27: x | M27: x | N27: x | O27: x | P27: x | Q27: x | R27: x | S27: x | T27: x | U27: x | V27: x | W27: x | X27: x
A28: x | C28: x | D28: x | E28: x | F28: x | G28: x | H28: x | I28: x | J28: x | K28: x | L28: x | M28: x | N28: x | O28: x | P28: x | Q28: x | R28: x | S28: x | T28: x | U28: x | V28: x | W28: x | X28: x
A29: x | C29: x | D29: x | E29: x | F29: x | G29: x | H29: x | I29: x | J29: x | K29: x | L29: x | M29: x | N29: x | O29: x | P29: x | Q29: x | R29: x | S29: x | T29: x | U29: x | V29: x | W29: x | X29: x
A30: x | B30: x | C30: x | D30: x | E30: x | F30: x | G30: x | H30: x | I30: x | J30: x | K30: x | L30: x | M30: x | N30: x | O30: x | P30: x | Q30: x | R30: x | S30: x | T30: x | U30: x | V30: x | W30: x | X30: x | Y30: x
A31: x | C31: x | D31: x | E31: x | F31: x | G31: x | H31: x | I31: x | J31: x | K31: x | L31: x | M31: x | N31: x | O31: x | P31: x | Q31: x | R31: x | S31: x | T31: x | U31: x | V31: x | W31: x | X31: x
A32: x | C32: x | D32: x | E32: x | F32: x | G32: x | H32: x | I32: x | J32: x | K32: x | L32: x | M32: x | N32: x | O32: x | P32: x | Q32: x | R32: x | S32: x | T32: x | U32: x | V32: x | W32: x | X32: x
A33: x | C33: x | D33: x | E33: x | F33: x | G33: x | H33: x | I33: x | J33: x | K33: x | L33: x | M33: x | N33: x | O33: x | P33: x | Q33: x | R33: x | S33: x | T33: x | U33: x | V33: x | W33: x | X33: x
A34: x | B34: x | C34: x | D34: x | E34: x | F34: x | G34: x | H34: x | I34: x | J34: x | K34: x | L34: x | M34: x | N34: x | O34: x | P34: x | Q34: x | R34: x | S34: x | T34: x | U34: x | V34: x | W34: x | X34: x | Y34: x
A35: x | C35: x | D35: x | E35: x | F35: x | G35: x | H35: x | I35: x | J35: x | K35: x | L35: x | M35: x | N35: x | O35: x | P35: x | Q35: x | R35: x | S35: x | T35: x | U35: x | V35: x | W35: x | X35: x
A36: x | C36: x | D36: x | E36: x | F36: x | G36: x | H36: x | I36: x | J36: x | K36: x | L36: x | M36: x | N36: x | O36: x | P36: x | Q36: x | R36: x | S36: x | T36: x | U36: x | V36: x | W36: x | X36: x
A37: x | C37: x | D37: x | E37: x | F37: x | G37: x | H37: x | I37: x | J37: x | K37: x | L37: x | M37: x | N37: x | O37: x | P37: x | Q37: x | R37: x | S37: x | T37: x | U37: x | V37: x | W37: x | X37: x | AC37: x
A38: x | C38: x | D38: x | E38: x | F38: x | G38: x | H38: x | I38: x | J38: x | K38: x | L38: x | M38: x | N38: x | O38: x | P38: x | Q38: x | R38: x | S38: x | T38: x | U38: x | V38: x | W38: x | X38: x
A39: x | C39: x | D39: x | E39: x | F39: x | G39: x | H39: x | I39: x | J39: x | K39: x | L39: x | M39: x | N39: x | O39: x | P39: x | Q39: x | R39: x | S39: x | T39: x | U39: x | V39: x | W39: x | X39: x
A40: x | C40: x | D40: x | E40: x | F40: x | G40: x | H40: x | I40: x | J40: x | K40: x | L40: x | M40: x | N40: x | O40: x | P40: x | Q40: x | R40: x | S40: x | T40: x | U40: x | V40: x | W40: x | X40: x
A41: x | C41: x | D41: x | E41: x | F41: x | G41: x | H41: x | I41: x | J41: x | K41: x | L41: x | M41: x | N41: x | O41: x | P41: x | Q41: x | R41: x | S41: x | T41: x | U41: x | V41: x | W41: x | X41: x
A42: x | C42: x | D42: x | E42: x | F42: x | G42: x | H42: x | I42: x | J42: x | K42: x | L42: x | M42: x | N42: x | O42: x | P42: x | Q42: x | R42: x | S42: x | T42: x | U42: x | V42: x | W42: x | X42: x
A43: x | C43: x | D43: x | E43: x | F43: x | G43: x | H43: x | I43: x | J43: x | K43: x | L43: x | M43: x | N43: x | O43: x | P43: x | Q43: x | R43: x | S43: x | T43: x | U43: x | V43: x | W43: x | X43: x
A44: x | C44: x | D44: x | E44: x | F44: x | G44: x | H44: x | I44: x | J44: x | K44: x | L44: x | M44: x | N44: x | O44: x | P44: x | Q44: x | R44: x | S44: x | T44: x | U44: x | V44: x | W44: x | X44: x
A45: x | B45: x | C45: x | D45: x | E45: x | F45: x | G45: x | H45: x | I45: x | J45: x | K45: x | L45: x | M45: x | N45: x | O45: x | P45: x | Q45: x | R45: x | S45: x | T45: x | U45: x | V45: x | W45: x | X45: x | Y45: x
A46: x | C46: x | D46: x | E46: x | F46: x | G46: x | H46: x | I46: x | J46: x | K46: x | L46: x | M46: x | N46: x | O46: x | P46: x | Q46: x | R46: x | S46: x | T46: x | U46: x | V46: x | W46: x | X46: x
A47: x | C47: x | D47: x | E47: x | F47: x | G47: x | H47: x | I47: x | J47: x | K47: x | L47: x | M47: x | N47: x | O47: x | P47: x | Q47: x | R47: x | S47: x | T47: x | U47: x | V47: x | W47: x | X47: x
A48: x | C48: x | D48: x | E48: x | F48: x | G48: x | H48: x | I48: x | J48: x | K48: x | L48: x | M48: x | N48: x | O48: x | P48: x | Q48: x | R48: x | S48: x | T48: x | U48: x | V48: x | W48: x | X48: x
A49: x | C49: x | D49: x | E49: x | F49: x | G49: x | H49: x | I49: x | J49: x | K49: x | L49: x | M49: x | N49: x | O49: x | P49: x | Q49: x | R49: x | S49: x | T49: x | U49: x | V49: x | W49: x | X49: x
A50: x | C50: x | D50: x | E50: x | F50: x | G50: x | H50: x | I50: x | J50: x | K50: x | L50: x | M50: x | N50: x | O50: x | P50: x | Q50: x | R50: x | S50: x | T50: x | U50: x | V50: x | W50: x | X50: x
A51: x | B51: x | C51: x | D51: x | E51: x | F51: x | G51: x | H51: x | I51: x | J51: x | K51: x | L51: x | M51: x | N51: x | O51: x | P51: x | Q51: x | R51: x | S51: x | T51: x | U51: x | V51: x | W51: x | X51: x | Y51: x
A52: x | C52: x | D52: x | E52: x | F52: x | G52: x | H52: x | I52: x | J52: x | K52: x | L52: x | M52: x | N52: x | O52: x | P52: x | Q52: x | R52: x | S52: x | T52: x | U52: x | V52: x | W52: x | X52: x
A53: x | C53: x | D53: x | E53: x | F53: x | G53: x | H53: x | I53: x | J53: x | K53: x | L53: x | M53: x | N53: x | O53: x | P53: x | Q53: x | R53: x | S53: x | T53: x | U53: x | V53: x | W53: x | X53: x | AC53: x
A54: x | C54: x | D54: x | E54: x | F54: x | G54: x | H54: x | I54: x | J54: x | K54: x | L54: x | M54: x | N54: x | O54: x | P54: x | Q54: x | R54: x | S54: x | T54: x | U54: x | V54: x | W54: x | X54: x
A55: x | C55: x | D55: x | E55: x | F55: x | G55: x | H55: x | I55: x | J55: x | K55: x | L55: x | M55: x | N55: x | O55: x | P55: x | Q55: x | R55: x | S55: x | T55: x | U55: x | V55: x | W55: x | X55: x
A56: x | C56: x | D56: x | E56: x | F56: x | G56: x | H56: x | I56: x | J56: x | K56: x | L56: x | M56: x | N56: x | O56: x | P56: x | Q56: x | R56: x | S56: x | T56: x | U56: x | V56: x | W56: x | X56: x
A57: x | C57: x | D57: x | E57: x | F57: x | G57: x | H57: x | I57: x | J57: x | K57: x | L57: x | M57: x | N57: x | O57: x | P57: x | Q57: x | R57: x | S57: x | T57: x | U57: x | V57: x | W57: x | X57: x
A58: x | B58: x | C58: x | D58: x | E58: x | F58: x | G58: x | H58: x | I58: x | J58: x | K58: x | L58: x | M58: x | N58: x | O58: x | P58: x | Q58: x | R58: x | S58: x | T58: x | U58: x | V58: x | W58: x | X58: x | Y58: x
A59: x | C59: x | D59: x | E59: x | F59: x | G59: x | I59: x | J59: x | K59: x | L59: x | M59: x | N59: x | O59: x | P59: x | Q59: x | R59: x | S59: x | T59: x | U59: x | V59: x | W59: x | X59: x
A60: x | C60: x | D60: x | E60: x | F60: x | G60: x | I60: x | J60: x | K60: x | L60: x | M60: x | N60: x | O60: x | P60: x | Q60: x | R60: x | S60: x | T60: x | U60: x | V60: x | W60: x | X60: x
A61: x | C61: x | D61: x | E61: x | F61: x | G61: x | I61: x | J61: x | K61: x | L61: x | M61: x | N61: x | O61: x | P61: x | Q61: x | R61: x | S61: x | T61: x | U61: x | V61: x | W61: x | X61: x
A62: x | C62: x | D62: x | E62: x | F62: x | G62: x | I62: x | J62: x | K62: x | L62: x | M62: x | N62: x | O62: x | P62: x | Q62: x | R62: x | S62: x | T62: x | U62: x | V62: x | W62: x | X62: x
A63: x | C63: x | D63: x | E63: x | F63: x | G63: x | I63: x | J63: x | K63: x | L63: x | M63: x | N63: x | O63: x | P63: x | Q63: x | R63: x | S63: x | T63: x | U63: x | V63: x | W63: x | X63: x
A64: x | C64: x | D64: x | E64: x | F64: x | G64: x | I64: x | J64: x | K64: x | L64: x | M64: x | N64: x | O64: x | P64: x | Q64: x | R64: x | S64: x | T64: x | U64: x | V64: x | W64: x | X64: x
A65: x | C65: x | D65: x | E65: x | F65: x | G65: x | I65: x | J65: x | K65: x | L65: x | M65: x | N65: x | O65: x | P65: x | Q65: x | R65: x | S65: x | T65: x | U65: x | V65: x | W65: x | X65: x

Sheet Sjekkliste formelle forhold
A1: Formelle forhold i årsregnskapet - små foretak - Ideelle organisasjoner | D1: Utfylt:
A2: Klient: | B2: =+Forside!B2 -> 0 | D2: Review: | P2: Ikke besvart: | Q2: =Forside!B10 -> 0
A3: År: | B3: =+Forside!B3 -> 2020 | P3: Ja-svar: | Q3: =Forside!C10 -> 0
A4: Sjekklisten gjelder for ideelle organisasjoner som følger NRS (F) God regnskapsskikk for ideelle organisasjoner. | P4: Nei-svar: | Q4: =Forside!D10 -> 0
P5: Ikke av betydning: | Q5: =+Forside!E10 -> 0
L6: Ikke av | P6: IA-svar: | Q6: =Forside!F10 -> 33
B7: Spørsmål | D7: Ref. | J7: Ja | K7: Nei | L7: betydning | M7: I/A | N7: Kommentar | P7: Sum: | Q7: =SUM(Q2:Q6) -> 33
A8: Generelt
B9: Inneholder årsregnskapet: | D9: rskl § 3-2
A10: 1 | B10: • resultatregnskap/aktivitetsregnskap | E10: =IF(SUM(F10:I10)>1,"Oppgi kun et alternativ!","") ->  | F10: =IF(J10="","",1) ->  | G10: =IF(K10="","",1) ->  | P10: =IF(K10<>"","Du har satt X for at forholdet ikke er avklart. Gi en nærmere foklaring i kommentarfeltet.","") -> 
A11: =1+A10 -> 2 | B11: • balanse | E11: =IF(SUM(F11:I11)>1,"Oppgi kun et alternativ!","") ->  | F11: =IF(J11="","",1) ->  | G11: =IF(K11="","",1) ->  | H11: =IF(L11="","",1) ->  | I11: =IF(M11="","",1) ->  | P11: =IF(K11<>"","Du har satt X for at forholdet ikke er avklart. Gi en nærmere foklaring i kommentarfeltet.","") -> 
A12: =1+A11 -> 3 | B12: • noter | P12: =IF(K12<>"","Du har satt X for at forholdet ikke er avklart. Gi en nærmere foklaring i kommentarfeltet.","") -> 
A13: =1+A12 -> 4 | B13: • eventuelt en egen oppstilling over endringer i egenkapitalen | P13: =IF(K13<>"","Du har satt X for at forholdet ikke er avklart. Gi en nærmere foklaring i kommentarfeltet.","") -> 
A14: =1+A13 -> 5 | B14: Er det gitt referanser til noteopplysninger fra resultatregnskap og balanse? | P14: =IF(K14<>"","Du har satt X for at forholdet ikke er avklart. Gi en nærmere foklaring i kommentarfeltet.","") -> 
A15: Valuta og språk
A16: =+A14+1 -> 6 | B16: Er regnskapsvalutaen norske kroner, alternativt den funksjonelle valutaen? | D16: rskl § 3-4 | E16: =IF(SUM(F16:I16)>1,"Oppgi kun et alternativ!","") ->  | F16: =IF(J16="","",1) ->  | G16: =IF(K16="","",1) ->  | H16: =IF(L16="","",1) ->  | I16: =IF(M16="","",1) ->  | P16: =IF(K16<>"","Du har satt X for at forholdet ikke er avklart. Gi en nærmere foklaring i kommentarfeltet.","") -> 
A17: =+A16+1 -> 7 | B17: Er årsregnskapet presentert i norske kroner, euro, eller den funksjonelle valutaen? | E17: =IF(SUM(F17:I17)>1,"Oppgi kun et alternativ!","") ->  | F17: =IF(J17="","",1) ->  | P17: =IF(K17<>"","Du har satt X for at forholdet ikke er avklart. Gi en nærmere foklaring i kommentarfeltet.","") -> 
A18: =+A17+1 -> 8 | B18: Er årsregnskapet og årsberetningen på norsk? | E18: =IF(SUM(F18:I18)>1,"Oppgi kun et alternativ!","") ->  | F18: =IF(J18="","",1) ->  | P18: =IF(K18<>"","Du har satt X for at forholdet ikke er avklart. Gi en nærmere foklaring i kommentarfeltet.","") -> 
A19: Sammenligning med foregående årsregnskap
B20: Etter hovedregelen i rskl skal tallene omarbeides for å bli sammenlignbare, med mindre annet følger av god regnskapsskikk. Små foretak kan unnlate å omarbeide sammenligningstallene. | D20: rskl § 6-6
D21: NRS 8 pkt 3.3.1
A22: =+A18+1 -> 9 | B22: Er det vist tilsvarende tall fra foregående årsregnskap, og er de omarbeidet i nødvendig grad? | D22: rskl § 6-6 | E22: =IF(SUM(F22:I22)>1,"Oppgi kun et alternativ!","") ->  | F22: =IF(J22="","",1) ->  | G22: =IF(K22="","",1) ->  | H22: =IF(L22="","",1) ->  | I22: =IF(M22="","",1) ->  | P22: =IF(K22<>"","Du har satt X for at forholdet ikke er avklart. Gi en nærmere foklaring i kommentarfeltet.","") -> 
A23: Oppdeling eller sammenslåing av poster
B24: Regnskapsposter skal om nødvendig oppdeles eller tilføyes. | D24: rskl § 6-3
B25: Dette kan for eksempel gjelde lån fra aksjonær.
A26: =+A22+1 -> 10 | B26: Er det foretatt en ytterligere oppdeling av resultatregnskap og balanse eller tilføyelse av poster der foretakets forhold tilsier det? | D26: rskl § 6-3 | E26: =IF(SUM(F26:I26)>1,"Oppgi kun et alternativ!","") ->  | F26: =IF(J26="","",1) ->  | G26: =IF(K26="","",1) ->  | H26: =IF(L26="","",1) ->  | I26: =IF(M26="","",1) ->  | P26: =IF(K26<>"","Du har satt X for at forholdet ikke er avklart. Gi en nærmere foklaring i kommentarfeltet.","") -> 
B27: Poster skal slås sammen hvis sammenslåingen fører til et mer oversiktlig årsregnskap, med følgende unntak: • Bare linjer innenfor hvert romertall kan slås sammen, og linjer kan ikke slås sammen på tvers av romertall • Egenkapitalposter kan ikke slås sammen | D27: rskl § 6-3
A28: =+A26+1 -> 11 | B28: Er poster slått sammen i resultatregnskap og balanse hvis sammenslåingen fører til et mer oversiktlig årsregnskap? | D28: rskl § 6-3 | E28: =IF(SUM(F28:I28)>1,"Oppgi kun et alternativ!","") ->  | F28: =IF(J28="","",1) ->  | G28: =IF(K28="","",1) ->  | H28: =IF(L28="","",1) ->  | I28: =IF(M28="","",1) ->  | P28: =IF(K28<>"","Du har satt X for at forholdet ikke er avklart. Gi en nærmere foklaring i kommentarfeltet.","") -> 
A29: =+A28+1 -> 12 | B29: Er poster i oppstillingsplanen for resultatregnskapet som er slått sammen spesifisert i note? | D29: rskl § 7-38 | E29: =IF(SUM(F29:I29)>1,"Oppgi kun et alternativ!","") ->  | F29: =IF(J29="","",1) ->  | P29: =IF(K29<>"","Du har satt X for at forholdet ikke er avklart. Gi en nærmere foklaring i kommentarfeltet.","") -> 
A30: Underskrift
A31: =+A29+1 -> 13 | B31: Er årsregnskapet underskrevet av samtlige styremedlemmer og eventuelt av daglig leder, alternativt av deltakerne eller medlemmene hvis foretaket ikke har styre eller daglig leder? | D31: rskl § 3-5 | E31: =IF(SUM(F31:I31)>1,"Oppgi kun et alternativ!","") ->  | F31: =IF(J31="","",1) ->  | G31: =IF(K31="","",1) ->  | H31: =IF(L31="","",1) ->  | I31: =IF(M31="","",1) ->  | P31: =IF(K31<>"","Du har satt X for at forholdet ikke er avklart. Gi en nærmere foklaring i kommentarfeltet.","") -> 
A32: =+A31+1 -> 14 | B32: Dersom den som skal underskrive har innvendinger mot årsregnskapet, har vedkommende underskrevet med påtegnet forbehold og gitt nærmere redegjørelse i årsberetningen? | D32: rskl § 3-5 | E32: =IF(SUM(F32:I32)>1,"Oppgi kun et alternativ!","") ->  | F32: =IF(J32="","",1) ->  | P32: =IF(K32<>"","Du har satt X for at forholdet ikke er avklart. Gi en nærmere foklaring i kommentarfeltet.","") -> 
A33: =+A32+1 -> 15 | B33: Er årsregnskapet avlagt innenfor lovens frist? | D33: rskl § 3-1 | E33: =IF(SUM(F33:I33)>1,"Oppgi kun et alternativ!","") ->  | F33: =IF(J33="","",1) ->  | P33: =IF(K33<>"","Du har satt X for at forholdet ikke er avklart. Gi en nærmere foklaring i kommentarfeltet.","") -> 
A34: Resultatregnskapet
A35: =+A33+1 -> 16 | B35: Er resultatregnskapet satt opp i henhold til Regnskapslovens oppstillingsplan? | D35: rskl § 6-1 | E35: =IF(SUM(F35:I35)>1,"Oppgi kun et alternativ!","") ->  | F35: =IF(J35="","",1) ->  | G35: =IF(K35="","",1) ->  | H35: =IF(L35="","",1) ->  | I35: =IF(M35="","",1) ->  | P35: =IF(K35<>"","Du har satt X for at forholdet ikke er avklart. Gi en nærmere foklaring i kommentarfeltet.","") -> 
A36: =+A35+1 -> 17 | B36: Hvis driftskostnadene er inndelt etter funksjon, er da artsinndeling vist i note? | D36: rskl § 7-38 | E36: =IF(SUM(F36:I36)>1,"Oppgi kun et alternativ!","") ->  | F36: =IF(J36="","",1) ->  | P36: =IF(K36<>"","Du har satt X for at forholdet ikke er avklart. Gi en nærmere foklaring i kommentarfeltet.","") -> 
A37: =+A36+1 -> 18 | B37: Dersom det er valgt å benytte en aktivitetsbasert oppstillingsplan iht unntaket i regnskapslovens 6-3 tredje ledd, er dette inndelt iht NRS (F) God regnskapsskikk for ideelle organisasjoner? Er ytterligere inndeling gjort der dette er nødvendig for å gi et rettvisende bilde av organisasjonens aktiviteter? | D37: NRS (F) GRS for ideelle organisasjoner pkt 4.3 | E37: =IF(SUM(F37:I37)>1,"Oppgi kun et alternativ!","") ->  | F37: =IF(J37="","",1) ->  | P37: =IF(K37<>"","Du har satt X for at forholdet ikke er avklart. Gi en nærmere foklaring i kommentarfeltet.","") -> 
B38: Ihht NRS 8 er det ikke tillatt å klassifisere resultatposter som ekstraordinære, bortsett fra prinsippendringer og korrigering av feil som omtales nedenfor. Det kan imidlertid foreligge særlige poster som krever spesifikasjon på egen linje, for eksempel en uvanlig stor nedskrivning av varelager eller restruktureringskostnader. | D38: NRS 8 pkt 7.3
A39: =+A37+1 -> 19 | B39: Er det påsett at regnskapet ikke inneholder ekstraordinære poster utover virkning av prinsippendring og korrigering av feil? | D39: NRS 8 pkt 7.3 | E39: =IF(SUM(F39:I39)>1,"Oppgi kun et alternativ!","") ->  | F39: =IF(J39="","",1) ->  | G39: =IF(K39="","",1) ->  | H39: =IF(L39="","",1) ->  | I39: =IF(M39="","",1) -> 
A40: =+A39+1 -> 20 | B40: Dersom det foreligger særlige poster, er disse spesifisert og benevnt etter inntektens eller kostnadens innhold? | D40: NRS 8 pkt 7.3 | E40: =IF(SUM(F40:I40)>1,"Oppgi kun et alternativ!","") ->  | F40: =IF(J40="","",1) -> 
